Workbook

Sheet Disclaimer
B4: Oklahoma Department of Transportation
B5: I-40 Douglas Boulevard Interchange Reconstruction and Related Widening
B6: 2020-02-25
B13: Disclaimer
B14: ="The Model is provided to "&Client.Name&" on the basis that it is strictly private and confidential. The Recipients agree to not disclose that information to any person or entity except with the prior consent of HDR Inc. (HDR) or as required by law." -> The Model is provided to Oklahoma Department of Transportation on the basis that it is strictly private and confidential. The Recipients agree to not disclose that information to any person or entity except with the prior consent of HDR Inc. (HDR) or as required by law.
B17: ="HDR retains all intellectual property with respect to this Model. The Recipients agree to use this Model only for the purpose of performing analysis in support of the "&Project.Name&" project. The Model must not be used for any other purpose. " -> HDR retains all intellectual property with respect to this Model. The Recipients agree to use this Model only for the purpose of performing analysis in support of the I-40 Douglas Boulevard Interchange Reconstruction and Related Widening project. The Model must not be used for any other purpose.
B20: By retaining and using this Model, the Recipients represent to HDR that they are capable of making their own independent assessment as to the validity of the assumptions, data and results contained in this Model.
B22: The Model may be a development version and may not be complete or, in the event that development of the Model has concluded, material events may have occurred since completion which are not reflected in the Model. In consultation with the client, HDR used what was deemed the best available data at the time of analysis and makes no warranties as to the accuracy of this information or completeness of the Model.

Sheet Results
B2: Cost-Benefit Analysis
B4: All values are in 2018$ millions
B5: Benefit Category | C5: Impact # | D5: Over Years 2019-2046 | G5: 30 Years Analysis (7%)
D6: Undiscounted | E6: 0.07 | F6: 0.03
B7: Reduction in Accident Costs | C7: 1 | D7: =(SUM(D30:AE30))/10^6 -> 154.5618001 | E7: =(SUM(D44:AE44))/10^6 -> 49.49939356 | F7: =(SUM(D58:AE58))/10^6 -> 92.26146247 | G7: =(SUM('Accident Cost Saving'!D106:AO106)/10^6) -> 60.08269838
B8: Travel Time Saving - Mainline | C8: 2 | D8: 95.2740526 | E8: 27.76330928 | F8: 54.5939766 | G8: =(SUM('Travel Time Savings'!D70:AO70)/10^6) -> 38.36657855
B9: Travel Time Saving - Interchanges | C9: 3 | D9: 28.37557213 | E9: 8.127894502 | F9: 16.13864085 | G9: =(SUM('Travel Time Saving-Interchanges'!D38:AO38))/10^6 -> 11.59080372
B10: Residual Value | C10: 4 | D10: 68.69022404 | E10: 11.05434298 | F10: 30.9235871 | G10: =('Residual Value'!AO21*'Residual Value'!AO6)/10^6 -> 4.214600574
B11: Agency Cost Saving | C11: 5 | D11: 30.78339728 | E11: 11.94869772 | F11: 19.88159578 | G11: =(SUM('Project Data'!J25:AU25))/10^6 -> 13.79114071
B12: O&M Costs | C12: 6 | D12: =(SUM(D35:AE35))/10^6 -> 6.252877572 | E12: 1.510142038 | F12: 3.235539487 | G12: =(SUM('Project Data'!J20:AU20))/10^6 -> 2.159721298
B13: Capital Costs | C13: C1 | D13: =((SUM(D36:AE36))/10^6) -> -108.3308249 | E13: =(((SUM(D50:AE50))/10^6)) -> -77.17841611 | F13: -93.27263997 | G13: =-(SUM('Project Data'!J15:AU15))/10^6 -> -77.17841611
B14: Total Benefits | D14: =SUM(D7:D11) -> 377.6850462 | E14: =SUM(E7:E11) -> 108.393638 | F14: =SUM(F7:F11) -> 213.7992628 | G14: =SUM(G7:G11) -> 128.0458219
B15: NPV | D15: =SUM(D7:D13)-D12 -> 269.3542213 | E15: =SUM(E7:E13)-E12 -> 31.21522194 | F15: =SUM(F7:F13)-F12 -> 120.5266228 | G15: =SUM(G7:G13)-G12 -> 50.86740583
B17: All values are in 2018$ millions | D17: Over Years 2019-2046 | G17: 30 Years
B18: Financial Metrics | D18: Undiscounted | E18: 0.07 | F18: 0.03 | G18: 0.07
B19: Total Benefits | D19: =(SUM(D37:AE37))/10^6 -> 377.6850462 | E19: =(SUM(D51:AE51))/10^6 -> 108.393638 | F19: =(SUM(D65:AE65))/10^6 -> 213.7992628 | G19: =G14 -> 128.0458219
B20: Total O&M Costs | D20: =(SUM(D35:AE35)/10^6) -> 6.252877572 | E20: =(SUM(D49:AE49)/10^6) -> 1.510142038 | F20: =(SUM(D63:AE63)/10^6) -> 3.235539487 | G20: =(SUM('Project Data'!J20:AU20))/10^6 -> 2.159721298
B21: Total Costs | D21: =((-SUM(D36:AE36))/10^6) -> 108.3308249 | E21: =(((-SUM(D50:AE50))/10^6)) -> 77.17841611 | F21: =(-SUM(D64:AE64))/10^6 -> 93.27263997 | G21: =(SUM('Project Data'!J15:AU15))/10^6 -> 77.17841611
B22: NPV | D22: =D15 -> 269.3542213 | E22: =E15 -> 31.21522194 | F22: =F15 -> 120.5266228 | G22: =E15 -> 31.21522194
B23: ROI | D23: =IFERROR(D22/D21,"-") -> 2.486404231 | E23: =IFERROR(E22/E21,"-") -> 0.4044553323 | F23: =IFERROR(F22/F21,"-") -> 1.292196971 | G23: =IFERROR(G22/G21,"-") -> 0.4044553323
B24: BCR | D24: =IFERROR((D19-D20)/D21,"-") -> 3.428684025 | E24: =IFERROR((E19-E20)/E21,"-") -> 1.384888436 | F24: =IFERROR((F19-F20)/F21,"-") -> 2.257507919 | G24: =IFERROR((G19-G20)/G21,"-") -> 1.631105003
B25: Payback Period | D25: =IFERROR((S29-O29+1)+(-S40/T39),"-") -> 4.907936537
B26: IRR | D26: =IFERROR(IRR(D39:AE39),"-") -> 0.1053645538
B28: Results - Undiscounted 2018$
B29: Impact Category | C29: Total | D29: =Base.Year -> 2019 | E29: =D29+1 -> 2020 | F29: =E29+1 -> 2021 | G29: 2022 | H29: 2023 | I29: 2024 | J29: 2025 | K29: 2026 | L29: 2027 | M29: 2028 | N29: 2029 | O29: 2030 | P29: 2031 | Q29: 2032 | R29: 2033 | S29: 2034 | T29: 2035 | U29: 2036 | V29: 2037 | W29: 2038 | X29: 2039 | Y29: 2040 | Z29: 2041 | AA29: 2042 | AB29: 2043 | AC29: 2044 | AD29: 2045 | AE29: 2046
B30: Reduction in Accident Costs | C30: =SUM(D30:AE30)/10^6 -> 154.5618001 | D30: ='Accident Cost Saving'!D105 -> 0 | E30: ='Accident Cost Saving'!E105 -> 0 | F30: ='Accident Cost Saving'!F105 -> 0 | G30: ='Accident Cost Saving'!G105 -> 0 | H30: ='Accident Cost Saving'!H105 -> 0 | I30: ='Accident Cost Saving'!I105 -> 0 | J30: ='Accident Cost Saving'!J105 -> 0 | K30: ='Accident Cost Saving'!K105 -> 0 | L30: ='Accident Cost Saving'!L105 -> 6781178.707 | M30: ='Accident Cost Saving'!M105 -> 6872953.398 | N30: ='Accident Cost Saving'!N105 -> 6965970.144 | O30: ='Accident Cost Saving'!O105 -> 7060245.754 | P30: ='Accident Cost Saving'!P105 -> 7155797.265 | Q30: ='Accident Cost Saving'!Q105 -> 7252641.946 | R30: ='Accident Cost Saving'!R105 -> 7350797.296 | S30: ='Accident Cost Saving'!S105 -> 7450281.056 | T30: ='Accident Cost Saving'!T105 -> 7551111.203 | U30: ='Accident Cost Saving'!U105 -> 7653305.958 | V30: ='Accident Cost Saving'!V105 -> 7756883.791 | W30: ='Accident Cost Saving'!W105 -> 7861863.418 | X30: ='Accident Cost Saving'!X105 -> 7968263.812 | Y30: ='Accident Cost Saving'!Y105 -> 8076104.202 | Z30: ='Accident Cost Saving'!Z105 -> 8185404.075 | AA30: ='Accident Cost Saving'!AA105 -> 8296183.183 | AB30: ='Accident Cost Saving'!AB105 -> 8408461.547 | AC30: ='Accident Cost Saving'!AC105 -> 8522259.457 | AD30: ='Accident Cost Saving'!AD105 -> 8637597.478 | AE30: ='Accident Cost Saving'!AE105 -> 8754496.453
B31: Travel Time Saving | C31: 95.2740526 | D31: ='Travel Time Savings'!D69 -> 0 | E31: ='Travel Time Savings'!E69 -> 0 | F31: ='Travel Time Savings'!F69 -> 0 | G31: ='Travel Time Savings'!G69 -> 0 | H31: ='Travel Time Savings'!H69 -> 0 | I31: ='Travel Time Savings'!I69 -> 0 | J31: ='Travel Time Savings'!J69 -> 0 | K31: ='Travel Time Savings'!K69 -> 0 | L31: ='Travel Time Savings'!L69 -> 2541999.786 | M31: ='Travel Time Savings'!M69 -> 2730818.505 | N31: ='Travel Time Savings'!N69 -> 2926246.07 | O31: ='Travel Time Savings'!O69 -> 3128475.95 | P31: ='Travel Time Savings'!P69 -> 3337706.866 | Q31: ='Travel Time Savings'!Q69 -> 3554142.931 | R31: ='Travel Time Savings'!R69 -> 3777993.79 | S31: ='Travel Time Savings'!S69 -> 4009474.765 | T31: ='Travel Time Savings'!T69 -> 4248807.002 | U31: ='Travel Time Savings'!U69 -> 4496217.623 | V31: ='Travel Time Savings'!V69 -> 4751939.884 | W31: ='Travel Time Savings'!W69 -> 5016213.331 | X31: ='Travel Time Savings'!X69 -> 5289283.97 | Y31: ='Travel Time Savings'!Y69 -> 5571404.428 | Z31: ='Travel Time Savings'!Z69 -> 5862834.13 | AA31: ='Travel Time Savings'!AA69 -> 6163839.475 | AB31: ='Travel Time Savings'!AB69 -> 6474694.017 | AC31: ='Travel Time Savings'!AC69 -> 6795678.651 | AD31: ='Travel Time Savings'!AD69 -> 7127081.802 | AE31: ='Travel Time Savings'!AE69 -> 7469199.625
B32: Travel Time Saving - Douglas Interchange | C32: 28.37557213 | D32: ='Travel Time Saving-Interchanges'!D37 -> 0 | E32: ='Travel Time Saving-Interchanges'!E37 -> 0 | F32: ='Travel Time Saving-Interchanges'!F37 -> 0 | G32: ='Travel Time Saving-Interchanges'!G37 -> 0 | H32: ='Travel Time Saving-Interchanges'!H37 -> 0 | I32: ='Travel Time Saving-Interchanges'!I37 -> 0 | J32: ='Travel Time Saving-Interchanges'!J37 -> 0 | K32: ='Travel Time Saving-Interchanges'!K37 -> 0 | L32: ='Travel Time Saving-Interchanges'!L37 -> 708850.2937 | M32: ='Travel Time Saving-Interchanges'!M37 -> 760023.699 | N32: ='Travel Time Saving-Interchanges'!N37 -> 814494.3996 | O32: ='Travel Time Saving-Interchanges'!O37 -> 872424.2612 | P32: ='Travel Time Saving-Interchanges'!P37 -> 933975.873 | Q32: ='Travel Time Saving-Interchanges'!Q37 -> 999311.1966 | R32: ='Travel Time Saving-Interchanges'!R37 -> 1068589.951 | S32: ='Travel Time Saving-Interchanges'!S37 -> 1141967.69 | T32: ='Travel Time Saving-Interchanges'!T37 -> 1219593.538 | U32: ='Travel Time Saving-Interchanges'!U37 -> 1301607.523 | V32: ='Travel Time Saving-Interchanges'!V37 -> 1388137.456 | W32: ='Travel Time Saving-Interchanges'!W37 -> 1479295.306 | X32: ='Travel Time Saving-Interchanges'!X37 -> 1575172.98 | Y32: ='Travel Time Saving-Interchanges'!Y37 -> 1675837.445 | Z32: ='Travel Time Saving-Interchanges'!Z37 -> 1781325.098 | AA32: ='Travel Time Saving-Interchanges'!AA37 -> 1891635.284 | AB32: ='Travel Time Saving-Interchanges'!AB37 -> 2006722.851 | AC32: ='Travel Time Saving-Interchanges'!AC37 -> 2126489.624 | AD32: ='Travel Time Saving-Interchanges'!AD37 -> 2250774.641 | AE32: ='Travel Time Saving-Interchanges'!AE37 -> 2379343.014
B33: Residual Value | C33: 68.69022404 | D33: ='Residual Value'!D24 -> 0 | E33: ='Residual Value'!E24 -> 0 | F33: ='Residual Value'!F24 -> 0 | G33: ='Residual Value'!G24 -> 0 | H33: ='Residual Value'!H24 -> 0 | I33: ='Residual Value'!I24 -> 0 | J33: ='Residual Value'!J24 -> 0 | K33: ='Residual Value'!K24 -> 0 | L33: ='Residual Value'!L24 -> 0 | M33: ='Residual Value'!M24 -> 0 | N33: ='Residual Value'!N24 -> 0 | O33: ='Residual Value'!O24 -> 0 | P33: ='Residual Value'!P24 -> 0 | Q33: ='Residual Value'!Q24 -> 0 | R33: ='Residual Value'!R24 -> 0 | S33: ='Residual Value'!S24 -> 0 | T33: ='Residual Value'!T24 -> 0 | U33: ='Residual Value'!U24 -> 0 | V33: ='Residual Value'!V24 -> 0 | W33: ='Residual Value'!W24 -> 0 | X33: ='Residual Value'!X24 -> 0 | Y33: ='Residual Value'!Y24 -> 0 | Z33: ='Residual Value'!Z24 -> 0 | AA33: ='Residual Value'!AA24 -> 0 | AB33: ='Residual Value'!AB24 -> 0 | AC33: ='Residual Value'!AC24 -> 0 | AD33: ='Residual Value'!AD24 -> 0 | AE33: ='Residual Value'!AE24 -> 68690224.04
B34: Agency Cost Saving | C34: 30.78339728 | D34: ='Project Data'!J24 -> 0 | E34: ='Project Data'!K24 -> 0 | F34: ='Project Data'!L24 -> 0 | G34: ='Project Data'!M24 -> 0 | H34: ='Project Data'!N24 -> 0 | I34: ='Project Data'!O24 -> 0 | J34: ='Project Data'!P24 -> 0 | K34: ='Project Data'!Q24 -> 7311056.854 | L34: ='Project Data'!R24 -> 0 | M34: ='Project Data'!S24 -> 0 | N34: ='Project Data'!T24 -> 0 | O34: ='Project Data'!U24 -> 6349075.689 | P34: ='Project Data'!V24 -> 0 | Q34: ='Project Data'!W24 -> 0 | R34: ='Project Data'!X24 -> 0 | S34: ='Project Data'!Y24 -> 0 | T34: ='Project Data'!Z24 -> 6349075.689 | U34: ='Project Data'!AA24 -> 0 | V34: ='Project Data'!AB24 -> 0 | W34: ='Project Data'!AC24 -> 0 | X34: ='Project Data'!AD24 -> 0 | Y34: ='Project Data'!AE24 -> 5387094.524 | Z34: ='Project Data'!AF24 -> 0 | AA34: ='Project Data'!AG24 -> 0 | AB34: ='Project Data'!AH24 -> 0 | AC34: ='Project Data'!AI24 -> 0 | AD34: ='Project Data'!AJ24 -> 5387094.524 | AE34: ='Project Data'!AK24 -> 0
B35: O&M Costs | C35: 6.252877572 | D35: =('Project Data'!J19) -> 0 | E35: =('Project Data'!K19) -> 0 | F35: =('Project Data'!L19) -> 0 | G35: =('Project Data'!M19) -> 0 | H35: =('Project Data'!N19) -> 0 | I35: =('Project Data'!O19) -> 0 | J35: =('Project Data'!P19) -> 0 | K35: =('Project Data'!Q19) -> 961981.165 | L35: =('Project Data'!R19) -> 0 | M35: =('Project Data'!S19) -> 0 | N35: =('Project Data'!T19) -> 0 | O35: =('Project Data'!U19) -> 0 | P35: =('Project Data'!V19) -> 0 | Q35: =('Project Data'!W19) -> 0 | R35: =('Project Data'!X19) -> 0 | S35: =('Project Data'!Y19) -> 0 | T35: =('Project Data'!Z19) -> 0 | U35: =('Project Data'!AA19) -> 0 | V35: =('Project Data'!AB19) -> 0 | W35: =('Project Data'!AC19) -> 0 | X35: =('Project Data'!AD19) -> 0 | Y35: =('Project Data'!AE19) -> 0 | Z35: =('Project Data'!AF19) -> 0 | AA35: =('Project Data'!AG19) -> 0 | AB35: =('Project Data'!AH19) -> 0 | AC35: =('Project Data'!AI19) -> 0 | AD35: =('Project Data'!AJ19) -> 5290896.407 | AE35: =('Project Data'!AK19) -> 0
B36: Capital Costs | C36: -108.3308249 | D36: =-'Project Data'!J14 -> -5295488.812 | E36: =-'Project Data'!K14 -> 0 | F36: =-'Project Data'!L14 -> 0 | G36: =-'Project Data'!M14 -> 0 | H36: =-'Project Data'!N14 -> -19810423.48 | I36: =-'Project Data'!O14 -> -26643375.7 | J36: =-'Project Data'!P14 -> -34476307.33 | K36: =-'Project Data'!Q14 -> -22105229.55 | L36: =-'Project Data'!R14 -> 0 | M36: =-'Project Data'!S14 -> 0 | N36: =-'Project Data'!T14 -> 0 | O36: =-'Project Data'!U14 -> 0 | P36: =-'Project Data'!V14 -> 0 | Q36: =-'Project Data'!W14 -> 0 | R36: =-'Project Data'!X14 -> 0 | S36: =-'Project Data'!Y14 -> 0 | T36: =-'Project Data'!Z14 -> 0 | U36: =-'Project Data'!AA14 -> 0 | V36: =-'Project Data'!AB14 -> 0 | W36: =-'Project Data'!AC14 -> 0 | X36: =-'Project Data'!AD14 -> 0 | Y36: =-'Project Data'!AE14 -> 0 | Z36: =-'Project Data'!AF14 -> 0 | AA36: =-'Project Data'!AG14 -> 0 | AB36: =-'Project Data'!AH14 -> 0 | AC36: =-'Project Data'!AI14 -> 0 | AD36: =-'Project Data'!AJ14 -> 0 | AE36: =-'Project Data'!AK14 -> 0
B37: Total Benefits | C37: 377.6850462 | D37: =SUM(D30:D34) -> 0 | E37: =SUM(E30:E34) -> 0 | F37: 0 | G37: 0 | H37: 0 | I37: 0 | J37: 0 | K37: =SUM(K30:K34) -> 7311056.854 | L37: 10032028.79 | M37: 10363795.6 | N37: 10706710.61 | O37: 17410221.65 | P37: 11427480 | Q37: 11806096.07 | R37: 12197381.04 | S37: 12601723.51 | T37: 19368587.43 | U37: 13451131.1 | V37: 13896961.13 | W37: 14357372.06 | X37: 14832720.76 | Y37: 20710440.6 | Z37: 15829563.3 | AA37: 16351657.94 | AB37: 16889878.42 | AC37: 17444427.73 | AD37: 23402548.44 | AE37: 87293263.13
B38: Total Costs | C38: -102.0779473 | D38: =SUM(D35:D36) -> -5295488.812 | E38: =SUM(E35:E36) -> 0 | F38: =SUM(F35:F36) -> 0 | G38: 0 | H38: -19810423.48 | I38: -26643375.7 | J38: -34476307.33 | K38: -21143248.39 | L38: 0 | M38: 0 | N38: 0 | O38: 0 | P38: 0 | Q38: 0 | R38: 0 | S38: 0 | T38: 0 | U38: 0 | V38: 0 | W38: 0 | X38: 0 | Y38: 0 | Z38: 0 | AA38: 0 | AB38: =SUM(AB35:AB36) -> 0 | AC38: 0 | AD38: 5290896.407 | AE38: 0
B39: Net Impacts | C39: 275.6070989 | D39: =SUM(D30:D36) -> -5295488.812 | E39: =SUM(E30:E36) -> 0 | F39: =SUM(F30:F36) -> 0 | G39: =SUM(G30:G36) -> 0 | H39: -19810423.48 | I39: -26643375.7 | J39: -34476307.33 | K39: -13832191.53 | L39: 10032028.79 | M39: 10363795.6 | N39: 10706710.61 | O39: 17410221.65 | P39: 11427480 | Q39: 11806096.07 | R39: 12197381.04 | S39: 12601723.51 | T39: 19368587.43 | U39: 13451131.1 | V39: 13896961.13 | W39: 14357372.06 | X39: 14832720.76 | Y39: 20710440.6 | Z39: 15829563.3 | AA39: 16351657.94 | AB39: =SUM(AB30:AB36) -> 16889878.42 | AC39: 17444427.73 | AD39: 28693444.85 | AE39: 87293263.13
B40: Cumulative Net Impacts | D40: =D39 -> -5295488.812 | E40: =E39 -> 0 | F40: =E40+F39 -> 0 | G40: =F40+G39 -> 0 | H40: =G40+H39 -> -19810423.48 | I40: =H40+I39 -> -46453799.18 | J40: -80930106.51 | K40: -94762298.04 | L40: -84730269.26 | M40: -74366473.66 | N40: -63659763.04 | O40: -46249541.39 | P40: -34822061.38 | Q40: -23015965.31 | R40: -10818584.27 | S40: 1783139.237 | T40: 21151726.67 | U40: 34602857.77 | V40: 48499818.9 | W40: 62857190.96 | X40: 77689911.72 | Y40: 98400352.32 | Z40: 114229915.6 | AA40: 130581573.6 | AB40: =AA40+AB39 -> 147471452 | AC40: =AB40+AC39 -> 164915879.7 | AD40: =AC40+AD39 -> 193609324.6 | AE40: =AD40+AE39 -> 280902587.7
B42: Results - 7% Discount Rate, in 2018$
B43: Impact Category | C43: Total | D43: =Base.Year -> 2019 | E43: =D43+1 -> 2020 | F43: =E43+1 -> 2021 | G43: 2022 | H43: 2023 | I43: 2024 | J43: 2025 | K43: 2026 | L43: 2027 | M43: 2028 | N43: 2029 | O43: 2030 | P43: 2031 | Q43: 2032 | R43: 2033 | S43: 2034 | T43: 2035 | U43: 2036 | V43: 2037 | W43: 2038 | X43: 2039 | Y43: 2040 | Z43: 2041 | AA43: 2042 | AB43: 2043 | AC43: 2044 | AD43: 2045 | AE43: 2046
B44: Reduction in Accident Costs | C44: =SUM(D44:AE44)/10^6 -> 49.49939356 | D44: ='Accident Cost Saving'!D106 -> 0 | E44: ='Accident Cost Saving'!E106 -> 0 | F44: ='Accident Cost Saving'!F106 -> 0 | G44: ='Accident Cost Saving'!G106 -> 0 | H44: ='Accident Cost Saving'!H106 -> 0 | I44: ='Accident Cost Saving'!I106 -> 0 | J44: ='Accident Cost Saving'!J106 -> 0 | K44: ='Accident Cost Saving'!K106 -> 0 | L44: ='Accident Cost Saving'!L106 -> 3946707.747 | M44: ='Accident Cost Saving'!M106 -> 3738431.264 | N44: ='Accident Cost Saving'!N106 -> 3541145.992 | O44: ='Accident Cost Saving'!O106 -> 3354271.898 | P44: ='Accident Cost Saving'!P106 -> 3177259.564 | Q44: ='Accident Cost Saving'!Q106 -> 3009588.561 | R44: ='Accident Cost Saving'!R106 -> 2850765.927 | S44: ='Accident Cost Saving'!S106 -> 2700324.714 | T44: ='Accident Cost Saving'!T106 -> 2557822.616 | U44: ='Accident Cost Saving'!U106 -> 2422840.669 | V44: ='Accident Cost Saving'!V106 -> 2294982.017 | W44: ='Accident Cost Saving'!W106 -> 2173870.748 | X44: ='Accident Cost Saving'!X106 -> 2059150.789 | Y44: ='Accident Cost Saving'!Y106 -> 1950484.855 | Z44: ='Accident Cost Saving'!Z106 -> 1847553.462 | AA44: ='Accident Cost Saving'!AA106 -> 1750053.986 | AB44: ='Accident Cost Saving'!AB106 -> 1657699.773 | AC44: ='Accident Cost Saving'!AC106 -> 1570219.296 | AD44: ='Accident Cost Saving'!AD106 -> 1487355.356 | AE44: ='Accident Cost Saving'!AE106 -> 1408864.33
B45: Travel Time Saving | C45: 27.76330928 | D45: ='Travel Time Savings'!D70 -> 0 | E45: ='Travel Time Savings'!E70 -> 0 | F45: ='Travel Time Savings'!F70 -> 0 | G45: ='Travel Time Savings'!G70 -> 0 | H45: ='Travel Time Savings'!H70 -> 0 | I45: ='Travel Time Savings'!I70 -> 0 | J45: ='Travel Time Savings'!J70 -> 0 | K45: ='Travel Time Savings'!K70 -> 0 | L45: ='Travel Time Savings'!L70 -> 1479467.019 | M45: ='Travel Time Savings'!M70 -> 1485384.33 | N45: ='Travel Time Savings'!N70 -> 1487555.118 | O45: ='Travel Time Savings'!O70 -> 1486316.387 | P45: ='Travel Time Savings'!P70 -> 1481981.765 | Q45: ='Travel Time Savings'!Q70 -> 1474842.959 | R45: ='Travel Time Savings'!R70 -> 1465171.128 | S45: ='Travel Time Savings'!S70 -> 1453218.169 | T45: ='Travel Time Savings'!T70 -> 1439217.931 | U45: ='Travel Time Savings'!U70 -> 1423387.353 | V45: ='Travel Time Savings'!V70 -> 1405927.544 | W45: ='Travel Time Savings'!W70 -> 1387024.786 | X45: ='Travel Time Savings'!X70 -> 1366851.489 | Y45: ='Travel Time Savings'!Y70 -> 1345567.081 | Z45: ='Travel Time Savings'!Z70 -> 1323318.848 | AA45: ='Travel Time Savings'!AA70 -> 1300242.727 | AB45: ='Travel Time Savings'!AB70 -> 1276464.041 | AC45: ='Travel Time Savings'!AC70 -> 1252098.202 | AD45: ='Travel Time Savings'!AD70 -> 1227251.365 | AE45: ='Travel Time Savings'!AE70 -> 1202021.039
B46: Travel Time Saving - Douglas Interchange | C46: 8.127894502 | D46: ='Travel Time Saving-Interchanges'!D38 -> 0 | E46: ='Travel Time Saving-Interchanges'!E38 -> 0 | F46: ='Travel Time Saving-Interchanges'!F38 -> 0 | G46: ='Travel Time Saving-Interchanges'!G38 -> 0 | H46: ='Travel Time Saving-Interchanges'!H38 -> 0 | I46: ='Travel Time Saving-Interchanges'!I38 -> 0 | J46: ='Travel Time Saving-Interchanges'!J38 -> 0 | K46: ='Travel Time Saving-Interchanges'!K38 -> 0 | L46: ='Travel Time Saving-Interchanges'!L38 -> 412557.3247 | M46: ='Travel Time Saving-Interchanges'!M38 -> 413402.535 | N46: ='Travel Time Saving-Interchanges'!N38 -> 414047.6515 | O46: ='Travel Time Saving-Interchanges'!O38 -> 414482.4819 | P46: ='Travel Time Saving-Interchanges'!P38 -> 414696.4572 | Q46: ='Travel Time Saving-Interchanges'!Q38 -> 414678.6189 | R46: ='Travel Time Saving-Interchanges'!R38 -> 414417.6064 | S46: ='Travel Time Saving-Interchanges'!S38 -> 413901.6438 | T46: ='Travel Time Saving-Interchanges'!T38 -> 413118.5267 | U46: ='Travel Time Saving-Interchanges'!U38 -> 412055.6081 | V46: ='Travel Time Saving-Interchanges'!V38 -> 410699.7841 | W46: ='Travel Time Saving-Interchanges'!W38 -> 409037.4791 | X46: ='Travel Time Saving-Interchanges'!X38 -> 407054.6308 | Y46: ='Travel Time Saving-Interchanges'!Y38 -> 404736.6743 | Z46: ='Travel Time Saving-Interchanges'!Z38 -> 402068.5262 | AA46: ='Travel Time Saving-Interchanges'!AA38 -> 399034.5675 | AB46: ='Travel Time Saving-Interchanges'!AB38 -> 395618.6273 | AC46: ='Travel Time Saving-Interchanges'!AC38 -> 391803.9643 | AD46: ='Travel Time Saving-Interchanges'!AD38 -> 387573.249 | AE46: ='Travel Time Saving-Interchanges'!AE38 -> 382908.5452
B47: Residual Value | C47: 11.05434298 | D47: ='Residual Value'!D25 -> 0 | E47: ='Residual Value'!E25 -> 0 | F47: ='Residual Value'!F25 -> 0 | G47: ='Residual Value'!G25 -> 0 | H47: ='Residual Value'!H25 -> 0 | I47: ='Residual Value'!I25 -> 0 | J47: ='Residual Value'!J25 -> 0 | K47: ='Residual Value'!K25 -> 0 | L47: ='Residual Value'!L25 -> 0 | M47: ='Residual Value'!M25 -> 0 | N47: ='Residual Value'!N25 -> 0 | O47: ='Residual Value'!O25 -> 0 | P47: ='Residual Value'!P25 -> 0 | Q47: ='Residual Value'!Q25 -> 0 | R47: ='Residual Value'!R25 -> 0 | S47: ='Residual Value'!S25 -> 0 | T47: ='Residual Value'!T25 -> 0 | U47: ='Residual Value'!U25 -> 0 | V47: ='Residual Value'!V25 -> 0 | W47: ='Residual Value'!W25 -> 0 | X47: ='Residual Value'!X25 -> 0 | Y47: ='Residual Value'!Y25 -> 0 | Z47: ='Residual Value'!Z25 -> 0 | AA47: ='Residual Value'!AA25 -> 0 | AB47: ='Residual Value'!AB25 -> 0 | AC47: ='Residual Value'!AC25 -> 0 | AD47: ='Residual Value'!AD25 -> 0 | AE47: ='Residual Value'!AE25 -> 11054342.98
B48: Agency Cost Saving | C48: 11.94869772 | D48: ='Project Data'!J24*'Project Data'!J6 -> 0 | E48: ='Project Data'!K24*'Project Data'!K6 -> 0 | F48: ='Project Data'!L24*'Project Data'!L6 -> 0 | G48: ='Project Data'!M24*'Project Data'!M6 -> 0 | H48: ='Project Data'!N24*'Project Data'!N6 -> 0 | I48: ='Project Data'!O24*'Project Data'!O6 -> 0 | J48: ='Project Data'!P24*'Project Data'!P6 -> 0 | K48: ='Project Data'!Q24*'Project Data'!Q6 -> 4552958.769 | L48: ='Project Data'!R24*'Project Data'!R6 -> 0 | M48: ='Project Data'!S24*'Project Data'!S6 -> 0 | N48: ='Project Data'!T24*'Project Data'!T6 -> 0 | O48: ='Project Data'!U24*'Project Data'!U6 -> 3016400.124 | P48: ='Project Data'!V24*'Project Data'!V6 -> 0 | Q48: ='Project Data'!W24*'Project Data'!W6 -> 0 | R48: ='Project Data'!X24*'Project Data'!X6 -> 0 | S48: ='Project Data'!Y24*'Project Data'!Y6 -> 0 | T48: ='Project Data'!Z24*'Project Data'!Z6 -> 2150651.6 | U48: ='Project Data'!AA24*'Project Data'!AA6 -> 0 | V48: ='Project Data'!AB24*'Project Data'!AB6 -> 0 | W48: ='Project Data'!AC24*'Project Data'!AC6 -> 0 | X48: ='Project Data'!AD24*'Project Data'!AD6 -> 0 | Y48: ='Project Data'!AE24*'Project Data'!AE6 -> 1301053.827 | Z48: ='Project Data'!AF24*'Project Data'!AF6 -> 0 | AA48: ='Project Data'!AG24*'Project Data'!AG6 -> 0 | AB48: ='Project Data'!AH24*'Project Data'!AH6 -> 0 | AC48: ='Project Data'!AI24*'Project Data'!AI6 -> 0 | AD48: ='Project Data'!AJ24*'Project Data'!AJ6 -> 927633.3974 | AE48: ='Project Data'!AK24*'Project Data'!AK6 -> 0
B49: O&M Costs | C49: 1.510142038 | D49: =('Project Data'!J19)*'Project Data'!J6 -> 0 | E49: =('Project Data'!K19)*'Project Data'!K6 -> 0 | F49: =('Project Data'!L19)*'Project Data'!L6 -> 0 | G49: =('Project Data'!M19)*'Project Data'!M6 -> 0 | H49: =('Project Data'!N19)*'Project Data'!N6 -> 0 | I49: =('Project Data'!O19)*'Project Data'!O6 -> 0 | J49: =('Project Data'!P19)*'Project Data'!P6 -> 0 | K49: =('Project Data'!Q19)*'Project Data'!Q6 -> 599073.5222 | L49: =('Project Data'!R19)*'Project Data'!R6 -> 0 | M49: =('Project Data'!S19)*'Project Data'!S6 -> 0 | N49: =('Project Data'!T19)*'Project Data'!T6 -> 0 | O49: =('Project Data'!U19)*'Project Data'!U6 -> 0 | P49: =('Project Data'!V19)*'Project Data'!V6 -> 0 | Q49: =('Project Data'!W19)*'Project Data'!W6 -> 0 | R49: =('Project Data'!X19)*'Project Data'!X6 -> 0 | S49: =('Project Data'!Y19)*'Project Data'!Y6 -> 0 | T49: =('Project Data'!Z19)*'Project Data'!Z6 -> 0 | U49: =('Project Data'!AA19)*'Project Data'!AA6 -> 0 | V49: =('Project Data'!AB19)*'Project Data'!AB6 -> 0 | W49: =('Project Data'!AC19)*'Project Data'!AC6 -> 0 | X49: =('Project Data'!AD19)*'Project Data'!AD6 -> 0 | Y49: =('Project Data'!AE19)*'Project Data'!AE6 -> 0 | Z49: =('Project Data'!AF19)*'Project Data'!AF6 -> 0 | AA49: =('Project Data'!AG19)*'Project Data'!AG6 -> 0 | AB49: =('Project Data'!AH19)*'Project Data'!AH6 -> 0 | AC49: =('Project Data'!AI19)*'Project Data'!AI6 -> 0 | AD49: =('Project Data'!AJ19)*'Project Data'!AJ6 -> 911068.5153 | AE49: =('Project Data'!AK19)*'Project Data'!AK6 -> 0
B50: =B36 -> Capital Costs | C50: -77.17841611 | D50: =-'Project Data'!J28 -> -6329734.948 | E50: =-(('Project Data'!K14)*'Project Data'!K6) -> 0 | F50: =-(('Project Data'!L14)*'Project Data'!L6) -> 0 | G50: =-(('Project Data'!M14)*'Project Data'!M6) -> 0 | H50: =-(('Project Data'!N14)*'Project Data'!N6) -> -15113277.22 | I50: =-(('Project Data'!O14)*'Project Data'!O6) -> -18996358.65 | J50: =-(('Project Data'!P14)*'Project Data'!P6) -> -22973019.3 | K50: =-(('Project Data'!Q14)*'Project Data'!Q6) -> -13766026 | L50: =-(('Project Data'!R14)*'Project Data'!R6) -> 0 | M50: =-(('Project Data'!S14)*'Project Data'!S6) -> 0 | N50: =-(('Project Data'!T14)*'Project Data'!T6) -> 0 | O50: =-(('Project Data'!U14)*'Project Data'!U6) -> 0 | P50: =-(('Project Data'!V14)*'Project Data'!V6) -> 0 | Q50: =-(('Project Data'!W14)*'Project Data'!W6) -> 0 | R50: =-(('Project Data'!X14)*'Project Data'!X6) -> 0 | S50: =-(('Project Data'!Y14)*'Project Data'!Y6) -> 0 | T50: =-(('Project Data'!Z14)*'Project Data'!Z6) -> 0 | U50: =-(('Project Data'!AA14)*'Project Data'!AA6) -> 0 | V50: =-(('Project Data'!AB14)*'Project Data'!AB6) -> 0 | W50: =-(('Project Data'!AC14)*'Project Data'!AC6) -> 0 | X50: =-(('Project Data'!AD14)*'Project Data'!AD6) -> 0 | Y50: =-(('Project Data'!AE14)*'Project Data'!AE6) -> 0 | Z50: =-(('Project Data'!AF14)*'Project Data'!AF6) -> 0 | AA50: =-(('Project Data'!AG14)*'Project Data'!AG6) -> 0 | AB50: =-(('Project Data'!AH14)*'Project Data'!AH6) -> 0 | AC50: =-(('Project Data'!AI14)*'Project Data'!AI6) -> 0 | AD50: =-(('Project Data'!AJ14)*'Project Data'!AJ6) -> 0 | AE50: =-(('Project Data'!AK14)*'Project Data'!AK6) -> 0
B51: Total Benefits | C51: 108.393638 | D51: =SUM(D44:D48) -> 0 | E51: =SUM(E44:E48) -> 0 | F51: 0 | G51: 0 | H51: 0 | I51: 0 | J51: 0 | K51: =SUM(K44:K48) -> 4552958.769 | L51: 5838732.091 | M51: 5637218.129 | N51: 5442748.761 | O51: 8271470.891 | P51: 5073937.786 | Q51: 4899110.139 | R51: 4730354.661 | S51: 4567444.527 | T51: 6560810.674 | U51: 4258283.63 | V51: 4111609.345 | W51: 3969933.013 | X51: 3833056.909 | Y51: 5001842.437 | Z51: 3572940.837 | AA51: 3449331.28 | AB51: 3329782.441 | AC51: 3214121.462 | AD51: 4029813.367 | AE51: 14048136.9
B52: Total Costs | C52: -75.66827407 | D52: =SUM(D49:D50) -> -6329734.948 | E52: =SUM(E49:E50) -> 0 | F52: =SUM(F49:F50) -> 0 | G52: =SUM(G49:G50) -> 0 | H52: =SUM(H49:H50) -> -15113277.22 | I52: -18996358.65 | J52: -22973019.3 | K52: -13166952.47 | L52: 0 | M52: 0 | N52: 0 | O52: 0 | P52: 0 | Q52: 0 | R52: 0 | S52: 0 | T52: 0 | U52: 0 | V52: 0 | W52: 0 | X52: 0 | Y52: 0 | Z52: 0 | AA52: 0 | AB52: =SUM(AB49:AB50) -> 0 | AC52: 0 | AD52: 911068.5153 | AE52: 0
B53: Net Impacts | C53: 32.72536397 | D53: =SUM(D44:D50) -> -6329734.948 | E53: =SUM(E44:E50) -> 0 | F53: =SUM(F44:F50) -> 0 | G53: 0 | H53: -15113277.22 | I53: -18996358.65 | J53: -22973019.3 | K53: -8613993.706 | L53: 5838732.091 | M53: 5637218.129 | N53: 5442748.761 | O53: 8271470.891 | P53: 5073937.786 | Q53: 4899110.139 | R53: 4730354.661 | S53: 4567444.527 | T53: 6560810.674 | U53: 4258283.63 | V53: 4111609.345 | W53: 3969933.013 | X53: 3833056.909 | Y53: 5001842.437 | Z53: 3572940.837 | AA53: 3449331.28 | AB53: =SUM(AB44:AB50) -> 3329782.441 | AC53: 3214121.462 | AD53: 4940881.883 | AE53: 14048136.9
B54: Cumulative Net Impacts | D54: =D53 -> -6329734.948 | E54: =E53 -> 0 | F54: =E54+F53 -> 0 | G54: =F54+G53 -> 0 | H54: -15113277.22 | I54: -34109635.87 | J54: -57082655.17 | K54: -65696648.87 | L54: -59857916.78 | M54: =L54+M53 -> -54220698.65 | N54: =M54+N53 -> -48777949.89 | O54: =N54+O53 -> -40506479 | P54: =O54+P53 -> -35432541.21 | Q54: =P54+Q53 -> -30533431.08 | R54: -25803076.41 | S54: =R54+S53 -> -21235631.89 | T54: =S54+T53 -> -14674821.21 | U54: =T54+U53 -> -10416537.58 | V54: =U54+V53 -> -6304928.238 | W54: =V54+W53 -> -2334995.225 | X54: 1498061.684 | Y54: =X54+Y53 -> 6499904.12 | Z54: =Y54+Z53 -> 10072844.96 | AA54: =Z54+AA53 -> 13522176.24 | AB54: =AA54+AB53 -> 16851958.68 | AC54: =AB54+AC53 -> 20066080.14 | AD54: =AC54+AD53 -> 25006962.02 | AE54: =AD54+AE53 -> 39055098.92
B56: Results - 3% Discount Rate, in 2018$
B57: Impact Category | C57: Total | D57: =Base.Year -> 2019 | E57: =D57+1 -> 2020 | F57: =E57+1 -> 2021 | G57: 2022 | H57: 2023 | I57: 2024 | J57: 2025 | K57: 2026 | L57: 2027 | M57: 2028 | N57: 2029 | O57: 2030 | P57: 2031 | Q57: 2032 | R57: 2033 | S57: 2034 | T57: 2035 | U57: 2036 | V57: 2037 | W57: 2038 | X57: 2039 | Y57: 2040 | Z57: 2041 | AA57: 2042 | AB57: 2043 | AC57: 2044 | AD57: 2045 | AE57: 2046
B58: Reduction in Accident Costs | C58: =SUM(D58:AE58)/10^6 -> 92.26146247 | D58: ='Accident Cost Saving'!D107 -> 0 | E58: ='Accident Cost Saving'!E107 -> 0 | F58: ='Accident Cost Saving'!F107 -> 0 | G58: ='Accident Cost Saving'!G107 -> 0 | H58: ='Accident Cost Saving'!H107 -> 0 | I58: ='Accident Cost Saving'!I107 -> 0 | J58: ='Accident Cost Saving'!J107 -> 0 | K58: ='Accident Cost Saving'!K107 -> 0 | L58: ='Accident Cost Saving'!L107 -> 5353125.09 | M58: ='Accident Cost Saving'!M107 -> 5267546.485 | N58: ='Accident Cost Saving'!N107 -> 5183335.995 | O58: ='Accident Cost Saving'!O107 -> 5100471.751 | P58: ='Accident Cost Saving'!P107 -> 5018932.228 | Q58: ='Accident Cost Saving'!Q107 -> 4938696.251 | R58: ='Accident Cost Saving'!R107 -> 4859742.98 | S58: ='Accident Cost Saving'!S107 -> 4782051.907 | T58: ='Accident Cost Saving'!T107 -> 4705602.856 | U58: ='Accident Cost Saving'!U107 -> 4630375.97 | V58: ='Accident Cost Saving'!V107 -> 4556351.711 | W58: ='Accident Cost Saving'!W107 -> 4483510.852 | X58: ='Accident Cost Saving'!X107 -> 4411834.476 | Y58: ='Accident Cost Saving'!Y107 -> 4341303.966 | Z58: ='Accident Cost Saving'!Z107 -> 4271901.003 | AA58: ='Accident Cost Saving'!AA107 -> 4203607.562 | AB58: ='Accident Cost Saving'!AB107 -> 4136405.906 | AC58: ='Accident Cost Saving'!AC107 -> 4070278.579 | AD58: ='Accident Cost Saving'!AD107 -> 4005208.408 | AE58: ='Accident Cost Saving'!AE107 -> 3941178.492
B59: Travel Time Saving | C59: 54.5939766 | D59: ='Travel Time Savings'!D71 -> 0 | E59: ='Travel Time Savings'!E71 -> 0 | F59: ='Travel Time Savings'!F71 -> 0 | G59: ='Travel Time Savings'!G71 -> 0 | H59: ='Travel Time Savings'!H71 -> 0 | I59: ='Travel Time Savings'!I71 -> 0 | J59: ='Travel Time Savings'!J71 -> 0 | K59: ='Travel Time Savings'!K71 -> 0 | L59: ='Travel Time Savings'!L71 -> 2006678.104 | M59: ='Travel Time Savings'!M71 -> 2092944.995 | N59: ='Travel Time Savings'!N71 -> 2177401.894 | O59: ='Travel Time Savings'!O71 -> 2260077.589 | P59: ='Travel Time Savings'!P71 -> 2341000.442 | Q59: ='Travel Time Savings'!Q71 -> 2420198.391 | R59: ='Travel Time Savings'!R71 -> 2497698.965 | S59: ='Travel Time Savings'!S71 -> 2573529.281 | T59: ='Travel Time Savings'!T71 -> 2647716.055 | U59: ='Travel Time Savings'!U71 -> 2720285.606 | V59: ='Travel Time Savings'!V71 -> 2791263.863 | W59: ='Travel Time Savings'!W71 -> 2860676.37 | X59: ='Travel Time Savings'!X71 -> 2928548.291 | Y59: ='Travel Time Savings'!Y71 -> 2994904.416 | Z59: ='Travel Time Savings'!Z71 -> 3059769.167 | AA59: ='Travel Time Savings'!AA71 -> 3123166.601 | AB59: ='Travel Time Savings'!AB71 -> 3185120.42 | AC59: ='Travel Time Savings'!AC71 -> 3245653.971 | AD59: ='Travel Time Savings'!AD71 -> 3304790.254 | AE59: ='Travel Time Savings'!AE71 -> 3362551.926
B60: Travel Time Saving - Douglas Interchange | C60: 16.13864085 | D60: ='Travel Time Saving-Interchanges'!D39 -> 0 | E60: ='Travel Time Saving-Interchanges'!E39 -> 0 | F60: ='Travel Time Saving-Interchanges'!F39 -> 0 | G60: ='Travel Time Saving-Interchanges'!G39 -> 0 | H60: ='Travel Time Saving-Interchanges'!H39 -> 0 | I60: ='Travel Time Saving-Interchanges'!I39 -> 0 | J60: ='Travel Time Saving-Interchanges'!J39 -> 0 | K60: ='Travel Time Saving-Interchanges'!K39 -> 0 | L60: ='Travel Time Saving-Interchanges'!L39 -> 559572.9676 | M60: ='Travel Time Saving-Interchanges'!M39 -> 582494.8799 | N60: ='Travel Time Saving-Interchanges'!N39 -> 606060.3264 | O60: ='Travel Time Saving-Interchanges'!O39 -> 630257.8485 | P60: ='Travel Time Saving-Interchanges'!P39 -> 655071.8859 | Q60: ='Travel Time Saving-Interchanges'!Q39 -> 680482.2984 | R60: ='Travel Time Saving-Interchanges'!R39 -> 706463.8434 | S60: ='Travel Time Saving-Interchanges'!S39 -> 732985.6054 | T60: ='Travel Time Saving-Interchanges'!T39 -> 760010.3725 | U60: ='Travel Time Saving-Interchanges'!U39 -> 787493.9573 | V60: ='Travel Time Saving-Interchanges'!V39 -> 815384.4562 | W60: ='Travel Time Saving-Interchanges'!W39 -> 843621.4425 | X60: ='Travel Time Saving-Interchanges'!X39 -> 872135.0878 | Y60: ='Travel Time Saving-Interchanges'!Y39 -> 900845.2053 | Z60: ='Travel Time Saving-Interchanges'!Z39 -> 929660.2104 | AA60: ='Travel Time Saving-Interchanges'!AA39 -> 958475.9893 | AB60: ='Travel Time Saving-Interchanges'!AB39 -> 987174.6701 | AC60: ='Travel Time Saving-Interchanges'!AC39 -> 1015623.288 | AD60: ='Travel Time Saving-Interchanges'!AD39 -> 1043672.334 | AE60: ='Travel Time Saving-Interchanges'!AE39 -> 1071154.185
B61: Residual Value | C61: 30.9235871 | D61: ='Residual Value'!D26 -> 0 | E61: ='Residual Value'!E26 -> 0 | F61: ='Residual Value'!F26 -> 0 | G61: ='Residual Value'!G26 -> 0 | H61: ='Residual Value'!H26 -> 0 | I61: ='Residual Value'!I26 -> 0 | J61: ='Residual Value'!J26 -> 0 | K61: ='Residual Value'!K26 -> 0 | L61: ='Residual Value'!L26 -> 0 | M61: ='Residual Value'!M26 -> 0 | N61: ='Residual Value'!N26 -> 0 | O61: ='Residual Value'!O26 -> 0 | P61: ='Residual Value'!P26 -> 0 | Q61: ='Residual Value'!Q26 -> 0 | R61: ='Residual Value'!R26 -> 0 | S61: ='Residual Value'!S26 -> 0 | T61: ='Residual Value'!T26 -> 0 | U61: ='Residual Value'!U26 -> 0 | V61: ='Residual Value'!V26 -> 0 | W61: ='Residual Value'!W26 -> 0 | X61: ='Residual Value'!X26 -> 0 | Y61: ='Residual Value'!Y26 -> 0 | Z61: ='Residual Value'!Z26 -> 0 | AA61: ='Residual Value'!AA26 -> 0 | AB61: ='Residual Value'!AB26 -> 0 | AC61: ='Residual Value'!AC26 -> 0 | AD61: ='Residual Value'!AD26 -> 0 | AE61: ='Residual Value'!AE26 -> 30923587.1
B62: Agency Cost Saving | C62: 19.88159578 | D62: ='Project Data'!J24*'Project Data'!J7 -> 0 | E62: ='Project Data'!K24*'Project Data'!K7 -> 0 | F62: ='Project Data'!L24*'Project Data'!L7 -> 0 | G62: ='Project Data'!M24*'Project Data'!M7 -> 0 | H62: ='Project Data'!N24*'Project Data'!N7 -> 0 | I62: ='Project Data'!O24*'Project Data'!O7 -> 0 | J62: ='Project Data'!P24*'Project Data'!P7 -> 0 | K62: ='Project Data'!Q24*'Project Data'!Q7 -> 5944558.267 | L62: ='Project Data'!R24*'Project Data'!R7 -> 0 | M62: ='Project Data'!S24*'Project Data'!S7 -> 0 | N62: ='Project Data'!T24*'Project Data'!T7 -> 0 | O62: ='Project Data'!U24*'Project Data'!U7 -> 4586707.364 | P62: ='Project Data'!V24*'Project Data'!V7 -> 0 | Q62: ='Project Data'!W24*'Project Data'!W7 -> 0 | R62: ='Project Data'!X24*'Project Data'!X7 -> 0 | S62: ='Project Data'!Y24*'Project Data'!Y7 -> 0 | T62: ='Project Data'!Z24*'Project Data'!Z7 -> 3956534.064 | U62: ='Project Data'!AA24*'Project Data'!AA7 -> 0 | V62: ='Project Data'!AB24*'Project Data'!AB7 -> 0 | W62: ='Project Data'!AC24*'Project Data'!AC7 -> 0 | X62: ='Project Data'!AD24*'Project Data'!AD7 -> 0 | Y62: ='Project Data'!AE24*'Project Data'!AE7 -> 2895828.761 | Z62: ='Project Data'!AF24*'Project Data'!AF7 -> 0 | AA62: ='Project Data'!AG24*'Project Data'!AG7 -> 0 | AB62: ='Project Data'!AH24*'Project Data'!AH7 -> 0 | AC62: ='Project Data'!AI24*'Project Data'!AI7 -> 0 | AD62: ='Project Data'!AJ24*'Project Data'!AJ7 -> 2497967.327 | AE62: ='Project Data'!AK24*'Project Data'!AK7 -> 0
B63: O&M Costs | C63: 3.235539487 | D63: =('Project Data'!J19)*'Project Data'!J7 -> 0 | E63: =('Project Data'!K19)*'Project Data'!K7 -> 0 | F63: =('Project Data'!L19)*'Project Data'!L7 -> 0 | G63: =('Project Data'!M19)*'Project Data'!M7 -> 0 | H63: =('Project Data'!N19)*'Project Data'!N7 -> 0 | I63: =('Project Data'!O19)*'Project Data'!O7 -> 0 | J63: =('Project Data'!P19)*'Project Data'!P7 -> 0 | K63: =('Project Data'!Q19)*'Project Data'!Q7 -> 782178.7193 | L63: =('Project Data'!R19)*'Project Data'!R7 -> 0 | M63: =('Project Data'!S19)*'Project Data'!S7 -> 0 | N63: =('Project Data'!T19)*'Project Data'!T7 -> 0 | O63: =('Project Data'!U19)*'Project Data'!U7 -> 0 | P63: =('Project Data'!V19)*'Project Data'!V7 -> 0 | Q63: =('Project Data'!W19)*'Project Data'!W7 -> 0 | R63: =('Project Data'!X19)*'Project Data'!X7 -> 0 | S63: =('Project Data'!Y19)*'Project Data'!Y7 -> 0 | T63: =('Project Data'!Z19)*'Project Data'!Z7 -> 0 | U63: =('Project Data'!AA19)*'Project Data'!AA7 -> 0 | V63: =('Project Data'!AB19)*'Project Data'!AB7 -> 0 | W63: =('Project Data'!AC19)*'Project Data'!AC7 -> 0 | X63: =('Project Data'!AD19)*'Project Data'!AD7 -> 0 | Y63: =('Project Data'!AE19)*'Project Data'!AE7 -> 0 | Z63: =('Project Data'!AF19)*'Project Data'!AF7 -> 0 | AA63: =('Project Data'!AG19)*'Project Data'!AG7 -> 0 | AB63: =('Project Data'!AH19)*'Project Data'!AH7 -> 0 | AC63: =('Project Data'!AI19)*'Project Data'!AI7 -> 0 | AD63: =('Project Data'!AJ19)*'Project Data'!AJ7 -> 2453360.768 | AE63: =('Project Data'!AK19)*'Project Data'!AK7 -> 0
B64: =B50 -> Capital Costs | C64: -93.27263997 | D64: =-'Project Data'!J29 -> -5841586.246 | E64: =-(('Project Data'!K14)*'Project Data'!K7) -> 0 | F64: =-(('Project Data'!L14)*'Project Data'!L7) -> 0 | G64: =-(('Project Data'!M14)*'Project Data'!M7) -> 0 | H64: =-(('Project Data'!N14)*'Project Data'!N7) -> -17601304.68 | I64: =-(('Project Data'!O14)*'Project Data'!O7) -> -22982809.92 | J64: =-(('Project Data'!P14)*'Project Data'!P7) -> -28873364.62 | K64: =-(('Project Data'!Q14)*'Project Data'!Q7) -> -17973574.5 | L64: =-(('Project Data'!R14)*'Project Data'!R7) -> 0 | M64: =-(('Project Data'!S14)*'Project Data'!S7) -> 0 | N64: =-(('Project Data'!T14)*'Project Data'!T7) -> 0 | O64: =-(('Project Data'!U14)*'Project Data'!U7) -> 0 | P64: =-(('Project Data'!V14)*'Project Data'!V7) -> 0 | Q64: =-(('Project Data'!W14)*'Project Data'!W7) -> 0 | R64: =-(('Project Data'!X14)*'Project Data'!X7) -> 0 | S64: =-(('Project Data'!Y14)*'Project Data'!Y7) -> 0 | T64: =-(('Project Data'!Z14)*'Project Data'!Z7) -> 0 | U64: =-(('Project Data'!AA14)*'Project Data'!AA7) -> 0 | V64: =-(('Project Data'!AB14)*'Project Data'!AB7) -> 0 | W64: =-(('Project Data'!AC14)*'Project Data'!AC7) -> 0 | X64: =-(('Project Data'!AD14)*'Project Data'!AD7) -> 0 | Y64: =-(('Project Data'!AE14)*'Project Data'!AE7) -> 0 | Z64: =-(('Project Data'!AF14)*'Project Data'!AF7) -> 0 | AA64: =-(('Project Data'!AG14)*'Project Data'!AG7) -> 0 | AB64: =-(('Project Data'!AH14)*'Project Data'!AH7) -> 0 | AC64: =-(('Project Data'!AI14)*'Project Data'!AI7) -> 0 | AD64: =-(('Project Data'!AJ14)*'Project Data'!AJ7) -> 0 | AE64: =-(('Project Data'!AK14)*'Project Data'!AK7) -> 0
B65: Total Benefits | C65: 213.7992628 | D65: =SUM(D58:D62) -> 0 | E65: =SUM(E58:E62) -> 0 | F65: 0 | G65: 0 | H65: 0 | I65: 0 | J65: 0 | K65: 5944558.267 | L65: 7919376.163 | M65: 7942986.36 | N65: 7966798.216 | O65: 12577514.55 | P65: 8015004.556 | Q65: 8039376.941 | R65: 8063905.788 | S65: 8088566.793 | T65: 12069863.35 | U65: 8138155.533 | V65: 8163000.03 | W65: 8187808.665 | X65: 8212517.855 | Y65: 11132882.35 | Z65: 8261330.38 | AA65: 8285250.153 | AB65: 8308700.995 | AC65: 8331555.837 | AD65: 10851638.32 | AE65: 39298471.7
B66: Total Costs | C66: -90.03710048 | D66: =SUM(D63:D64) -> -5841586.246 | E66: =SUM(E63:E64) -> 0 | F66: =SUM(F63:F64) -> 0 | G66: =SUM(G63:G64) -> 0 | H66: -17601304.68 | I66: -22982809.92 | J66: -28873364.62 | K66: -17191395.78 | L66: 0 | M66: 0 | N66: 0 | O66: 0 | P66: 0 | Q66: 0 | R66: 0 | S66: 0 | T66: 0 | U66: 0 | V66: 0 | W66: 0 | X66: 0 | Y66: 0 | Z66: 0 | AA66: 0 | AB66: =SUM(AB63:AB64) -> 0 | AC66: 0 | AD66: 2453360.768 | AE66: 0
B67: Net Impacts | C67: 123.7621623 | D67: =SUM(D58:D64) -> -5841586.246 | E67: =SUM(E58:E64) -> 0 | F67: =SUM(F58:F64) -> 0 | G67: 0 | H67: -17601304.68 | I67: -22982809.92 | J67: -28873364.62 | K67: -11246837.52 | L67: 7919376.163 | M67: 7942986.36 | N67: 7966798.216 | O67: 12577514.55 | P67: 8015004.556 | Q67: 8039376.941 | R67: 8063905.788 | S67: 8088566.793 | T67: 12069863.35 | U67: 8138155.533 | V67: 8163000.03 | W67: 8187808.665 | X67: 8212517.855 | Y67: 11132882.35 | Z67: 8261330.38 | AA67: 8285250.153 | AB67: =SUM(AB58:AB64) -> 8308700.995 | AC67: 8331555.837 | AD67: 13304999.09 | AE67: 39298471.7
B68: Cumulative Net Impacts | D68: =D67 -> -5841586.246 | E68: =E67 -> 0 | F68: =E68+F67 -> 0 | G68: =F68+G67 -> 0 | H68: -17601304.68 | I68: -40584114.6 | J68: -69457479.22 | K68: -80704316.74 | L68: -72784940.57 | M68: -64841954.21 | N68: -56875156 | O68: -44297641.45 | P68: -36282636.89 | Q68: -28243259.95 | R68: -20179354.16 | S68: -12090787.37 | T68: -20924.01983 | U68: 8117231.513 | V68: 16280231.54 | W68: 24468040.21 | X68: 32680558.06 | Y68: 43813440.41 | Z68: 52074770.79 | AA68: 60360020.94 | AB68: =AA68+AB67 -> 68668721.94 | AC68: =AB68+AC67 -> 77000277.78 | AD68: =AC68+AD67 -> 90305276.87 | AE68: =AD68+AE67 -> 129603748.6

Sheet Report Tables
A2: Table ES-1
A3: Current Status or Baseline & Problems to be Addressed | B3: Changes to Baseline / Alternatives | C3: Type of Impacts | D3: Population Affected by Impacts | E3: Economic Benefit/Impact | F3: Summary of Results
A4: The stretch of I-40 from Industrial through Douglas Interchange to I-240 is now well beyond its design life and inadequate for the level of traffic it carries. During peak hours, multiple segments operate at LOS D. Conditions are forecasted to deteriorate to LOS F without improvements. Inadequate capacity and design also contribute to safety issues and a high accident rate. The Douglas Boulevard Interchange in particular is an outdated and dangerous design for the level of traffic it carries. The bridge structures within the Project area are approaching structural deficiency, are too narrow, or too low to allow for safe passage of trucks on the roadway beneath. | B4: The Project addresses the various concerns with improvements that include mainline widening from 4 to 6 lanes, reconstruction of the Douglas Boulevard Interchange, correction, or reconstruction of substandard bridges, and addition of acceleration lanes at the Anderson Road Interchange. | C4: Safety: reduction in number of crashes due to road widening and interchange improvements | D4: Auto Users, Truck Operators | E4: Reductions in fatalities, injuries, and property losses, reduction in accident costs on highway segment. | F4: $49.5 million in accident cost savings.
C5: Agency cost savings due to infrastructure renewal | D5: Agency operating I-40; Oklahoma residents | E5: Reduction in maintenance, rehabilitation and repair costs of road and bridges due to inadequate design. | F5: $12.7 million in maintenance cost savings.
C6: Congestion reduction – reduction in travel times | D6: Auto Users, Truck Operators, | E6: Travel time savings due to additional capacity with road widening on I-40 mainline and interchange improvements | F6: $27.8 million in travel time savings on I-40 mainline
F8: $8.1 million in travel time savings due to interchange improvements
C9: State of good repair | D9: Agency operating I-40; Oklahoma residents | E9: Residual value of investment | F9: $11.1 million in residual value
A12: Table ES-2
A13: Project Evaluation Metric | B13: Undiscounted | C13: Present Value at 7% Discount Rate | D13: Present Value at 3% Discount Rate
A14: Total Benefits | B14: =Results!D19 -> 377.6850462 | C14: =Results!E19 -> 108.393638 | D14: =Results!F19 -> 213.7992628
A15: Total O&M Costs | B15: =Results!D20 -> 6.252877572 | C15: =Results!E20 -> 1.510142038 | D15: =Results!F20 -> 3.235539487
A16: Total Costs | B16: =Results!D21 -> 108.3308249 | C16: =Results!E21 -> 77.17841611 | D16: =Results!F21 -> 93.27263997
A17: Net Present Value | B17: =Results!D22 -> 269.3542213 | C17: =Results!E22 -> 31.21522194 | D17: =Results!F22 -> 120.5266228
A18: Benefit / Cost Ratio | B18: =Results!D24 -> 3.428684025 | C18: =Results!E24 -> 1.384888436 | D18: =Results!F24 -> 2.257507919
A19: Internal Rate of Return (%) | B19: =Results!D26 -> 0.1053645538
A22: Table 1
B23: Over the Project Lifecycle
B24: In Constant Dollars | C24: Discounted at 7 Percent | D24: Discounted at 3 Percent
A25: Construction & Development Costs | B25: =Results!D21 -> 108.3308249 | C25: =Results!E21 -> 77.17841611 | D25: =Results!F21 -> 93.27263997
A26: Operations and Maintenance | B26: =Results!D20 -> 6.252877572 | C26: =Results!E20 -> 1.510142038 | D26: =Results!F20 -> 3.235539487
A27: Total | B27: =SUM(B25:B26) -> 114.5837024 | C27: =SUM(C25:C26) -> 78.68855815 | D27: =SUM(D25:D26) -> 96.50817945
A29: Table 2
A30: Project Requirements | B30: Benefit or Impact | C30: Description | D30: Monetized | E30: Qualitative
B31: Categories
A32: Safety | B32: Reduction in number of traffic crashes, fatalities and injuries | C32: Reduction in property losses, injuries, and deaths due to improved interchange design, acceleration and deceleration lanes, additional travel lanes | D32: Yes
A33: Infrastructure Condition | B33: Agency costs savings - Reduction in highway maintenance costs | C33: Reduction in the costs of maintenance and repair of road and bridges due to inadequate design and clearance issues for trucks using the Interstate | D33: Yes
B34: State of good repair | C34: Renewal of infrastructure assets with outdated design that is also beyond its design life | D34: Yes (residual value) | E34: Yes
A35: Congestion reduction | B35: Reduction in travel times | C35: Travel time savings for roadway users due additional capacity with road widening and interchange improvements. | D35: Yes
A36: System reliability | B36: More reliable/consistent travel times | C36: Reduction in congestion typically also improves the reliability of travel times. Reliability will also improve as a result of reduction in the number of accidents and corresponding non-recurrent delays. | E36: Yes
A37: Freight movements and economic vitality | B37: Travel time savings | C37: Travel time savings for truck operators due additional capacity with road widening. (Also captured under congestion reduction). | D37: Yes
B38: More reliable/consistent travel times | C38: Improvement in reliability of travel times (Also captured under system reliability) | E38: Yes
A40: Table 3
A41: TIME | B41: Industrial to Douglas | F41: Douglas to Anderson | J41: Anderson to I-240
B42: 2015 | D42: 2045 | F42: 2015 | H42: 2045 | J42: 2015 | L42: 2045
B43: EB | C43: WB | D43: EB | E43: WB | F43: EB | G43: WB | H43: EB | I43: WB | J43: EB | K43: WB | L43: EB | M43: WB
A44: ='Traffic Projection'!B8 -> 00:00 | B44: ='Traffic Projection'!C8 -> 428.8359981 | C44: ='Traffic Projection'!D8 -> 519.1006408 | D44: ='Traffic Projection'!E8 -> 661.409971 | E44: ='Traffic Projection'!F8 -> 801.4813944 | F44: ='Traffic Projection'!G8 -> 345.7545706 | G44: ='Traffic Projection'!H8 -> 423.7243548 | H44: ='Traffic Projection'!I8 -> 514.2906294 | I44: ='Traffic Projection'!J8 -> 630.2236788 | J44: ='Traffic Projection'!K8 -> 298.3869662 | K44: ='Traffic Projection'!L8 -> 367.3849274 | L44: ='Traffic Projection'!M8 -> 438.0779869 | M44: ='Traffic Projection'!N8 -> 539.3498325
A45: ='Traffic Projection'!B9 -> 01:00 | B45: ='Traffic Projection'!C9 -> 230.9116913 | C45: ='Traffic Projection'!D9 -> 291.2659456 | D45: ='Traffic Projection'!E9 -> 356.1438305 | E45: ='Traffic Projection'!F9 -> 449.7090118 | F45: ='Traffic Projection'!G9 -> 186.175538 | G45: ='Traffic Projection'!H9 -> 237.7505732 | H45: ='Traffic Projection'!I9 -> 276.9257235 | I45: ='Traffic Projection'!J9 -> 353.6167774 | J45: ='Traffic Projection'!K9 -> 160.6699049 | K45: ='Traffic Projection'!L9 -> 206.138675 | L45: ='Traffic Projection'!M9 -> 235.8881468 | M45: ='Traffic Projection'!N9 -> 302.6277115
A46: ='Traffic Projection'!B10 -> 02:00 | B46: ='Traffic Projection'!C10 -> 94.46387371 | C46: ='Traffic Projection'!D10 -> 47.8970666 | D46: ='Traffic Projection'!E10 -> 145.6952034 | E46: ='Traffic Projection'!F10 -> 73.95214861 | F46: ='Traffic Projection'!G10 -> 76.1627201 | G46: ='Traffic Projection'!H10 -> 39.09676092 | H46: ='Traffic Projection'!I10 -> 113.287796 | I46: ='Traffic Projection'!J10 -> 58.1503145 | J46: ='Traffic Projection'!K10 -> 65.72859745 | K46: ='Traffic Projection'!L10 -> 33.89835988 | L46: ='Traffic Projection'!M10 -> 96.49969642 | M46: ='Traffic Projection'!N10 -> 49.76544589
A47: ='Traffic Projection'!B11 -> 03:00 | B47: ='Traffic Projection'!C11 -> 88.46616744 | C47: ='Traffic Projection'!D11 -> 71.19834225 | D47: ='Traffic Projection'!E11 -> 136.4447143 | E47: ='Traffic Projection'!F11 -> 109.9288696 | F47: ='Traffic Projection'!G11 -> 71.32699184 | G47: ='Traffic Projection'!H11 -> 58.11680677 | H47: ='Traffic Projection'!I11 -> 106.0949201 | I47: ='Traffic Projection'!J11 -> 86.43965669 | J47: ='Traffic Projection'!K11 -> 61.55535317 | K47: ='Traffic Projection'!L11 -> 50.38945388 | L47: ='Traffic Projection'!M11 -> 90.37273157 | M47: ='Traffic Projection'!N11 -> 73.97566281
A48: ='Traffic Projection'!B12 -> 04:00 | B48: ='Traffic Projection'!C12 -> 89.96559401 | C48: ='Traffic Projection'!D12 -> 142.3966845 | D48: ='Traffic Projection'!E12 -> 138.7573366 | E48: ='Traffic Projection'!F12 -> 219.8577391 | F48: ='Traffic Projection'!G12 -> 72.5359239 | G48: ='Traffic Projection'!H12 -> 116.2336135 | H48: ='Traffic Projection'!I12 -> 107.893139 | I48: ='Traffic Projection'!J12 -> 172.8793134 | J48: ='Traffic Projection'!K12 -> 62.59866424 | K48: ='Traffic Projection'!L12 -> 100.7789078 | L48: ='Traffic Projection'!M12 -> 91.90447278 | M48: ='Traffic Projection'!N12 -> 147.9513256
A49: ='Traffic Projection'!B13 -> 05:00 | B49: ='Traffic Projection'!C13 -> 128.9506847 | C49: ='Traffic Projection'!D13 -> 424.6010229 | D49: ='Traffic Projection'!E13 -> 198.8855158 | E49: ='Traffic Projection'!F13 -> 655.5758039 | F49: ='Traffic Projection'!G13 -> 103.9681576 | G49: ='Traffic Projection'!H13 -> 346.5875022 | H49: ='Traffic Projection'!I13 -> 154.6468326 | I49: ='Traffic Projection'!J13 -> 515.4946799 | J49: ='Traffic Projection'!K13 -> 89.72475207 | K49: ='Traffic Projection'!L13 -> 300.5043795 | L49: ='Traffic Projection'!M13 -> 131.7297443 | M49: ='Traffic Projection'!N13 -> 441.1639527
A50: ='Traffic Projection'!B14 -> 06:00 | B50: ='Traffic Projection'!C14 -> 632.7580112 | C50: ='Traffic Projection'!D14 -> 1299.693375 | D50: ='Traffic Projection'!E14 -> 975.9266006 | E50: ='Traffic Projection'!F14 -> 2006.701546 | F50: ='Traffic Projection'!G14 -> 510.1693314 | G50: ='Traffic Projection'!H14 -> 1060.895891 | H50: ='Traffic Projection'!I14 -> 758.8484113 | I50: ='Traffic Projection'!J14 -> 1577.916642 | J50: ='Traffic Projection'!K14 -> 440.2772718 | K50: ='Traffic Projection'!L14 -> 919.8365763 | L50: ='Traffic Projection'!M14 -> 646.3947919 | M50: ='Traffic Projection'!N14 -> 1350.392099
A51: ='Traffic Projection'!B15 -> 07:00 | B51: ='Traffic Projection'!C15 -> 1219.033799 | C51: ='Traffic Projection'!D15 -> 2579.96902 | D51: ='Traffic Projection'!E15 -> 1880.161911 | E51: ='Traffic Projection'!F15 -> 3983.422491 | F51: ='Traffic Projection'!G15 -> 982.8617689 | G51: ='Traffic Projection'!H15 -> 2105.941744 | H51: ='Traffic Projection'!I15 -> 1461.952034 | I51: ='Traffic Projection'!J15 -> 3132.258833 | J51: ='Traffic Projection'!K15 -> 848.2119004 | K51: ='Traffic Projection'!L15 -> 1825.930574 | L51: ='Traffic Projection'!M15 -> 1245.305606 | M51: ='Traffic Projection'!N15 -> 2680.609018
A52: ='Traffic Projection'!B16 -> 08:00 | B52: ='Traffic Projection'!C16 -> 1592 | C52: ='Traffic Projection'!D16 -> 3227 | D52: ='Traffic Projection'!E16 -> 2730 | E52: ='Traffic Projection'!F16 -> 5095 | F52: ='Traffic Projection'!G16 -> 1070 | G52: ='Traffic Projection'!H16 -> 3035 | H52: ='Traffic Projection'!I16 -> 1730 | I52: ='Traffic Projection'!J16 -> 4575 | J52: ='Traffic Projection'!K16 -> 935 | K52: ='Traffic Projection'!L16 -> 2410 | L52: ='Traffic Projection'!M16 -> 1510 | M52: ='Traffic Projection'!N16 -> 3565
A53: ='Traffic Projection'!B17 -> 09:00 | B53: ='Traffic Projection'!C17 -> 1060.094583 | C53: ='Traffic Projection'!D17 -> 1667.335724 | D53: ='Traffic Projection'!E17 -> 1635.023949 | E53: ='Traffic Projection'!F17 -> 2574.334254 | F53: ='Traffic Projection'!G17 -> 854.71497 | G53: ='Traffic Projection'!H17 -> 1360.989948 | H53: ='Traffic Projection'!I17 -> 1271.340822 | I53: ='Traffic Projection'!J17 -> 2024.259597 | J53: ='Traffic Projection'!K17 -> 737.6209269 | K53: ='Traffic Projection'!L17 -> 1180.029393 | L53: ='Traffic Projection'!M17 -> 1082.941038 | M53: ='Traffic Projection'!N17 -> 1732.375522
A54: ='Traffic Projection'!B18 -> 10:00 | B54: ='Traffic Projection'!C18 -> 1001.616947 | C54: ='Traffic Projection'!D18 -> 1277.686615 | D54: ='Traffic Projection'!E18 -> 1544.83168 | E54: ='Traffic Projection'!F18 -> 1972.723532 | F54: ='Traffic Projection'!G18 -> 807.5666194 | G54: ='Traffic Projection'!H18 -> 1042.932514 | H54: ='Traffic Projection'!I18 -> 1201.210281 | I54: ='Traffic Projection'!J18 -> 1551.19893 | J54: ='Traffic Projection'!K18 -> 696.9317952 | K54: ='Traffic Projection'!L18 -> 904.2616542 | L54: ='Traffic Projection'!M18 -> 1023.20313 | M54: ='Traffic Projection'!N18 -> 1327.526894
A55: ='Traffic Projection'!B19 -> 11:00 | B55: ='Traffic Projection'!C19 -> 1036.103758 | C55: ='Traffic Projection'!D19 -> 1368.302686 | D55: ='Traffic Projection'!E19 -> 1598.021993 | E55: ='Traffic Projection'!F19 -> 2112.633002 | F55: ='Traffic Projection'!G19 -> 835.3720569 | G55: ='Traffic Projection'!H19 -> 1116.899359 | H55: ='Traffic Projection'!I19 -> 1242.569318 | I55: ='Traffic Projection'!J19 -> 1661.213039 | J55: ='Traffic Projection'!K19 -> 720.9279498 | K55: ='Traffic Projection'!L19 -> 968.3936864 | L55: ='Traffic Projection'!M19 -> 1058.433178 | M55: ='Traffic Projection'!N19 -> 1421.677738
A56: ='Traffic Projection'!B20 -> 12:00 | B56: ='Traffic Projection'!C20 -> 1244.52405 | C56: ='Traffic Projection'!D20 -> 1506.815825 | D56: ='Traffic Projection'!E20 -> 1919.476489 | E56: ='Traffic Projection'!F20 -> 2326.494621 | F56: ='Traffic Projection'!G20 -> 1003.413614 | G56: ='Traffic Projection'!H20 -> 1229.962965 | H56: ='Traffic Projection'!I20 -> 1492.521757 | I56: ='Traffic Projection'!J20 -> 1829.377462 | J56: ='Traffic Projection'!K20 -> 865.9481886 | K56: ='Traffic Projection'!L20 -> 1066.424079 | L56: ='Traffic Projection'!M20 -> 1271.345207 | M56: ='Traffic Projection'!N20 -> 1565.594027
A57: ='Traffic Projection'!B21 -> 13:00 | B57: ='Traffic Projection'!C21 -> 1323.993659 | C57: ='Traffic Projection'!D21 -> 1183.186997 | D57: ='Traffic Projection'!E21 -> 2042.04547 | E57: ='Traffic Projection'!F21 -> 1826.817941 | F57: ='Traffic Projection'!G21 -> 1067.487013 | G57: ='Traffic Projection'!H21 -> 965.7956616 | H57: ='Traffic Projection'!I21 -> 1587.827363 | I57: ='Traffic Projection'!J21 -> 1436.469931 | J57: ='Traffic Projection'!K21 -> 921.2436754 | K57: ='Traffic Projection'!L21 -> 837.3811063 | L57: ='Traffic Projection'!M21 -> 1352.527491 | M57: ='Traffic Projection'!N21 -> 1229.341015
A58: ='Traffic Projection'!B22 -> 14:00 | B58: ='Traffic Projection'!C22 -> 1458.94205 | C58: ='Traffic Projection'!D22 -> 1209.077303 | D58: ='Traffic Projection'!E22 -> 2250.181475 | E58: ='Traffic Projection'!F22 -> 1866.792076 | F58: ='Traffic Projection'!G22 -> 1176.290899 | G58: ='Traffic Projection'!H22 -> 986.9290459 | H58: ='Traffic Projection'!I22 -> 1749.667071 | I58: ='Traffic Projection'!J22 -> 1467.902534 | J58: ='Traffic Projection'!K22 -> 1015.141672 | K58: ='Traffic Projection'!L22 -> 855.7045441 | L58: ='Traffic Projection'!M22 -> 1490.3842 | M58: ='Traffic Projection'!N22 -> 1256.241256
A59: ='Traffic Projection'!B23 -> 15:00 | B59: ='Traffic Projection'!C23 -> 2066.209809 | C59: ='Traffic Projection'!D23 -> 1688.047969 | D59: ='Traffic Projection'!E23 -> 3186.793497 | E59: ='Traffic Projection'!F23 -> 2606.313562 | F59: ='Traffic Projection'!G23 -> 1665.908386 | G59: ='Traffic Projection'!H23 -> 1377.896655 | H59: ='Traffic Projection'!I23 -> 2477.94576 | I59: ='Traffic Projection'!J23 -> 2049.405679 | J59: ='Traffic Projection'!K23 -> 1437.682655 | K59: ='Traffic Projection'!L23 -> 1194.688143 | L59: ='Traffic Projection'!M23 -> 2110.739391 | M59: ='Traffic Projection'!N23 -> 1753.895715
A60: ='Traffic Projection'!B24 -> 16:00 | B60: ='Traffic Projection'!C24 -> 3222 | C60: ='Traffic Projection'!D24 -> 1792 | D60: ='Traffic Projection'!E24 -> 5280 | E60: ='Traffic Projection'!F24 -> 3195 | F60: ='Traffic Projection'!G24 -> 3140 | G60: ='Traffic Projection'!H24 -> 1120 | H60: ='Traffic Projection'!I24 -> 4935 | I60: ='Traffic Projection'!J24 -> 2010 | J60: ='Traffic Projection'!K24 -> 2580 | K60: ='Traffic Projection'!L24 -> 985 | L60: ='Traffic Projection'!M24 -> 4025 | M60: ='Traffic Projection'!N24 -> 1795
A61: ='Traffic Projection'!B25 -> 17:00 | B61: ='Traffic Projection'!C25 -> 2917.884099 | C61: ='Traffic Projection'!D25 -> 1934.005879 | D61: ='Traffic Projection'!E25 -> 4500.362949 | E61: ='Traffic Projection'!F25 -> 2986.067838 | F61: ='Traffic Projection'!G25 -> 2352.581799 | G61: ='Traffic Projection'!H25 -> 1578.663806 | H61: ='Traffic Projection'!I25 -> 3499.334143 | I61: ='Traffic Projection'!J25 -> 2348.015402 | J61: ='Traffic Projection'!K25 -> 2030.283343 | K61: ='Traffic Projection'!L25 -> 1368.760802 | L61: ='Traffic Projection'!M25 -> 2980.7684 | M61: ='Traffic Projection'!N25 -> 2009.448004
A62: ='Traffic Projection'!B26 -> 18:00 | B62: ='Traffic Projection'!C26 -> 2465.057276 | C62: ='Traffic Projection'!D26 -> 1526.233555 | D62: ='Traffic Projection'!E26 -> 3801.951022 | E62: ='Traffic Projection'!F26 -> 2356.475222 | F62: ='Traffic Projection'!G26 -> 1987.484315 | G62: ='Traffic Projection'!H26 -> 1245.813003 | H62: ='Traffic Projection'!I26 -> 2956.27201 | I62: ='Traffic Projection'!J26 -> 1852.951913 | J62: ='Traffic Projection'!K26 -> 1715.2034 | K62: ='Traffic Projection'!L26 -> 1080.166657 | L62: ='Traffic Projection'!M26 -> 2518.182554 | M62: ='Traffic Projection'!N26 -> 1585.769208
A63: ='Traffic Projection'!B27 -> 19:00 | B63: ='Traffic Projection'!C27 -> 1457.442623 | C63: ='Traffic Projection'!D27 -> 1099.043501 | D63: ='Traffic Projection'!E27 -> 2247.868852 | E63: ='Traffic Projection'!F27 -> 1696.902005 | F63: ='Traffic Projection'!G27 -> 1175.081967 | G63: ='Traffic Projection'!H27 -> 897.1121627 | H63: ='Traffic Projection'!I27 -> 1747.868852 | I63: ='Traffic Projection'!J27 -> 1334.313973 | J63: ='Traffic Projection'!K27 -> 1014.098361 | K63: ='Traffic Projection'!L27 -> 777.8299336 | L63: ='Traffic Projection'!M27 -> 1488.852459 | M63: ='Traffic Projection'!N27 -> 1141.915231
A64: ='Traffic Projection'!B28 -> 20:00 | B64: ='Traffic Projection'!C28 -> 1120.071645 | C64: ='Traffic Projection'!D28 -> 758.5859738 | D64: ='Traffic Projection'!E28 -> 1727.52884 | E64: ='Traffic Projection'!F28 -> 1171.242137 | F64: ='Traffic Projection'!G28 -> 903.0722526 | G64: ='Traffic Projection'!H28 -> 619.2081594 | H64: ='Traffic Projection'!I28 -> 1343.269581 | I64: ='Traffic Projection'!J28 -> 920.9752513 | J64: ='Traffic Projection'!K28 -> 779.3533698 | K64: ='Traffic Projection'!L28 -> 536.8767268 | L64: ='Traffic Projection'!M28 -> 1144.210686 | M64: ='Traffic Projection'!N28 -> 788.1770619
A65: ='Traffic Projection'!B29 -> 21:00 | B65: ='Traffic Projection'!C29 -> 937.1416043 | C65: ='Traffic Projection'!D29 -> 631.723473 | D65: ='Traffic Projection'!E29 -> 1445.388923 | E65: ='Traffic Projection'!F29 -> 975.368879 | F65: ='Traffic Projection'!G29 -> 755.5825406 | G65: ='Traffic Projection'!H29 -> 515.6545765 | H65: ='Traffic Projection'!I29 -> 1123.886865 | I65: ='Traffic Projection'!J29 -> 766.9554994 | J65: ='Traffic Projection'!K29 -> 652.0694191 | K65: ='Traffic Projection'!L29 -> 447.0918817 | L65: ='Traffic Projection'!M29 -> 957.3382581 | M65: ='Traffic Projection'!N29 -> 656.3658809
A66: ='Traffic Projection'!B30 -> 22:00 | B66: ='Traffic Projection'!C30 -> 694.2345004 | C66: ='Traffic Projection'!D30 -> 393.5326553 | D66: ='Traffic Projection'!E30 -> 1070.744114 | E66: ='Traffic Projection'!F30 -> 607.6068426 | F66: ='Traffic Projection'!G30 -> 559.7355461 | G66: ='Traffic Projection'!H30 -> 321.2274411 | H66: ='Traffic Projection'!I30 -> 832.5753896 | I66: ='Traffic Projection'!J30 -> 477.775557 | J66: ='Traffic Projection'!K30 -> 483.0530257 | K66: ='Traffic Projection'!L30 -> 278.5162542 | L66: ='Traffic Projection'!M30 -> 709.1961816 | M66: ='Traffic Projection'!N30 -> 408.8836635
A67: ='Traffic Projection'!B31 -> 23:00 | B67: ='Traffic Projection'!C31 -> 529.2975781 | C67: ='Traffic Projection'!D31 -> 401.2997472 | D67: ='Traffic Projection'!E31 -> 816.3556635 | E67: ='Traffic Projection'!F31 -> 619.5990829 | F67: ='Traffic Projection'!G31 -> 426.753019 | G67: ='Traffic Projection'!H31 -> 327.5674564 | H67: ='Traffic Projection'!I31 -> 634.7713014 | I67: ='Traffic Projection'!J31 -> 487.2053377 | J67: ='Traffic Projection'!K31 -> 368.2888079 | K67: ='Traffic Projection'!L31 -> 284.0132855 | L67: ='Traffic Projection'!M31 -> 540.7046482 | M67: ='Traffic Projection'!N31 -> 416.9537358
A68: ='Traffic Projection'!B32 -> TOTAL | B68: ='Traffic Projection'!C32 -> 27040 | C68: ='Traffic Projection'!D32 -> 27040 | D68: ='Traffic Projection'!E32 -> 42290 | E68: ='Traffic Projection'!F32 -> 42290 | F68: ='Traffic Projection'!G32 -> 22130 | G68: ='Traffic Projection'!H32 -> 22130 | H68: ='Traffic Projection'!I32 -> 33320 | I68: ='Traffic Projection'!J32 -> 33320 | J68: ='Traffic Projection'!K32 -> 18980 | K68: ='Traffic Projection'!L32 -> 18980 | L68: ='Traffic Projection'!M32 -> 28240 | M68: ='Traffic Projection'!N32 -> 28240
A70: Table 4
A71: Accident Severity | B71: I-40 Mainline | C71: Douglas Boulevard Interchange | D71: Anderson Interchange | E71: Total
A72: Property Damage Only | B72: 368 | C72: 338 | D72: 168 | E72: 874
A73: Potential Injury | B73: 72 | C73: 79 | D73: 32 | E73: 183
A74: Non-incapacitating Injury | B74: 42 | C74: 48 | D74: 28 | E74: 118
A75: Serious Injury | B75: 27 | C75: 8 | D75: 13 | E75: 48
A76: Fatal | B76: 5 | C76: 1 | D76: 2 | E76: 8
A77: Grand Total | B77: 514 | C77: 474 | D77: 243 | E77: 1231
A79: Table 5
A80: CMF ID# | B80: Value | C80: Applied to | D80: Description of Improvement
A81: 8336 | B81: =Inputs!E80 -> 0.74 | C81: Mainlines | D81: Adding additional 12-foot lane. Affects all accidents
A82: 474 | B82: =Inputs!E82 -> 0.89 | C82: Anderson Interchange | D82: Extend acceleration lane by approximately 98 feet. Affects all accidents
A83: 475 | B83: =Inputs!E81 -> 0.93 | C83: Anderson Interchange | D83: Extend deceleration lane by approximately 98 feet. Affects all accidents
A84: 478 | B84: =Inputs!E83 -> 0.55 | C84: Douglas Interchange | D84: Provide as straight ramp instead of a cloverleaf ramp. Affects all accidents.
A86: Table 6
A87: Data Item | B87: Unit | C87: Value | D87: Source
A88: =Inputs!B50 -> Cost of a Fatality | B88: =Inputs!D50 -> $/fatality | C88: =Inputs!E50 -> 9600000 | D88: =Inputs!F50 -> US DOT BCA Guidance for Discretionary Grant Programs, January 2020; Table A-1.
A89: =Inputs!B51 -> Cost of serious injury (MAIS 3) | B89: =Inputs!D51 -> $/serious Injury | C89: =Inputs!E51 -> 1008000 | D89: =Inputs!F51 -> US DOT BCA Guidance for Discretionary Grant Programs, January 2020; Table A-1.
A90: =Inputs!B52 -> Cost of non-incapacitating injury (MAIS 2) | B90: =Inputs!D52 -> $/non-incapacitating Injury | C90: =Inputs!E52 -> 451200 | D90: =Inputs!F52 -> US DOT BCA Guidance for Discretionary Grant Programs, January 2020; Table A-1.
A91: =Inputs!B53 -> Possible Injury (MAIS 1) | B91: =Inputs!D53 -> $/possible injury | C91: =Inputs!E53 -> 28800 | D91: =Inputs!F53 -> US DOT BCA Guidance for Discretionary Grant Programs, January 2020; Table A-1.
A92: =Inputs!B54 -> Cost of Property Damage Only (PDO) | B92: =Inputs!D54 -> $/PDO | C92: =Inputs!E54 -> 4400 | D92: =Inputs!F54 -> US DOT BCA Guidance for Discretionary Grant Programs, January 2020; Table A-1.
A93: =Inputs!B73 -> Average number of victims per accident
A94: =Inputs!B74 -> Fatal Accident | B94: =Inputs!D74 -> Average number of victims/accident | C94: =Inputs!E74 -> 1 | D94: =Inputs!F74 -> Based on crash data at project location, 2009 - 2018
A95: =Inputs!B75 -> Serious Injury | B95: =Inputs!D75 -> Average number of victims/accident | C95: =Inputs!E75 -> 1.61 | D95: =Inputs!F75 -> Based on crash data at project location, 2009 - 2019
A96: =Inputs!B76 -> Non-Incapacitating Injury | B96: =Inputs!D76 -> Average number of victims/accident | C96: =Inputs!E76 -> 1.15 | D96: =Inputs!F76 -> Based on crash data at project location, 2009 - 2020
A97: =Inputs!B77 -> Possible Injury | B97: =Inputs!D77 -> Average number of victims/accident | C97: =Inputs!E77 -> 1.15 | D97: =Inputs!F77 -> Assumed the same as non-incapacitating injury
A98: =Inputs!B78 -> PDO | B98: =Inputs!D78 -> Average number of victims/accident | C98: =Inputs!E78 -> 2.03 | D98: =Inputs!F78 -> California Department of Transportation, TASAS Unit, 2010 to 2013 average
A101: Table 7
A102: Year | B102: Maintenance & Rehabilitation Costs for I-40 | C102: Bridge Rehabilitation Costs | D102: Bridge Damage Repair Costs | E102: Total
A103: 2026 | B103: ='Project Costs'!C17 -> 5500000 | C103: ='Project Costs'!D17 -> 2000000 | D103: ='Project Costs'!E17 -> 100000 | E103: ='Project Costs'!F17 -> 7600000
A104: 2030 | B104: ='Project Costs'!C20 -> 5500000 | C104: ='Project Costs'!D20 -> 1000000 | D104: ='Project Costs'!E20 -> 100000 | E104: ='Project Costs'!F20 -> 6600000
A105: 2035 | B105: ='Project Costs'!C21 -> 5500000 | C105: ='Project Costs'!D21 -> 1000000 | D105: ='Project Costs'!E21 -> 100000 | E105: ='Project Costs'!F21 -> 6600000
A106: 2040 | B106: ='Project Costs'!C22 -> 5500000 | D106: ='Project Costs'!E22 -> 100000 | E106: ='Project Costs'!F22 -> 5600000
A107: 2045 | B107: ='Project Costs'!C24 -> 5500000 | D107: ='Project Costs'!E24 -> 100000 | E107: ='Project Costs'!F24 -> 5600000
A108: Total | B108: =SUM(B103:B107) -> 27500000 | C108: =SUM(C103:C107) -> 4000000 | D108: 500000 | E108: 32000000
A110: Table 8
B111: 2015 | F111: 2045
B112: Eastbound | D112: Westbound | F112: Eastbound | H112: Westbound
B113: AM | C113: PM | D113: AM | E113: PM | F113: AM | G113: PM | H113: AM | I113: PM
A114: No Build | B114: ='Traffic Projection'!C164 -> 64.5 | C114: ='Traffic Projection'!G164 -> 63.8 | D114: ='Traffic Projection'!K164 -> 64.3 | E114: ='Traffic Projection'!M164 -> 64.4 | F114: ='Traffic Projection'!G164 -> 63.8 | G114: ='Traffic Projection'!I164 -> 59.5 | H114: ='Traffic Projection'!O164 -> 28.9 | I114: ='Traffic Projection'!Q164 -> 62.4
A115: Build | B115: ='Traffic Projection'!D164 -> 66.8 | C115: ='Traffic Projection'!F164 -> 67.3 | D115: ='Traffic Projection'!L164 -> 69.2 | E115: ='Traffic Projection'!N164 -> 68.9 | F115: ='Traffic Projection'!H164 -> 66.7 | G115: ='Traffic Projection'!J164 -> 64.5 | H115: ='Traffic Projection'!P164 -> 66.8 | I115: ='Traffic Projection'!R164 -> 68.8
A117: Table 9
B118: 2015 | D118: 2045
B119: AM | C119: PM | D119: AM | E119: PM
A120: No Build | B120: 95 | C120: 159 | D120: 1146 | E120: 2630
A121: Build | B121: 84 | C121: 125 | D121: 919 | E121: 2513
A125: Table 10
A126: Variable Name | B126: Unit | C126: Value | D126: Source
A127: Value of Travel Time Savings | D127: US DOT, Benefit-Cost Analysis Guidance for Discretionary Grant Programs, January 2020.
A128: Auto | B128: $/h, per person | C128: =timevalue_auto -> 16.6 | D128: Value of travel time for all purposes. I-40 is likely to carry commuters as well as users travelling on business.
A129: Truck Drivers | B129: $/h | C129: =timevalue_auto -> 16.6
A130: Average Vehicle Occupancy – Peak Period | B130: persons/ vehicle | C130: =Avg_Veh_Occ -> 1.48 | D130: US DOT, Benefit-Cost Analysis Guidance for Discretionary Grant Programs, January 2020.
A131: Truck Share in Total Traffic | B131: % | C131: =ShareTruck -> 0.13 | D131: ODOT
A134: Table 11
A135: Benefit Categories | B135: Over Project Lifecycle
B136: Undiscounted | C136: Present Value at 7% Discount Rate | D136: Present Value at 3% Discount Rate | E136: Distribution
A137: =Results!B7 -> Reduction in Accident Costs | B137: =Results!D7 -> 154.5618001 | C137: =Results!E7 -> 49.49939356 | D137: =Results!F7 -> 92.26146247 | E137: =C137/$C$142 -> 0.4566632734
A138: =Results!B8 -> Travel Time Saving - Mainline | B138: =Results!D8 -> 95.2740526 | C138: =Results!E8 -> 27.76330928 | D138: =Results!F8 -> 54.5939766 | E138: =C138/$C$142 -> 0.2561341217
A139: =Results!B9 -> Travel Time Saving - Interchanges | B139: =Results!D9 -> 28.37557213 | C139: =Results!E9 -> 8.127894502 | D139: =Results!F9 -> 16.13864085 | E139: =C139/$C$142 -> 0.07498497743
A140: =Results!B10 -> Residual Value | B140: =Results!D10 -> 68.69022404 | C140: =Results!E10 -> 11.05434298 | D140: =Results!F10 -> 30.9235871 | E140: =C140/$C$142 -> 0.1019833192
A141: =Results!B11 -> Agency Cost Saving | B141: =Results!D11 -> 30.78339728 | C141: =Results!E11 -> 11.94869772 | D141: =Results!F11 -> 19.88159578 | E141: =C141/$C$142 -> 0.1102343083
A142: Total Benefits | B142: =SUM(B137:B141) -> 377.6850462 | C142: =SUM(C137:C141) -> 108.393638 | D142: =SUM(D137:D141) -> 213.7992628
A144: Table 12
A145: Project Evaluation Metric | B145: Undiscounted | C145: Present Value at 7% Discount Rate | D145: Present Value at 3% Discount Rate
A146: Total Discounted Benefits | B146: =Results!D19 -> 377.6850462 | C146: =Results!E19 -> 108.393638 | D146: =Results!F19 -> 213.7992628
A147: Total O&M Costs | B147: =Results!D20 -> 6.252877572 | C147: =Results!E20 -> 1.510142038 | D147: =Results!F20 -> 3.235539487
A148: Total Discounted Costs | B148: =Results!D21 -> 108.3308249 | C148: =Results!E21 -> 77.17841611 | D148: =Results!F21 -> 93.27263997
A149: Net Present Value | B149: =Results!D22 -> 269.3542213 | C149: =Results!E22 -> 31.21522194 | D149: =Results!F22 -> 120.5266228
A150: Benefit / Cost Ratio | B150: =Results!D24 -> 3.428684025 | C150: =Results!E24 -> 1.384888436 | D150: =Results!F24 -> 2.257507919
A151: Internal Rate of Return (%) | B151: =Results!D26 -> 0.1053645538
A154: Parameters | B154: Change in Parameter Value
C155: New NPV | D155: % Change in NPV | E155: New B/C Ratio
A156: Value of Travel Time | B156: Lower Bound of Range Recommended by US DOT (Auto $11.80 and Truck $23.58) | C156: 20.36687297 | D156: =(C156-Results!$E$15)/Results!$E$15 -> -0.3475339368 | E156: 1.244326482
B157: Upper Bound of Range Recommended by US DOT (Auto $19.97 and Truck $35.42) | C157: 38.48882457 | D157: =(C157-Results!$E$15)/Results!$E$15 -> 0.2330146058 | E157: 1.479132436
A158: Capital Cost Estimate | B158: 25% Reduction | C158: 50.50982596 | D158: =(C158-Results!$E$15)/Results!$E$15 -> 0.6181152281 | E158: 1.846517915
B159: 25% Increase | C159: 11.92061791 | D159: =(C159-Results!$E$15)/Results!$E$15 -> -0.6181152281 | E159: 1.107910749
A160: Crash Modification Factors | B160: CMF reduction on mainline from 0.74 to 0.89 | C160: 11.85722406 | D160: =(C160-Results!$E$15)/Results!$E$15 -> -0.6201460913 | E160: 1.134067043
B161: CMF reduction on Douglas Interchange from 0.55 to 0.66
A162: Length of Analysis Period | B162: Extension from 20 years to 30 years | C162: =Results!G15 -> 50.86740583 | D162: =(C162-Results!$E$15)/Results!$E$15 -> 0.6295705325 | E162: =Results!G24 -> 1.631105003

Sheet Inputs
B1: Model Inputs
B3: Variable | C3: Year | D3: Unit | E3: Value | F3: Source / Assumptions
B4: General Economic Inputs
B5: Real Discount Rate | D5: % | E5: 0.07 | F5: US DOT BCA Guidance for Discretionary Grant Programs, January 2020
B6: Real Discount Rate - Sensitivity | D6: % | E6: 0.03 | F6: US DOT BCA Guidance for Discretionary Grant Programs, January 2020
B7: Length of Analysis | D7: years | E7: 20 | F7: Reasoned assumption
B8: End year of Analysis | D8: year | E8: =E7+(YEAR($E$18)-1) -> 2046 | F8: Reasoned assumption
B9: Days/Year | D9: days | E9: 365 | F9: Known
B10: Animalization factor | D10: days | E10: 260 | F10: Known - Weekdays per year
B11: Number of seconds in hour | D11: seconds | E11: 3600 | F11: Known
B12: GDP Deflator 2020 to 2018 | D12: Index | E12: ='Deflation Factors'!C95 -> 1.039521392 | F12: Office of Management and Budget- Table 10.1 Gross Domestic Product and Deflators used in the historical Tables: 1940-2025.
B13: Inflation Factor 2015 to 2018 | D13: Index | E13: ='Deflation Factors'!B132 -> 1.0545 | F13: US DOT BCA Guidance for Discretionary Grant Programs, January 2020
B14: Inflation Factor 2016 to 2018 | D14: Index | E14: ='Deflation Factors'!B133 -> 1.0437 | F14: US DOT BCA Guidance for Discretionary Grant Programs, January 2020
B15: Inflation Factor 2016 to 2018 | D15: Index | E15: ='Deflation Factors'!B134 -> 1.0244 | F15: US DOT BCA Guidance for Discretionary Grant Programs, January 2020
B16: Project Inputs
B17: Base Year | D17: year | E17: 2019 | F17: Assumption
B18: First Year of Benefits from Widening I-40 | D18: date | E18: 2027-01-01 | F18: ODOT Project Schedule; 2026 is last year of construction
B19: Affected Segment Lengths
B20: West of Industrial | D20: miles | E20: 0.8 | F20: Approximation from project scope
B21: Douglas to Anderson | D21: miles | E21: 3.7 | F21: Approximation from project scope
B22: Anderson to I-240 | D22: miles | E22: 1.8 | F22: Approximation from project scope
B23: Traffic Inputs
B24: West of Industrial
B25: Current Traffic - With Turnpike | C25: 2015 | D25: ADT | E25: =SUM('Traffic Projection'!C8:D31) -> 54080 | F25: Provided by Garver
B26: Future Traffic - With Turnpike | C26: 2045 | D26: ADT | E26: =SUM('Traffic Projection'!E8:F31) -> 84580 | F26: Provided by Garver
B27: Traffic Rate of Growth | D27: % | E27: =(E26/E25)^(1/(2045-2015))-1 -> 0.01501945522 | F27: Calculated from above
B28: Douglas to Anderson
B29: Current Traffic - With Turnpike | C29: 2015 | D29: ADT | E29: =SUM('Traffic Projection'!G8:H31) -> 44260 | F29: Provided by Garver
B30: Future Traffic - With Turnpike | C30: 2045 | D30: ADT | E30: =SUM('Traffic Projection'!I8:J31) -> 66640 | F30: Provided by Garver
B31: Traffic Rate of Growth | D31: % | E31: =(E30/E29)^(1/(2045-2015))-1 -> 0.01373424881 | F31: Calculated from above
B32: Anderson to I-240
B33: Current Traffic - With Turnpike | C33: 2015 | D33: ADT | E33: =SUM('Traffic Projection'!K8:L31) -> 37960 | F33: Provided by Garver
B34: Future Traffic - With Turnpike | C34: 2045 | D34: ADT | E34: =SUM('Traffic Projection'!M8:N31) -> 56480 | F34: Provided by Garver
B35: Traffic Rate of Growth | D35: % | E35: =(E34/E33)^(1/(2045-2015))-1 -> 0.01333322582 | F35: Calculated from above
B36: Douglas Boulevard Interchange
B37: Current Traffic | C37: 2015 | D37: AADT | E37: 34400 | F37: Provided by Garver
B38: Future Traffic | C38: 2045 | D38: AADT | E38: 44160 | F38: Provided by Garver
B39: Traffic Rate of Growth | D39: % | E39: =(E38/E37)^(1/(2045-2015))-1 -> 0.008360180672 | F39: Calculated from above
B40: Travel Time Inputs
B41: Value of Time
B42: Auto | D42: $/hr/per | E42: 16.6 | F42: US DOT BCA Guidance for Discretionary Grant Programs, January 2020; Table A-3.
B43: Truck | D43: $/hr/veh | E43: 29.5 | F43: US DOT BCA Guidance for Discretionary Grant Programs, January 2020; Table A-3.
B44: Average Vehicle Occupancy
B45: Auto | D45: per/veh | E45: 1.48 | F45: US DOT BCA Guidance for Discretionary Grant Programs, January 2020; Table A-4.
B46: Truck | D46: per/veh | E46: 1 | F46: Reasoned Assumption
B47: Percentage of Truck Traffic | D47: % | E47: 0.13 | F47: From previous Model
B48: Vehicle Operating Costs Inputs
B49: Safety Inputs
B50: Cost of a Fatality | D50: $/fatality | E50: 9600000 | F50: US DOT BCA Guidance for Discretionary Grant Programs, January 2020; Table A-1.
B51: Cost of serious injury (MAIS 3) | D51: $/serious Injury | E51: 1008000 | F51: US DOT BCA Guidance for Discretionary Grant Programs, January 2020; Table A-1.
B52: Cost of non-incapacitating injury (MAIS 2) | D52: $/non-incapacitating Injury | E52: 451200 | F52: US DOT BCA Guidance for Discretionary Grant Programs, January 2020; Table A-1.
B53: Possible Injury (MAIS 1) | D53: $/possible injury | E53: 28800 | F53: US DOT BCA Guidance for Discretionary Grant Programs, January 2020; Table A-1.
B54: Cost of Property Damage Only (PDO) | D54: $/PDO | E54: 4400 | F54: US DOT BCA Guidance for Discretionary Grant Programs, January 2020; Table A-1.
B55: Average number of accidents on the mainline of project location
B56: Fatal Accident | D56: Average number of accidents/year | E56: 0.5 | F56: Based on crash data at project location, I-40 between Douglas Boulevard and I-240, 2009 - 2018
B57: Serious Injury | D57: Average number of accidents/year | E57: 2.7 | F57: Based on crash data at project location, I-40 between Douglas Boulevard and I-240, 2009 - 2018
B58: Non-Incapacitating Injury | D58: Average number of accidents/year | E58: 4.2 | F58: Based on crash data at project location, I-40 between Douglas Boulevard and I-240, 2009 - 2018
B59: Possible Injury | D59: Average number of accidents/year | E59: 7.2 | F59: Based on crash data at project location, I-40 between Douglas Boulevard and I-240, 2009 - 2018
B60: PDO | D60: Average number of accidents/year | E60: 36.8 | F60: Based on crash data at project location, I-40 between Douglas Boulevard and I-240, 2009 - 2018
B61: Average number of accidents on Anderson Interchange
B62: Fatal Accident | D62: Average number of accidents/year | E62: 0.2 | F62: Based on crash data at project location, I-40 at Anderson Interchange, 2009 - 2018
B63: Serious Injury | D63: Average number of accidents/year | E63: 1.3 | F63: Based on crash data at project location, I-40 at Anderson Interchange, 2009 - 2019
B64: Non-Incapacitating Injury | D64: Average number of accidents/year | E64: 2.8 | F64: Based on crash data at project location, I-40 at Anderson Interchange, 2009 - 2020
B65: Possible Injury | D65: Average number of accidents/year | E65: 3.2 | F65: Based on crash data at project location, I-40 at Anderson Interchange, 2009 - 2021
B66: PDO | D66: Average number of accidents/year | E66: 16.8 | F66: Based on crash data at project location, I-40 at Anderson Interchange, 2009 - 2022
B67: Average number of accidents on Douglas Interchange
B68: Fatal Accident | D68: Average number of accidents/year | E68: 0.1 | F68: Based on crash data at project location, I-40 at Douglas Interchange, 2009 - 2018
B69: Serious Injury | D69: Average number of accidents/year | E69: 0.8 | F69: Based on crash data at project location, I-40 at Douglas Interchange, 2009 - 2019
B70: Non-Incapacitating Injury | D70: Average number of accidents/year | E70: 4.8 | F70: Based on crash data at project location, I-40 at Douglas Interchange, 2009 - 2020
B71: Possible Injury | D71: Average number of accidents/year | E71: 7.9 | F71: Based on crash data at project location, I-40 at Douglas Interchange, 2009 - 2021
B72: PDO | D72: Average number of accidents/year | E72: 33.8 | F72: Based on crash data at project location, I-40 at Douglas Interchange, 2009 - 2022
B73: Average number of victims per accident
B74: Fatal Accident | D74: Average number of victims/accident | E74: 1 | F74: Based on crash data at project location, 2009 - 2018
B75: Serious Injury | D75: Average number of victims/accident | E75: 1.61 | F75: Based on crash data at project location, 2009 - 2019
B76: Non-Incapacitating Injury | D76: Average number of victims/accident | E76: 1.15 | F76: Based on crash data at project location, 2009 - 2020
B77: Possible Injury | D77: Average number of victims/accident | E77: 1.15 | F77: Assumed the same as non-incapacitating injury
B78: PDO | D78: Average number of victims/accident | E78: 2.03 | F78: California Department of Transportation, TASAS Unit, 2010 to 2013 average
B79: Crash Modification Factors
B80: Adding one 12-foot lane - All crash types | E80: 0.74 | F80: CMF Clearinghouse, CMF ID 8336. CMFs determined to mirror installation feature.
B81: Extend deceleration lane by approximately 100 ft. - All crash type | E81: 0.93 | F81: CMF Clearinghouse, CMF ID 475. CMFs determined to mirror installation feature.
B82: Extend acceleration lane by approximately 98ft - All crash type | E82: 0.89 | F82: CMF Clearinghouse, CMF ID 474. CMFs determined to mirror installation feature.
B83: Provide a straight ramp instead of a cloverleaf ramp - All crash type | E83: 0.55 | F83: CMF Clearinghouse, CMF ID 478. CMFs determined to mirror installation feature.

Sheet Accident Cost Saving
A2: Reduction in Accident Costs
B4: Unit | C4: Value | D4: =Base.Year -> 2019 | E4: =D4+1 -> 2020 | F4: 2021 | G4: 2022 | H4: 2023 | I4: 2024 | J4: 2025 | K4: 2026 | L4: 2027 | M4: 2028 | N4: 2029 | O4: 2030 | P4: 2031 | Q4: 2032 | R4: 2033 | S4: 2034 | T4: 2035 | U4: 2036 | V4: 2037 | W4: 2038 | X4: 2039 | Y4: 2040 | Z4: =Y4+1 -> 2041 | AA4: =Z4+1 -> 2042 | AB4: =AA4+1 -> 2043 | AC4: =AB4+1 -> 2044 | AD4: =AC4+1 -> 2045 | AE4: =AD4+1 -> 2046 | AF4: =AE4+1 -> 2047 | AG4: =AF4+1 -> 2048 | AH4: =AG4+1 -> 2049 | AI4: =AH4+1 -> 2050 | AJ4: =AI4+1 -> 2051 | AK4: =AJ4+1 -> 2052 | AL4: =AK4+1 -> 2053 | AM4: =AL4+1 -> 2054 | AN4: =AM4+1 -> 2055 | AO4: 2056
A5: Benefits Index | D5: 0 | E5: 0 | F5: 0 | G5: 0 | H5: 0 | I5: 0 | J5: 0 | K5: 0 | L5: 1 | M5: 2 | N5: 3 | O5: 4 | P5: 5 | Q5: 6 | R5: 7 | S5: 8 | T5: 9 | U5: 10 | V5: 11 | W5: 12 | X5: 13 | Y5: 14 | Z5: 15 | AA5: 16 | AB5: 17 | AC5: 18 | AD5: 19 | AE5: 20 | AF5: 21 | AG5: 22 | AH5: 23 | AI5: 24 | AJ5: 25 | AK5: 26 | AL5: 27 | AM5: 28 | AN5: 29 | AO5: 30
A6: Discount Factor | B6: % | C6: 0.07 | D6: =1/(1+Real_discount_rate)^(D4-$D$4) -> 1 | E6: 0.9345794393 | F6: 0.8734387283 | G6: 0.8162978769 | H6: 0.762895212 | I6: 0.7129861795 | J6: 0.6663422238 | K6: 0.6227497419 | L6: 0.5820091046 | M6: 0.5439337426 | N6: 0.5083492921 | O6: 0.4750927964 | P6: 0.4440119592 | Q6: 0.4149644479 | R6: 0.387817241 | S6: 0.3624460196 | T6: 0.3387345978 | U6: 0.3165743905 | V6: 0.2958639163 | W6: 0.276508333 | X6: 0.2584190028 | Y6: 0.2415130867 | Z6: 0.2257131652 | AA6: 0.2109468833 | AB6: 0.1971466199 | AC6: 0.1842491775 | AD6: 0.172195493 | AE6: 0.1609303673 | AF6: 0.1504022124 | AG6: 0.1405628154 | AH6: 0.1313671172 | AI6: 0.1227730067 | AJ6: 0.1147411277 | AK6: 0.1072346988 | AL6: 0.1002193447 | AM6: 0.09366293897 | AN6: 0.08753545698 | AO6: =1/(1+Real_discount_rate)^(AO4-$D$4) -> 0.0818088383
A7: Discount Factor | B7: % | C7: 0.03 | D7: =1/(1+Real_discount_rate_Sensitivity)^(D4-$D$4) -> 1 | E7: 0.9708737864 | F7: 0.9425959091 | G7: 0.9151416594 | H7: 0.8884870479 | I7: 0.8626087844 | J7: 0.8374842567 | K7: 0.8130915113 | L7: 0.7894092343 | M7: 0.7664167323 | N7: 0.7440939149 | O7: 0.7224212766 | P7: 0.7013798802 | Q7: 0.68095134 | R7: 0.6611178058 | S7: 0.6418619474 | T7: 0.6231669392 | U7: 0.6050164458 | V7: 0.5873946076 | W7: 0.5702860268 | X7: 0.5536757542 | Y7: 0.5375492759 | Z7: 0.5218925009 | AA7: 0.5066917484 | AB7: 0.4919337363 | AC7: 0.4776055693 | AD7: 0.4636947274 | AE7: 0.4501890558 | AF7: 0.4370767532 | AG7: 0.4243463623 | AH7: 0.4119867595 | AI7: 0.3999871452 | AJ7: 0.3883370341 | AK7: 0.3770262467 | AL7: 0.3660448997 | AM7: 0.3553833978 | AN7: 0.3450324251 | AO7: =1/(1+Real_discount_rate_Sensitivity)^(AO4-$D$4) -> 0.3349829369
A9: ADT Growth Rate | B9: =(AVERAGE(GrowthRate_Douglas_Anderson,GrowthRate_Anderson_I40)) -> 0.01353373731
A11: No Build Case Alternative | B11: Unit | D11: =Base.Year -> 2019 | E11: =D11+1 -> 2020 | F11: =E11+1 -> 2021 | G11: =F11+1 -> 2022 | H11: =G11+1 -> 2023 | I11: =H11+1 -> 2024 | J11: =I11+1 -> 2025 | K11: =J11+1 -> 2026 | L11: =K11+1 -> 2027 | M11: =L11+1 -> 2028 | N11: =M11+1 -> 2029 | O11: =N11+1 -> 2030 | P11: =O11+1 -> 2031 | Q11: =P11+1 -> 2032 | R11: =Q11+1 -> 2033 | S11: =R11+1 -> 2034 | T11: =S11+1 -> 2035 | U11: =T11+1 -> 2036 | V11: =U11+1 -> 2037 | W11: =V11+1 -> 2038 | X11: =W11+1 -> 2039 | Y11: =X11+1 -> 2040 | Z11: =Y11+1 -> 2041 | AA11: =Z11+1 -> 2042 | AB11: =AA11+1 -> 2043 | AC11: =AB11+1 -> 2044 | AD11: =AC11+1 -> 2045 | AE11: =AD11+1 -> 2046 | AF11: =AE11+1 -> 2047 | AG11: =AF11+1 -> 2048 | AH11: =AG11+1 -> 2049 | AI11: =AH11+1 -> 2050 | AJ11: =AI11+1 -> 2051 | AK11: =AJ11+1 -> 2052 | AL11: =AK11+1 -> 2053 | AM11: =AL11+1 -> 2054 | AN11: =AM11+1 -> 2055 | AO11: 2056
A12: Average Number of Accident on Mainline
A13: Fatal Accident | B13: Average number of accident/year | D13: =Acc_Fatal_Mainlanes*(1+$B$9) -> 0.5067668687 | E13: =D13*(1+$B$9) -> 0.5136253183 | F13: =E13*(1+$B$9) -> 0.5205765885 | G13: =F13*(1+$B$9) -> 0.5276219353 | H13: 0.5347626319 | I13: 0.5419999689 | J13: 0.5493352541 | K13: =J13*(1+$B$9) -> 0.5567698132 | L13: 0.5643049895 | M13: 0.571942145 | N13: 0.5796826598 | O13: 0.5875279326 | P13: 0.5954793813 | Q13: 0.6035384429 | R13: 0.6117065736 | S13: 0.6199852497 | T13: 0.6283759672 | U13: 0.6368802425 | V13: 0.6454996124 | W13: 0.6542356345 | X13: 0.6630898878 | Y13: 0.6720639721 | Z13: 0.6811595094 | AA13: 0.6903781432 | AB13: 0.6997215397 | AC13: 0.7091913872 | AD13: 0.7187893971 | AE13: 0.728517304 | AF13: 0.7383768658 | AG13: =AF13*(1+$B$9) -> 0.7483698644 | AH13: =AG13*(1+$B$9) -> 0.7584981055 | AI13: =AH13*(1+$B$9) -> 0.7687634196 | AJ13: =AI13*(1+$B$9) -> 0.7791676618 | AK13: =AJ13*(1+$B$9) -> 0.7897127123 | AL13: =AK13*(1+$B$9) -> 0.8004004767 | AM13: =AL13*(1+$B$9) -> 0.8112328865 | AN13: =AM13*(1+$B$9) -> 0.8222118992 | AO13: 0.8333394991
A14: Serious Injury | B14: Average number of accident/year | D14: =Acc_IncapacitatingInj_Mailanes*(1+$B$9) -> 2.736541091 | E14: =D14*(1+$B$9) -> 2.773576719 | F14: =E14*(1+$B$9) -> 2.811113578 | G14: 2.84915845 | H14: 2.887718212 | I14: 2.926799832 | J14: 2.966410372 | K14: 3.006556991 | L14: 3.047246944 | M14: 3.088487583 | N14: 3.130286363 | O14: 3.172650836 | P14: 3.215588659 | Q14: 3.259107591 | R14: 3.303215497 | S14: 3.347920348 | T14: 3.393230223 | U14: 3.439153309 | V14: 3.485697907 | W14: 3.532872427 | X14: 3.580685394 | Y14: 3.629145449 | Z14: 3.678261351 | AA14: 3.728041973 | AB14: 3.778496314 | AC14: 3.829633491 | AD14: 3.881462744 | AE14: 3.933993442 | AF14: 3.987235075 | AG14: 4.041197268 | AH14: 4.09588977 | AI14: 4.151322466 | AJ14: 4.207505374 | AK14: 4.264448646 | AL14: 4.322162574 | AM14: 4.380657587 | AN14: 4.439944256 | AO14: 4.500033295
A15: Non-Incapacitating Injury | B15: Average number of accident/year | D15: =Acc_NonIncapacitatingInj_mainlanes*(1+$B$9) -> 4.256841697 | E15: 4.314452674 | F15: =E15*(1+$B$9) -> 4.372843343 | G15: 4.432024256 | H15: 4.492006108 | I15: 4.552799739 | J15: 4.614416135 | K15: 4.67686643 | L15: 4.740161912 | M15: 4.804314018 | N15: 4.869334342 | O15: 4.935234634 | P15: 5.002026803 | Q15: 5.06972292 | R15: 5.138335218 | S15: 5.207876097 | T15: 5.278358124 | U15: 5.349794037 | V15: 5.422196744 | W15: 5.49557933 | X15: 5.569955057 | Y15: 5.645337366 | Z15: 5.721739879 | AA15: 5.799176403 | AB15: 5.877660933 | AC15: 5.957207652 | AD15: 6.037830936 | AE15: 6.119545354 | AF15: 6.202365673 | AG15: 6.286306861 | AH15: 6.371384086 | AI15: 6.457612725 | AJ15: 6.545008359 | AK15: 6.633586783 | AL15: 6.723364004 | AM15: 6.814356246 | AN15: 6.906579954 | AO15: 7.000051792
A16: Possible Injury | B16: Average number of accident/year | D16: =Acc_PossibleInj_Mainlanes*(1+$B$9) -> 7.297442909 | E16: 7.396204584 | F16: =E16*(1+$B$9) -> 7.496302874 | G16: 7.597755868 | H16: 7.7005819 | I16: 7.804799553 | J16: 7.910427659 | K16: 8.017485309 | L16: 8.125991849 | M16: 8.235966889 | N16: 8.347430301 | O16: 8.46040223 | P16: 8.574903091 | Q16: 8.690953577 | R16: 8.80857466 | S16: 8.927787595 | T16: 9.048613927 | U16: 9.171075491 | V16: 9.295194418 | W16: 9.420993137 | X16: 9.548494384 | Y16: 9.677721198 | Z16: 9.808696935 | AA16: 9.941445263 | AB16: 10.07599017 | AC16: 10.21235598 | AD16: 10.35056732 | AE16: 10.49064918 | AF16: 10.63262687 | AG16: 10.77652605 | AH16: 10.92237272 | AI16: 11.07019324 | AJ16: 11.22001433 | AK16: 11.37186306 | AL16: 11.52576686 | AM16: 11.68175356 | AN16: 11.83985135 | AO16: 12.00008879
A17: Property Damage Only (PDO) | B17: Average number of accident/year | D17: =Acc_PDO_Mainlanes*(1+$B$9) -> 37.29804153 | E17: 37.80282343 | F17: =E17*(1+$B$9) -> 38.31443691 | G17: 38.83297444 | H17: 39.35852971 | I17: 39.89119771 | J17: 40.4310747 | K17: 40.97825825 | L17: 41.53284723 | M17: 42.09494187 | N17: 42.66464376 | O17: 43.24205584 | P17: 43.82728247 | Q17: 44.42042939 | R17: 45.02160382 | S17: 45.63091438 | T17: 46.24847118 | U17: 46.87438584 | V17: 47.50877147 | W17: 48.1517427 | X17: 48.80341574 | Y17: 49.46390835 | Z17: 50.13333989 | AA17: 50.81183134 | AB17: 51.49950532 | AC17: 52.1964861 | AD17: 52.90289963 | AE17: 53.61887357 | AF17: 54.34453732 | AG17: 55.08002202 | AH17: 55.82546057 | AI17: 56.58098768 | AJ17: 57.34673991 | AK17: 58.12285562 | AL17: 58.90947508 | AM17: 59.70674044 | AN17: 60.51479578 | AO17: 61.33378713
A19: Average Number of Accident on Anderson Interchange
A20: Fatal Accident | B20: Average number of accident/year | D20: =Acc_Fatal_AndersonInt*(1+$B$9) -> 0.2027067475 | E20: =D20*(1+$B$9) -> 0.2054501273 | F20: =E20*(1+$B$9) -> 0.2082306354 | G20: =F20*(1+$B$9) -> 0.2110487741 | H20: 0.2139050528 | I20: 0.2167999876 | J20: 0.2197341017 | K20: 0.2227079253 | L20: 0.2257219958 | M20: 0.228776858 | N20: 0.2318730639 | O20: 0.2350111731 | P20: 0.2381917525 | Q20: 0.2414153771 | R20: 0.2446826294 | S20: 0.2479940999 | T20: 0.2513503869 | U20: 0.254752097 | V20: 0.2581998449 | W20: 0.2616942538 | X20: 0.2652359551 | Y20: 0.2688255888 | Z20: 0.2724638037 | AA20: 0.2761512573 | AB20: 0.2798886159 | AC20: 0.2836765549 | AD20: 0.2875157588 | AE20: 0.2914069216 | AF20: 0.2953507463 | AG20: =AF20*(1+$B$9) -> 0.2993479457 | AH20: =AG20*(1+$B$9) -> 0.3033992422 | AI20: =AH20*(1+$B$9) -> 0.3075053679 | AJ20: =AI20*(1+$B$9) -> 0.3116670647 | AK20: =AJ20*(1+$B$9) -> 0.3158850849 | AL20: =AK20*(1+$B$9) -> 0.3201601907 | AM20: =AL20*(1+$B$9) -> 0.3244931546 | AN20: =AM20*(1+$B$9) -> 0.3288847597 | AO20: 0.3333357996
A21: Serious Injury | B21: Average number of accident/year | D21: =Acc_IncapacitatingInj_Anderson_Int*(1+$B$9) -> 1.317593859 | E21: =D21*(1+$B$9) -> 1.335425828 | F21: =E21*(1+$B$9) -> 1.35349913 | G21: 1.371817032 | H21: 1.390382843 | I21: 1.409199919 | J21: 1.428271661 | K21: 1.447601514 | L21: 1.467192973 | M21: 1.487049577 | N21: 1.507174915 | O21: 1.527572625 | P21: 1.548246391 | Q21: 1.569199951 | R21: 1.590437091 | S21: 1.611961649 | T21: 1.633777515 | U21: 1.65588863 | V21: 1.678298992 | W21: 1.70101265 | X21: 1.724033708 | Y21: 1.747366328 | Z21: 1.771014724 | AA21: 1.794983172 | AB21: 1.819276003 | AC21: 1.843897607 | AD21: 1.868852433 | AE21: 1.89414499 | AF21: 1.919779851 | AG21: 1.945761647 | AH21: 1.972095074 | AI21: 1.998784891 | AJ21: 2.025835921 | AK21: 2.053253052 | AL21: 2.081041239 | AM21: 2.109205505 | AN21: 2.137750938 | AO21: 2.166682698
A22: Non-Incapacitating Injury | B22: Average number of accident/year | D22: =Acc_NonIncapacitatingInj_AndersonInt*(1+$B$9) -> 2.837894464 | E22: 2.876301783 | F22: =E22*(1+$B$9) -> 2.915228895 | G22: 2.954682838 | H22: 2.994670739 | I22: 3.035199826 | J22: 3.076277423 | K22: 3.117910954 | L22: 3.160107941 | M22: 3.202876012 | N22: 3.246222895 | O22: 3.290156423 | P22: 3.334684535 | Q22: 3.37981528 | R22: 3.425556812 | S22: 3.471917398 | T22: 3.518905416 | U22: 3.566529358 | V22: 3.614797829 | W22: 3.663719553 | X22: 3.713303371 | Y22: 3.763558244 | Z22: 3.814493252 | AA22: 3.866117602 | AB22: 3.918440622 | AC22: 3.971471768 | AD22: 4.025220624 | AE22: 4.079696902 | AF22: 4.134910449 | AG22: 4.19087124 | AH22: 4.247589391 | AI22: 4.30507515 | AJ22: 4.363338906 | AK22: 4.422391189 | AL22: 4.482242669 | AM22: 4.542904164 | AN22: 4.604386636 | AO22: 4.666701195
A23: Possible Injury | B23: Average number of accident/year | D23: =Acc_PossibleInj_AndersonInt*(1+$B$9) -> 3.243307959 | E23: 3.287202037 | F23: =E23*(1+$B$9) -> 3.331690166 | G23: 3.376780386 | H23: 3.422480844 | I23: 3.468799801 | J23: 3.515745626 | K23: 3.563326804 | L23: 3.611551933 | M23: 3.660429728 | N23: 3.709969023 | O23: 3.760178769 | P23: 3.811068041 | Q23: 3.862646034 | R23: 3.914922071 | S23: 3.967905598 | T23: 4.02160619 | U23: 4.076033552 | V23: 4.131197519 | W23: 4.187108061 | X23: 4.243775282 | Y23: 4.301209422 | Z23: 4.35942086 | AA23: 4.418420117 | AB23: 4.478217854 | AC23: 4.538824878 | AD23: 4.600252142 | AE23: 4.662510746 | AF23: 4.725611941 | AG23: 4.789567132 | AH23: 4.854387875 | AI23: 4.920085886 | AJ23: 4.986673036 | AK23: 5.054161358 | AL23: 5.122563051 | AM23: 5.191890473 | AN23: 5.262156155 | AO23: 5.333372794
A24: Property Damage Only (PDO) | B24: Average number of accident/year | D24: =Acc_PDO_AndersonInt*(1+$B$9) -> 17.02736679 | E24: 17.2578107 | F24: =E24*(1+$B$9) -> 17.49137337 | G24: 17.72809703 | H24: 17.96802443 | I24: 18.21119896 | J24: 18.45766454 | K24: 18.70746572 | L24: 18.96064765 | M24: 19.21725607 | N24: 19.47733737 | O24: 19.74093854 | P24: 20.00810721 | Q24: 20.27889168 | R24: 20.55334087 | S24: 20.83150439 | T24: 21.1134325 | U24: 21.39917615 | V24: 21.68878698 | W24: 21.98231732 | X24: 22.27982023 | Y24: 22.58134946 | Z24: 22.88695951 | AA24: 23.19670561 | AB24: 23.51064373 | AC24: 23.82883061 | AD24: 24.15132374 | AE24: 24.47818141 | AF24: 24.80946269 | AG24: 25.14522744 | AH24: 25.48553635 | AI24: 25.8304509 | AJ24: 26.18003344 | AK24: 26.53434713 | AL24: 26.89345602 | AM24: 27.25742498 | AN24: 27.62631981 | AO24: 28.00020717
A26: Average Number of Accident on Douglas Interchange
A27: Fatal Accident | B27: Average number of accident/year | D27: =Acc_Fatal_DouglasInt*(1+$B$9) -> 0.1013533737 | E27: =D27*(1+$B$9) -> 0.1027250637 | F27: =E27*(1+$B$9) -> 0.1041153177 | G27: =F27*(1+$B$9) -> 0.1055243871 | H27: 0.1069525264 | I27: 0.1083999938 | J27: 0.1098670508 | K27: 0.1113539626 | L27: 0.1128609979 | M27: 0.114388429 | N27: 0.115936532 | O27: 0.1175055865 | P27: 0.1190958763 | Q27: 0.1207076886 | R27: 0.1223413147 | S27: 0.1239970499 | T27: 0.1256751934 | U27: 0.1273760485 | V27: 0.1290999225 | W27: 0.1308471269 | X27: 0.1326179776 | Y27: 0.1344127944 | Z27: 0.1362319019 | AA27: 0.1380756286 | AB27: 0.1399443079 | AC27: 0.1418382774 | AD27: 0.1437578794 | AE27: 0.1457034608 | AF27: 0.1476753732 | AG27: =AF27*(1+$B$9) -> 0.1496739729 | AH27: =AG27*(1+$B$9) -> 0.1516996211 | AI27: =AH27*(1+$B$9) -> 0.1537526839 | AJ27: =AI27*(1+$B$9) -> 0.1558335324 | AK27: =AJ27*(1+$B$9) -> 0.1579425425 | AL27: =AK27*(1+$B$9) -> 0.1600800953 | AM27: =AL27*(1+$B$9) -> 0.1622465773 | AN27: =AM27*(1+$B$9) -> 0.1644423798 | AO27: 0.1666678998
A28: Serious Injury | B28: Average number of accident/year | D28: =Acc_IncapacitatingInj_DouglasInt*(1+$B$9) -> 0.8108269898 | E28: =D28*(1+$B$9) -> 0.8218005093 | F28: =E28*(1+$B$9) -> 0.8329225416 | G28: 0.8441950964 | H28: 0.8556202111 | I28: 0.8671999503 | J28: 0.8789364066 | K28: 0.890831701 | L28: 0.9028879833 | M28: 0.9151074321 | N28: 0.9274922557 | O28: 0.9400446922 | P28: 0.9527670101 | Q28: 0.9656615086 | R28: 0.9787305178 | S28: 0.9919763995 | T28: 1.005401547 | U28: 1.019008388 | V28: 1.03279938 | W28: 1.046777015 | X28: 1.06094382 | Y28: 1.075302355 | Z28: 1.089855215 | AA28: 1.104605029 | AB28: 1.119554463 | AC28: 1.134706219 | AD28: 1.150063035 | AE28: 1.165627686 | AF28: 1.181402985 | AG28: 1.197391783 | AH28: 1.213596969 | AI28: 1.230021471 | AJ28: 1.246668259 | AK28: 1.26354034 | AL28: 1.280640763 | AM28: 1.297972618 | AN28: 1.315539039 | AO28: 1.333343199
A29: Non-Incapacitating Injury | B29: Average number of accident/year | D29: =Acc_NonIncapacitatingInj_DouglasInt*(1+$B$9) -> 4.864961939 | E29: 4.930803056 | F29: =E29*(1+$B$9) -> 4.997535249 | G29: 5.065170579 | H29: 5.133721267 | I29: 5.203199702 | J29: 5.27361844 | K29: 5.344990206 | L29: 5.4173279 | M29: 5.490644592 | N29: 5.564953534 | O29: 5.640268153 | P29: 5.716602061 | Q29: 5.793969051 | R29: 5.872383107 | S29: 5.951858397 | T29: 6.032409285 | U29: 6.114050328 | V29: 6.196796279 | W29: 6.280662092 | X29: 6.365662923 | Y29: 6.451814132 | Z29: 6.53913129 | AA29: 6.627630175 | AB29: 6.717326781 | AC29: 6.808237317 | AD29: 6.900378212 | AE29: 6.993766118 | AF29: 7.088417912 | AG29: 7.184350698 | AH29: 7.281581813 | AI29: 7.380128828 | AJ29: 7.480009553 | AK29: 7.581242038 | AL29: 7.683844576 | AM29: 7.78783571 | AN29: 7.893234233 | AO29: 8.000059191
A30: Possible Injury | B30: Average number of accident/year | D30: =Acc_PossibleInj_DouglasInt*(1+$B$9) -> 8.006916525 | E30: 8.11528003 | F30: =E30*(1+$B$9) -> 8.225110098 | G30: 8.336426577 | H30: 8.449249585 | I30: 8.563599509 | J30: 8.679497015 | K30: 8.796963048 | L30: 8.916018835 | M30: 9.036685892 | N30: 9.158986025 | O30: 9.282941336 | P30: 9.408574225 | Q30: 9.535907397 | R30: 9.664963863 | S30: 9.795766945 | T30: 9.928340281 | U30: 10.06270783 | V30: 10.19889388 | W30: 10.33692303 | X30: 10.47682023 | Y30: 10.61861076 | Z30: 10.76232025 | AA30: 10.90797466 | AB30: 11.05560033 | AC30: 11.20522392 | AD30: 11.35687247 | AE30: 11.5105734 | AF30: 11.66635448 | AG30: 11.82424386 | AH30: 11.98427007 | AI30: 12.14646203 | AJ30: 12.31084906 | AK30: 12.47746085 | AL30: 12.64632753 | AM30: 12.81747961 | AN30: 12.99094801 | AO30: 13.16676409
A31: Property Damage Only (PDO) | B31: Average number of accident/year | D31: =Acc_PDO_DouglasInt*(1+$B$9) -> 34.25744032 | E31: 34.72107152 | F31: =E31*(1+$B$9) -> 35.19097738 | G31: 35.66724282 | H31: 36.14995392 | I31: 36.6391979 | J31: 37.13506318 | K31: 37.63763937 | L31: 38.14701729 | M31: 38.663289 | N31: 39.1865478 | O31: 39.71688825 | P31: 40.25440618 | Q31: 40.79919874 | R31: 41.35136438 | S31: 41.91100288 | T31: 42.47821538 | U31: 43.05310439 | V31: 43.6357738 | W31: 44.2263289 | X31: 44.82487641 | Y31: 45.43152452 | Z31: 46.04638283 | AA31: 46.66956248 | AB31: 47.30117608 | AC31: 47.94133777 | AD31: 48.59016325 | AE31: 49.24776975 | AF31: 49.91427613 | AG31: 50.58980283 | AH31: 51.27447193 | AI31: 51.96840717 | AJ31: 52.67173394 | AK31: 53.38457935 | AL31: 54.10707222 | AM31: 54.83934312 | AN31: 55.58152439 | AO31: 56.33375014
A33: Annual Cost of Collision on Mainline
A34: Fatal Accident | B34: $/year | D34: =D13*number_of_victims_accident_Fatality*AccidentCost_Fatality -> 4864961.939 | E34: 4930803.056 | F34: 4997535.249 | G34: 5065170.579 | H34: 5133721.267 | I34: 5203199.702 | J34: 5273618.44 | K34: 5344990.206 | L34: 5417327.9 | M34: 5490644.592 | N34: 5564953.534 | O34: 5640268.153 | P34: 5716602.061 | Q34: 5793969.051 | R34: 5872383.107 | S34: 5951858.397 | T34: 6032409.285 | U34: 6114050.328 | V34: 6196796.279 | W34: 6280662.092 | X34: 6365662.923 | Y34: 6451814.132 | Z34: 6539131.29 | AA34: 6627630.175 | AB34: 6717326.781 | AC34: 6808237.317 | AD34: 6900378.212 | AE34: 6993766.118 | AF34: 7088417.912 | AG34: 7184350.698 | AH34: 7281581.813 | AI34: 7380128.828 | AJ34: 7480009.553 | AK34: 7581242.038 | AL34: 7683844.576 | AM34: 7787835.71 | AN34: 7893234.233 | AO34: =AO13*number_of_victims_accident_Fatality*AccidentCost_Fatality -> 8000059.191
A35: Serious Injury | B35: $/year | D35: =D14*number_of_victims_accident_incapacitating*AccidentCost_IncapacitatingInjury -> 4441077.805 | E35: 4501182.186 | F35: 4562100.003 | G35: 4623842.266 | H35: 4686420.133 | I35: 4749844.912 | J35: 4814128.065 | K35: 4879281.21 | L35: 4945316.12 | M35: 5012244.729 | N35: 5080079.133 | O35: 5148831.589 | P35: 5218514.523 | Q35: 5289140.528 | R35: 5360722.366 | S35: 5433272.975 | T35: 5506805.464 | U35: 5581333.123 | V35: 5656869.419 | W35: 5733428.004 | X35: 5811022.712 | Y35: 5889667.567 | Z35: 5969376.781 | AA35: 6050164.758 | AB35: 6132046.098 | AC35: 6215035.6 | AD35: 6299148.259 | AE35: 6384399.277 | AF35: 6470804.059 | AG35: 6558378.222 | AH35: 6647137.59 | AI35: 6737098.204 | AJ35: 6828276.321 | AK35: 6920688.419 | AL35: 7014351.198 | AM35: 7109281.585 | AN35: 7205496.734 | AO35: =AO14*number_of_victims_accident_incapacitating*AccidentCost_IncapacitatingInjury -> 7303014.034
A36: Non-Incapacitating Injury | B36: $/year | D36: =D15*number_of_victims_accident_nonincapacitating*AccidentCost_NonIncapacitating_Injury -> 2208790.02 | E36: 2238683.203 | F36: 2268980.954 | G36: 2299688.746 | H36: 2330812.129 | I36: 2362356.729 | J36: 2394328.244 | K36: 2426732.453 | L36: 2459575.213 | M36: 2492862.458 | N36: 2526600.203 | O36: 2560794.547 | P36: 2595451.668 | Q36: 2630577.829 | R36: 2666179.378 | S36: 2702262.749 | T36: 2738834.464 | U36: 2775901.13 | V36: 2813469.446 | W36: 2851546.203 | X36: 2890138.28 | Y36: 2929252.652 | Z36: 2968896.388 | AA36: 3009076.652 | AB36: 3049800.705 | AC36: 3091075.907 | AD36: 3132909.716 | AE36: 3175309.693 | AF36: 3218283.5 | AG36: 3261838.904 | AH36: 3305983.775 | AI36: 3350726.091 | AJ36: 3396073.937 | AK36: 3442035.51 | AL36: 3488619.114 | AM36: 3535833.169 | AN36: 3583686.206 | AO36: =AO15*number_of_victims_accident_nonincapacitating*AccidentCost_NonIncapacitating_Injury -> 3632186.874
A37: Possible Injury | B37: $/year | D37: =D16*number_of_victims_accident_possibleInjry*AccidentCost_PossibleInjury -> 241691.3091 | E37: 244962.2958 | F37: 248277.5512 | G37: 251637.6743 | H37: 255043.2725 | I37: 258494.9612 | J37: 261993.3641 | K37: 265539.1134 | L37: 269132.8501 | M37: 272775.2233 | N37: 276466.8916 | O37: 280208.5219 | P37: 284000.7904 | Q37: 287844.3825 | R37: 291739.9927 | S37: 295688.3252 | T37: 299690.0933 | U37: 303746.0203 | V37: 307856.8391 | W37: 312023.2927 | X37: 316246.134 | Y37: 320526.1261 | Z37: 324864.0425 | AA37: 329260.6671 | AB37: 333716.7945 | AC37: 338233.2299 | AD37: 342810.7896 | AE37: 347450.3008 | AF37: 352152.6019 | AG37: 356918.5427 | AH37: 361748.9845 | AI37: 366644.8002 | AJ37: 371606.8746 | AK37: 376636.1044 | AL37: 381733.3985 | AM37: 386899.6781 | AN37: 392135.8767 | AO37: =AO16*number_of_victims_accident_possibleInjry*AccidentCost_PossibleInjury -> 397442.9406
A38: Property Damage Only (PDO) | B38: $/year | D38: =D17*number_of_victims_accident_PDO*AccidentCost_PDO -> 333146.107 | E38: 337654.8189 | F38: 342224.5505 | G38: 346856.1277 | H38: 351550.3874 | I38: 356308.178 | J38: 361130.3593 | K38: 366017.8027 | L38: 370971.3915 | M38: 375992.0208 | N38: 381080.5981 | O38: 386238.0428 | P38: 391465.287 | Q38: 396763.2753 | R38: 402132.9653 | S38: 407575.3272 | T38: 413091.3446 | U38: 418682.0144 | V38: 424348.3468 | W38: 430091.3658 | X38: 435912.1094 | Y38: 441811.6294 | Z38: 447790.9919 | AA38: 453851.2775 | AB38: 459993.5815 | AC38: 466219.0138 | AD38: 472528.6995 | AE38: 478923.7788 | AF38: 485405.4074 | AG38: 491974.7567 | AH38: 498633.0138 | AI38: 505381.382 | AJ38: 512221.0809 | AK38: 519153.3464 | AL38: 526179.4314 | AM38: 533300.6056 | AN38: 540518.1559 | AO38: =AO17*number_of_victims_accident_PDO*AccidentCost_PDO -> 547833.3867
A40: Annual Cost of Collision on Anderson Interchange
A41: Fatal Accident | B41: $/year | D41: =D20*number_of_victims_accident_Fatality*AccidentCost_Fatality -> 1945984.776 | E41: 1972321.222 | F41: 1999014.1 | G41: 2026068.231 | H41: 2053488.507 | I41: 2081279.881 | J41: 2109447.376 | K41: 2137996.083 | L41: 2166931.16 | M41: 2196257.837 | N41: 2225981.414 | O41: 2256107.261 | P41: 2286640.824 | Q41: 2317587.621 | R41: 2348953.243 | S41: 2380743.359 | T41: 2412963.714 | U41: 2445620.131 | V41: 2478718.511 | W41: 2512264.837 | X41: 2546265.169 | Y41: 2580725.653 | Z41: 2615652.516 | AA41: 2651052.07 | AB41: 2686930.712 | AC41: 2723294.927 | AD41: 2760151.285 | AE41: 2797506.447 | AF41: 2835367.165 | AG41: 2873740.279 | AH41: 2912632.725 | AI41: 2952051.531 | AJ41: 2992003.821 | AK41: 3032496.815 | AL41: 3073537.83 | AM41: 3115134.284 | AN41: 3157293.693 | AO41: =AO20*number_of_victims_accident_Fatality*AccidentCost_Fatality -> 3200023.677
A42: Serious Injury | B42: $/year | D42: =D21*number_of_victims_accident_incapacitating*AccidentCost_IncapacitatingInjury -> 2138296.721 | E42: 2167235.867 | F42: 2196566.668 | G42: 2226294.424 | H42: 2256424.508 | I42: 2286962.365 | J42: 2317913.513 | K42: 2349283.545 | L42: 2381078.132 | M42: 2413303.018 | N42: 2445964.027 | O42: 2479067.061 | P42: 2512618.104 | Q42: 2546623.217 | R42: 2581088.547 | S42: 2616020.321 | T42: 2651424.853 | U42: 2687308.54 | V42: 2723677.868 | W42: 2760539.409 | X42: 2797899.824 | Y42: 2835765.866 | Z42: 2874144.376 | AA42: 2913042.291 | AB42: 2952466.64 | AC42: 2992424.548 | AD42: 3032923.236 | AE42: 3073970.022 | AF42: 3115572.325 | AG42: 3157737.662 | AH42: 3200473.654 | AI42: 3243788.024 | AJ42: 3287688.599 | AK42: 3332183.313 | AL42: 3377280.206 | AM42: 3422987.43 | AN42: 3469313.242 | AO42: =AO21*number_of_victims_accident_incapacitating*AccidentCost_IncapacitatingInjury -> 3516266.016
A43: Non-Incapacitating Injury | B43: $/year | D43: =D22*number_of_victims_accident_nonincapacitating*AccidentCost_NonIncapacitating_Injury -> 1472526.68 | E43: 1492455.469 | F43: 1512653.969 | G43: 1533125.831 | H43: 1553874.753 | I43: 1574904.486 | J43: 1596218.829 | K43: 1617821.636 | L43: 1639716.809 | M43: 1661908.305 | N43: 1684400.136 | O43: 1707196.365 | P43: 1730301.112 | Q43: 1753718.552 | R43: 1777452.919 | S43: 1801508.5 | T43: 1825889.642 | U43: 1850600.753 | V43: 1875646.298 | W43: 1901030.802 | X43: 1926758.853 | Y43: 1952835.102 | Z43: 1979264.259 | AA43: 2006051.101 | AB43: 2033200.47 | AC43: 2060717.271 | AD43: 2088606.477 | AE43: 2116873.129 | AF43: 2145522.334 | AG43: 2174559.269 | AH43: 2203989.183 | AI43: 2233817.394 | AJ43: 2264049.292 | AK43: 2294690.34 | AL43: 2325746.076 | AM43: 2357222.113 | AN43: 2389124.138 | AO43: =AO22*number_of_victims_accident_nonincapacitating*AccidentCost_NonIncapacitating_Injury -> 2421457.916
A44: Possible Injury | B44: $/year | D44: =D23*number_of_victims_accident_possibleInjry*AccidentCost_PossibleInjury -> 107418.3596 | E44: 108872.1315 | F44: 110345.5783 | G44: 111838.9664 | H44: 113352.5656 | I44: 114886.6494 | J44: 116441.4951 | K44: 118017.3838 | L44: 119614.6 | M44: 121233.4326 | N44: 122874.174 | O44: 124537.1208 | P44: 126222.5735 | Q44: 127930.8367 | R44: 129662.219 | S44: 131417.0334 | T44: 133195.597 | U44: 134998.2312 | V44: 136825.2618 | W44: 138677.019 | X44: 140553.8373 | Y44: 142456.056 | Z44: 144384.0189 | AA44: 146338.0743 | AB44: 148318.5753 | AC44: 150325.88 | AD44: 152360.3509 | AE44: 154422.3559 | AF44: 156512.2675 | AG44: 158630.4634 | AH44: 160777.3264 | AI44: 162953.2445 | AJ44: 165158.6109 | AK44: 167393.8242 | AL44: 169659.2882 | AM44: 171955.4125 | AN44: 174282.6119 | AO44: =AO23*number_of_victims_accident_possibleInjry*AccidentCost_PossibleInjury -> 176641.3069
A45: Property Damage Only (PDO) | B45: $/year | D45: =D24*number_of_victims_accident_PDO*AccidentCost_PDO -> 152088.4401 | E45: 154146.7651 | F45: 156232.947 | G45: 158347.3626 | H45: 160490.3942 | I45: 162662.4291 | J45: 164863.8597 | K45: 167095.0838 | L45: 169356.5048 | M45: 171648.5312 | N45: 173971.5774 | O45: 176326.063 | P45: 178712.4136 | Q45: 181131.0605 | R45: 183582.4407 | S45: 186066.9972 | T45: 188585.1791 | U45: 191137.4413 | V45: 193724.2453 | W45: 196346.0583 | X45: 199003.3543 | Y45: 201696.6134 | Z45: 204426.3224 | AA45: 207192.9745 | AB45: 209997.0698 | AC45: 212839.115 | AD45: 215719.6237 | AE45: 218639.1164 | AF45: 221598.1208 | AG45: 224597.1715 | AH45: 227636.8106 | AI45: 230717.5874 | AJ45: 233840.0587 | AK45: 237004.7886 | AL45: 240212.3491 | AM45: 243463.32 | AN45: 246758.2886 | AO45: =AO24*number_of_victims_accident_PDO*AccidentCost_PDO -> 250097.8504
A47: Annual Cost of Collision on Douglas Interchange
A48: Fatal Accident | B48: $/year | D48: =D27*number_of_victims_accident_Fatality*AccidentCost_Fatality -> 972992.3878 | E48: 986160.6112 | F48: 999507.0499 | G48: 1013034.116 | H48: 1026744.253 | I48: 1040639.94 | J48: 1054723.688 | K48: 1068998.041 | L48: 1083465.58 | M48: 1098128.918 | N48: 1112990.707 | O48: 1128053.631 | P48: 1143320.412 | Q48: 1158793.81 | R48: 1174476.621 | S48: 1190371.679 | T48: 1206481.857 | U48: 1222810.066 | V48: 1239359.256 | W48: 1256132.418 | X48: 1273132.585 | Y48: 1290362.826 | Z48: 1307826.258 | AA48: 1325526.035 | AB48: 1343465.356 | AC48: 1361647.463 | AD48: 1380075.642 | AE48: 1398753.224 | AF48: 1417683.582 | AG48: 1436870.14 | AH48: 1456316.363 | AI48: 1476025.766 | AJ48: 1496001.911 | AK48: 1516248.408 | AL48: 1536768.915 | AM48: 1557567.142 | AN48: 1578646.847 | AO48: =AO27*number_of_victims_accident_Fatality*AccidentCost_Fatality -> 1600011.838
A49: Serious Injury | B49: $/year | D49: =D28*number_of_victims_accident_incapacitating*AccidentCost_IncapacitatingInjury -> 1315874.905 | E49: 1333683.611 | F49: 1351733.334 | G49: 1370027.338 | H49: 1388568.928 | I49: 1407361.455 | J49: 1426408.316 | K49: 1445712.951 | L49: 1465278.85 | M49: 1485109.549 | N49: 1505208.632 | O49: 1525579.73 | P49: 1546226.525 | Q49: 1567152.749 | R49: 1588362.183 | S49: 1609858.659 | T49: 1631646.063 | U49: 1653728.333 | V49: 1676109.457 | W49: 1698793.483 | X49: 1721784.507 | Y49: 1745086.687 | Z49: 1768704.231 | AA49: 1792641.41 | AB49: 1816902.548 | AC49: 1841492.029 | AD49: 1866414.299 | AE49: 1891673.86 | AF49: 1917275.277 | AG49: 1943223.177 | AH49: 1969522.249 | AI49: 1996177.246 | AJ49: 2023192.984 | AK49: 2050574.346 | AL49: 2078326.281 | AM49: 2106453.803 | AN49: 2134961.995 | AO49: =AO28*number_of_victims_accident_incapacitating*AccidentCost_IncapacitatingInjury -> 2163856.01
A50: Non-Incapacitating Injury | B50: $/year | D50: =D29*number_of_victims_accident_nonincapacitating*AccidentCost_NonIncapacitating_Injury -> 2524331.451 | E50: 2558495.09 | F50: 2593121.09 | G50: 2628215.71 | H50: 2663785.291 | I50: 2699836.261 | J50: 2736375.136 | K50: 2773408.518 | L50: 2810943.101 | M50: 2848985.666 | N50: 2887543.09 | O50: 2926622.339 | P50: 2966230.477 | Q50: 3006374.661 | R50: 3047062.146 | S50: 3088300.285 | T50: 3130096.53 | U50: 3172458.434 | V50: 3215393.653 | W50: 3258909.946 | X50: 3303015.177 | Y50: 3347717.317 | Z50: 3393024.444 | AA50: 3438944.745 | AB50: 3485486.52 | AC50: 3532658.179 | AD50: 3580468.247 | AE50: 3628925.364 | AF50: 3678038.286 | AG50: 3727815.89 | AH50: 3778267.171 | AI50: 3829401.247 | AJ50: 3881227.357 | AK50: 3933754.869 | AL50: 3986993.274 | AM50: 4040952.193 | AN50: 4095641.379 | AO50: =AO29*number_of_victims_accident_nonincapacitating*AccidentCost_NonIncapacitating_Injury -> 4151070.713
A51: Possible Injury | B51: $/year | D51: =D30*number_of_victims_accident_possibleInjry*AccidentCost_PossibleInjury -> 265189.0753 | E51: 268778.0746 | F51: 272415.6464 | G51: 276102.4482 | H51: 279839.1462 | I51: 283626.4157 | J51: 287464.9411 | K51: 291355.4161 | L51: 295298.5438 | M51: 299295.0367 | N51: 303345.6171 | O51: 307451.017 | P51: 311611.9783 | Q51: 315829.253 | R51: 320103.6031 | S51: 324435.8012 | T51: 328826.6301 | U51: 333276.8834 | V51: 337787.3651 | W51: 342358.8906 | X51: 346992.2859 | Y51: 351688.3884 | Z51: 356448.0466 | AA51: 361272.1208 | AB51: 366161.4828 | AC51: 371117.0161 | AD51: 376139.6164 | AE51: 381230.1911 | AF51: 386389.6604 | AG51: 391618.9565 | AH51: 396919.0246 | AI51: 402290.8224 | AJ51: 407735.3208 | AK51: 413253.5035 | AL51: 418846.3678 | AM51: 424514.9246 | AN51: 430260.198 | AO51: =AO30*number_of_victims_accident_possibleInjry*AccidentCost_PossibleInjury -> 436083.2265
A52: Property Damage Only (PDO) | B52: $/year | D52: =D31*number_of_victims_accident_PDO*AccidentCost_PDO -> 305987.4569 | E52: 310128.6108 | F52: 314325.81 | G52: 318579.8129 | H52: 322891.3884 | I52: 327261.3156 | J52: 331690.3843 | K52: 336179.3948 | L52: 340729.1585 | M52: 345340.4974 | N52: 350014.245 | O52: 354751.2458 | P52: 359552.356 | Q52: 364418.4431 | R52: 369350.3866 | S52: 374349.0777 | T52: 379415.4198 | U52: 384550.3284 | V52: 389754.7315 | W52: 395029.5697 | X52: 400375.7961 | Y52: 405794.377 | Z52: 411286.2915 | AA52: 416852.5321 | AB52: 422494.1048 | AC52: 428212.029 | AD52: 434007.3381 | AE52: 439881.0794 | AF52: 445834.3144 | AG52: 451868.1189 | AH52: 457983.5833 | AI52: 464181.8128 | AJ52: 470463.9275 | AK52: 476831.0627 | AL52: 483284.3691 | AM52: 489825.0128 | AN52: 496454.1758 | AO52: =AO31*number_of_victims_accident_PDO*AccidentCost_PDO -> 503173.0562
A54: Total Cost | B54: $/year | D54: =SUM(D34:D38,D41:D45,D48:D52) -> 23290357.43 | E54: =SUM(E34:E38,E41:E45,E48:E52) -> 23605563.01 | F54: =SUM(F34:F38,F41:F45,F48:F52) -> 23925034.5 | G54: 24248829.63 | H54: 24577006.92 | I54: 24909625.68 | J54: 25246746.01 | K54: 25588428.84 | L54: 25934735.91 | M54: 26285729.82 | N54: 26641473.98 | O54: 27002032.69 | P54: 27367471.11 | Q54: 27737855.27 | R54: 28113252.12 | S54: 28493729.49 | T54: 28879356.14 | U54: 29270201.76 | V54: 29666336.98 | W54: 30067833.39 | X54: 30474763.55 | Y54: 30887200.99 | Z54: 31305220.26 | AA54: 31728896.88 | AB54: =SUM(AB34:AB38,AB41:AB45,AB48:AB52) -> 32158307.44 | AC54: 32593529.52 | AD54: 33034641.79 | AE54: 33481723.96 | AF54: 33934856.81 | AG54: =SUM(AG34:AG38,AG41:AG45,AG48:AG52) -> 34394122.25 | AH54: 34859603.27 | AI54: =SUM(AI34:AI38,AI41:AI45,AI48:AI52) -> 35331383.98 | AJ54: 35809549.65 | AK54: 36294186.69 | AL54: 36785382.68 | AM54: 37283226.38 | AN54: 37787807.77 | AO54: =SUM(AO34:AO38,AO41:AO45,AO48:AO52) -> 38299218.04
A56: Build (Alternative Case) | B56: Unit | D56: =Base.Year -> 2019 | E56: =D56+1 -> 2020 | F56: =E56+1 -> 2021 | G56: =F56+1 -> 2022 | H56: =G56+1 -> 2023 | I56: =H56+1 -> 2024 | J56: =I56+1 -> 2025 | K56: =J56+1 -> 2026 | L56: =K56+1 -> 2027 | M56: =L56+1 -> 2028 | N56: =M56+1 -> 2029 | O56: =N56+1 -> 2030 | P56: =O56+1 -> 2031 | Q56: =P56+1 -> 2032 | R56: =Q56+1 -> 2033 | S56: =R56+1 -> 2034 | T56: =S56+1 -> 2035 | U56: =T56+1 -> 2036 | V56: =U56+1 -> 2037 | W56: =V56+1 -> 2038 | X56: =W56+1 -> 2039 | Y56: =X56+1 -> 2040 | Z56: =Y56+1 -> 2041 | AA56: =Z56+1 -> 2042 | AB56: =AA56+1 -> 2043 | AC56: =AB56+1 -> 2044 | AD56: =AC56+1 -> 2045 | AE56: =AD56+1 -> 2046 | AF56: =AE56+1 -> 2047 | AG56: =AF56+1 -> 2048 | AH56: =AG56+1 -> 2049 | AI56: =AH56+1 -> 2050 | AJ56: =AI56+1 -> 2051 | AK56: =AJ56+1 -> 2052 | AL56: =AK56+1 -> 2053 | AM56: =AL56+1 -> 2054 | AN56: =AM56+1 -> 2055 | AO56: 2056
A57: Average Number of Accident on Mainline
A58: Fatal Accident | B58: Average number of accident/year | D58: =Acc_Fatal_Mainlanes*(1+$B$9) -> 0.5067668687 | E58: =D58*(1+$B$9) -> 0.5136253183 | F58: =E58*(1+$B$9) -> 0.5205765885 | G58: =F58*(1+$B$9) -> 0.5276219353 | H58: 0.5347626319 | I58: 0.5419999689 | J58: 0.5493352541 | K58: 0.5567698132 | L58: =L13*$B$63 -> 0.4175856923 | M58: =M13*$B$63 -> 0.4232371873 | N58: 0.4289651682 | O58: 0.4347706701 | P58: 0.4406547422 | Q58: 0.4466184477 | R58: 0.4526628645 | S58: 0.4587890848 | T58: 0.4649982157 | U58: 0.4712913794 | V58: 0.4776697131 | W58: 0.4841343696 | X58: 0.4906865169 | Y58: 0.4973273394 | Z58: 0.5040580369 | AA58: 0.510879826 | AB58: 0.5177939394 | AC58: 0.5248016265 | AD58: 0.5319041539 | AE58: 0.539102805 | AF58: 0.5463988807 | AG58: 0.5537936996 | AH58: 0.5612885981 | AI58: 0.5688849305 | AJ58: 0.5765840697 | AK58: 0.5843874071 | AL58: 0.5922963527 | AM58: 0.600312336 | AN58: 0.6084368054 | AO58: =AO13*$B$63 -> 0.6166712293
A59: Serious Injury | B59: Average number of accident/year | D59: =Acc_IncapacitatingInj_Mailanes*(1+$B$9) -> 2.736541091 | E59: =D59*(1+$B$9) -> 2.773576719 | F59: =E59*(1+$B$9) -> 2.811113578 | G59: 2.84915845 | H59: 2.887718212 | I59: 2.926799832 | J59: 2.966410372 | K59: 3.006556991 | L59: =L14*$B$63 -> 2.254962738 | M59: 2.285480812 | N59: 2.316411909 | O59: 2.347761619 | P59: 2.379535608 | Q59: 2.411739618 | R59: 2.444379468 | S59: 2.477461058 | T59: 2.510990365 | U59: 2.544973449 | V59: 2.579416451 | W59: 2.614325596 | X59: 2.649707191 | Y59: 2.685567633 | Z59: 2.721913399 | AA59: 2.75875106 | AB59: 2.796087273 | AC59: 2.833928783 | AD59: 2.872282431 | AE59: 2.911155147 | AF59: 2.950553956 | AG59: 2.990485978 | AH59: 3.03095843 | AI59: 3.071978625 | AJ59: 3.113553977 | AK59: 3.155691998 | AL59: 3.198400305 | AM59: 3.241686614 | AN59: 3.285558749 | AO59: =AO14*$B$63 -> 3.330024638
A60: Non-Incapacitating Injury | B60: Average number of accident/year | D60: =Acc_NonIncapacitatingInj_mainlanes*(1+$B$9) -> 4.256841697 | E60: 4.314452674 | F60: =E60*(1+$B$9) -> 4.372843343 | G60: 4.432024256 | H60: 4.492006108 | I60: 4.552799739 | J60: 4.614416135 | K60: 4.67686643 | L60: 3.507719815 | M60: 3.555192374 | N60: 3.603307413 | O60: 3.652073629 | P60: 3.701499834 | Q60: 3.751594961 | R60: 3.802368061 | S60: 3.853828312 | T60: 3.905985012 | U60: 3.958847587 | V60: 4.01242559 | W60: 4.066728704 | X60: 4.121766742 | Y60: 4.177549651 | Z60: 4.23408751 | AA60: 4.291390538 | AB60: 4.349469091 | AC60: 4.408333663 | AD60: 4.467994893 | AE60: 4.528463562 | AF60: 4.589750598 | AG60: 4.651867077 | AH60: 4.714824224 | AI60: 4.778633416 | AJ60: 4.843306186 | AK60: 4.908854219 | AL60: 4.975289363 | AM60: 5.042623622 | AN60: 5.110869166 | AO60: =AO15*$B$63 -> 5.180038326
A61: Possible Injury | B61: Average number of accident/year | D61: =Acc_PossibleInj_Mainlanes*(1+$B$9) -> 7.297442909 | E61: 7.396204584 | F61: =E61*(1+$B$9) -> 7.496302874 | G61: 7.597755868 | H61: 7.7005819 | I61: 7.804799553 | J61: 7.910427659 | K61: 8.017485309 | L61: 6.013233969 | M61: 6.094615498 | N61: 6.177098423 | O61: 6.26069765 | P61: 6.345428287 | Q61: 6.431305647 | R61: 6.518345248 | S61: 6.606562821 | T61: 6.695974306 | U61: 6.786595864 | V61: 6.878443869 | W61: 6.971534922 | X61: 7.065885844 | Y61: 7.161513687 | Z61: 7.258435732 | AA61: 7.356669494 | AB61: 7.456232727 | AC61: 7.557143422 | AD61: 7.659419816 | AE61: 7.763080391 | AF61: 7.868143882 | AG61: 7.974629275 | AH61: 8.082555812 | AI61: 8.191943 | AJ61: 8.302810604 | AK61: 8.415178662 | AL61: 8.529067479 | AM61: 8.644497638 | AN61: 8.761489998 | AO61: =AO16*$B$63 -> 8.880065702
A62: Property Damage Only (PDO) | B62: Average number of accident/year | D62: =Acc_PDO_Mainlanes*(1+$B$9) -> 37.29804153 | E62: 37.80282343 | F62: =E62*(1+$B$9) -> 38.31443691 | G62: 38.83297444 | H62: 39.35852971 | I62: 39.89119771 | J62: 40.4310747 | K62: 40.97825825 | L62: 30.73430695 | M62: 31.15025699 | N62: 31.57183638 | O62: 31.99912132 | P62: 32.43218902 | Q62: 32.87111775 | R62: 33.31598682 | S62: 33.76687664 | T62: 34.22386868 | U62: 34.68704553 | V62: 35.15649089 | W62: 35.6322896 | X62: 36.11452765 | Y62: 36.60329218 | Z62: 37.09867152 | AA62: 37.60075519 | AB62: 38.10963394 | AC62: 38.62539971 | AD62: 39.14814572 | AE62: 39.67796645 | AF62: 40.21495762 | AG62: 40.75921629 | AH62: 41.31084082 | AI62: 41.86993089 | AJ62: 42.43658753 | AK62: 43.01091316 | AL62: 43.59301156 | AM62: 44.18298793 | AN62: 44.78094888 | AO62: =AO17*$B$63 -> 45.38700248
A63: CMF (All crashes) | B63: =(Inputs!E80) -> 0.74
A65: Average Number of Accident on Anderson Interchange
A66: Fatal Accident | B66: Average number of accident/year | D66: =Acc_Fatal_AndersonInt*(1+$B$9) -> 0.2027067475 | E66: =D66*(1+$B$9) -> 0.2054501273 | F66: =E66*(1+$B$9) -> 0.2082306354 | G66: 0.2110487741 | H66: 0.2139050528 | I66: 0.2167999876 | J66: 0.2197341017 | K66: 0.2227079253 | L66: =(L20*$B$71) -> 0.2054070162 | M66: =(M20*$B$71) -> 0.2081869408 | N66: 0.2110044882 | O66: 0.2138601675 | P66: 0.2167544948 | Q66: 0.2196879932 | R66: 0.2226611928 | S66: 0.2256746309 | T66: 0.2287288521 | U66: 0.2318244083 | V66: 0.2349618589 | W66: 0.238141771 | X66: 0.2413647191 | Y66: 0.2446312859 | Z66: 0.2479420614 | AA66: 0.2512976441 | AB66: 0.2546986404 | AC66: 0.2581456649 | AD66: 0.2616393406 | AE66: 0.2651802987 | AF66: 0.2687691792 | AG66: 0.2724066306 | AH66: 0.2760933104 | AI66: 0.2798298847 | AJ66: 0.2836170289 | AK66: 0.2874554273 | AL66: 0.2913457735 | AM66: 0.2952887707 | AN66: 0.2992851313 | AO66: =(AO20*$B$71) -> 0.3033355777
A67: Serious Injury | B67: Average number of accident/year | D67: =Acc_IncapacitatingInj_Anderson_Int*(1+$B$9) -> 1.317593859 | E67: =D67*(1+$B$9) -> 1.335425828 | F67: =E67*(1+$B$9) -> 1.35349913 | G67: 1.371817032 | H67: 1.390382843 | I67: 1.409199919 | J67: 1.428271661 | K67: 1.447601514 | L67: =(L21*$B$71) -> 1.335145605 | M67: =(M21*$B$71) -> 1.353215115 | N67: 1.371529173 | O67: 1.390091089 | P67: 1.408904216 | Q67: 1.427971956 | R67: 1.447297753 | S67: 1.466885101 | T67: 1.486737538 | U67: 1.506858654 | V67: 1.527252083 | W67: 1.547921511 | X67: 1.568870674 | Y67: 1.590103358 | Z67: 1.611623399 | AA67: 1.633434687 | AB67: 1.655541163 | AC67: 1.677946822 | AD67: 1.700655714 | AE67: 1.723671941 | AF67: 1.746999665 | AG67: 1.770643099 | AH67: 1.794606518 | AI67: 1.818894251 | AJ67: 1.843510688 | AK67: 1.868460277 | AL67: 1.893747528 | AM67: 1.919377009 | AN67: 1.945353354 | AO67: =(AO21*$B$71) -> 1.971681255
A68: Non-Incapacitating Injury | B68: Average number of accident/year | D68: =Acc_NonIncapacitatingInj_AndersonInt*(1+$B$9) -> 2.837894464 | E68: 2.876301783 | F68: =E68*(1+$B$9) -> 2.915228895 | G68: 2.954682838 | H68: 2.994670739 | I68: 3.035199826 | J68: 3.076277423 | K68: 3.117910954 | L68: =(L22*$B$71) -> 2.875698227 | M68: =(M22*$B$71) -> 2.914617171 | N68: 2.954062834 | O68: 2.994042345 | P68: 3.034562927 | Q68: 3.075631905 | R68: 3.117256699 | S68: 3.159444832 | T68: 3.202203929 | U68: 3.245541716 | V68: 3.289466025 | W68: 3.333984794 | X68: 3.379106068 | Y68: 3.424838002 | Z68: 3.47118886 | AA68: 3.518167018 | AB68: 3.565780966 | AC68: 3.614039309 | AD68: 3.662950768 | AE68: 3.712524181 | AF68: 3.762768508 | AG68: 3.813692829 | AH68: 3.865306346 | AI68: 3.917618386 | AJ68: 3.970638405 | AK68: 4.024375982 | AL68: 4.078840829 | AM68: 4.134042789 | AN68: 4.189991839 | AO68: =(AO22*$B$71) -> 4.246698087
A69: Possible Injury | B69: Average number of accident/year | D69: =Acc_PossibleInj_AndersonInt*(1+$B$9) -> 3.243307959 | E69: 3.287202037 | F69: =E69*(1+$B$9) -> 3.331690166 | G69: 3.376780386 | H69: 3.422480844 | I69: 3.468799801 | J69: 3.515745626 | K69: 3.563326804 | L69: =(L23*$B$71) -> 3.286512259 | M69: =(M23*$B$71) -> 3.330991053 | N69: 3.376071811 | O69: 3.42176268 | P69: 3.468071917 | Q69: 3.515007891 | R69: 3.562579085 | S69: 3.610794094 | T69: 3.659661633 | U69: 3.709190532 | V69: 3.759389742 | W69: 3.810268336 | X69: 3.861835506 | Y69: 3.914100574 | Z69: 3.967072983 | AA69: 4.020762306 | AB69: 4.075178247 | AC69: 4.130330639 | AD69: 4.186229449 | AE69: 4.242884779 | AF69: 4.300306867 | AG69: 4.35850609 | AH69: 4.417492967 | AI69: 4.477278156 | AJ69: 4.537872462 | AK69: 4.599286836 | AL69: 4.661532376 | AM69: 4.724620331 | AN69: 4.788562101 | AO69: =(AO23*$B$71) -> 4.853369243
A70: Property Damage Only (PDO) | B70: Average number of accident/year | D70: =Acc_PDO_AndersonInt*(1+$B$9) -> 17.02736679 | E70: 17.2578107 | F70: =E70*(1+$B$9) -> 17.49137337 | G70: 17.72809703 | H70: 17.96802443 | I70: 18.21119896 | J70: 18.45766454 | K70: 18.70746572 | L70: =(L24*$B$71) -> 17.25418936 | M70: =(M24*$B$71) -> 17.48770303 | N70: 17.72437701 | O70: 17.96425407 | P70: 18.20737756 | Q70: 18.45379143 | R70: 18.70354019 | S70: 18.95666899 | T70: 19.21322357 | U70: 19.47325029 | V70: 19.73679615 | W70: 20.00390876 | X70: 20.27463641 | Y70: 20.54902801 | Z70: 20.82713316 | AA70: 21.10900211 | AB70: 21.3946858 | AC70: 21.68423585 | AD70: 21.97770461 | AE70: 22.27514509 | AF70: 22.57661105 | AG70: 22.88215697 | AH70: 23.19183807 | AI70: 23.50571032 | AJ70: 23.82383043 | AK70: 24.14625589 | AL70: 24.47304497 | AM70: 24.80425674 | AN70: 25.13995103 | AO70: =(AO24*$B$71) -> 25.48018852
A71: CMF (All crashes) | B71: =AVERAGE(Inputs!E81:E82) -> 0.91
A73: Average Number of Accident on Douglas Interchange
A74: Fatal Accident | B74: Average number of accident/year | D74: =Acc_Fatal_DouglasInt*(1+$B$9) -> 0.1013533737 | E74: 0.1027250637 | F74: =E74*(1+$B$9) -> 0.1041153177 | G74: 0.1055243871 | H74: 0.1069525264 | I74: 0.1083999938 | J74: 0.1098670508 | K74: 0.1113539626 | L74: =L27*($B$79) -> 0.06207354885 | M74: =M27*($B$79) -> 0.06291363595 | N74: 0.06376509258 | O74: 0.06462807259 | P74: 0.06550273195 | Q74: 0.06638922871 | R74: 0.0672877231 | S74: 0.06819837746 | T74: 0.06912135639 | U74: 0.07005682667 | V74: 0.07100495736 | W74: 0.0719659198 | X74: 0.07293988765 | Y74: 0.07392703693 | Z74: 0.07492754603 | AA74: 0.07594159576 | AB74: 0.07696936936 | AC74: 0.07801105259 | AD74: 0.07906683368 | AE74: 0.08013690344 | AF74: 0.08122145524 | AG74: 0.08232068508 | AH74: 0.08343479161 | AI74: 0.08456397616 | AJ74: 0.0857084428 | AK74: 0.08686839835 | AL74: 0.08804405243 | AM74: 0.08923561751 | AN74: 0.09044330892 | AO74: =AO27*($B$79) -> 0.0916673449
A75: Serious Injury | B75: Average number of accident/year | D75: =Acc_IncapacitatingInj_DouglasInt*(1+$B$9) -> 0.8108269898 | E75: 0.8218005093 | F75: =E75*(1+$B$9) -> 0.8329225416 | G75: 0.8441950964 | H75: 0.8556202111 | I75: 0.8671999503 | J75: 0.8789364066 | K75: 0.890831701 | L75: =L28*($B$79) -> 0.4965883908 | M75: =M28*($B$79) -> 0.5033090876 | N75: 0.5101207406 | O75: 0.5170245807 | P75: 0.5240218556 | Q75: 0.5311138297 | R75: 0.5383017848 | S75: 0.5455870197 | T75: 0.5529708511 | U75: 0.5604546134 | V75: 0.5680396589 | W75: 0.5757273584 | X75: 0.5835191012 | Y75: 0.5914162955 | Z75: 0.5994203682 | AA75: 0.607532766 | AB75: 0.6157549549 | AC75: 0.6240884207 | AD75: 0.6325346695 | AE75: 0.6410952275 | AF75: 0.6497716419 | AG75: 0.6585654806 | AH75: 0.6674783329 | AI75: 0.6765118093 | AJ75: 0.6856675424 | AK75: 0.6949471868 | AL75: 0.7043524195 | AM75: 0.7138849401 | AN75: 0.7235464713 | AO75: =AO28*($B$79) -> 0.7333387592
A76: Non-Incapacitating Injury | B76: Average number of accident/year | D76: =Acc_NonIncapacitatingInj_DouglasInt*(1+$B$9) -> 4.864961939 | E76: 4.930803056 | F76: =E76*(1+$B$9) -> 4.997535249 | G76: 5.065170579 | H76: 5.133721267 | I76: 5.203199702 | J76: 5.27361844 | K76: 5.344990206 | L76: =L29*($B$79) -> 2.979530345 | M76: =M29*($B$79) -> 3.019854526 | N76: 3.060724444 | O76: 3.102147484 | P76: 3.144131133 | Q76: 3.186682978 | R76: 3.229810709 | S76: 3.273522118 | T76: 3.317825107 | U76: 3.36272768 | V76: 3.408237953 | W76: 3.45436415 | X76: 3.501114607 | Y76: 3.548497773 | Z76: 3.596522209 | AA76: 3.645196596 | AB76: 3.694529729 | AC76: 3.744530524 | AD76: 3.795208017 | AE76: 3.846571365 | AF76: 3.898629852 | AG76: 3.951392884 | AH76: 4.004869997 | AI76: 4.059070856 | AJ76: 4.114005254 | AK76: 4.169683121 | AL76: 4.226114517 | AM76: 4.28330964 | AN76: 4.341278828 | AO76: =AO29*($B$79) -> 4.400032555
A77: Possible Injury | B77: Average number of accident/year | D77: =Acc_PossibleInj_DouglasInt*(1+$B$9) -> 8.006916525 | E77: 8.11528003 | F77: =E77*(1+$B$9) -> 8.225110098 | G77: 8.336426577 | H77: 8.449249585 | I77: 8.563599509 | J77: 8.679497015 | K77: 8.796963048 | L77: =L30*($B$79) -> 4.903810359 | M77: =M30*($B$79) -> 4.97017724 | N77: 5.037442314 | O77: 5.105617735 | P77: 5.174715824 | Q77: 5.244749068 | R77: 5.315730125 | S77: 5.38767182 | T77: 5.460587155 | U77: 5.534489307 | V77: 5.609391631 | W77: 5.685307664 | X77: 5.762251125 | Y77: 5.840235918 | Z77: 5.919276136 | AA77: 5.999386065 | AB77: 6.08058018 | AC77: 6.162873155 | AD77: 6.246279861 | AE77: 6.330815372 | AF77: 6.416494964 | AG77: 6.503334121 | AH77: 6.591348537 | AI77: 6.680554117 | AJ77: 6.770966981 | AK77: 6.86260347 | AL77: 6.955480142 | AM77: 7.049613783 | AN77: 7.145021404 | AO77: =AO30*($B$79) -> 7.241720247
A78: Property Damage Only (PDO) | B78: Average number of accident/year | D78: =Acc_PDO_DouglasInt*(1+$B$9) -> 34.25744032 | E78: 34.72107152 | F78: =E78*(1+$B$9) -> 35.19097738 | G78: 35.66724282 | H78: 36.14995392 | I78: 36.6391979 | J78: 37.13506318 | K78: 37.63763937 | L78: =L31*($B$79) -> 20.98085951 | M78: =M31*($B$79) -> 21.26480895 | N78: 21.55260129 | O78: 21.84428854 | P78: 22.1399234 | Q78: 22.43955931 | R78: 22.74325041 | S78: 23.05105158 | T78: 23.36301846 | U78: 23.67920741 | V78: 23.99967559 | W78: 24.32448089 | X78: 24.65368203 | Y78: 24.98733848 | Z78: 25.32551056 | AA78: 25.66825937 | AB78: 26.01564685 | AC78: 26.36773578 | AD78: 26.72458978 | AE78: 27.08627336 | AF78: 27.45285187 | AG78: 27.82439156 | AH78: 28.20095956 | AI78: 28.58262394 | AJ78: 28.96945367 | AK78: 29.36151864 | AL78: 29.75888972 | AM78: 30.16163872 | AN78: 30.56983841 | AO78: =AO31*($B$79) -> 30.98356258
A79: CMF (All crashes) | B79: =(Inputs!E83) -> 0.55
A81: Annual Cost of Collision on Mainline
A82: Fatal Accident | B82: $/year | D82: =D58*number_of_victims_accident_Fatality*AccidentCost_Fatality -> 4864961.939 | E82: 4930803.056 | F82: 4997535.249 | G82: 5065170.579 | H82: 5133721.267 | I82: 5203199.702 | J82: 5273618.44 | K82: 5344990.206 | L82: 4008822.646 | M82: 4063076.998 | N82: 4118065.615 | O82: 4173798.433 | P82: 4230285.525 | Q82: 4287537.098 | R82: 4345563.499 | S82: 4404375.214 | T82: 4463982.871 | U82: 4524397.242 | V82: 4585629.246 | W82: 4647689.948 | X82: 4710590.563 | Y82: 4774342.458 | Z82: 4838957.155 | AA82: 4904446.33 | AB82: 4970821.818 | AC82: 5038095.615 | AD82: 5106279.877 | AE82: 5175386.928 | AF82: 5245429.255 | AG82: 5316419.516 | AH82: 5388370.542 | AI82: 5461295.333 | AJ82: 5535207.069 | AK82: 5610119.108 | AL82: 5686044.986 | AM82: 5762998.425 | AN82: 5840993.332 | AO82: =AO58*number_of_victims_accident_Fatality*AccidentCost_Fatality -> 5920043.802
A83: Serious Injury | B83: $/year | D83: =D59*number_of_victims_accident_incapacitating*AccidentCost_IncapacitatingInjury -> 4441077.805 | E83: 4501182.186 | F83: 4562100.003 | G83: 4623842.266 | H83: 4686420.133 | I83: 4749844.912 | J83: 4814128.065 | K83: 4879281.21 | L83: 3659533.929 | M83: 3709061.099 | N83: 3759258.558 | O83: 3810135.376 | P83: 3861700.747 | Q83: 3913963.991 | R83: 3966934.551 | S83: 4020622.001 | T83: 4075036.043 | U83: 4130186.511 | V83: 4186083.37 | W83: 4242736.723 | X83: 4300156.807 | Y83: 4358354 | Z83: 4417338.818 | AA83: 4477121.921 | AB83: 4537714.113 | AC83: 4599126.344 | AD83: 4661369.711 | AE83: 4724455.465 | AF83: 4788395.004 | AG83: 4853199.884 | AH83: 4918881.816 | AI83: 4985452.671 | AJ83: 5052924.478 | AK83: 5121309.43 | AL83: 5190619.887 | AM83: 5260868.373 | AN83: 5332067.583 | AO83: =AO59*number_of_victims_accident_incapacitating*AccidentCost_IncapacitatingInjury -> 5404230.385
A84: Non-Incapacitating Injury | B84: $/year | D84: =D60*number_of_victims_accident_nonincapacitating*AccidentCost_NonIncapacitating_Injury -> 2208790.02 | E84: 2238683.203 | F84: 2268980.954 | G84: 2299688.746 | H84: 2330812.129 | I84: 2362356.729 | J84: 2394328.244 | K84: 2426732.453 | L84: 1820085.658 | M84: 1844718.219 | N84: 1869684.151 | O84: 1894987.965 | P84: 1920634.234 | Q84: 1946627.593 | R84: 1972972.74 | S84: 1999674.435 | T84: 2026737.503 | U84: 2054166.836 | V84: 2081967.39 | W84: 2110144.19 | X84: 2138702.327 | Y84: 2167646.963 | Z84: 2196983.327 | AA84: 2226716.723 | AB84: 2256852.522 | AC84: 2287396.171 | AD84: 2318353.19 | AE84: 2349729.173 | AF84: 2381529.79 | AG84: 2413760.789 | AH84: 2446427.993 | AI84: 2479537.307 | AJ84: 2513094.714 | AK84: 2547106.277 | AL84: 2581578.145 | AM84: 2616516.545 | AN84: 2651927.793 | AO84: =AO60*number_of_victims_accident_nonincapacitating*AccidentCost_NonIncapacitating_Injury -> 2687818.287
A85: Possible Injury | B85: $/year | D85: =D61*number_of_victims_accident_possibleInjry*AccidentCost_PossibleInjury -> 241691.3091 | E85: 244962.2958 | F85: 248277.5512 | G85: 251637.6743 | H85: 255043.2725 | I85: 258494.9612 | J85: 261993.3641 | K85: 265539.1134 | L85: 199158.309 | M85: 201853.6653 | N85: 204585.4998 | O85: 207354.3062 | P85: 210160.5849 | Q85: 213004.843 | R85: 215887.5946 | S85: 218809.3606 | T85: 221770.669 | U85: 224772.055 | V85: 227814.0609 | W85: 230897.2366 | X85: 234022.1392 | Y85: 237189.3333 | Z85: 240399.3914 | AA85: 243652.8937 | AB85: 246950.4279 | AC85: 250292.5901 | AD85: 253679.9843 | AE85: 257113.2226 | AF85: 260592.9254 | AG85: 264119.7216 | AH85: 267694.2485 | AI85: 271317.1521 | AJ85: 274989.0872 | AK85: 278710.7173 | AL85: 282482.7149 | AM85: 286305.7618 | AN85: 290180.5487 | AO85: =AO61*number_of_victims_accident_possibleInjry*AccidentCost_PossibleInjury -> 294107.7761
A86: Property Damage Only (PDO) | B86: $/year | D86: =D62*number_of_victims_accident_PDO*AccidentCost_PDO -> 333146.107 | E86: 337654.8189 | F86: 342224.5505 | G86: 346856.1277 | H86: 351550.3874 | I86: 356308.178 | J86: 361130.3593 | K86: 366017.8027 | L86: 274518.8297 | M86: 278234.0954 | N86: 281999.6426 | O86: 285816.1517 | P86: 289684.3124 | Q86: 293604.8238 | R86: 297578.3943 | S86: 301605.7421 | T86: 305687.595 | U86: 309824.6906 | V86: 314017.7766 | W86: 318267.6107 | X86: 322574.9609 | Y86: 326940.6057 | Z86: 331365.334 | AA86: 335849.9454 | AB86: 340395.2503 | AC86: 345002.0702 | AD86: 349671.2376 | AE86: 354403.5963 | AF86: 359200.0015 | AG86: 364061.3199 | AH86: 368988.4302 | AI86: 373982.2227 | AJ86: 379043.5998 | AK86: 384173.4764 | AL86: 389372.7793 | AM86: 394642.4482 | AN86: 399983.4354 | AO86: =AO62*number_of_victims_accident_PDO*AccidentCost_PDO -> 405396.7061
A88: Annual Cost of Collision on Anderson Interchange
A89: Fatal Accident | B89: $/year | D89: =D66*number_of_victims_accident_Fatality*AccidentCost_Fatality -> 1945984.776 | E89: 1972321.222 | F89: 1999014.1 | G89: 2026068.231 | H89: 2053488.507 | I89: 2081279.881 | J89: 2109447.376 | K89: 2137996.083 | L89: 1971907.355 | M89: 1998594.632 | N89: 2025643.086 | O89: 2053057.608 | P89: 2080843.15 | Q89: 2109004.735 | R89: 2137547.451 | S89: 2166476.456 | T89: 2195796.98 | U89: 2225514.319 | V89: 2255633.845 | W89: 2286161.001 | X89: 2317101.304 | Y89: 2348460.344 | Z89: 2380243.79 | AA89: 2412457.384 | AB89: 2445106.948 | AC89: 2478198.383 | AD89: 2511737.669 | AE89: 2545730.867 | AF89: 2580184.12 | AG89: 2615103.654 | AH89: 2650495.78 | AI89: 2686366.894 | AJ89: 2722723.477 | AK89: 2759572.102 | AL89: 2796919.426 | AM89: 2834772.198 | AN89: 2873137.261 | AO89: =AO66*number_of_victims_accident_Fatality*AccidentCost_Fatality -> 2912021.546
A90: Serious Injury | B90: $/year | D90: =D67*number_of_victims_accident_incapacitating*AccidentCost_IncapacitatingInjury -> 2138296.721 | E90: 2167235.867 | F90: 2196566.668 | G90: 2226294.424 | H90: 2256424.508 | I90: 2286962.365 | J90: 2317913.513 | K90: 2349283.545 | L90: 2166781.1 | M90: 2196105.746 | N90: 2225827.264 | O90: 2255951.026 | P90: 2286482.474 | Q90: 2317427.128 | R90: 2348790.578 | S90: 2380578.492 | T90: 2412796.616 | U90: 2445450.772 | V90: 2478546.86 | W90: 2512090.862 | X90: 2546088.84 | Y90: 2580546.938 | Z90: 2615471.382 | AA90: 2650868.485 | AB90: 2686744.642 | AC90: 2723106.339 | AD90: 2759960.144 | AE90: 2797312.72 | AF90: 2835170.816 | AG90: 2873541.273 | AH90: 2912431.025 | AI90: 2951847.102 | AJ90: 2991796.625 | AK90: 3032286.815 | AL90: 3073324.988 | AM90: 3114918.561 | AN90: 3157075.05 | AO90: =AO67*number_of_victims_accident_incapacitating*AccidentCost_IncapacitatingInjury -> 3199802.075
A91: Non-Incapacitating Injury | B91: $/year | D91: =D68*number_of_victims_accident_nonincapacitating*AccidentCost_NonIncapacitating_Injury -> 1472526.68 | E91: 1492455.469 | F91: 1512653.969 | G91: 1533125.831 | H91: 1553874.753 | I91: 1574904.486 | J91: 1596218.829 | K91: 1617821.636 | L91: 1492142.296 | M91: 1512336.558 | N91: 1532804.123 | O91: 1553548.692 | P91: 1574574.012 | Q91: 1595883.883 | R91: 1617482.156 | S91: 1639372.735 | T91: 1661559.575 | U91: 1684046.685 | V91: 1706838.131 | W91: 1729938.03 | X91: 1753350.557 | Y91: 1777079.942 | Z91: 1801130.476 | AA91: 1825506.502 | AB91: 1850212.428 | AC91: 1875252.717 | AD91: 1900631.894 | AE91: 1926354.547 | AF91: 1952425.324 | AG91: 1978848.935 | AH91: 2005630.157 | AI91: 2032773.828 | AJ91: 2060284.855 | AK91: 2088168.209 | AL91: 2116428.929 | AM91: 2145072.123 | AN91: 2174102.965 | AO91: =AO68*number_of_victims_accident_nonincapacitating*AccidentCost_NonIncapacitating_Injury -> 2203526.704
A92: Possible Injury | B92: $/year | D92: =D69*number_of_victims_accident_possibleInjry*AccidentCost_PossibleInjury -> 107418.3596 | E92: 108872.1315 | F92: 110345.5783 | G92: 111838.9664 | H92: 113352.5656 | I92: 114886.6494 | J92: 116441.4951 | K92: 118017.3838 | L92: 108849.286 | M92: 110322.4237 | N92: 111815.4984 | O92: 113328.7799 | P92: 114862.5419 | Q92: 116417.0614 | R92: 117992.6193 | S92: 119589.5004 | T92: 121207.9933 | U92: 122848.3904 | V92: 124510.9883 | W92: 126196.0873 | X92: 127903.992 | Y92: 129635.011 | Z92: 131389.4572 | AA92: 133167.6476 | AB92: 134969.9035 | AC92: 136796.5508 | AD92: 138647.9193 | AE92: 140524.3439 | AF92: 142426.1634 | AG92: 144353.7217 | AH92: 146307.3671 | AI92: 148287.4525 | AJ92: 150294.336 | AK92: 152328.38 | AL92: 154389.9523 | AM92: 156479.4254 | AN92: 158597.1768 | AO92: =AO69*number_of_victims_accident_possibleInjry*AccidentCost_PossibleInjury -> 160743.5893
A93: Property Damage Only (PDO) | B93: $/year | D93: =D70*number_of_victims_accident_PDO*AccidentCost_PDO -> 152088.4401 | E93: 154146.7651 | F93: 156232.947 | G93: 158347.3626 | H93: 160490.3942 | I93: 162662.4291 | J93: 164863.8597 | K93: 167095.0838 | L93: 154114.4194 | M93: 156200.1634 | N93: 158314.1354 | O93: 160456.7173 | P93: 162628.2964 | Q93: 164829.265 | R93: 167060.021 | S93: 169320.9675 | T93: 171612.5129 | U93: 173935.0716 | V93: 176289.0632 | W93: 178674.9131 | X93: 181093.0524 | Y93: 183543.9182 | Z93: 186027.9534 | AA93: 188545.6068 | AB93: 191097.3335 | AC93: 193683.5947 | AD93: 196304.8575 | AE93: 198961.5959 | AF93: 201654.2899 | AG93: 204383.4261 | AH93: 207149.4977 | AI93: 209953.0046 | AJ93: 212794.4534 | AK93: 215674.3576 | AL93: 218593.2377 | AM93: 221551.6212 | AN93: 224550.0426 | AO93: =AO70*number_of_victims_accident_PDO*AccidentCost_PDO -> 227589.0439
A95: Annual Cost of Collision on Douglas Interchange
A96: Fatal Accident | B96: $/year | D96: =D74*number_of_victims_accident_Fatality*AccidentCost_Fatality -> 972992.3878 | E96: 986160.6112 | F96: 999507.0499 | G96: 1013034.116 | H96: 1026744.253 | I96: 1040639.94 | J96: 1054723.688 | K96: 1068998.041 | L96: 595906.069 | M96: 603970.9052 | N96: 612144.8887 | O96: 620429.4969 | P96: 628826.2267 | Q96: 637336.5957 | R96: 645962.1417 | S96: 654704.4237 | T96: 663565.0213 | U96: 672545.536 | V96: 681647.5906 | W96: 690872.8301 | X96: 700222.9215 | Y96: 709699.5546 | Z96: 719304.4419 | AA96: 729039.3193 | AB96: 738905.9459 | AC96: 748906.1049 | AD96: 759041.6034 | AE96: 769314.273 | AF96: 779725.9703 | AG96: 790278.5768 | AH96: 800973.9994 | AI96: 811814.1711 | AJ96: 822801.0509 | AK96: 833936.6241 | AL96: 845222.9034 | AM96: 856661.9281 | AN96: 868255.7656 | AO96: =AO74*number_of_victims_accident_Fatality*AccidentCost_Fatality -> 880006.511
A97: Serious Injury | B97: $/year | D97: =D75*number_of_victims_accident_incapacitating*AccidentCost_IncapacitatingInjury -> 1315874.905 | E97: 1333683.611 | F97: 1351733.334 | G97: 1370027.338 | H97: 1388568.928 | I97: 1407361.455 | J97: 1426408.316 | K97: 1445712.951 | L97: 805903.3677 | M97: 816810.2521 | N97: 827864.7475 | O97: 839068.8515 | P97: 850424.589 | Q97: 861934.012 | R97: 873599.2005 | S97: 885422.2626 | T97: 897405.3349 | U97: 909550.5829 | V97: 921860.2016 | W97: 934336.4154 | X97: 946981.479 | Y97: 959797.6776 | Z97: 972787.3272 | AA97: 985952.7754 | AB97: 999296.4012 | AC97: 1012820.616 | AD97: 1026527.864 | AE97: 1040420.623 | AF97: 1054501.402 | AG97: 1068772.747 | AH97: 1083237.237 | AI97: 1097897.485 | AJ97: 1112756.141 | AK97: 1127815.89 | AL97: 1143079.454 | AM97: 1158549.592 | AN97: 1174229.097 | AO97: =AO75*number_of_victims_accident_incapacitating*AccidentCost_IncapacitatingInjury -> 1190120.806
A98: Non-Incapacitating Injury | B98: $/year | D98: =D76*number_of_victims_accident_nonincapacitating*AccidentCost_NonIncapacitating_Injury -> 2524331.451 | E98: 2558495.09 | F98: 2593121.09 | G98: 2628215.71 | H98: 2663785.291 | I98: 2699836.261 | J98: 2736375.136 | K98: 2773408.518 | L98: 1546018.705 | M98: 1566942.116 | N98: 1588148.699 | O98: 1609642.287 | P98: 1631426.763 | Q98: 1653506.064 | R98: 1675884.18 | S98: 1698565.157 | T98: 1721553.091 | U98: 1744852.139 | V98: 1768466.509 | W98: 1792400.47 | X98: 1816658.347 | Y98: 1841244.524 | Z98: 1866163.444 | AA98: 1891419.61 | AB98: 1917017.586 | AC98: 1942961.998 | AD98: 1969257.536 | AE98: 1995908.95 | AF98: 2022921.057 | AG98: 2050298.74 | AH98: 2078046.944 | AI98: 2106170.686 | AJ98: 2134675.046 | AK98: 2163565.178 | AL98: 2192846.3 | AM98: 2222523.706 | AN98: 2252602.758 | AO98: =AO76*number_of_victims_accident_nonincapacitating*AccidentCost_NonIncapacitating_Injury -> 2283088.892
A99: Possible Injury | B99: $/year | D99: =D77*number_of_victims_accident_possibleInjry*AccidentCost_PossibleInjury -> 265189.0753 | E99: 268778.0746 | F99: 272415.6464 | G99: 276102.4482 | H99: 279839.1462 | I99: 283626.4157 | J99: 287464.9411 | K99: 291355.4161 | L99: 162414.1991 | M99: 164612.2702 | N99: 166840.0894 | O99: 169098.0594 | P99: 171386.5881 | Q99: 173706.0891 | R99: 176056.9817 | S99: 178439.6907 | T99: 180854.6466 | U99: 183302.2858 | V99: 185783.0508 | W99: 188297.3898 | X99: 190845.7572 | Y99: 193428.6136 | Z99: 196046.4256 | AA99: 198699.6665 | AB99: 201388.8156 | AC99: 204114.3589 | AD99: 206876.789 | AE99: 209676.6051 | AF99: 212514.3132 | AG99: 215390.4261 | AH99: 218305.4635 | AI99: 221259.9523 | AJ99: 224254.4264 | AK99: 227289.4269 | AL99: 230365.5023 | AM99: 233483.2085 | AN99: 236643.1089 | AO99: =AO77*number_of_victims_accident_possibleInjry*AccidentCost_PossibleInjury -> 239845.7746
A100: Property Damage Only (PDO) | B100: $/year | D100: =D78*number_of_victims_accident_PDO*AccidentCost_PDO -> 305987.4569 | E100: 310128.6108 | F100: 314325.81 | G100: 318579.8129 | H100: 322891.3884 | I100: 327261.3156 | J100: 331690.3843 | K100: 336179.3948 | L100: 187401.0372 | M100: 189937.2736 | N100: 192507.8347 | O100: 195113.1852 | P100: 197753.7958 | Q100: 200430.1437 | R100: 203142.7126 | S100: 205891.9927 | T100: 208678.4809 | U100: 211502.6806 | V100: 214365.1023 | W100: 217266.2633 | X100: 220206.6879 | Y100: 223186.9073 | Z100: 226207.4603 | AA100: 229268.8927 | AB100: 232371.7576 | AC100: 235516.6159 | AD100: 238704.036 | AE100: 241934.5937 | AF100: 245208.8729 | AG100: 248527.4654 | AH100: 251890.9708 | AI100: 255299.997 | AJ100: 258755.1601 | AK100: 262257.0845 | AL100: 265806.403 | AM100: 269403.757 | AN100: 273049.7967 | AO100: =AO78*number_of_victims_accident_PDO*AccidentCost_PDO -> 276745.1809
A102: Total Cost | B102: $/year | D102: =SUM(D82:D86,D89:D93,D96:D100) -> 23290357.43 | E102: =SUM(E82:E86,E89:E93,E96:E100) -> 23605563.01 | F102: =SUM(F82:F86,F89:F93,F96:F100) -> 23925034.5 | G102: 24248829.63 | H102: 24577006.92 | I102: 24909625.68 | J102: 25246746.01 | K102: 25588428.84 | L102: 19153557.21 | M102: 19412776.42 | N102: 19675503.83 | O102: 19941786.93 | P102: 20211673.84 | Q102: 20485213.32 | R102: 20762454.82 | S102: 21043448.43 | T102: 21328244.93 | U102: 21616895.8 | V102: 21909453.19 | W102: 22205969.97 | X102: 22506499.73 | Y102: 22811096.79 | Z102: 23119816.18 | AA102: 23432713.7 | AB102: 23749845.89 | AC102: 24071270.07 | AD102: 24397044.31 | AE102: 24727227.5 | AF102: 25061879.3 | AG102: 25401060.2 | AH102: 25744831.47 | AI102: 26093255.26 | AJ102: 26446394.52 | AK102: 26804313.08 | AL102: 27167075.61 | AM102: 27534747.67 | AN102: 27907395.71 | AO102: =SUM(AO82:AO86,AO89:AO93,AO96:AO100) -> 28285087.08
A104: No Build Less Build | B104: Unit | D104: =Base.Year -> 2019 | E104: =D104+1 -> 2020 | F104: =E104+1 -> 2021 | G104: =F104+1 -> 2022 | H104: =G104+1 -> 2023 | I104: =H104+1 -> 2024 | J104: =I104+1 -> 2025 | K104: =J104+1 -> 2026 | L104: 2027 | M104: =L104+1 -> 2028 | N104: =M104+1 -> 2029 | O104: =N104+1 -> 2030 | P104: =O104+1 -> 2031 | Q104: =P104+1 -> 2032 | R104: =Q104+1 -> 2033 | S104: =R104+1 -> 2034 | T104: =S104+1 -> 2035 | U104: =T104+1 -> 2036 | V104: =U104+1 -> 2037 | W104: =V104+1 -> 2038 | X104: =W104+1 -> 2039 | Y104: =X104+1 -> 2040 | Z104: =Y104+1 -> 2041 | AA104: =Z104+1 -> 2042 | AB104: =AA104+1 -> 2043 | AC104: =AB104+1 -> 2044 | AD104: =AC104+1 -> 2045 | AE104: =AD104+1 -> 2046 | AF104: =AE104+1 -> 2047 | AG104: =AF104+1 -> 2048 | AH104: =AG104+1 -> 2049 | AI104: =AH104+1 -> 2050 | AJ104: =AI104+1 -> 2051 | AK104: =AJ104+1 -> 2052 | AL104: =AK104+1 -> 2053 | AM104: =AL104+1 -> 2054 | AN104: =AM104+1 -> 2055 | AO104: 2056
A105: Undiscounted Impacts | B105: $/year | D105: =D54-D102 -> 0 | E105: =E54-E102 -> 0 | F105: =F54-F102 -> 0 | G105: 0 | H105: 0 | I105: 0 | J105: 0 | K105: =K54-K102 -> 0 | L105: 6781178.707 | M105: 6872953.398 | N105: 6965970.144 | O105: 7060245.754 | P105: 7155797.265 | Q105: 7252641.946 | R105: 7350797.296 | S105: 7450281.056 | T105: 7551111.203 | U105: 7653305.958 | V105: 7756883.791 | W105: 7861863.418 | X105: 7968263.812 | Y105: 8076104.202 | Z105: 8185404.075 | AA105: 8296183.183 | AB105: =AB54-AB102 -> 8408461.547 | AC105: 8522259.457 | AD105: 8637597.478 | AE105: 8754496.453 | AF105: 8872977.508 | AG105: =AG54-AG102 -> 8993062.055 | AH105: 9114771.794 | AI105: =AI54-AI102 -> 9238128.721 | AJ105: 9363155.129 | AK105: 9489873.611 | AL105: 9618307.067 | AM105: 9748478.709 | AN105: 9880412.059 | AO105: =AO54-AO102 -> 10014130.96
A106: Discounted Impacts, at 7% | B106: $/year | D106: =D105*D6 -> 0 | E106: 0 | F106: 0 | G106: 0 | H106: 0 | I106: 0 | J106: 0 | K106: 0 | L106: 3946707.747 | M106: 3738431.264 | N106: 3541145.992 | O106: 3354271.898 | P106: 3177259.564 | Q106: 3009588.561 | R106: 2850765.927 | S106: 2700324.714 | T106: 2557822.616 | U106: 2422840.669 | V106: 2294982.017 | W106: 2173870.748 | X106: 2059150.789 | Y106: 1950484.855 | Z106: 1847553.462 | AA106: 1750053.986 | AB106: 1657699.773 | AC106: 1570219.296 | AD106: 1487355.356 | AE106: 1408864.33 | AF106: 1334515.448 | AG106: 1264090.121 | AH106: 1197381.294 | AI106: 1134192.839 | AJ106: 1074338.979 | AK106: 1017643.739 | AL106: 963940.4314 | AM106: 913071.1663 | AN106: 864886.3847 | AO106: =AO105*AO6 -> 819244.4204
A107: Discounted Impacts, at 3% | B107: $/year | D107: =D105*D7 -> 0 | E107: 0 | F107: 0 | G107: 0 | H107: 0 | I107: 0 | J107: 0 | K107: 0 | L107: 5353125.09 | M107: 5267546.485 | N107: 5183335.995 | O107: 5100471.751 | P107: 5018932.228 | Q107: 4938696.251 | R107: 4859742.98 | S107: 4782051.907 | T107: 4705602.856 | U107: 4630375.97 | V107: 4556351.711 | W107: 4483510.852 | X107: 4411834.476 | Y107: 4341303.966 | Z107: 4271901.003 | AA107: 4203607.562 | AB107: 4136405.906 | AC107: 4070278.579 | AD107: 4005208.408 | AE107: 3941178.492 | AF107: 3878172.2 | AG107: 3816173.169 | AH107: 3755165.295 | AI107: 3695132.734 | AJ107: 3636059.893 | AK107: 3577931.429 | AL107: 3520732.246 | AM107: 3464447.487 | AN107: 3409062.533 | AO107: =AO105*AO7 -> 3354563
A109: Key Quantified Impacts
A110: Total Accident Costs Saving | B110: $/year | D110: =D105 -> 0 | E110: =E105 -> 0 | F110: =F105 -> 0 | G110: =G105 -> 0 | H110: 0 | I110: 0 | J110: 0 | K110: 0 | L110: 6781178.707 | M110: 6872953.398 | N110: 6965970.144 | O110: 7060245.754 | P110: 7155797.265 | Q110: 7252641.946 | R110: 7350797.296 | S110: 7450281.056 | T110: 7551111.203 | U110: 7653305.958 | V110: 7756883.791 | W110: 7861863.418 | X110: 7968263.812 | Y110: 8076104.202 | Z110: 8185404.075 | AA110: 8296183.183 | AB110: =AB105 -> 8408461.547 | AC110: 8522259.457 | AD110: 8637597.478 | AE110: 8754496.453 | AF110: 8872977.508 | AG110: =AG105 -> 8993062.055 | AH110: 9114771.794 | AI110: =AI105 -> 9238128.721 | AJ110: 9363155.129 | AK110: 9489873.611 | AL110: 9618307.067 | AM110: 9748478.709 | AN110: 9880412.059 | AO110: =AO105 -> 10014130.96

Sheet Travel Time Savings
A2: Travel Time Savings
B4: Unit | C4: Value | D4: 2019 | E4: =D4+1 -> 2020 | F4: =E4+1 -> 2021 | G4: 2022 | H4: 2023 | I4: 2024 | J4: 2025 | K4: 2026 | L4: 2027 | M4: 2028 | N4: 2029 | O4: 2030 | P4: 2031 | Q4: 2032 | R4: 2033 | S4: 2034 | T4: 2035 | U4: 2036 | V4: 2037 | W4: 2038 | X4: 2039 | Y4: 2040 | Z4: 2041 | AA4: 2042 | AB4: 2043 | AC4: 2044 | AD4: 2045 | AE4: 2046 | AF4: 2047 | AG4: 2048 | AH4: 2049 | AI4: 2050 | AJ4: 2051 | AK4: 2052 | AL4: 2053 | AM4: 2054 | AN4: 2055 | AO4: 2056
A5: Benefits Index | B5: Number | D5: 0 | E5: 0 | F5: 0 | G5: 0 | H5: 0 | I5: 0 | J5: 0 | K5: 0 | L5: 1 | M5: =L5+1 -> 2 | N5: =M5+1 -> 3 | O5: =N5+1 -> 4 | P5: =O5+1 -> 5 | Q5: 6 | R5: 7 | S5: 8 | T5: 9 | U5: 10 | V5: 11 | W5: =V5+1 -> 12 | X5: 13 | Y5: 14 | Z5: 15 | AA5: 16 | AB5: =AA5+1 -> 17 | AC5: =AB5+1 -> 18 | AD5: =AC5+1 -> 19 | AE5: =AD5+1 -> 20 | AF5: =AE5+1 -> 21 | AG5: =AF5+1 -> 22 | AH5: =AG5+1 -> 23 | AI5: =AH5+1 -> 24 | AJ5: =AI5+1 -> 25 | AK5: =AJ5+1 -> 26 | AL5: =AK5+1 -> 27 | AM5: =AL5+1 -> 28 | AN5: =AM5+1 -> 29 | AO5: 30
A6: Discount Factor | B6: % | C6: 0.07 | D6: =1/(1+Real_discount_rate)^(D4-$D$4) -> 1 | E6: 0.9345794393 | F6: 0.8734387283 | G6: 0.8162978769 | H6: 0.762895212 | I6: 0.7129861795 | J6: 0.6663422238 | K6: 0.6227497419 | L6: 0.5820091046 | M6: 0.5439337426 | N6: 0.5083492921 | O6: 0.4750927964 | P6: 0.4440119592 | Q6: 0.4149644479 | R6: 0.387817241 | S6: 0.3624460196 | T6: 0.3387345978 | U6: 0.3165743905 | V6: 0.2958639163 | W6: 0.276508333 | X6: 0.2584190028 | Y6: 0.2415130867 | Z6: 0.2257131652 | AA6: 0.2109468833 | AB6: 0.1971466199 | AC6: 0.1842491775 | AD6: 0.172195493 | AE6: 0.1609303673 | AF6: 0.1504022124 | AG6: =1/(1+Real_discount_rate)^(AG4-$D$4) -> 0.1405628154 | AH6: 0.1313671172 | AI6: =1/(1+Real_discount_rate)^(AI4-$D$4) -> 0.1227730067 | AJ6: 0.1147411277 | AK6: 0.1072346988 | AL6: 0.1002193447 | AM6: 0.09366293897 | AN6: 0.08753545698 | AO6: =1/(1+Real_discount_rate)^(AO4-$D$4) -> 0.0818088383
A7: Discount Factor | B7: % | C7: 0.03 | D7: =1/(1+Real_discount_rate_Sensitivity)^(D4-$D$4) -> 1 | E7: 0.9708737864 | F7: 0.9425959091 | G7: 0.9151416594 | H7: 0.8884870479 | I7: 0.8626087844 | J7: 0.8374842567 | K7: 0.8130915113 | L7: 0.7894092343 | M7: 0.7664167323 | N7: 0.7440939149 | O7: 0.7224212766 | P7: 0.7013798802 | Q7: 0.68095134 | R7: 0.6611178058 | S7: 0.6418619474 | T7: 0.6231669392 | U7: 0.6050164458 | V7: 0.5873946076 | W7: 0.5702860268 | X7: 0.5536757542 | Y7: 0.5375492759 | Z7: 0.5218925009 | AA7: 0.5066917484 | AB7: 0.4919337363 | AC7: 0.4776055693 | AD7: 0.4636947274 | AE7: 0.4501890558 | AF7: 0.4370767532 | AG7: =1/(1+Real_discount_rate_Sensitivity)^(AG4-$D$4) -> 0.4243463623 | AH7: 0.4119867595 | AI7: =1/(1+Real_discount_rate_Sensitivity)^(AI4-$D$4) -> 0.3999871452 | AJ7: 0.3883370341 | AK7: 0.3770262467 | AL7: 0.3660448997 | AM7: 0.3553833978 | AN7: 0.3450324251 | AO7: =1/(1+Real_discount_rate_Sensitivity)^(AO4-$D$4) -> 0.3349829369
A9: Share of Traffic - Auto | B9: =1-ShareTruck -> 0.87
A10: Share of Traffic - Trucks | B10: =ShareTruck -> 0.13
A12: No Build Case Alternative | B12: Unit | D12: =Base.Year -> 2019 | E12: =D12+1 -> 2020 | F12: =E12+1 -> 2021 | G12: 2022 | H12: 2023 | I12: 2024 | J12: 2025 | K12: 2026 | L12: 2027 | M12: 2028 | N12: 2029 | O12: 2030 | P12: 2031 | Q12: 2032 | R12: 2033 | S12: 2034 | T12: 2035 | U12: 2036 | V12: 2037 | W12: 2038 | X12: 2039 | Y12: 2040 | Z12: 2041 | AA12: 2042 | AB12: 2043 | AC12: 2044 | AD12: 2045 | AE12: 2046 | AF12: 2047 | AG12: 2048 | AH12: 2049 | AI12: 2050 | AJ12: 2051 | AK12: 2052 | AL12: 2053 | AM12: 2054 | AN12: 2055 | AO12: 2056
A14: Average Annual Travel Time - West of Industrial | B14: hours/year | D14: ='Traffic Projection'!W99*(1+'Traffic Projection'!W111)^(2019-2015) -> 80927.93512 | E14: =D14*(1+'Traffic Projection'!$W$111) -> 83003.05133 | F14: =E14*(1+'Traffic Projection'!$W$111) -> 85131.3767 | G14: =F14*(1+'Traffic Projection'!$W$111) -> 87314.27559 | H14: =G14*(1+'Traffic Projection'!$W$111) -> 89553.14735 | I14: =H14*(1+'Traffic Projection'!$W$111) -> 91849.42722 | J14: =I14*(1+'Traffic Projection'!$W$111) -> 94204.58721 | K14: =J14*(1+'Traffic Projection'!$W$111) -> 96620.13712 | L14: =K14*(1+'Traffic Projection'!$W$111) -> 99097.62542 | M14: =L14*(1+'Traffic Projection'!$W$111) -> 101638.6403 | N14: =M14*(1+'Traffic Projection'!$W$111) -> 104244.8107 | O14: =N14*(1+'Traffic Projection'!$W$111) -> 106917.8073 | P14: =O14*(1+'Traffic Projection'!$W$111) -> 109659.3437 | Q14: =P14*(1+'Traffic Projection'!$W$111) -> 112471.1772 | R14: =Q14*(1+'Traffic Projection'!$W$111) -> 115355.1105 | S14: =R14*(1+'Traffic Projection'!$W$111) -> 118312.9922 | T14: =S14*(1+'Traffic Projection'!$W$111) -> 121346.7185 | U14: =T14*(1+'Traffic Projection'!$W$111) -> 124458.2342 | V14: =U14*(1+'Traffic Projection'!$W$111) -> 127649.534 | W14: =V14*(1+'Traffic Projection'!$W$111) -> 130922.6636 | X14: =W14*(1+'Traffic Projection'!$W$111) -> 134279.7212 | Y14: =X14*(1+'Traffic Projection'!$W$111) -> 137722.8589 | Z14: =Y14*(1+'Traffic Projection'!$W$111) -> 141254.284 | AA14: =Z14*(1+'Traffic Projection'!$W$111) -> 144876.2601 | AB14: =AA14*(1+'Traffic Projection'!$W$111) -> 148591.1094 | AC14: =AB14*(1+'Traffic Projection'!$W$111) -> 152401.213 | AD14: =AC14*(1+'Traffic Projection'!$W$111) -> 156309.0135 | AE14: =AD14*(1+'Traffic Projection'!$W$111) -> 160317.016 | AF14: =AE14*(1+'Traffic Projection'!$W$111) -> 164427.7899 | AG14: =AF14*(1+'Traffic Projection'!$W$111) -> 168643.9703 | AH14: =AG14*(1+'Traffic Projection'!$W$111) -> 172968.26 | AI14: =AH14*(1+'Traffic Projection'!$W$111) -> 177403.4311 | AJ14: =AI14*(1+'Traffic Projection'!$W$111) -> 181952.3268 | AK14: =AJ14*(1+'Traffic Projection'!$W$111) -> 186617.8631 | AL14: =AK14*(1+'Traffic Projection'!$W$111) -> 191403.031 | AM14: =AL14*(1+'Traffic Projection'!$W$111) -> 196310.8978 | AN14: =AM14*(1+'Traffic Projection'!$W$111) -> 201344.6099 | AO14: =AN14*(1+'Traffic Projection'!$W$111) -> 206507.3941
A15: Average Annual Travel Time - Auto | B15: hours/year | D15: =D14*(1-ShareTruck) -> 70407.30356 | E15: 72212.65466 | F15: 74064.29773 | G15: 75963.41977 | H15: 77911.2382 | I15: 79909.00168 | J15: 81957.99087 | K15: 84059.51929 | L15: 86214.93412 | M15: 88425.61708 | N15: 90692.98534 | O15: 93018.49239 | P15: 95403.62901 | Q15: 97849.92418 | R15: 100358.9461 | S15: 102932.3032 | T15: 105571.6451 | U15: 108278.6638 | V15: 111055.0946 | W15: 113902.7173 | X15: 116823.3574 | Y15: 119818.8873 | Z15: 122891.227 | AA15: 126042.3463 | AB15: 129274.2651 | AC15: 132589.0553 | AD15: 135988.8418 | AE15: 139475.804 | AF15: 143052.1772 | AG15: 146720.2541 | AH15: 150482.3862 | AI15: 154340.985 | AJ15: 158298.5243 | AK15: 162357.5409 | AL15: 166520.6369 | AM15: 170790.4811 | AN15: 175169.8106 | AO15: =AO14*(1-ShareTruck) -> 179661.4329
A16: Average Annual Travel Time - Truck | B16: hours/year | D16: =D14*(ShareTruck) -> 10520.63157 | E16: 10790.39667 | F16: =F14*(ShareTruck) -> 11067.07897 | G16: 11350.85583 | H16: 11641.90916 | I16: 11940.42554 | J16: 12246.59634 | K16: 12560.61783 | L16: 12882.6913 | M16: 13213.02324 | N16: 13551.8254 | O16: 13899.31496 | P16: 14255.71468 | Q16: 14621.25304 | R16: 14996.16436 | S16: 15380.68898 | T16: 15775.07341 | U16: 16179.57045 | V16: 16594.43942 | W16: 17019.94626 | X16: 17456.36375 | Y16: 17903.97166 | Z16: 18363.05691 | AA16: 18833.91382 | AB16: 19316.84422 | AC16: 19812.15769 | AD16: 20320.17176 | AE16: 20841.21209 | AF16: 21375.61268 | AG16: 21923.71613 | AH16: 22485.8738 | AI16: 23062.44604 | AJ16: 23653.80248 | AK16: 24260.3222 | AL16: 24882.39402 | AM16: 25520.41672 | AN16: 26174.79929 | AO16: =AO14*(ShareTruck) -> 26845.96124
A18: Average Annual Travel Time - Douglas to Anderson | B18: hours/year | D18: ='Traffic Projection'!W123*(1+'Traffic Projection'!W136)^(2019-2015) -> 309174.8781 | E18: =D18*(1+'Traffic Projection'!$W$136) -> 316843.4482 | F18: =E18*(1+'Traffic Projection'!$W$136) -> 324702.2244 | G18: =F18*(1+'Traffic Projection'!$W$136) -> 332755.9246 | H18: =G18*(1+'Traffic Projection'!$W$136) -> 341009.3834 | I18: =H18*(1+'Traffic Projection'!$W$136) -> 349467.5556 | J18: =I18*(1+'Traffic Projection'!$W$136) -> 358135.5187 | K18: =J18*(1+'Traffic Projection'!$W$136) -> 367018.4763 | L18: =K18*(1+'Traffic Projection'!$W$136) -> 376121.7609 | M18: =L18*(1+'Traffic Projection'!$W$136) -> 385450.8374 | N18: =M18*(1+'Traffic Projection'!$W$136) -> 395011.3061 | O18: =N18*(1+'Traffic Projection'!$W$136) -> 404808.9064 | P18: =O18*(1+'Traffic Projection'!$W$136) -> 414849.52 | Q18: =P18*(1+'Traffic Projection'!$W$136) -> 425139.1743 | R18: =Q18*(1+'Traffic Projection'!$W$136) -> 435684.0464 | S18: =R18*(1+'Traffic Projection'!$W$136) -> 446490.4666 | T18: =S18*(1+'Traffic Projection'!$W$136) -> 457564.9221 | U18: =T18*(1+'Traffic Projection'!$W$136) -> 468914.0611 | V18: =U18*(1+'Traffic Projection'!$W$136) -> 480544.6967 | W18: =V18*(1+'Traffic Projection'!$W$136) -> 492463.8109 | X18: =W18*(1+'Traffic Projection'!$W$136) -> 504678.559 | Y18: =X18*(1+'Traffic Projection'!$W$136) -> 517196.2736 | Z18: =Y18*(1+'Traffic Projection'!$W$136) -> 530024.4694 | AA18: =Z18*(1+'Traffic Projection'!$W$136) -> 543170.8473 | AB18: =AA18*(1+'Traffic Projection'!$W$136) -> 556643.2993 | AC18: =AB18*(1+'Traffic Projection'!$W$136) -> 570449.9132 | AD18: =AC18*(1+'Traffic Projection'!$W$136) -> 584598.9772 | AE18: =AD18*(1+'Traffic Projection'!$W$136) -> 599098.9852 | AF18: =AE18*(1+'Traffic Projection'!$W$136) -> 613958.642 | AG18: =AF18*(1+'Traffic Projection'!$W$136) -> 629186.8678 | AH18: =AG18*(1+'Traffic Projection'!$W$136) -> 644792.8045 | AI18: =AH18*(1+'Traffic Projection'!$W$136) -> 660785.8207 | AJ18: =AI18*(1+'Traffic Projection'!$W$136) -> 677175.517 | AK18: =AJ18*(1+'Traffic Projection'!$W$136) -> 693971.7326 | AL18: =AK18*(1+'Traffic Projection'!$W$136) -> 711184.5505 | AM18: =AL18*(1+'Traffic Projection'!$W$136) -> 728824.3037 | AN18: =AM18*(1+'Traffic Projection'!$W$136) -> 746901.5818 | AO18: =AN18*(1+'Traffic Projection'!$W$136) -> 765427.2368
A19: Average Annual Travel Time - Auto | B19: hours/year | D19: =D18*(1-ShareTruck) -> 268982.144 | E19: 275653.7999 | F19: 282490.9353 | G19: 289497.6544 | H19: 296678.1636 | I19: 304036.7734 | J19: 311577.9013 | K19: 319306.0744 | L19: 327225.932 | M19: 335342.2285 | N19: 343659.8363 | O19: 352183.7486 | P19: 360919.0824 | Q19: 369871.0816 | R19: 379045.1204 | S19: 388446.7059 | T19: 398081.4822 | U19: 407955.2332 | V19: 418073.8861 | W19: 428443.5155 | X19: 439070.3463 | Y19: 449960.7581 | Z19: 461121.2884 | AA19: 472558.6372 | AB19: =AB18*(1-ShareTruck) -> 484279.6704 | AC19: =AC18*(1-ShareTruck) -> 496291.4245 | AD19: =AD18*(1-ShareTruck) -> 508601.1101 | AE19: =AE18*(1-ShareTruck) -> 521216.1172 | AF19: =AF18*(1-ShareTruck) -> 534144.0185 | AG19: 547392.575 | AH19: 560969.74 | AI19: =AI18*(1-ShareTruck) -> 574883.664 | AJ19: 589142.6998 | AK19: 603755.4074 | AL19: 618730.5589 | AM19: 634077.1443 | AN19: 649804.3762 | AO19: =AO18*(1-ShareTruck) -> 665921.696
A20: Average Annual Travel Time - Truck | B20: hours/year | D20: =D18*(ShareTruck) -> 40192.73416 | E20: =E18*(ShareTruck) -> 41189.64827 | F20: 42211.28918 | G20: 43258.2702 | H20: 44331.21985 | I20: 45430.78223 | J20: 46557.61744 | K20: 47712.40192 | L20: 48895.82892 | M20: 50108.60886 | N20: 51351.4698 | O20: 52625.15784 | P20: 53930.4376 | Q20: 55268.09266 | R20: 56638.92603 | S20: 58043.76066 | T20: 59483.43987 | U20: 60958.82795 | V20: 62470.81057 | W20: 64020.29542 | X20: 65608.21267 | Y20: 67235.51557 | Z20: 68903.18102 | AA20: 70612.21015 | AB20: =AB18*(ShareTruck) -> 72363.62891 | AC20: 74158.48871 | AD20: 75997.86703 | AE20: 77882.86808 | AF20: 79814.62345 | AG20: =AG18*(ShareTruck) -> 81794.29281 | AH20: 83823.06459 | AI20: =AI18*(ShareTruck) -> 85902.15669 | AJ20: 88032.81721 | AK20: 90216.32524 | AL20: 92453.99156 | AM20: 94747.15949 | AN20: 97097.20564 | AO20: =AO18*(ShareTruck) -> 99505.54079
A22: Average Annual Travel Time - Anderson to I240 | B22: hours/year | D22: ='Traffic Projection'!W148*(1+'Traffic Projection'!W161)^(2019-2015) -> 127156.5401 | E22: =D22*(1+'Traffic Projection'!$W$161) -> 130231.829 | F22: =E22*(1+'Traffic Projection'!$W$161) -> 133381.494 | G22: =F22*(1+'Traffic Projection'!$W$161) -> 136607.3339 | H22: =G22*(1+'Traffic Projection'!$W$161) -> 139911.1909 | I22: =H22*(1+'Traffic Projection'!$W$161) -> 143294.9519 | J22: =I22*(1+'Traffic Projection'!$W$161) -> 146760.5493 | K22: =J22*(1+'Traffic Projection'!$W$161) -> 150309.9624 | L22: =K22*(1+'Traffic Projection'!$W$161) -> 153945.2184 | M22: =L22*(1+'Traffic Projection'!$W$161) -> 157668.3932 | N22: =M22*(1+'Traffic Projection'!$W$161) -> 161481.6132 | O22: =N22*(1+'Traffic Projection'!$W$161) -> 165387.0562 | P22: =O22*(1+'Traffic Projection'!$W$161) -> 169386.9526 | Q22: =P22*(1+'Traffic Projection'!$W$161) -> 173483.5867 | R22: =Q22*(1+'Traffic Projection'!$W$161) -> 177679.2982 | S22: =R22*(1+'Traffic Projection'!$W$161) -> 181976.4832 | T22: =S22*(1+'Traffic Projection'!$W$161) -> 186377.596 | U22: =T22*(1+'Traffic Projection'!$W$161) -> 190885.1499 | V22: =U22*(1+'Traffic Projection'!$W$161) -> 195501.7193 | W22: =V22*(1+'Traffic Projection'!$W$161) -> 200229.9407 | X22: =W22*(1+'Traffic Projection'!$W$161) -> 205072.5144 | Y22: =X22*(1+'Traffic Projection'!$W$161) -> 210032.2061 | Z22: =Y22*(1+'Traffic Projection'!$W$161) -> 215111.8483 | AA22: =Z22*(1+'Traffic Projection'!$W$161) -> 220314.3419 | AB22: =AA22*(1+'Traffic Projection'!$W$161) -> 225642.6581 | AC22: =AB22*(1+'Traffic Projection'!$W$161) -> 231099.8401 | AD22: =AC22*(1+'Traffic Projection'!$W$161) -> 236689.0043 | AE22: =AD22*(1+'Traffic Projection'!$W$161) -> 242413.3428 | AF22: =AE22*(1+'Traffic Projection'!$W$161) -> 248276.1247 | AG22: =AF22*(1+'Traffic Projection'!$W$161) -> 254280.6985 | AH22: =AG22*(1+'Traffic Projection'!$W$161) -> 260430.4932 | AI22: =AH22*(1+'Traffic Projection'!$W$161) -> 266729.0211 | AJ22: =AI22*(1+'Traffic Projection'!$W$161) -> 273179.8793 | AK22: =AJ22*(1+'Traffic Projection'!$W$161) -> 279786.7519 | AL22: =AK22*(1+'Traffic Projection'!$W$161) -> 286553.4122 | AM22: =AL22*(1+'Traffic Projection'!$W$161) -> 293483.7245 | AN22: =AM22*(1+'Traffic Projection'!$W$161) -> 300581.6469 | AO22: =AN22*(1+'Traffic Projection'!$W$161) -> 307851.233
A23: Average Annual Travel Time - Auto | B23: hours/year | D23: =D22*(1-ShareTruck) -> 110626.1899 | E23: 113301.6913 | F23: 116041.8998 | G23: 118848.3805 | H23: 121722.7361 | I23: 124666.6081 | J23: 127681.6779 | K23: 130769.6673 | L23: 133932.34 | M23: 137171.5021 | N23: 140489.0035 | O23: 143886.7389 | P23: 147366.6488 | Q23: 150930.7205 | R23: 154580.9894 | S23: 158319.5404 | T23: 162148.5085 | U23: 166070.0804 | V23: 170086.4958 | W23: 174200.0484 | X23: 178413.0876 | Y23: 182728.0193 | Z23: 187147.308 | AA23: 191673.4774 | AB23: =AB22*(1-ShareTruck) -> 196309.1126 | AC23: =AC22*(1-ShareTruck) -> 201056.8609 | AD23: =AD22*(1-ShareTruck) -> 205919.4337 | AE23: =AE22*(1-ShareTruck) -> 210899.6082 | AF23: =AF22*(1-ShareTruck) -> 216000.2285 | AG23: 221224.2077 | AH23: 226574.5291 | AI23: =AI22*(1-ShareTruck) -> 232054.2484 | AJ23: 237666.495 | AK23: 243414.4742 | AL23: 249301.4686 | AM23: 255330.8403 | AN23: 261506.0328 | AO23: =AO22*(1-ShareTruck) -> 267830.5727
A24: Average Annual Travel Time - Truck | B24: hours/year | D24: =D22*(ShareTruck) -> 16530.35021 | E24: 16930.13778 | F24: =F22*(ShareTruck) -> 17339.59423 | G24: 17758.95341 | H24: 18188.45481 | I24: 18628.34374 | J24: 19078.87141 | K24: 19540.29512 | L24: 20012.87839 | M24: 20496.89111 | N24: 20992.60972 | O24: 21500.31731 | P24: 22020.30384 | Q24: 22552.86627 | R24: 23098.30877 | S24: 23656.94282 | T24: 24229.08748 | U24: 24815.06949 | V24: 25415.22351 | W24: 26029.89229 | X24: 26659.42688 | Y24: 27304.1868 | Z24: 27964.54028 | AA24: 28640.86445 | AB24: =AB22*(ShareTruck) -> 29333.54556 | AC24: 30042.97921 | AD24: 30769.57055 | AE24: 31513.73456 | AF24: 32275.89622 | AG24: =AG22*(ShareTruck) -> 33056.4908 | AH24: 33855.96412 | AI24: =AI22*(ShareTruck) -> 34674.77274 | AJ24: 35513.38431 | AK24: 36372.27775 | AL24: 37251.94358 | AM24: 38152.88419 | AN24: 39075.6141 | AO24: =AO22*(ShareTruck) -> 40020.66029
A26: Average Annual Travel Costs - West of Industrial | B26: $/year | D26: =SUM(D27:D28) -> 2040125.265 | E26: =SUM(E27:E28) -> 2092437.202 | F26: 2146090.496 | G26: 2201119.544 | H26: 2257559.62 | I26: 2315446.907 | J26: 2374818.512 | K26: 2435712.496 | L26: 2498167.895 | M26: 2562224.746 | N26: 2627924.113 | O26: 2695308.112 | P26: 2764419.941 | Q26: 2835303.902 | R26: 2908005.437 | S26: 2982571.15 | T26: 3059048.843 | U26: 3137487.54 | V26: 3217937.527 | W26: 3300450.373 | X26: 3385078.976 | Y26: 3471877.586 | Z26: 3560901.845 | AA26: 3652208.822 | AB26: 3745857.05 | AC26: 3841906.563 | AD26: 3940418.931 | AE26: 4041457.308 | AF26: 4145086.464 | AG26: 4251372.829 | AH26: 4360384.54 | AI26: 4472191.479 | AJ26: 4586865.318 | AK26: 4704479.57 | AL26: 4825109.632 | AM26: 4948832.833 | AN26: 5075728.487 | AO26: =SUM(AO27:AO28) -> 5205877.94
A27: Average Annual Travel Costs - Auto | B27: $/year | D27: =D15*timevalue_auto*Avg_Veh_Occ -> 1729766.634 | E27: =E15*timevalue_auto*Avg_Veh_Occ -> 1774120.5 | F27: 1819611.667 | G27: 1866269.297 | H27: 1914123.3 | I27: 1963204.353 | J27: 2013543.92 | K27: 2065174.27 | L27: 2118128.501 | M27: 2172440.56 | N27: 2228145.264 | O27: 2285278.321 | P27: 2343876.357 | Q27: 2403976.937 | R27: 2465618.588 | S27: 2528840.825 | T27: 2593684.177 | U27: 2660190.212 | V27: 2728401.564 | W27: 2798361.959 | X27: 2870116.245 | Y27: 2943710.422 | Z27: 3019191.666 | AA27: 3096608.365 | AB27: 3176010.146 | AC27: 3257447.911 | AD27: 3340973.864 | AE27: 3426641.552 | AF27: 3514505.889 | AG27: 3604623.203 | AH27: 3697051.263 | AI27: 3791849.32 | AJ27: 3889078.145 | AK27: 3988800.065 | AL27: 4091079.008 | AM27: 4195980.54 | AN27: 4303571.908 | AO27: =AO15*timevalue_auto*Avg_Veh_Occ -> 4413922.083
A28: Average Annual Travel Costs - Trucks | B28: $/year | D28: =D16*Avg_Truck_Occ*TimeValue_truck -> 310358.6312 | E28: 318316.7019 | F28: 326478.8297 | G28: 334850.2469 | H28: 343436.3201 | I28: 352242.5534 | J28: 361274.592 | K28: 370538.2258 | L28: 380039.3935 | M28: 389784.1856 | N28: 399778.8492 | O28: 410029.7912 | P28: 420543.583 | Q28: 431326.9646 | R28: 442386.8487 | S28: 453730.325 | T28: 465364.6655 | U28: 477297.3283 | V28: 489535.9629 | W28: 502088.4148 | X28: 514962.7308 | Y28: 528167.1639 | Z28: 541710.179 | AA28: 555600.4577 | AB28: 569846.9044 | AC28: 584458.6518 | AD28: 599445.0669 | AE28: 614815.7565 | AF28: 630580.5742 | AG28: 646749.6259 | AH28: 663333.277 | AI28: 680342.1582 | AJ28: 697787.1732 | AK28: 715679.505 | AL28: 734030.6237 | AM28: =AM16*Avg_Truck_Occ*TimeValue_truck -> 752852.2932 | AN28: 772156.5791 | AO28: =AO16*Avg_Truck_Occ*TimeValue_truck -> 791955.8565
A30: Average Annual Travel Costs - Douglas to Anderson | B30: $/year | D30: =SUM(D31:D32) -> 7794038.97 | E30: =SUM(E31:E32) -> 7987357.181 | F30: =SUM(F31:F32) -> 8185470.328 | G30: 8388497.344 | H30: 8596560.108 | I30: 8809783.524 | J30: 9028295.593 | K30: 9252227.492 | L30: 9481713.65 | M30: 9716891.832 | N30: 9957903.218 | O30: 10204892.49 | P30: 10458007.93 | Q30: 10717401.47 | R30: 10983228.84 | S30: 11255649.61 | T30: 11534827.33 | U30: 11820929.59 | V30: 12114128.15 | W30: 12414599 | X30: 12722522.54 | Y30: 13038083.61 | Z30: 13361471.65 | AA30: 13692880.8 | AB30: =SUM(AB31:AB32) -> 14032510 | AC30: 14380563.13 | AD30: 14737249.15 | AE30: 15102782.17 | AF30: 15477381.64 | AG30: =SUM(AG31:AG32) -> 15861272.42 | AH30: 16254684.98 | AI30: =SUM(AI31:AI32) -> 16657855.48 | AJ30: 17071025.96 | AK30: 17494444.44 | AL30: 17928365.12 | AM30: 18373048.49 | AN30: 18828761.48 | AO30: =SUM(AO31:AO32) -> 19295777.68
A31: Average Annual Travel Costs - Auto | B31: $/year | D31: =D19*timevalue_auto*Avg_Veh_Occ -> 6608353.313 | E31: =E19*timevalue_auto*Avg_Veh_Occ -> 6772262.557 | F31: 6940237.298 | G31: 7112378.373 | H31: 7288789.123 | I31: 7469575.448 | J31: 7654845.879 | K31: 7844711.635 | L31: 8039286.697 | M31: 8238687.87 | N31: 8443034.859 | O31: 8652450.336 | P31: 8867060.016 | Q31: 9086992.734 | R31: 9312380.517 | S31: 9543358.671 | T31: 9780065.855 | U31: 10022644.17 | V31: 10271239.23 | W31: 10526000.29 | X31: 10787080.27 | Y31: 11054635.9 | Z31: 11328827.81 | AA31: 11609820.6 | AB31: =AB19*timevalue_auto*Avg_Veh_Occ -> 11897782.94 | AC31: 12192887.72 | AD31: 12495312.07 | AE31: 12805237.57 | AF31: 13122850.25 | AG31: =AG19*timevalue_auto*Avg_Veh_Occ -> 13448340.78 | AH31: 13781904.57 | AI31: =AI19*timevalue_auto*Avg_Veh_Occ -> 14123741.86 | AJ31: 14474057.85 | AK31: 14833062.85 | AL31: 15200972.37 | AM31: 15578007.28 | AN31: 15964393.91 | AO31: =AO19*timevalue_auto*Avg_Veh_Occ -> 16360364.23
A32: Average Annual Travel Costs - Trucks | B32: $/year | D32: =D20*Avg_Truck_Occ*TimeValue_truck -> 1185685.658 | E32: =E20*Avg_Truck_Occ*TimeValue_truck -> 1215094.624 | F32: 1245233.031 | G32: 1276118.971 | H32: 1307770.985 | I32: 1340208.076 | J32: 1373449.714 | K32: 1407515.857 | L32: 1442426.953 | M32: 1478203.961 | N32: 1514868.359 | O32: 1552442.156 | P32: 1590947.909 | Q32: 1630408.733 | R32: 1670848.318 | S32: 1712290.939 | T32: 1754761.476 | U32: 1798285.424 | V32: 1842888.912 | W32: 1888598.715 | X32: 1935442.274 | Y32: 1983447.709 | Z32: 2032643.84 | AA32: 2083060.199 | AB32: =AB20*Avg_Truck_Occ*TimeValue_truck -> 2134727.053 | AC32: 2187675.417 | AD32: 2241937.077 | AE32: 2297544.608 | AF32: 2354531.392 | AG32: =AG20*Avg_Truck_Occ*TimeValue_truck -> 2412931.638 | AH32: 2472780.405 | AI32: =AI20*Avg_Truck_Occ*TimeValue_truck -> 2534113.622 | AJ32: 2596968.108 | AK32: 2661381.595 | AL32: 2727392.751 | AM32: 2795041.205 | AN32: 2864367.566 | AO32: =AO20*Avg_Truck_Occ*TimeValue_truck -> 2935413.453
A34: Average Annual Travel Costs - Anderson to I240 | B34: $/year | D34: =SUM(D35:D36) -> 3205509.565 | E34: =SUM(E35:E36) -> 3283035.016 | F34: =SUM(F35:F36) -> 3362435.425 | G34: 3443756.137 | H34: 3527043.597 | I34: 3612345.369 | J34: 3699710.169 | K34: 3789187.893 | L34: 3880829.641 | M34: 3974687.751 | N34: 4070815.825 | O34: 4169268.762 | P34: 4270102.79 | Q34: 4373375.495 | R34: 4479145.857 | S34: 4587474.282 | T34: 4698422.637 | U34: 4812054.285 | V34: 4928434.121 | W34: 5047628.611 | X34: 5169705.828 | Y34: 5294735.489 | Z34: 5422789.001 | AA34: 5553939.495 | AB34: =SUM(AB35:AB36) -> 5688261.872 | AC34: 5825832.844 | AD34: 5966730.979 | AE34: 6111036.744 | AF34: 6258832.553 | AG34: =SUM(AG35:AG36) -> 6410202.813 | AH34: 6565233.972 | AI34: =SUM(AI35:AI36) -> 6724014.57 | AJ34: 6886635.286 | AK34: 7053188.995 | AL34: 7223770.816 | AM34: 7398478.169 | AN34: 7577410.83 | AO34: =SUM(AO35:AO36) -> 7760670.988
A35: Average Annual Travel Costs - Auto | B35: $/year | D35: =D23*Avg_Veh_Occ*timevalue_auto -> 2717864.233 | E35: =E23*Avg_Veh_Occ*timevalue_auto -> 2783595.951 | F35: 2850917.395 | G35: 2919867.012 | H35: 2990484.18 | I35: 3062809.228 | J35: 3136883.462 | K35: 3212749.187 | L35: 3290449.729 | M35: 3370029.463 | N35: 3451533.838 | O35: 3535009.401 | P35: 3620503.827 | Q35: 3708065.94 | R35: 3797745.749 | S35: 3889594.469 | T35: 3983664.557 | U35: 4080009.735 | V35: 4178685.028 | W35: 4279746.789 | X35: 4383252.735 | Y35: 4489261.979 | Z35: 4597835.063 | AA35: 4709033.994 | AB35: =AB23*Avg_Veh_Occ*timevalue_auto -> 4822922.278 | AC35: 4939564.957 | AD35: 5059028.647 | AE35: 5181381.574 | AF35: 5306693.615 | AG35: =AG23*Avg_Veh_Occ*timevalue_auto -> 5435036.334 | AH35: 5566483.031 | AI35: =AI23*Avg_Veh_Occ*timevalue_auto -> 5701108.774 | AJ35: 5838990.449 | AK35: 5980206.801 | AL35: 6124838.48 | AM35: 6272968.085 | AN35: 6424680.214 | AO35: =AO23*Avg_Veh_Occ*timevalue_auto -> 6580061.51
A36: Average Annual Travel Costs - Trucks | B36: $/year | D36: =D24*Avg_Truck_Occ*TimeValue_truck -> 487645.3313 | E36: =E24*Avg_Truck_Occ*TimeValue_truck -> 499439.0644 | F36: 511518.0297 | G36: 523889.1255 | H36: 536559.417 | I36: 549536.1404 | J36: 562826.7066 | K36: 576438.706 | L36: 590379.9124 | M36: 604658.2878 | N36: 619281.9867 | O36: 634259.3606 | P36: 649598.9632 | Q36: 665309.5551 | R36: 681400.1087 | S36: 697879.8133 | T36: 714758.0806 | U36: 732044.5498 | V36: 749749.0934 | W36: 767881.8225 | X36: 786453.0928 | Y36: 805473.5105 | Z36: 824953.9381 | AA36: 844905.5011 | AB36: =AB24*Avg_Truck_Occ*TimeValue_truck -> 865339.594 | AC36: 886267.8866 | AD36: 907702.3314 | AE36: 929655.1695 | AF36: 952138.9384 | AG36: =AG24*Avg_Truck_Occ*TimeValue_truck -> 975166.4787 | AH36: 998750.9415 | AI36: =AI24*Avg_Truck_Occ*TimeValue_truck -> 1022905.796 | AJ36: 1047644.837 | AK36: 1072982.194 | AL36: 1098932.336 | AM36: 1125510.083 | AN36: 1152730.616 | AO36: =AO24*Avg_Truck_Occ*TimeValue_truck -> 1180609.478
A38: Total Travel Time | B38: $/year | D38: =SUM(D30,D34,D26) -> 13039673.8 | E38: =SUM(E30,E34,E26) -> 13362829.4 | F38: 13693996.25 | G38: 14033373.03 | H38: 14381163.33 | I38: 14737575.8 | J38: 15102824.27 | K38: 15477127.88 | L38: 15860711.19 | M38: 16253804.33 | N38: 16656643.16 | O38: 17069469.37 | P38: 17492530.66 | Q38: 17926080.86 | R38: 18370380.13 | S38: 18825695.04 | T38: 19292298.81 | U38: 19770471.42 | V38: 20260499.79 | W38: 20762677.99 | X38: 21277307.35 | Y38: 21804696.69 | Z38: 22345162.5 | AA38: 22899029.11 | AB38: 23466628.92 | AC38: 24048302.54 | AD38: 24644399.06 | AE38: 25255276.23 | AF38: 25881300.65 | AG38: 26522848.06 | AH38: 27180303.49 | AI38: 27854061.53 | AJ38: 28544526.56 | AK38: 29252113.01 | AL38: 29977245.57 | AM38: 30720359.49 | AN38: 31481900.8 | AO38: =SUM(AO30,AO34,AO26) -> 32262326.61
A40: Build (Alternative Case) | B40: Unit | D40: =Base.Year -> 2019 | E40: =D40+1 -> 2020 | F40: =E40+1 -> 2021 | G40: 2022 | H40: 2023 | I40: 2024 | J40: 2025 | K40: 2026 | L40: 2027 | M40: 2028 | N40: 2029 | O40: 2030 | P40: 2031 | Q40: 2032 | R40: 2033 | S40: 2034 | T40: 2035 | U40: 2036 | V40: 2037 | W40: 2038 | X40: 2039 | Y40: 2040 | Z40: 2041 | AA40: 2042 | AB40: 2043 | AC40: 2044 | AD40: 2045 | AE40: 2046 | AF40: 2047 | AG40: 2048 | AH40: 2049 | AI40: 2050 | AJ40: 2051 | AK40: 2052 | AL40: 2053 | AM40: 2054 | AN40: 2055 | AO40: 2056
A42: Average Annual Travel Time - West of Industrial | B42: hours/year | D42: ='Traffic Projection'!W99*(1+'Traffic Projection'!W111)^(2019-2015) -> 80927.93512 | E42: =D42*(1+'Traffic Projection'!$W$111) -> 83003.05133 | F42: =E42*(1+'Traffic Projection'!$W$111) -> 85131.3767 | G42: =F42*(1+'Traffic Projection'!$W$111) -> 87314.27559 | H42: =G42*(1+'Traffic Projection'!$W$111) -> 89553.14735 | I42: =H42*(1+'Traffic Projection'!$W$111) -> 91849.42722 | J42: =I42*(1+'Traffic Projection'!$W$111) -> 94204.58721 | K42: =J42*(1+'Traffic Projection'!$W$111) -> 96620.13712 | L42: ='Traffic Projection'!X99*(1+'Traffic Projection'!$X$111)^(2027-2015) -> 83579.2911 | M42: =L42*(1+'Traffic Projection'!$X$111) -> 84960.29075 | N42: =M42*(1+'Traffic Projection'!$X$111) -> 86364.10897 | O42: =N42*(1+'Traffic Projection'!$X$111) -> 87791.1228 | P42: =O42*(1+'Traffic Projection'!$X$111) -> 89241.7155 | Q42: =P42*(1+'Traffic Projection'!$X$111) -> 90716.27668 | R42: =Q42*(1+'Traffic Projection'!$X$111) -> 92215.20237 | S42: =R42*(1+'Traffic Projection'!$X$111) -> 93738.89515 | T42: =S42*(1+'Traffic Projection'!$X$111) -> 95287.76425 | U42: =T42*(1+'Traffic Projection'!$X$111) -> 96862.22566 | V42: =U42*(1+'Traffic Projection'!$X$111) -> 98462.70226 | W42: =V42*(1+'Traffic Projection'!$X$111) -> 100089.6239 | X42: =W42*(1+'Traffic Projection'!$X$111) -> 101743.4275 | Y42: =X42*(1+'Traffic Projection'!$X$111) -> 103424.5574 | Z42: =Y42*(1+'Traffic Projection'!$X$111) -> 105133.4649 | AA42: =Z42*(1+'Traffic Projection'!$X$111) -> 106870.609 | AB42: =AA42*(1+'Traffic Projection'!$X$111) -> 108636.4564 | AC42: =AB42*(1+'Traffic Projection'!$X$111) -> 110431.4813 | AD42: =AC42*(1+'Traffic Projection'!$X$111) -> 112256.1658 | AE42: =AD42*(1+'Traffic Projection'!$X$111) -> 114111 | AF42: =AE42*(1+'Traffic Projection'!$X$111) -> 115996.482 | AG42: =AF42*(1+'Traffic Projection'!$X$111) -> 117913.1183 | AH42: =AG42*(1+'Traffic Projection'!$X$111) -> 119861.4236 | AI42: =AH42*(1+'Traffic Projection'!$X$111) -> 121841.9212 | AJ42: =AI42*(1+'Traffic Projection'!$X$111) -> 123855.143 | AK42: =AJ42*(1+'Traffic Projection'!$X$111) -> 125901.6297 | AL42: =AK42*(1+'Traffic Projection'!$X$111) -> 127981.931 | AM42: =AL42*(1+'Traffic Projection'!$X$111) -> 130096.6055 | AN42: =AM42*(1+'Traffic Projection'!$X$111) -> 132246.2214 | AO42: =AN42*(1+'Traffic Projection'!$X$111) -> 134431.3558
A43: Average Annual Travel Time - Auto | B43: hours/year | D43: =D42*(1-ShareTruck) -> 70407.30356 | E43: 72212.65466 | F43: 74064.29773 | G43: 75963.41977 | H43: 77911.2382 | I43: 79909.00168 | J43: 81957.99087 | K43: 84059.51929 | L43: 72713.98326 | M43: 73915.45295 | N43: 75136.77481 | O43: 76378.27684 | P43: 77640.29249 | Q43: 78923.16071 | R43: 80227.22606 | S43: 81552.83878 | T43: 82900.35489 | U43: 84270.13633 | V43: 85662.55097 | W43: 87077.9728 | X43: 88516.78196 | Y43: 89979.36489 | Z43: 91466.11442 | AA43: 92977.42985 | AB43: 94513.71708 | AC43: 96075.38874 | AD43: 97662.86426 | AE43: 99276.56999 | AF43: 100916.9394 | AG43: 102584.4129 | AH43: 104279.4385 | AI43: 106002.4714 | AJ43: 107753.9744 | AK43: 109534.4178 | AL43: 111344.2799 | AM43: 113184.0468 | AN43: 115054.2126 | AO43: =AO42*(1-ShareTruck) -> 116955.2795
A44: Average Annual Travel Time - Truck | B44: hours/year | D44: =D42*(ShareTruck) -> 10520.63157 | E44: 10790.39667 | F44: =F42*(ShareTruck) -> 11067.07897 | G44: 11350.85583 | H44: 11641.90916 | I44: 11940.42554 | J44: 12246.59634 | K44: 12560.61783 | L44: 10865.30784 | M44: 11044.8378 | N44: 11227.33417 | O44: 11412.84596 | P44: 11601.42302 | Q44: 11793.11597 | R44: 11987.97631 | S44: 12186.05637 | T44: 12387.40935 | U44: 12592.08934 | V44: 12800.15129 | W44: 13011.65111 | X44: 13226.64558 | Y44: 13445.19246 | Z44: 13667.35043 | AA44: 13893.17917 | AB44: 14122.73933 | AC44: 14356.09257 | AD44: 14593.30156 | AE44: 14834.43 | AF44: 15079.54266 | AG44: 15328.70538 | AH44: 15581.98507 | AI44: 15839.44975 | AJ44: 16101.16858 | AK44: 16367.21186 | AL44: 16637.65102 | AM44: 16912.55872 | AN44: 17192.00878 | AO44: =AO42*(ShareTruck) -> 17476.07625
A46: Average Annual Travel Time - Douglas to Anderson | B46: hours/year | D46: =('Traffic Projection'!H62)*(1+CAGR_NoBuild_TT_Douglas_Anderson)^4 -> 309174.8781 | E46: =D46*(1+CAGR_NoBuild_TT_Douglas_Anderson) -> 316843.4482 | F46: =E46*(1+CAGR_NoBuild_TT_Douglas_Anderson) -> 324702.2244 | G46: 332755.9246 | H46: 341009.3834 | I46: 349467.5556 | J46: 358135.5187 | K46: 367018.4763 | L46: ='Traffic Projection'!L62*(1+CAGR_Build_TT_Douglas_Anderson)^(2027-2015) -> 315283.4816 | M46: =L46*(1+CAGR_Build_TT_Douglas_Anderson) -> 320080.7908 | N46: =M46*(1+CAGR_Build_TT_Douglas_Anderson) -> 324951.0951 | O46: =N46*(1+CAGR_Build_TT_Douglas_Anderson) -> 329895.5052 | P46: =O46*(1+CAGR_Build_TT_Douglas_Anderson) -> 334915.1488 | Q46: =P46*(1+CAGR_Build_TT_Douglas_Anderson) -> 340011.1706 | R46: =Q46*(1+CAGR_Build_TT_Douglas_Anderson) -> 345184.7328 | S46: =R46*(1+CAGR_Build_TT_Douglas_Anderson) -> 350437.0151 | T46: =S46*(1+CAGR_Build_TT_Douglas_Anderson) -> 355769.2155 | U46: =T46*(1+CAGR_Build_TT_Douglas_Anderson) -> 361182.5498 | V46: =U46*(1+CAGR_Build_TT_Douglas_Anderson) -> 366678.2527 | W46: =V46*(1+CAGR_Build_TT_Douglas_Anderson) -> 372257.5774 | X46: =W46*(1+CAGR_Build_TT_Douglas_Anderson) -> 377921.7964 | Y46: =X46*(1+CAGR_Build_TT_Douglas_Anderson) -> 383672.2013 | Z46: =Y46*(1+CAGR_Build_TT_Douglas_Anderson) -> 389510.1035 | AA46: =Z46*(1+CAGR_Build_TT_Douglas_Anderson) -> 395436.8345 | AB46: =AA46*(1+CAGR_Build_TT_Douglas_Anderson) -> 401453.7457 | AC46: =AB46*(1+CAGR_Build_TT_Douglas_Anderson) -> 407562.2095 | AD46: =AC46*(1+CAGR_Build_TT_Douglas_Anderson) -> 413763.6187 | AE46: =AD46*(1+CAGR_Build_TT_Douglas_Anderson) -> 420059.3878 | AF46: =AE46*(1+CAGR_Build_TT_Douglas_Anderson) -> 426450.9523 | AG46: =AF46*(1+CAGR_Build_TT_Douglas_Anderson) -> 432939.7701 | AH46: =AG46*(1+CAGR_Build_TT_Douglas_Anderson) -> 439527.3207 | AI46: =AH46*(1+CAGR_Build_TT_Douglas_Anderson) -> 446215.1066 | AJ46: =AI46*(1+CAGR_Build_TT_Douglas_Anderson) -> 453004.6529 | AK46: =AJ46*(1+CAGR_Build_TT_Douglas_Anderson) -> 459897.508 | AL46: =AK46*(1+CAGR_Build_TT_Douglas_Anderson) -> 466895.2438 | AM46: =AL46*(1+CAGR_Build_TT_Douglas_Anderson) -> 473999.4562 | AN46: =AM46*(1+CAGR_Build_TT_Douglas_Anderson) -> 481211.7652 | AO46: 488533.8158
A47: Average Annual Travel Time - Auto | B47: hours/year | D47: =D46*(1-ShareTruck) -> 268982.144 | E47: 275653.7999 | F47: 282490.9353 | G47: 289497.6544 | H47: 296678.1636 | I47: 304036.7734 | J47: 311577.9013 | K47: 319306.0744 | L47: 274296.629 | M47: =M46*(1-ShareTruck) -> 278470.288 | N47: 282707.4527 | O47: 287009.0895 | P47: 291376.1795 | Q47: 295809.7185 | R47: 300310.7175 | S47: 304880.2032 | T47: 309519.2175 | U47: 314228.8183 | V47: 319010.0799 | W47: 323864.0924 | X47: 328791.9628 | Y47: 333794.8151 | Z47: 338873.7901 | AA47: 344030.046 | AB47: =AB46*(1-ShareTruck) -> 349264.7588 | AC47: =AC46*(1-ShareTruck) -> 354579.1223 | AD47: =AD46*(1-ShareTruck) -> 359974.3483 | AE47: =AE46*(1-ShareTruck) -> 365451.6674 | AF47: =AF46*(1-ShareTruck) -> 371012.3285 | AG47: 376657.6 | AH47: 382388.769 | AI47: =AI46*(1-ShareTruck) -> 388207.1428 | AJ47: 394114.048 | AK47: 400110.832 | AL47: 406198.8621 | AM47: 412379.5269 | AN47: 418654.2358 | AO47: =AO46*(1-ShareTruck) -> 425024.4197
A48: Average Annual Travel Time - Truck | B48: hours/year | D48: =D46*(ShareTruck) -> 40192.73416 | E48: =E46*(ShareTruck) -> 41189.64827 | F48: 42211.28918 | G48: 43258.2702 | H48: 44331.21985 | I48: 45430.78223 | J48: 46557.61744 | K48: 47712.40192 | L48: 40986.85261 | M48: =M46*(ShareTruck) -> 41610.5028 | N48: 42243.64236 | O48: 42886.41568 | P48: 43538.96935 | Q48: 44201.45218 | R48: 44874.01526 | S48: 45556.81197 | T48: 46249.99801 | U48: 46953.73148 | V48: 47668.17285 | W48: 48393.48507 | X48: 49129.83353 | Y48: 49877.38617 | Z48: 50636.31346 | AA48: 51406.78848 | AB48: =AB46*(ShareTruck) -> 52188.98695 | AC48: 52983.08723 | AD48: 53789.27044 | AE48: 54607.72041 | AF48: 55438.6238 | AG48: =AG46*(ShareTruck) -> 56282.17011 | AH48: 57138.55169 | AI48: =AI46*(ShareTruck) -> 58007.96386 | AJ48: 58890.60488 | AK48: 59786.67604 | AL48: 60696.3817 | AM48: 61619.9293 | AN48: 62557.52948 | AO48: =AO46*(ShareTruck) -> 63509.39605
A50: Average Annual Travel Time - Anderson to I240 | B50: hours/year | D50: =('Traffic Projection'!H75)*(1+CAGR_NoBuild_TT_Anderson_I240)^4 -> 127156.5401 | E50: =D50*(1+CAGR_NoBuild_TT_Anderson_I240) -> 130231.829 | F50: 133381.494 | G50: 136607.3339 | H50: 139911.1909 | I50: 143294.9519 | J50: 146760.5493 | K50: 150309.9624 | L50: ='Traffic Projection'!L75*(1+CAGR_Build_TT_Anderson_I240)^(2027-2015) -> 129465.4778 | M50: =L50*(1+CAGR_Build_TT_Anderson_I240) -> 131390.3515 | N50: =M50*(1+CAGR_Build_TT_Anderson_I240) -> 133343.8439 | O50: =N50*(1+CAGR_Build_TT_Anderson_I240) -> 135326.3806 | P50: =O50*(1+CAGR_Build_TT_Anderson_I240) -> 137338.3933 | Q50: 139380.3204 | R50: 141452.6065 | S50: 143555.7031 | T50: 145690.0682 | U50: 147856.1667 | V50: 150054.4705 | W50: 152285.4583 | X50: 154549.6161 | Y50: 156847.4371 | Z50: 159179.4217 | AA50: 161546.078 | AB50: =AA50*(1+CAGR_Build_TT_Anderson_I240) -> 163947.9213 | AC50: 166385.4749 | AD50: 168859.2697 | AE50: 171369.8445 | AF50: 173917.7462 | AG50: =AF50*(1+CAGR_Build_TT_Anderson_I240) -> 176503.5297 | AH50: =AG50*(1+CAGR_Build_TT_Anderson_I240) -> 179127.7582 | AI50: =AH50*(1+CAGR_Build_TT_Anderson_I240) -> 181791.0034 | AJ50: =AI50*(1+CAGR_Build_TT_Anderson_I240) -> 184493.8453 | AK50: =AJ50*(1+CAGR_Build_TT_Anderson_I240) -> 187236.8727 | AL50: =AK50*(1+CAGR_Build_TT_Anderson_I240) -> 190020.683 | AM50: =AL50*(1+CAGR_Build_TT_Anderson_I240) -> 192845.8826 | AN50: =AM50*(1+CAGR_Build_TT_Anderson_I240) -> 195713.0869 | AO50: 198622.9203
A51: Average Annual Travel Time - Auto | B51: hours/year | D51: =D50*(1-ShareTruck) -> 110626.1899 | E51: 113301.6913 | F51: 116041.8998 | G51: 118848.3805 | H51: 121722.7361 | I51: 124666.6081 | J51: 127681.6779 | K51: 130769.6673 | L51: 112634.9657 | M51: =M50*(1-ShareTruck) -> 114309.6058 | N51: 116009.1442 | O51: 117733.9511 | P51: 119484.4022 | Q51: 121260.8787 | R51: 123063.7677 | S51: 124893.4617 | T51: 126750.3593 | U51: 128634.865 | V51: 130547.3893 | W51: 132488.3487 | X51: 134458.166 | Y51: 136457.2703 | Z51: 138486.0969 | AA51: 140545.0878 | AB51: =AB50*(1-ShareTruck) -> 142634.6915 | AC51: =AC50*(1-ShareTruck) -> 144755.3632 | AD51: =AD50*(1-ShareTruck) -> 146907.5646 | AE51: =AE50*(1-ShareTruck) -> 149091.7647 | AF51: =AF50*(1-ShareTruck) -> 151308.4392 | AG51: 153558.0708 | AH51: 155841.1496 | AI51: =AI50*(1-ShareTruck) -> 158158.173 | AJ51: 160509.6454 | AK51: 162896.0793 | AL51: 165317.9942 | AM51: 167775.9179 | AN51: 170270.3856 | AO51: =AO50*(1-ShareTruck) -> 172801.9406
A52: Average Annual Travel Time - Truck | B52: hours/year | D52: =D50*(ShareTruck) -> 16530.35021 | E52: =E50*(ShareTruck) -> 16930.13778 | F52: 17339.59423 | G52: 17758.95341 | H52: 18188.45481 | I52: 18628.34374 | J52: 19078.87141 | K52: 19540.29512 | L52: 16830.51211 | M52: =M50*(ShareTruck) -> 17080.74569 | N52: 17334.69971 | O52: 17592.42948 | P52: 17853.99113 | Q52: 18119.44165 | R52: 18388.83885 | S52: 18662.2414 | T52: 18939.70886 | U52: 19221.30167 | V52: 19507.08116 | W52: 19797.10958 | X52: 20091.45009 | Y52: 20390.16682 | Z52: 20693.32482 | AA52: 21000.99014 | AB52: =AB50*(ShareTruck) -> 21313.22977 | AC52: 21630.11174 | AD52: 21951.70506 | AE52: 22278.07979 | AF52: 22609.307 | AG52: =AG50*(ShareTruck) -> 22945.45886 | AH52: 23286.60857 | AI52: =AI50*(ShareTruck) -> 23632.83044 | AJ52: 23984.19989 | AK52: 24340.79345 | AL52: 24702.68879 | AM52: 25069.96474 | AN52: 25442.70129 | AO52: =AO50*(ShareTruck) -> 25820.97963
A54: Average Annual Travel Costs - West of Industrial | B54: $/year | D54: =SUM(D55:D56) -> 2040125.265 | E54: =SUM(E55:E56) -> 2092437.202 | F54: 2146090.496 | G54: 2201119.544 | H54: 2257559.62 | I54: 2315446.907 | J54: 2374818.512 | K54: 2435712.496 | L54: =SUM(L55:L56) -> 2106963.722 | M54: 2141777.563 | N54: 2177166.641 | O54: 2213140.461 | P54: 2249708.685 | Q54: 2286881.133 | R54: 2324667.791 | S54: 2363078.806 | T54: 2402124.495 | U54: 2441815.345 | V54: 2482162.015 | W54: 2523175.343 | X54: 2564866.344 | Y54: 2607246.214 | Z54: 2650326.337 | AA54: 2694118.282 | AB54: 2738633.812 | AC54: 2783884.881 | AD54: 2829883.645 | AE54: 2876642.457 | AF54: 2924173.875 | AG54: 2972490.665 | AH54: 3021605.805 | AI54: 3071532.485 | AJ54: 3122284.116 | AK54: 3173874.327 | AL54: 3226316.975 | AM54: 3279626.144 | AN54: 3333816.154 | AO54: =SUM(AO55:AO56) -> 3388901.557
A55: Average Annual Travel Costs - Auto | B55: $/year | D55: =D43*Avg_Veh_Occ*timevalue_auto -> 1729766.634 | E55: 1774120.5 | F55: 1819611.667 | G55: 1866269.297 | H55: 1914123.3 | I55: 1963204.353 | J55: 2013543.92 | K55: 2065174.27 | L55: 1786437.141 | M55: 1815954.848 | N55: 1845960.283 | O55: 1876461.505 | P55: 1907466.706 | Q55: 1938984.212 | R55: 1971022.49 | S55: 2003590.143 | T55: 2036695.919 | U55: 2070348.709 | V55: 2104557.552 | W55: 2139331.636 | X55: 2174680.299 | Y55: 2210613.037 | Z55: 2247139.499 | AA55: 2284269.496 | AB55: 2322013.001 | AC55: 2360380.151 | AD55: 2399381.249 | AE55: 2439026.772 | AF55: 2479327.366 | AG55: 2520293.856 | AH55: 2561937.245 | AI55: 2604268.718 | AJ55: 2647299.642 | AK55: 2691041.577 | AL55: 2735506.269 | AM55: 2780705.662 | AN55: 2826651.895 | AO55: =AO43*Avg_Veh_Occ*timevalue_auto -> 2873357.307
A56: Average Annual Travel Costs - Trucks | B56: $/year | D56: =D44*Avg_Truck_Occ*TimeValue_truck -> 310358.6312 | E56: 318316.7019 | F56: 326478.8297 | G56: 334850.2469 | H56: 343436.3201 | I56: 352242.5534 | J56: 361274.592 | K56: 370538.2258 | L56: 320526.5814 | M56: 325822.715 | N56: 331206.3579 | O56: 336678.9559 | P56: 342241.979 | Q56: 347896.9211 | R56: 353645.3011 | S56: 359488.6629 | T56: 365428.5759 | U56: 371466.6354 | V56: 377604.4632 | W56: 383843.7077 | X56: 390186.0446 | Y56: 396633.1774 | Z56: 403186.8377 | AA56: 409848.7856 | AB56: 416620.8104 | AC56: 423504.7308 | AD56: 430502.3959 | AE56: 437615.685 | AF56: 444846.5085 | AG56: 452196.8086 | AH56: 459668.5594 | AI56: 467263.7677 | AJ56: 474984.4732 | AK56: 482832.7498 | AL56: 490810.7052 | AM56: 498920.4822 | AN56: 507164.2589 | AO56: =AO44*Avg_Truck_Occ*TimeValue_truck -> 515544.2494
A58: Average Annual Travel Costs - Douglas to Anderson | B58: $/year | D58: =SUM(D59:D60) -> 7794038.97 | E58: =SUM(E59:E60) -> 7987357.181 | F58: =SUM(F59:F60) -> 8185470.328 | G58: 8388497.344 | H58: 8596560.108 | I58: 8809783.524 | J58: 9028295.593 | K58: 9252227.492 | L58: 7948031.734 | M58: 8068967.867 | N58: 8191744.147 | O58: 8316388.574 | P58: 8442929.573 | Q58: 8571396.002 | R58: 8701817.158 | S58: 8834222.784 | T58: 8968643.076 | U58: 9105108.688 | V58: 9243650.741 | W58: 9384300.831 | X58: 9527091.032 | Y58: 9672053.91 | Z58: 9819222.522 | AA58: 9968630.43 | AB58: =SUM(AB59:AB60) -> 10120311.71 | AC58: 10274300.95 | AD58: 10430633.27 | AE58: 10589344.32 | AF58: 10750470.29 | AG58: =SUM(AG59:AG60) -> 10914047.93 | AH58: 11080114.55 | AI58: =SUM(AI59:AI60) -> 11248708.02 | AJ58: 11419866.78 | AK58: 11593629.86 | AL58: 11770036.9 | AM58: 11949128.13 | AN58: 12130944.38 | AO58: =SUM(AO59:AO60) -> 12315527.13
A59: Average Annual Travel Costs - Auto | B59: $/year | D59: =D47*Avg_Veh_Occ*timevalue_auto -> 6608353.313 | E59: =E47*Avg_Veh_Occ*timevalue_auto -> 6772262.557 | F59: 6940237.298 | G59: 7112378.373 | H59: 7288789.123 | I59: 7469575.448 | J59: 7654845.879 | K59: 7844711.635 | L59: 6738919.582 | M59: 6841458.035 | N59: 6945556.698 | O59: 7051239.312 | P59: 7158529.977 | Q59: 7267453.163 | R59: 7378033.708 | S59: 7490296.831 | T59: 7604268.135 | U59: 7719973.609 | V59: 7837439.642 | W59: 7956693.021 | X59: 8077760.943 | Y59: 8200671.018 | Z59: 8325451.274 | AA59: 8452130.17 | AB59: =AB47*Avg_Veh_Occ*timevalue_auto -> 8580736.594 | AC59: 8711299.875 | AD59: 8843849.789 | AE59: 8978416.564 | AF59: 9115030.888 | AG59: =AG47*Avg_Veh_Occ*timevalue_auto -> 9253723.916 | AH59: 9394527.277 | AI59: =AI47*Avg_Veh_Occ*timevalue_auto -> 9537473.083 | AJ59: 9682593.932 | AK59: 9829922.92 | AL59: 9979493.644 | AM59: 10131340.22 | AN59: 10285497.26 | AO59: =AO47*Avg_Veh_Occ*timevalue_auto -> 10441999.94
A60: Average Annual Travel Costs - Trucks | B60: $/year | D60: =D48*Avg_Truck_Occ*TimeValue_truck -> 1185685.658 | E60: =E48*Avg_Truck_Occ*TimeValue_truck -> 1215094.624 | F60: 1245233.031 | G60: 1276118.971 | H60: 1307770.985 | I60: 1340208.076 | J60: 1373449.714 | K60: 1407515.857 | L60: 1209112.152 | M60: 1227509.833 | N60: 1246187.45 | O60: 1265149.263 | P60: 1284399.596 | Q60: 1303942.839 | R60: 1323783.45 | S60: 1343925.953 | T60: 1364374.941 | U60: 1385135.079 | V60: 1406211.099 | W60: 1427607.809 | X60: 1449330.089 | Y60: 1471382.892 | Z60: 1493771.247 | AA60: 1516500.26 | AB60: =AB48*Avg_Truck_Occ*TimeValue_truck -> 1539575.115 | AC60: 1563001.073 | AD60: 1586783.478 | AE60: 1610927.752 | AF60: 1635439.402 | AG60: =AG48*Avg_Truck_Occ*TimeValue_truck -> 1660324.018 | AH60: 1685587.275 | AI60: =AI48*Avg_Truck_Occ*TimeValue_truck -> 1711234.934 | AJ60: 1737272.844 | AK60: 1763706.943 | AL60: 1790543.26 | AM60: 1817787.914 | AN60: 1845447.12 | AO60: =AO48*Avg_Truck_Occ*TimeValue_truck -> 1873527.184
A62: Average Annual Travel Costs - Anderson to I240 | B62: $/year | D62: =SUM(D63:D64) -> 3205509.565 | E62: =SUM(E63:E64) -> 3283035.016 | F62: =SUM(F63:F64) -> 3362435.425 | G62: 3443756.137 | H62: 3527043.597 | I62: 3612345.369 | J62: 3699710.169 | K62: 3789187.893 | L62: 3263715.944 | M62: 3312240.393 | N62: 3361486.296 | O62: 3411464.381 | P62: 3462185.532 | Q62: 3513660.798 | R62: 3565901.39 | S62: 3618918.688 | T62: 3672724.239 | U62: 3727329.763 | V62: 3782747.155 | W62: 3838988.483 | X62: 3896066 | Y62: 3953992.137 | Z62: 4012779.511 | AA62: 4072440.927 | AB62: =SUM(AB63:AB64) -> 4132989.38 | AC62: 4194438.059 | AD62: 4256800.348 | AE62: 4320089.83 | AF62: 4384320.29 | AG62: =SUM(AG63:AG64) -> 4449505.72 | AH62: 4515660.317 | AI62: =SUM(AI63:AI64) -> 4582798.491 | AJ62: 4650934.866 | AK62: 4720084.282 | AL62: 4790261.801 | AM62: 4861482.71 | AN62: 4933762.521 | AO62: =SUM(AO63:AO64) -> 5007116.977
A63: Average Annual Travel Costs - Auto | B63: $/year | D63: =D51*Avg_Veh_Occ*timevalue_auto -> 2717864.233 | E63: =E51*Avg_Veh_Occ*timevalue_auto -> 2783595.951 | F63: 2850917.395 | G63: 2919867.012 | H63: 2990484.18 | I63: 3062809.228 | J63: 3136883.462 | K63: 3212749.187 | L63: 2767215.837 | M63: 2808358.395 | N63: 2850112.655 | O63: 2892487.711 | P63: 2935492.793 | Q63: 2979137.269 | R63: 3023430.644 | S63: 3068382.567 | T63: 3114002.828 | U63: 3160301.364 | V63: 3207288.26 | W63: 3254973.751 | X63: 3303368.222 | Y63: 3352482.216 | Z63: 3402326.428 | AA63: 3452911.718 | AB63: =AB51*Avg_Veh_Occ*timevalue_auto -> 3504249.102 | AC63: 3556349.763 | AD63: 3609225.048 | AE63: 3662886.476 | AF63: 3717345.734 | AG63: =AG51*Avg_Veh_Occ*timevalue_auto -> 3772614.684 | AH63: 3828705.365 | AI63: =AI51*Avg_Veh_Occ*timevalue_auto -> 3885629.993 | AJ63: 3943400.969 | AK63: 4002030.875 | AL63: 4061532.482 | AM63: 4121918.75 | AN63: 4183202.832 | AO63: =AO51*Avg_Veh_Occ*timevalue_auto -> 4245398.077
A64: Average Annual Travel Costs - Trucks | B64: $/year | D64: =D52*Avg_Truck_Occ*TimeValue_truck -> 487645.3313 | E64: =E52*Avg_Truck_Occ*TimeValue_truck -> 499439.0644 | F64: 511518.0297 | G64: 523889.1255 | H64: 536559.417 | I64: 549536.1404 | J64: 562826.7066 | K64: 576438.706 | L64: 496500.1073 | M64: 503881.9979 | N64: 511373.6414 | O64: 518976.6696 | P64: 526692.7385 | Q64: 534523.5287 | R64: 542470.746 | S64: 550536.1213 | T64: 558721.4115 | U64: 567028.3993 | V64: 575458.8942 | W64: 584014.7325 | X64: 592697.7777 | Y64: 601509.9212 | Z64: 610453.0823 | AA64: 619529.209 | AB64: =AB52*Avg_Truck_Occ*TimeValue_truck -> 628740.2782 | AC64: 638088.2963 | AD64: 647575.2993 | AE64: 657203.3537 | AF64: 666974.5566 | AG64: =AG52*Avg_Truck_Occ*TimeValue_truck -> 676891.0363 | AH64: 686954.9528 | AI64: =AI52*Avg_Truck_Occ*TimeValue_truck -> 697168.498 | AJ64: 707533.8968 | AK64: 718053.4068 | AL64: 728729.3194 | AM64: 739563.9598 | AN64: 750559.6881 | AO64: =AO52*Avg_Truck_Occ*TimeValue_truck -> 761718.8992
A66: Total Travel Time | B66: $/year | D66: =SUM(D58,D62,D54) -> 13039673.8 | E66: =SUM(E58,E62,E54) -> 13362829.4 | F66: 13693996.25 | G66: 14033373.03 | H66: 14381163.33 | I66: 14737575.8 | J66: 15102824.27 | K66: 15477127.88 | L66: 13318711.4 | M66: 13522985.82 | N66: 13730397.09 | O66: 13940993.42 | P66: 14154823.79 | Q66: 14371937.93 | R66: 14592386.34 | S66: 14816220.28 | T66: 15043491.81 | U66: 15274253.8 | V66: 15508559.91 | W66: 15746464.66 | X66: 15988023.38 | Y66: 16233292.26 | Z66: 16482328.37 | AA66: 16735189.64 | AB66: 16991934.9 | AC66: 17252623.89 | AD66: 17517317.26 | AE66: 17786076.6 | AF66: 18058964.45 | AG66: 18336044.32 | AH66: 18617380.67 | AI66: 18903038.99 | AJ66: 19193085.76 | AK66: 19487588.47 | AL66: 19786615.68 | AM66: 20090236.99 | AN66: 20398523.06 | AO66: =SUM(AO58,AO62,AO54) -> 20711545.66
A68: No Build Less Build | B68: Unit | D68: =Base.Year -> 2019 | E68: =D68+1 -> 2020 | F68: =E68+1 -> 2021 | G68: 2022 | H68: 2023 | I68: 2024 | J68: 2025 | K68: 2026 | L68: 2027 | M68: 2028 | N68: 2029 | O68: 2030 | P68: 2031 | Q68: 2032 | R68: 2033 | S68: 2034 | T68: 2035 | U68: 2036 | V68: 2037 | W68: 2038 | X68: 2039 | Y68: 2040 | Z68: 2041 | AA68: 2042 | AB68: 2043 | AC68: 2044 | AD68: 2045 | AE68: 2046 | AF68: 2047 | AG68: 2048 | AH68: 2049 | AI68: 2050 | AJ68: 2051 | AK68: 2052 | AL68: 2053 | AM68: 2054 | AN68: 2055 | AO68: 2056
A69: Undiscounted Impacts | B69: $/year | D69: =D38-D66 -> 0 | E69: 0 | F69: 0 | G69: 0 | H69: 0 | I69: 0 | J69: 0 | K69: 0 | L69: 2541999.786 | M69: 2730818.505 | N69: 2926246.07 | O69: 3128475.95 | P69: 3337706.866 | Q69: 3554142.931 | R69: 3777993.79 | S69: 4009474.765 | T69: 4248807.002 | U69: 4496217.623 | V69: 4751939.884 | W69: 5016213.331 | X69: 5289283.97 | Y69: 5571404.428 | Z69: 5862834.13 | AA69: 6163839.475 | AB69: 6474694.017 | AC69: 6795678.651 | AD69: 7127081.802 | AE69: 7469199.625 | AF69: 7822336.2 | AG69: 8186803.744 | AH69: 8562922.815 | AI69: 8951022.534 | AJ69: 9351440.803 | AK69: 9764524.537 | AL69: 10190629.89 | AM69: 10630122.5 | AN69: 11083377.74 | AO69: =AO38-AO66 -> 11550780.95
A70: Discounted Impacts, at 7% | B70: $/year | D70: =D69*D6 -> 0 | E70: 0 | F70: 0 | G70: 0 | H70: 0 | I70: 0 | J70: 0 | K70: 0 | L70: 1479467.019 | M70: 1485384.33 | N70: 1487555.118 | O70: 1486316.387 | P70: 1481981.765 | Q70: 1474842.959 | R70: 1465171.128 | S70: 1453218.169 | T70: 1439217.931 | U70: 1423387.353 | V70: 1405927.544 | W70: 1387024.786 | X70: 1366851.489 | Y70: 1345567.081 | Z70: 1323318.848 | AA70: 1300242.727 | AB70: 1276464.041 | AC70: 1252098.202 | AD70: 1227251.365 | AE70: 1202021.039 | AF70: 1176496.671 | AG70: 1150760.183 | AH70: 1124886.485 | AI70: 1098943.949 | AJ70: 1072994.864 | AK70: 1047095.848 | AL70: 1021298.25 | AM70: 995648.5151 | AN70: 970188.5353 | AO70: =AO69*AO6 -> 944955.9709
A71: Discounted Impacts, at 3% | B71: $/year | D71: =D69*D7 -> 0 | E71: 0 | F71: 0 | G71: 0 | H71: 0 | I71: 0 | J71: 0 | K71: 0 | L71: 2006678.104 | M71: 2092944.995 | N71: 2177401.894 | O71: 2260077.589 | P71: 2341000.442 | Q71: 2420198.391 | R71: 2497698.965 | S71: 2573529.281 | T71: 2647716.055 | U71: 2720285.606 | V71: 2791263.863 | W71: 2860676.37 | X71: 2928548.291 | Y71: 2994904.416 | Z71: 3059769.167 | AA71: 3123166.601 | AB71: 3185120.42 | AC71: 3245653.971 | AD71: 3304790.254 | AE71: 3362551.926 | AF71: 3418961.309 | AG71: 3474040.388 | AH71: 3527810.822 | AI71: 3580293.95 | AJ71: 3631510.786 | AK71: 3681482.037 | AL71: 3730228.096 | AM71: 3777769.054 | AN71: 3824124.699 | AO71: =AO69*AO7 -> 3869314.526
A73: Key Quantified Impacts
A74: Total Travel Time Saving | B74: $/year | D74: =D69 -> 0 | E74: 0 | F74: 0 | G74: 0 | H74: =H69 -> 0 | I74: 0 | J74: 0 | K74: 0 | L74: 2541999.786 | M74: 2730818.505 | N74: 2926246.07 | O74: 3128475.95 | P74: 3337706.866 | Q74: 3554142.931 | R74: 3777993.79 | S74: 4009474.765 | T74: 4248807.002 | U74: 4496217.623 | V74: 4751939.884 | W74: 5016213.331 | X74: 5289283.97 | Y74: 5571404.428 | Z74: 5862834.13 | AA74: 6163839.475 | AB74: =AB69 -> 6474694.017 | AC74: 6795678.651 | AD74: 7127081.802 | AE74: 7469199.625 | AF74: 7822336.2 | AG74: =AG69 -> 8186803.744 | AH74: 8562922.815 | AI74: =AI69 -> 8951022.534 | AJ74: 9351440.803 | AK74: 9764524.537 | AL74: 10190629.89 | AM74: 10630122.5 | AN74: 11083377.74 | AO74: =AO69 -> 11550780.95

Sheet Travel Time Saving-Interchanges
A2: Travel Time Savings - Intersection
B4: Unit | C4: Value | D4: =Base.Year -> 2019 | E4: =D4+1 -> 2020 | F4: =E4+1 -> 2021 | G4: 2022 | H4: 2023 | I4: 2024 | J4: 2025 | K4: 2026 | L4: 2027 | M4: 2028 | N4: 2029 | O4: 2030 | P4: 2031 | Q4: 2032 | R4: 2033 | S4: 2034 | T4: 2035 | U4: 2036 | V4: 2037 | W4: 2038 | X4: 2039 | Y4: 2040 | Z4: 2041 | AA4: 2042 | AB4: 2043 | AC4: 2044 | AD4: 2045 | AE4: 2046 | AF4: 2047 | AG4: 2048 | AH4: 2049 | AI4: 2050 | AJ4: 2051 | AK4: 2052 | AL4: 2053 | AM4: 2054 | AN4: 2055 | AO4: 2056
A5: Benefits Index | B5: Number | D5: 0 | E5: 0 | F5: 0 | G5: 0 | H5: 0 | I5: 0 | J5: 0 | K5: 0 | L5: 1 | M5: =L5+1 -> 2 | N5: 3 | O5: 4 | P5: 5 | Q5: 6 | R5: 7 | S5: 8 | T5: 9 | U5: 10 | V5: 11 | W5: 12 | X5: 13 | Y5: 14 | Z5: 15 | AA5: 16 | AB5: 17 | AC5: 18 | AD5: 19 | AE5: 20 | AF5: 21 | AG5: 22 | AH5: 23 | AI5: 24 | AJ5: 25 | AK5: 26 | AL5: 27 | AM5: 28 | AN5: 29 | AO5: 30
A6: Discount Factor | B6: % | C6: 0.07 | D6: =1/(1+Real_discount_rate)^(D4-$D$4) -> 1 | E6: 0.9345794393 | F6: 0.8734387283 | G6: 0.8162978769 | H6: 0.762895212 | I6: 0.7129861795 | J6: 0.6663422238 | K6: 0.6227497419 | L6: 0.5820091046 | M6: 0.5439337426 | N6: 0.5083492921 | O6: 0.4750927964 | P6: 0.4440119592 | Q6: 0.4149644479 | R6: 0.387817241 | S6: 0.3624460196 | T6: 0.3387345978 | U6: 0.3165743905 | V6: 0.2958639163 | W6: 0.276508333 | X6: 0.2584190028 | Y6: 0.2415130867 | Z6: 0.2257131652 | AA6: 0.2109468833 | AB6: 0.1971466199 | AC6: 0.1842491775 | AD6: 0.172195493 | AE6: 0.1609303673 | AF6: 0.1504022124 | AG6: =1/(1+Real_discount_rate)^(AG4-$D$4) -> 0.1405628154 | AH6: 0.1313671172 | AI6: =1/(1+Real_discount_rate)^(AI4-$D$4) -> 0.1227730067 | AJ6: 0.1147411277 | AK6: 0.1072346988 | AL6: 0.1002193447 | AM6: 0.09366293897 | AN6: 0.08753545698 | AO6: =1/(1+Real_discount_rate)^(AO4-$D$4) -> 0.0818088383
A7: Discount Factor | B7: % | C7: 0.03 | D7: =1/(1+Real_discount_rate_Sensitivity)^(D4-$D$4) -> 1 | E7: 0.9708737864 | F7: 0.9425959091 | G7: 0.9151416594 | H7: 0.8884870479 | I7: 0.8626087844 | J7: 0.8374842567 | K7: 0.8130915113 | L7: 0.7894092343 | M7: 0.7664167323 | N7: 0.7440939149 | O7: 0.7224212766 | P7: 0.7013798802 | Q7: 0.68095134 | R7: 0.6611178058 | S7: 0.6418619474 | T7: 0.6231669392 | U7: 0.6050164458 | V7: 0.5873946076 | W7: 0.5702860268 | X7: 0.5536757542 | Y7: 0.5375492759 | Z7: 0.5218925009 | AA7: 0.5066917484 | AB7: 0.4919337363 | AC7: 0.4776055693 | AD7: 0.4636947274 | AE7: 0.4501890558 | AF7: 0.4370767532 | AG7: =1/(1+Real_discount_rate_Sensitivity)^(AG4-$D$4) -> 0.4243463623 | AH7: 0.4119867595 | AI7: =1/(1+Real_discount_rate_Sensitivity)^(AI4-$D$4) -> 0.3999871452 | AJ7: 0.3883370341 | AK7: 0.3770262467 | AL7: 0.3660448997 | AM7: 0.3553833978 | AN7: 0.3450324251 | AO7: =1/(1+Real_discount_rate_Sensitivity)^(AO4-$D$4) -> 0.3349829369
A9: Share of Traffic - Auto | B9: =1-ShareTruck -> 0.87
A10: Share of Traffic - Trucks | B10: =ShareTruck -> 0.13
A12: No Build Case Alternative | B12: Unit | D12: =Base.Year -> 2019 | E12: =D12+1 -> 2020 | F12: =E12+1 -> 2021 | G12: 2022 | H12: 2023 | I12: 2024 | J12: 2025 | K12: 2026 | L12: 2027 | M12: 2028 | N12: 2029 | O12: 2030 | P12: 2031 | Q12: 2032 | R12: 2033 | S12: 2034 | T12: 2035 | U12: 2036 | V12: 2037 | W12: 2038 | X12: 2039 | Y12: 2040 | Z12: 2041 | AA12: 2042 | AB12: 2043 | AC12: 2044 | AD12: 2045 | AE12: 2046 | AF12: 2047 | AG12: 2048 | AH12: 2049 | AI12: 2050 | AJ12: 2051 | AK12: 2052 | AL12: 2053 | AM12: 2054 | AN12: 2055 | AO12: 2056
A14: Annual Average Delay | B14: hours | D14: =('Traffic Projection'!G176)*((1+CAGR_NoBuild_TT_Douglas_Interchange)^(2019-2015)) -> 94774.03512 | E14: =D14*(1+CAGR_NoBuild_TT_Douglas_Interchange) -> 103690.5315 | F14: 113445.9066 | G14: 124119.0832 | H14: 135796.4098 | I14: 148572.3585 | J14: 162550.2893 | K14: 177843.2867 | L14: 194575.0743 | M14: 212881.016 | N14: 232909.2106 | O14: 254821.6905 | P14: 278795.7325 | Q14: 305025.2915 | R14: 333722.5705 | S14: 365119.7364 | T14: 399470.7991 | U14: 437053.6661 | V14: 478172.3908 | W14: 523159.6323 | X14: 572379.3473 | Y14: 626229.7336 | Z14: 685146.4525 | AA14: 749606.1528 | AB14: 820130.3272 | AC14: 897289.5315 | AD14: 981708 | AE14: 1074068.696 | AF14: 1175118.838 | AG14: 1285675.943 | AH14: 1406634.441 | AI14: 1538972.913 | AJ14: 1683762.005 | AK14: 1842173.092 | AL14: 2015487.753 | AM14: 2205108.141 | AN14: 2412568.326 | AO14: 2639546.705
A15: Annual Average Delay - Auto | B15: hours | D15: =D14*(1-ShareTruck) -> 82453.41055 | E15: 90210.76245 | F15: 98697.93871 | G15: 107983.6024 | H15: 118142.8766 | I15: 129257.9519 | J15: 141418.7517 | K15: 154723.6594 | L15: 169280.3147 | M15: 185206.4839 | N15: 202631.0132 | O15: 221694.8707 | P15: 242552.2872 | Q15: 265372.0036 | R15: 290338.6363 | S15: 317654.1707 | T15: 347539.5953 | U15: 380236.6895 | V15: 416009.98 | W15: 455148.8801 | X15: 497970.0321 | Y15: 544819.8683 | Z15: 596077.4137 | AA15: 652157.3529 | AB15: 713513.3847 | AC15: 780641.8924 | AD15: 854085.96 | AE15: 934439.7658 | AF15: 1022353.389 | AG15: =AG14*(1-ShareTruck) -> 1118538.07 | AH15: 1223771.964 | AI15: =AI14*(1-ShareTruck) -> 1338906.434 | AJ15: 1464872.944 | AK15: 1602690.59 | AL15: 1753474.345 | AM15: 1918444.083 | AN15: 2098934.444 | AO15: =AO14*(1-ShareTruck) -> 2296405.634
A16: Annual Average Delay Traffic - Truck | B16: hours | D16: =D14*(ShareTruck) -> 12320.62457 | E16: 13479.7691 | F16: 14747.96785 | G16: 16135.48082 | H16: 17653.53328 | I16: 19314.4066 | J16: 21131.5376 | K16: 23119.62727 | L16: 25294.75966 | M16: 27674.53207 | N16: 30278.19737 | O16: 33126.81977 | P16: 36243.44522 | Q16: 39653.2879 | R16: 43383.93416 | S16: 47465.56573 | T16: 51931.20389 | U16: 56816.97659 | V16: 62162.4108 | W16: 68010.7522 | X16: 74409.31515 | Y16: 81409.86537 | Z16: 89069.03883 | AA16: 97448.79986 | AB16: 106616.9425 | AC16: 116647.6391 | AD16: 127622.04 | AE16: 139628.9305 | AF16: 152765.449 | AG16: =AG14*(ShareTruck) -> 167137.8726 | AH16: 182862.4773 | AI16: =AI14*(ShareTruck) -> 200066.4787 | AJ16: 218889.0606 | AK16: 239482.5019 | AL16: 262013.4079 | AM16: 286664.0583 | AN16: 313633.8824 | AO16: =AO14*(ShareTruck) -> 343141.0717
A18: Average Annual Travel Costs | B18: $/year | D18: =SUM(D19:D20) -> 2389173.815 | E18: =SUM(E19:E20) -> 2613951.2 | F18: =SUM(F19:F20) -> 2859876.01 | G18: 3128937.828 | H18: 3423313.423 | I18: 3745384.356 | J18: 4097756.25 | K18: 4483279.869 | L18: 4905074.181 | M18: 5366551.592 | N18: 5871445.554 | O18: 6423840.767 | P18: 7028206.227 | Q18: 7689431.378 | R18: 8412865.675 | S18: 9204361.854 | T18: 10070323.29 | U18: 11017755.8 | V18: 12054324.31 | W18: 13188414.88 | X18: 14429202.55 | Y18: 15786725.55 | Z18: 17271966.54 | AA18: 18896941.44 | AB18: 20674796.64 | AC18: 22619915.36 | AD18: 24748034.05 | AE18: 27076369.62 | AF18: 29623758.81 | AG18: =SUM(AG19:AG20) -> 32410810.55 | AH18: 35460072.69 | AI18: =SUM(AI19:AI20) -> 38796214.39 | AJ18: 42446225.78 | AK18: 46439636.21 | AL18: 50808753.24 | AM18: 55588923.95 | AN18: 60818820.95 | AO18: =SUM(AO19:AO20) -> 66540755.22
A19: Average Annual Travel Costs - Auto | B19: $/year | D19: =(D15)*(timevalue_auto)*Avg_Veh_Occ -> 2025715.39 | E19: 2216298.012 | F19: 2424810.958 | G19: 2652941.144 | H19: 2902534.191 | I19: 3175609.361 | J19: 3474375.891 | K19: 3801250.864 | L19: 4158878.771 | M19: 4550152.896 | N19: 4978238.732 | O19: 5446599.584 | P19: 5959024.593 | Q19: 6519659.385 | R19: 7133039.617 | S19: 7804127.665 | T19: 8538352.776 | U19: 9341654.988 | V19: 10220533.19 | W19: 11182097.69 | X19: 12234127.75 | Y19: 13385134.52 | Z19: 14644429.9 | AA19: 16022201.85 | AB19: 17529596.83 | AC19: 19178810.01 | AD19: 20983183.87 | AE19: 22957316.17 | AF19: 25117178.07 | AG19: 27480243.31 | AH19: 30065629.6 | AI19: 32894253.27 | AJ19: 35988998.49 | AK19: 39374902.41 | AL19: 43079357.71 | AM19: 47132334.23 | AN19: 51566621.42 | AO19: =(AO15)*(timevalue_auto)*Avg_Veh_Occ -> 56418093.61
A20: Average Annual Travel Costs - Trucks | B20: $/year | D20: =(D16)*(TimeValue_truck)*Avg_Truck_Occ -> 363458.4247 | E20: 397653.1885 | F20: 435065.0517 | G20: 475996.6842 | H20: 520779.2318 | I20: 569774.9947 | J20: 623380.3593 | K20: 682029.0044 | L20: 746195.41 | M20: 816398.6962 | N20: 893206.8225 | O20: 977241.1831 | P20: 1069181.634 | Q20: 1169771.993 | R20: 1279826.058 | S20: 1400234.189 | T20: 1531970.515 | U20: 1676100.81 | V20: 1833791.119 | W20: 2006317.19 | X20: 2195074.797 | Y20: 2401591.028 | Z20: 2627536.645 | AA20: 2874739.596 | AB20: 3145199.805 | AC20: 3441105.353 | AD20: 3764850.18 | AE20: 4119053.45 | AF20: 4506580.744 | AG20: 4930567.241 | AH20: 5394443.081 | AI20: 5901961.121 | AJ20: 6457227.288 | AK20: 7064733.806 | AL20: 7729395.532 | AM20: 8456589.721 | AN20: 9252199.531 | AO20: =(AO16)*(TimeValue_truck)*Avg_Truck_Occ -> 10122661.61
A22: Total Travel Time | B22: $/year | D22: =D18 -> 2389173.815 | E22: =E18 -> 2613951.2 | F22: 2859876.01 | G22: 3128937.828 | H22: 3423313.423 | I22: 3745384.356 | J22: 4097756.25 | K22: 4483279.869 | L22: 4905074.181 | M22: 5366551.592 | N22: 5871445.554 | O22: 6423840.767 | P22: 7028206.227 | Q22: 7689431.378 | R22: 8412865.675 | S22: 9204361.854 | T22: 10070323.29 | U22: 11017755.8 | V22: 12054324.31 | W22: 13188414.88 | X22: 14429202.55 | Y22: 15786725.55 | Z22: 17271966.54 | AA22: 18896941.44 | AB22: 20674796.64 | AC22: 22619915.36 | AD22: 24748034.05 | AE22: 27076369.62 | AF22: 29623758.81 | AG22: =AG18 -> 32410810.55 | AH22: 35460072.69 | AI22: =AI18 -> 38796214.39 | AJ22: 42446225.78 | AK22: 46439636.21 | AL22: 50808753.24 | AM22: 55588923.95 | AN22: 60818820.95 | AO22: =AO18 -> 66540755.22
A24: Build (Alternative Case) | B24: Unit | D24: =Base.Year -> 2019 | E24: =D24+1 -> 2020 | F24: =E24+1 -> 2021 | G24: 2022 | H24: 2023 | I24: 2024 | J24: 2025 | K24: 2026 | L24: 2027 | M24: 2028 | N24: 2029 | O24: 2030 | P24: 2031 | Q24: 2032 | R24: 2033 | S24: 2034 | T24: 2035 | U24: 2036 | V24: 2037 | W24: 2038 | X24: 2039 | Y24: 2040 | Z24: 2041 | AA24: 2042 | AB24: 2043 | AC24: 2044 | AD24: 2045 | AE24: 2046 | AF24: 2047 | AG24: 2048 | AH24: 2049 | AI24: 2050 | AJ24: 2051 | AK24: 2052 | AL24: 2053 | AM24: 2054 | AN24: 2055 | AO24: 2056
A26: Annual Average Delay | B26: hours | D26: =('Traffic Projection'!G176)*((1+CAGR_NoBuild_TT_Douglas_Interchange)^(2019-2015)) -> 94774.03512 | E26: =D26*(1+CAGR_NoBuild_TT_Douglas_Interchange) -> 103690.5315 | F26: 113445.9066 | G26: 124119.0832 | H26: 135796.4098 | I26: 148572.3585 | J26: 162550.2893 | K26: 177843.2867 | L26: ='Traffic Projection'!K176*((1+CAGR_Build_TT_Douglas_Interchange)^(L24-2015)) -> 166456.3154 | M26: =L26*(1+CAGR_Build_TT_Douglas_Interchange) -> 182732.3042 | N26: 200599.7485 | O26: 220214.2597 | P26: 241746.6649 | Q26: 265384.4944 | R26: 291333.6154 | S26: 319820.0243 | T26: 351091.8155 | U26: 385421.3419 | V26: 423107.5867 | W26: 464478.7677 | X26: 509895.1955 | Y26: 559752.4117 | Z26: 614484.6336 | AA26: 674568.5361 | AB26: 740527.4031 | AC26: 812935.6845 | AD26: 892424 | AE26: 979684.6306 | AF26: 1075477.548 | AG26: 1180637.034 | AH26: 1296078.945 | AI26: 1422808.69 | AJ26: 1561929.986 | AK26: 1714654.471 | AL26: 1882312.255 | AM26: 2066363.507 | AN26: 2268411.169 | AO26: 2490214.918
A27: Annual Average Delay - Auto | B27: hours | D27: =D26*(1-ShareTruck) -> 82453.41055 | E27: 90210.76245 | F27: =F26*(1-ShareTruck) -> 98697.93871 | G27: 107983.6024 | H27: 118142.8766 | I27: 129257.9519 | J27: 141418.7517 | K27: 154723.6594 | L27: 144816.9944 | M27: 158977.1046 | N27: 174521.7812 | O27: 191586.4059 | P27: 210319.5984 | Q27: 230884.5102 | R27: 253460.2454 | S27: 278243.4212 | T27: 305449.8795 | U27: 335316.5674 | V27: 368103.6004 | W27: 404096.5279 | X27: 443608.8201 | Y27: 486984.5982 | Z27: 534601.6312 | AA27: 586874.6264 | AB27: 644258.8407 | AC27: 707254.0455 | AD27: 776408.88 | AE27: 852325.6286 | AF27: 935665.4669 | AG27: 1027154.22 | AH27: 1127588.682 | AI27: =AI26*(1-ShareTruck) -> 1237843.561 | AJ27: 1358879.088 | AK27: 1491749.39 | AL27: 1637611.662 | AM27: 1797736.251 | AN27: 1973517.717 | AO27: =AO26*(1-ShareTruck) -> 2166486.979
A28: Annual Average Delay Traffic - Truck | B28: hours | D28: =D26*(ShareTruck) -> 12320.62457 | E28: 13479.7691 | F28: =F26*(ShareTruck) -> 14747.96785 | G28: 16135.48082 | H28: 17653.53328 | I28: 19314.4066 | J28: 21131.5376 | K28: 23119.62727 | L28: 21639.321 | M28: 23755.19954 | N28: 26077.9673 | O28: 28627.85376 | P28: 31427.06643 | Q28: 34499.98428 | R28: 37873.37 | S28: 41576.60316 | T28: 45641.93602 | U28: 50104.77444 | V28: 55003.98627 | W28: 60382.2398 | X28: 66286.37541 | Y28: 72767.81352 | Z28: 79883.00237 | AA28: 87693.9097 | AB28: 96268.5624 | AC28: 105681.639 | AD28: 116015.12 | AE28: 127359.002 | AF28: 139812.0813 | AG28: 153482.8144 | AH28: 168490.2629 | AI28: =AI26*(ShareTruck) -> 184965.1297 | AJ28: 203050.8982 | AK28: 222905.0813 | AL28: 244700.5932 | AM28: 268627.2559 | AN28: 294893.452 | AO28: =AO26*(ShareTruck) -> 323727.9394
A30: Average Annual Travel Costs | B30: $/year | D30: =SUM(D31:D32) -> 2389173.815 | E30: =SUM(E31:E32) -> 2613951.2 | F30: =SUM(F31:F32) -> 2859876.01 | G30: 3128937.828 | H30: 3423313.423 | I30: 3745384.356 | J30: 4097756.25 | K30: 4483279.869 | L30: 4196223.887 | M30: 4606527.893 | N30: 5056951.155 | O30: 5551416.506 | P30: 6094230.354 | Q30: 6690120.182 | R30: 7344275.724 | S30: 8062394.164 | T30: 8850729.752 | U30: 9716148.275 | V30: 10666186.85 | W30: 11709119.57 | X30: 12854029.57 | Y30: 14110888.11 | Z30: 15490641.45 | AA30: 17005306.16 | AB30: 18668073.79 | AC30: 20493425.74 | AD30: 22497259.4 | AE30: 24697026.6 | AF30: 27111885.59 | AG30: =SUM(AG31:AG32) -> 29762867.89 | AH30: 32673061.5 | AI30: =SUM(AI31:AI32) -> 35867811.92 | AJ30: 39374942.94 | AK30: 43224998.91 | AL30: 47451510.82 | AM30: 52091288.27 | AN30: 57184740.11 | AO30: =SUM(AO31:AO32) -> 62776226.31
A31: Average Annual Travel Costs - Auto | B31: $/year | D31: =(D27)*(timevalue_auto)*Avg_Veh_Occ -> 2025715.39 | E31: 2216298.012 | F31: 2424810.958 | G31: 2652941.144 | H31: 2902534.191 | I31: 3175609.361 | J31: 3474375.891 | K31: 3801250.864 | L31: 3557863.918 | M31: 3905749.507 | N31: 4287651.12 | O31: 4706894.82 | P31: 5167131.894 | Q31: 5672370.645 | R31: 6227011.309 | S31: 6835884.371 | T31: 7504292.64 | U31: 8238057.429 | V31: 9043569.255 | W31: 9927843.497 | X31: 10898581.49 | Y31: 11964237.61 | Z31: 13134092.88 | AA31: 14418335.82 | AB31: 15828151.2 | AC31: 17375817.39 | AD31: 19074813.36 | AE31: 20939936.04 | AF31: 22987429.19 | AG31: 25235124.87 | AH31: 27702598.75 | AI31: 30411340.6 | AJ31: 33384941.44 | AK31: 36649299.01 | AL31: 40232843.32 | AM31: 44166784.22 | AN31: 48485383.28 | AO31: =(AO27)*(timevalue_auto)*Avg_Veh_Occ -> 53226252.1
A32: Average Annual Travel Costs - Trucks | B32: $/year | D32: =(D28)*(TimeValue_truck)*Avg_Truck_Occ -> 363458.4247 | E32: 397653.1885 | F32: 435065.0517 | G32: 475996.6842 | H32: 520779.2318 | I32: 569774.9947 | J32: 623380.3593 | K32: 682029.0044 | L32: 638359.9694 | M32: 700778.3865 | N32: 769300.0353 | O32: 844521.6858 | P32: 927098.4597 | Q32: 1017749.536 | R32: 1117264.415 | S32: 1226509.793 | T32: 1346437.113 | U32: 1478090.846 | V32: 1622617.595 | W32: 1781276.074 | X32: 1955448.075 | Y32: 2146650.499 | Z32: 2356548.57 | AA32: 2586970.336 | AB32: 2839922.591 | AC32: 3117608.35 | AD32: 3422446.04 | AE32: 3757090.558 | AF32: 4124456.397 | AG32: 4527743.026 | AH32: 4970462.755 | AI32: 5456471.327 | AJ32: 5990001.498 | AK32: 6575699.897 | AL32: 7218667.499 | AM32: 7924504.05 | AN32: 8699356.834 | AO32: =(AO28)*(TimeValue_truck)*Avg_Truck_Occ -> 9549974.212
A34: Total Travel Time | B34: $/year | D34: =D30 -> 2389173.815 | E34: =E30 -> 2613951.2 | F34: 2859876.01 | G34: 3128937.828 | H34: 3423313.423 | I34: 3745384.356 | J34: 4097756.25 | K34: 4483279.869 | L34: 4196223.887 | M34: 4606527.893 | N34: 5056951.155 | O34: 5551416.506 | P34: 6094230.354 | Q34: 6690120.182 | R34: 7344275.724 | S34: 8062394.164 | T34: 8850729.752 | U34: 9716148.275 | V34: 10666186.85 | W34: 11709119.57 | X34: 12854029.57 | Y34: 14110888.11 | Z34: 15490641.45 | AA34: 17005306.16 | AB34: 18668073.79 | AC34: 20493425.74 | AD34: 22497259.4 | AE34: 24697026.6 | AF34: 27111885.59 | AG34: =AG30 -> 29762867.89 | AH34: 32673061.5 | AI34: =AI30 -> 35867811.92 | AJ34: 39374942.94 | AK34: 43224998.91 | AL34: 47451510.82 | AM34: 52091288.27 | AN34: 57184740.11 | AO34: =AO30 -> 62776226.31
A36: No Build Less Build | B36: Unit | D36: =Base.Year -> 2019 | E36: =D36+1 -> 2020 | F36: =E36+1 -> 2021 | G36: 2022 | H36: 2023 | I36: 2024 | J36: 2025 | K36: 2026 | L36: 2027 | M36: 2028 | N36: 2029 | O36: 2030 | P36: 2031 | Q36: 2032 | R36: 2033 | S36: 2034 | T36: 2035 | U36: 2036 | V36: 2037 | W36: 2038 | X36: 2039 | Y36: 2040 | Z36: 2041 | AA36: 2042 | AB36: 2043 | AC36: 2044 | AD36: 2045 | AE36: 2046 | AF36: 2047 | AG36: 2048 | AH36: 2049 | AI36: 2050 | AJ36: 2051 | AK36: 2052 | AL36: 2053 | AM36: 2054 | AN36: 2055 | AO36: 2056
A37: Undiscounted Impacts | B37: $/year | D37: =D22-D34 -> 0 | E37: 0 | F37: 0 | G37: 0 | H37: 0 | I37: 0 | J37: 0 | K37: 0 | L37: =L22-L34 -> 708850.2937 | M37: 760023.699 | N37: 814494.3996 | O37: 872424.2612 | P37: 933975.873 | Q37: 999311.1966 | R37: 1068589.951 | S37: 1141967.69 | T37: 1219593.538 | U37: 1301607.523 | V37: 1388137.456 | W37: 1479295.306 | X37: 1575172.98 | Y37: 1675837.445 | Z37: 1781325.098 | AA37: 1891635.284 | AB37: 2006722.851 | AC37: 2126489.624 | AD37: 2250774.641 | AE37: 2379343.014 | AF37: 2511873.223 | AG37: 2647942.659 | AH37: 2787011.184 | AI37: 2928402.471 | AJ37: 3071282.843 | AK37: 3214637.303 | AL37: 3357242.421 | AM37: 3497635.675 | AN37: 3634080.836 | AO37: =AO22-AO34 -> 3764528.907
A38: Discounted Impacts, at 7% | B38: $/year | D38: =D37*D6 -> 0 | E38: 0 | F38: 0 | G38: 0 | H38: 0 | I38: 0 | J38: 0 | K38: 0 | L38: 412557.3247 | M38: 413402.535 | N38: 414047.6515 | O38: 414482.4819 | P38: 414696.4572 | Q38: 414678.6189 | R38: 414417.6064 | S38: 413901.6438 | T38: 413118.5267 | U38: 412055.6081 | V38: 410699.7841 | W38: 409037.4791 | X38: 407054.6308 | Y38: 404736.6743 | Z38: 402068.5262 | AA38: 399034.5675 | AB38: 395618.6273 | AC38: 391803.9643 | AD38: 387573.249 | AE38: 382908.5452 | AF38: 377791.2901 | AG38: 372202.275 | AH38: 366121.6247 | AI38: 359528.7762 | AJ38: 352402.457 | AK38: 344720.6631 | AL38: 336460.6355 | AM38: 327598.8368 | AN38: 318110.9267 | AO38: =AO37*AO6 -> 307971.7366
A39: Discounted Impacts, at 3% | B39: $/year | D39: =D37*D7 -> 0 | E39: 0 | F39: 0 | G39: 0 | H39: 0 | I39: 0 | J39: 0 | K39: 0 | L39: 559572.9676 | M39: 582494.8799 | N39: 606060.3264 | O39: 630257.8485 | P39: 655071.8859 | Q39: 680482.2984 | R39: 706463.8434 | S39: 732985.6054 | T39: 760010.3725 | U39: 787493.9573 | V39: 815384.4562 | W39: 843621.4425 | X39: 872135.0878 | Y39: 900845.2053 | Z39: 929660.2104 | AA39: 958475.9893 | AB39: 987174.6701 | AC39: 1015623.288 | AD39: 1043672.334 | AE39: 1071154.185 | AF39: 1097881.393 | AG39: 1123644.835 | AH39: 1148211.706 | AI39: 1171323.344 | AJ39: 1192692.87 | AK39: 1212002.637 | AL39: 1228901.466 | AM39: 1243001.651 | AN39: 1253875.724 | AO39: =AO37*AO7 -> 1261052.949
A41: Key Quantified Impacts
A42: Total Travel Time Saving | B42: $/year | D42: =D37 -> 0 | E42: =E37 -> 0 | F42: =F37 -> 0 | G42: =G37 -> 0 | H42: 0 | I42: 0 | J42: 0 | K42: 0 | L42: 708850.2937 | M42: 760023.699 | N42: 814494.3996 | O42: 872424.2612 | P42: 933975.873 | Q42: 999311.1966 | R42: 1068589.951 | S42: 1141967.69 | T42: 1219593.538 | U42: 1301607.523 | V42: 1388137.456 | W42: 1479295.306 | X42: 1575172.98 | Y42: 1675837.445 | Z42: 1781325.098 | AA42: 1891635.284 | AB42: 2006722.851 | AC42: 2126489.624 | AD42: 2250774.641 | AE42: 2379343.014 | AF42: 2511873.223 | AG42: =AG37 -> 2647942.659 | AH42: 2787011.184 | AI42: =AI37 -> 2928402.471 | AJ42: 3071282.843 | AK42: 3214637.303 | AL42: 3357242.421 | AM42: 3497635.675 | AN42: 3634080.836 | AO42: =AO37 -> 3764528.907

Sheet Residual Value
A2: Residual Value
B4: Unit | C4: Value | D4: =Base.Year -> 2019 | E4: =D4+1 -> 2020 | F4: =E4+1 -> 2021 | G4: 2022 | H4: 2023 | I4: 2024 | J4: 2025 | K4: 2026 | L4: 2027 | M4: 2028 | N4: 2029 | O4: 2030 | P4: 2031 | Q4: 2032 | R4: 2033 | S4: 2034 | T4: 2035 | U4: 2036 | V4: 2037 | W4: 2038 | X4: 2039 | Y4: 2040 | Z4: 2041 | AA4: 2042 | AB4: 2043 | AC4: 2044 | AD4: 2045 | AE4: 2046 | AF4: 2047 | AG4: 2048 | AH4: 2049 | AI4: 2050 | AJ4: 2051 | AK4: 2052 | AL4: 2053 | AM4: 2054 | AN4: 2055 | AO4: 2056
A5: Benefits Index | B5: Number | D5: 0 | E5: 0 | F5: 0 | G5: 0 | H5: 0 | I5: 0 | J5: 0 | K5: 0 | L5: 1 | M5: =L5+1 -> 2 | N5: =M5+1 -> 3 | O5: =N5+1 -> 4 | P5: 5 | Q5: 6 | R5: 7 | S5: 8 | T5: 9 | U5: 10 | V5: 11 | W5: 12 | X5: 13 | Y5: 14 | Z5: 15 | AA5: 16 | AB5: =AA5+1 -> 17 | AC5: =AB5+1 -> 18 | AD5: =AC5+1 -> 19 | AE5: =AD5+1 -> 20 | AF5: =AE5+1 -> 21 | AG5: =AF5+1 -> 22 | AH5: =AG5+1 -> 23 | AI5: =AH5+1 -> 24 | AJ5: =AI5+1 -> 25 | AK5: =AJ5+1 -> 26 | AL5: =AK5+1 -> 27 | AM5: =AL5+1 -> 28 | AN5: =AM5+1 -> 29 | AO5: 30
A6: Discount Factor | B6: % | C6: 0.07 | D6: =1/(1+Real_discount_rate)^(D4-$D$4) -> 1 | E6: 0.9345794393 | F6: 0.8734387283 | G6: 0.8162978769 | H6: 0.762895212 | I6: 0.7129861795 | J6: 0.6663422238 | K6: 0.6227497419 | L6: 0.5820091046 | M6: 0.5439337426 | N6: 0.5083492921 | O6: 0.4750927964 | P6: 0.4440119592 | Q6: 0.4149644479 | R6: 0.387817241 | S6: 0.3624460196 | T6: 0.3387345978 | U6: 0.3165743905 | V6: 0.2958639163 | W6: 0.276508333 | X6: 0.2584190028 | Y6: 0.2415130867 | Z6: 0.2257131652 | AA6: 0.2109468833 | AB6: 0.1971466199 | AC6: 0.1842491775 | AD6: 0.172195493 | AE6: 0.1609303673 | AF6: 0.1504022124 | AG6: =1/(1+Real_discount_rate)^(AG4-$D$4) -> 0.1405628154 | AH6: 0.1313671172 | AI6: =1/(1+Real_discount_rate)^(AI4-$D$4) -> 0.1227730067 | AJ6: 0.1147411277 | AK6: 0.1072346988 | AL6: 0.1002193447 | AM6: 0.09366293897 | AN6: 0.08753545698 | AO6: =1/(1+Real_discount_rate)^(AO4-$D$4) -> 0.0818088383
A7: Discount Factor | B7: % | C7: 0.03 | D7: =1/(1+Real_discount_rate_Sensitivity)^(D4-$D$4) -> 1 | E7: 0.9708737864 | F7: 0.9425959091 | G7: 0.9151416594 | H7: 0.8884870479 | I7: 0.8626087844 | J7: 0.8374842567 | K7: 0.8130915113 | L7: 0.7894092343 | M7: 0.7664167323 | N7: 0.7440939149 | O7: 0.7224212766 | P7: 0.7013798802 | Q7: 0.68095134 | R7: 0.6611178058 | S7: 0.6418619474 | T7: 0.6231669392 | U7: 0.6050164458 | V7: 0.5873946076 | W7: 0.5702860268 | X7: 0.5536757542 | Y7: 0.5375492759 | Z7: 0.5218925009 | AA7: 0.5066917484 | AB7: 0.4919337363 | AC7: 0.4776055693 | AD7: 0.4636947274 | AE7: 0.4501890558 | AF7: 0.4370767532 | AG7: =1/(1+Real_discount_rate_Sensitivity)^(AG4-$D$4) -> 0.4243463623 | AH7: 0.4119867595 | AI7: =1/(1+Real_discount_rate_Sensitivity)^(AI4-$D$4) -> 0.3999871452 | AJ7: 0.3883370341 | AK7: 0.3770262467 | AL7: 0.3660448997 | AM7: 0.3553833978 | AN7: 0.3450324251 | AO7: =1/(1+Real_discount_rate_Sensitivity)^(AO4-$D$4) -> 0.3349829369
A9: Expected Lifespan of Asset | B9: year | C9: 60
A10: Last purchase year | B10: year | C10: =Project_open_year -> 2027-01-01
A11: Analysis end year | B11: year | C11: =Inputs!E8 -> 2046
A12: Time between end of construction and end of analysis | B12: year | C12: =Inputs!E7 -> 20
A14: Residual Value | B14: Unit | C14: Value | D14: =Base.Year -> 2019 | E14: =D14+1 -> 2020 | F14: =E14+1 -> 2021 | G14: 2022 | H14: 2023 | I14: 2024 | J14: 2025 | K14: 2026 | L14: 2027 | M14: 2028 | N14: 2029 | O14: 2030 | P14: 2031 | Q14: 2032 | R14: 2033 | S14: 2034 | T14: 2035 | U14: 2036 | V14: 2037 | W14: 2038 | X14: 2039 | Y14: 2040 | Z14: 2041 | AA14: 2042 | AB14: 2043 | AC14: 2044 | AD14: 2045 | AE14: 2046 | AF14: 2047 | AG14: 2048 | AH14: 2049 | AI14: 2050 | AJ14: 2051 | AK14: 2052 | AL14: 2053 | AM14: 2054 | AN14: 2055 | AO14: 2056
A16: Residual value | B16: 2018$/year | AE16: =((C9-C12)/C9)*C17 -> 68690224.04
A17: Capital Cost | B17: 2018$ | C17: ='Project Costs'!G69/DeflatorRate -> 103035336.1
A18: Depreciation Rate | B18: 2018$/year | C18: =C17/C9 -> 1717255.601
A21: Residual value - 20 years analysis | AO21: =((C9-30)/C9)*C17 -> 51517668.03
A23: Total Residual Value | B23: Unit | C23: Value | D23: =Base.Year -> 2019 | E23: =D23+1 -> 2020 | F23: =E23+1 -> 2021 | G23: 2022 | H23: 2023 | I23: 2024 | J23: 2025 | K23: 2026 | L23: 2027 | M23: 2028 | N23: 2029 | O23: 2030 | P23: 2031 | Q23: 2032 | R23: 2033 | S23: 2034 | T23: 2035 | U23: 2036 | V23: 2037 | W23: 2038 | X23: 2039 | Y23: 2040 | Z23: 2041 | AA23: 2042 | AB23: 2043 | AC23: 2044 | AD23: 2045 | AE23: 2046 | AF23: 2047 | AG23: 2048 | AH23: 2049 | AI23: 2050 | AJ23: 2051 | AK23: 2052 | AL23: 2053 | AM23: 2054 | AN23: 2055 | AO23: 2056
A24: Undiscounted Impacts | B24: $/year | D24: =D16 -> 0 | E24: 0 | F24: 0 | G24: 0 | H24: 0 | I24: 0 | J24: 0 | K24: 0 | L24: 0 | M24: 0 | N24: 0 | O24: 0 | P24: 0 | Q24: 0 | R24: 0 | S24: 0 | T24: 0 | U24: 0 | V24: 0 | W24: 0 | X24: 0 | Y24: 0 | Z24: 0 | AA24: 0 | AB24: 0 | AC24: 0 | AD24: 0 | AE24: 68690224.04 | AF24: 0 | AG24: 0 | AH24: 0 | AI24: 0 | AJ24: 0 | AK24: 0 | AL24: 0 | AM24: 0 | AN24: 0 | AO24: 0
A25: Discounted Impacts, at 7% | B25: $/year | D25: =D24*D6 -> 0 | E25: 0 | F25: 0 | G25: 0 | H25: 0 | I25: 0 | J25: 0 | K25: 0 | L25: 0 | M25: 0 | N25: 0 | O25: 0 | P25: 0 | Q25: 0 | R25: 0 | S25: 0 | T25: 0 | U25: 0 | V25: 0 | W25: 0 | X25: 0 | Y25: 0 | Z25: 0 | AA25: 0 | AB25: 0 | AC25: 0 | AD25: 0 | AE25: 11054342.98 | AF25: 0 | AG25: 0 | AH25: 0 | AI25: 0 | AJ25: 0 | AK25: 0 | AL25: 0 | AM25: 0 | AN25: 0 | AO25: 0
A26: Discounted Impacts, at 3% | B26: $/year | D26: =D24*D7 -> 0 | E26: 0 | F26: 0 | G26: 0 | H26: 0 | I26: 0 | J26: 0 | K26: 0 | L26: 0 | M26: 0 | N26: 0 | O26: 0 | P26: 0 | Q26: 0 | R26: 0 | S26: 0 | T26: 0 | U26: 0 | V26: 0 | W26: 0 | X26: 0 | Y26: 0 | Z26: 0 | AA26: 0 | AB26: 0 | AC26: 0 | AD26: 0 | AE26: 30923587.1 | AF26: 0 | AG26: 0 | AH26: 0 | AI26: 0 | AJ26: 0 | AK26: 0 | AL26: 0 | AM26: 0 | AN26: 0 | AO26: 0
A28: Key Quantified Impacts
A29: Total Residual Value | B29: $/year | D29: =D24 -> 0 | E29: 0 | F29: =F24 -> 0 | G29: =G24 -> 0 | H29: 0 | I29: 0 | J29: 0 | K29: 0 | L29: 0 | M29: 0 | N29: 0 | O29: 0 | P29: 0 | Q29: 0 | R29: 0 | S29: 0 | T29: 0 | U29: 0 | V29: 0 | W29: 0 | X29: 0 | Y29: 0 | Z29: 0 | AA29: 0 | AB29: =AB24 -> 0 | AC29: 0 | AD29: 0 | AE29: 68690224.04 | AF29: 0 | AG29: =AG24 -> 0 | AH29: 0 | AI29: =AI24 -> 0 | AJ29: 0 | AK29: 0 | AL29: 0 | AM29: 0 | AN29: 0 | AO29: =AO24 -> 0

Sheet Project Data
B2: General Data from Client
J3: Base Year | K3: 2019
B4: Case | C4: Data Input | D4: Year | F4: 2015 | G4: 2016 | H4: 2017 | I4: 2018 | J4: =Base.Year -> 2019 | K4: =J4+1 -> 2020 | L4: =K4+1 -> 2021 | M4: 2022 | N4: 2023 | O4: 2024 | P4: 2025 | Q4: 2026 | R4: 2027 | S4: 2028 | T4: 2029 | U4: 2030 | V4: 2031 | W4: 2032 | X4: 2033 | Y4: 2034 | Z4: 2035 | AA4: 2036 | AB4: 2037 | AC4: 2038 | AD4: 2039 | AE4: 2040 | AF4: =AE4+1 -> 2041 | AG4: =AF4+1 -> 2042 | AH4: =AG4+1 -> 2043 | AI4: =AH4+1 -> 2044 | AJ4: 2045 | AK4: =AJ4+1 -> 2046 | AL4: =AK4+1 -> 2047 | AM4: =AL4+1 -> 2048 | AN4: =AM4+1 -> 2049 | AO4: =AN4+1 -> 2050 | AP4: =AO4+1 -> 2051 | AQ4: =AP4+1 -> 2052 | AR4: =AQ4+1 -> 2053 | AS4: =AR4+1 -> 2054 | AT4: =AS4+1 -> 2055 | AU4: 2056
D5: Benefits Index | J5: 0 | K5: 0 | L5: 0 | M5: 0 | N5: 0 | O5: 0 | P5: 0 | Q5: 0 | R5: 1 | S5: 2 | T5: 3 | U5: 4 | V5: 5 | W5: 6 | X5: 7 | Y5: 8 | Z5: 9 | AA5: 10 | AB5: 11 | AC5: 12 | AD5: 13 | AE5: 14 | AF5: 15 | AG5: 16 | AH5: 17 | AI5: 18 | AJ5: 19 | AK5: 20 | AL5: 21 | AM5: 22 | AN5: 23 | AO5: 24 | AP5: 25 | AQ5: 26 | AR5: 27 | AS5: 28 | AT5: 29 | AU5: 30
D6: Discount Factor | E6: 0.07 | F6: =1/(1+$E$6)^(F4-$K$3) -> 1.31079601 | G6: =1/(1+$E$6)^(G4-$K$3) -> 1.225043 | H6: 1.1449 | I6: 1.07 | J6: =1/(1+$E$6)^(J4-$K$3) -> 1 | K6: 0.9345794393 | L6: 0.8734387283 | M6: 0.8162978769 | N6: 0.762895212 | O6: 0.7129861795 | P6: 0.6663422238 | Q6: 0.6227497419 | R6: 0.5820091046 | S6: 0.5439337426 | T6: 0.5083492921 | U6: 0.4750927964 | V6: 0.4440119592 | W6: 0.4149644479 | X6: 0.387817241 | Y6: 0.3624460196 | Z6: 0.3387345978 | AA6: 0.3165743905 | AB6: 0.2958639163 | AC6: 0.276508333 | AD6: 0.2584190028 | AE6: 0.2415130867 | AF6: 0.2257131652 | AG6: 0.2109468833 | AH6: 0.1971466199 | AI6: 0.1842491775 | AJ6: 0.172195493 | AK6: 0.1609303673 | AL6: 0.1504022124 | AM6: =1/(1+$E$6)^(AM4-$K$3) -> 0.1405628154 | AN6: 0.1313671172 | AO6: 0.1227730067 | AP6: 0.1147411277 | AQ6: 0.1072346988 | AR6: 0.1002193447 | AS6: 0.09366293897 | AT6: 0.08753545698 | AU6: =1/(1+$E$6)^(AU4-$K$3) -> 0.0818088383
D7: Discount Factor | E7: 0.03 | F7: =1/(1+$E$7)^(F4-$K$3) -> 1.12550881 | G7: =1/(1+$E$7)^(G4-$K$3) -> 1.092727 | H7: 1.0609 | I7: 1.03 | J7: =1/(1+$E$7)^(J4-$K$3) -> 1 | K7: 0.9708737864 | L7: 0.9425959091 | M7: 0.9151416594 | N7: 0.8884870479 | O7: 0.8626087844 | P7: 0.8374842567 | Q7: 0.8130915113 | R7: 0.7894092343 | S7: 0.7664167323 | T7: 0.7440939149 | U7: 0.7224212766 | V7: 0.7013798802 | W7: 0.68095134 | X7: 0.6611178058 | Y7: 0.6418619474 | Z7: 0.6231669392 | AA7: 0.6050164458 | AB7: 0.5873946076 | AC7: 0.5702860268 | AD7: 0.5536757542 | AE7: 0.5375492759 | AF7: 0.5218925009 | AG7: 0.5066917484 | AH7: 0.4919337363 | AI7: 0.4776055693 | AJ7: 0.4636947274 | AK7: 0.4501890558 | AL7: 0.4370767532 | AM7: =1/(1+$E$7)^(AM4-$K$3) -> 0.4243463623 | AN7: 0.4119867595 | AO7: 0.3999871452 | AP7: 0.3883370341 | AQ7: 0.3770262467 | AR7: 0.3660448997 | AS7: 0.3553833978 | AT7: 0.3450324251 | AU7: =1/(1+$E$7)^(AU4-$K$3) -> 0.3349829369
C9: Capital Expenditures (2018$/year)
B11: Build | C11: Previously Incurred Costs | F11: ='Project Costs'!D75 -> 196940.0771 | G11: ='Project Costs'!D76 -> 1357970.594 | H11: ='Project Costs'!D77 -> 2601733.217 | I11: ='Project Costs'!D78 -> 1335785 | J11: =SUM(G11:I11) -> 5295488.812
B12: Build | C12: Construction Cost | J12: =(SUMIF('Project Costs'!$B$36:$B$68,'Project Data'!J4,'Project Costs'!$G$36:$G$68))/DeflatorRate -> 0 | K12: =(SUMIF('Project Costs'!$B$36:$B$68,'Project Data'!K4,'Project Costs'!$G$36:$G$68))/DeflatorRate -> 0 | L12: =(SUMIF('Project Costs'!$B$36:$B$68,'Project Data'!L4,'Project Costs'!$G$36:$G$68))/DeflatorRate -> 0 | M12: =(SUMIF('Project Costs'!$B$36:$B$68,'Project Data'!M4,'Project Costs'!$G$36:$G$68))/DeflatorRate -> 0 | N12: =(SUMIF('Project Costs'!$B$36:$B$68,'Project Data'!N4,'Project Costs'!$G$36:$G$68))/DeflatorRate -> 19810423.48 | O12: =(SUMIF('Project Costs'!$B$36:$B$68,'Project Data'!O4,'Project Costs'!$G$36:$G$68))/DeflatorRate -> 26643375.7 | P12: =(SUMIF('Project Costs'!$B$36:$B$68,'Project Data'!P4,'Project Costs'!$G$36:$G$68))/DeflatorRate -> 34476307.33 | Q12: =(SUMIF('Project Costs'!$B$36:$B$68,'Project Data'!Q4,'Project Costs'!$G$36:$G$68))/DeflatorRate -> 22105229.55 | R12: =(SUMIF('Project Costs'!$B$36:$B$68,'Project Data'!R4,'Project Costs'!$G$36:$G$68))/DeflatorRate -> 0 | S12: =(SUMIF('Project Costs'!$B$36:$B$68,'Project Data'!S4,'Project Costs'!$G$36:$G$68))/DeflatorRate -> 0 | T12: =(SUMIF('Project Costs'!$B$36:$B$68,'Project Data'!T4,'Project Costs'!$G$36:$G$68))/DeflatorRate -> 0 | U12: =(SUMIF('Project Costs'!$B$36:$B$68,'Project Data'!U4,'Project Costs'!$G$36:$G$68))/DeflatorRate -> 0 | V12: =(SUMIF('Project Costs'!$B$36:$B$68,'Project Data'!V4,'Project Costs'!$G$36:$G$68))/DeflatorRate -> 0 | W12: =(SUMIF('Project Costs'!$B$36:$B$68,'Project Data'!W4,'Project Costs'!$G$36:$G$68))/DeflatorRate -> 0 | X12: =(SUMIF('Project Costs'!$B$36:$B$68,'Project Data'!X4,'Project Costs'!$G$36:$G$68))/DeflatorRate -> 0 | Y12: =(SUMIF('Project Costs'!$B$36:$B$68,'Project Data'!Y4,'Project Costs'!$G$36:$G$68))/DeflatorRate -> 0 | Z12: =(SUMIF('Project Costs'!$B$36:$B$68,'Project Data'!Z4,'Project Costs'!$G$36:$G$68))/DeflatorRate -> 0 | AA12: =(SUMIF('Project Costs'!$B$36:$B$68,'Project Data'!AA4,'Project Costs'!$G$36:$G$68))/DeflatorRate -> 0 | AB12: =(SUMIF('Project Costs'!$B$36:$B$68,'Project Data'!AB4,'Project Costs'!$G$36:$G$68))/DeflatorRate -> 0 | AC12: =(SUMIF('Project Costs'!$B$36:$B$68,'Project Data'!AC4,'Project Costs'!$G$36:$G$68))/DeflatorRate -> 0 | AD12: =(SUMIF('Project Costs'!$B$36:$B$68,'Project Data'!AD4,'Project Costs'!$G$36:$G$68))/DeflatorRate -> 0 | AE12: =(SUMIF('Project Costs'!$B$36:$B$68,'Project Data'!AE4,'Project Costs'!$G$36:$G$68))/DeflatorRate -> 0 | AF12: =(SUMIF('Project Costs'!$B$36:$B$68,'Project Data'!AF4,'Project Costs'!$G$36:$G$68))/DeflatorRate -> 0 | AG12: =(SUMIF('Project Costs'!$B$36:$B$68,'Project Data'!AG4,'Project Costs'!$G$36:$G$68))/DeflatorRate -> 0 | AH12: =(SUMIF('Project Costs'!$B$36:$B$68,'Project Data'!AH4,'Project Costs'!$G$36:$G$68))/DeflatorRate -> 0 | AI12: =(SUMIF('Project Costs'!$B$36:$B$68,'Project Data'!AI4,'Project Costs'!$G$36:$G$68))/DeflatorRate -> 0 | AJ12: =(SUMIF('Project Costs'!$B$36:$B$68,'Project Data'!AJ4,'Project Costs'!$G$36:$G$68))/DeflatorRate -> 0 | AK12: =(SUMIF('Project Costs'!$B$36:$B$68,'Project Data'!AK4,'Project Costs'!$G$36:$G$68))/DeflatorRate -> 0 | AL12: =(SUMIF('Project Costs'!$B$36:$B$68,'Project Data'!AL4,'Project Costs'!$G$36:$G$68))/DeflatorRate -> 0 | AM12: =(SUMIF('Project Costs'!$B$36:$B$68,'Project Data'!AM4,'Project Costs'!$G$36:$G$68))/DeflatorRate -> 0 | AN12: =(SUMIF('Project Costs'!$B$36:$B$68,'Project Data'!AN4,'Project Costs'!$G$36:$G$68))/DeflatorRate -> 0 | AO12: =(SUMIF('Project Costs'!$B$36:$B$68,'Project Data'!AO4,'Project Costs'!$G$36:$G$68))/DeflatorRate -> 0 | AP12: =(SUMIF('Project Costs'!$B$36:$B$68,'Project Data'!AP4,'Project Costs'!$G$36:$G$68))/DeflatorRate -> 0 | AQ12: =(SUMIF('Project Costs'!$B$36:$B$68,'Project Data'!AQ4,'Project Costs'!$G$36:$G$68))/DeflatorRate -> 0 | AR12: =(SUMIF('Project Costs'!$B$36:$B$68,'Project Data'!AR4,'Project Costs'!$G$36:$G$68))/DeflatorRate -> 0 | AS12: =(SUMIF('Project Costs'!$B$36:$B$68,'Project Data'!AS4,'Project Costs'!$G$36:$G$68))/DeflatorRate -> 0 | AT12: =(SUMIF('Project Costs'!$B$36:$B$68,'Project Data'!AT4,'Project Costs'!$G$36:$G$68))/DeflatorRate -> 0 | AU12: =(SUMIF('Project Costs'!$B$36:$B$68,'Project Data'!AU4,'Project Costs'!$G$36:$G$68))/DeflatorRate -> 0
B14: Build | C14: Total Estimated Cost | J14: =SUM(J11:J12) -> 5295488.812 | K14: =SUM(K11:K12) -> 0 | L14: 0 | M14: 0 | N14: 19810423.48 | O14: 26643375.7 | P14: 34476307.33 | Q14: 22105229.55 | R14: 0 | S14: 0 | T14: 0 | U14: 0 | V14: 0 | W14: 0 | X14: 0 | Y14: 0 | Z14: 0 | AA14: 0 | AB14: 0 | AC14: 0 | AD14: 0 | AE14: 0 | AF14: 0 | AG14: 0 | AH14: 0 | AI14: 0 | AJ14: 0 | AK14: 0 | AL14: 0 | AM14: 0 | AN14: 0 | AO14: 0 | AP14: 0 | AQ14: 0 | AR14: 0 | AS14: 0 | AT14: 0 | AU14: =SUM(AU11:AU12) -> 0
C15: Total Estimated Cost Discounted at 7% | J15: =J28 -> 6329734.948 | K15: =K14*K6 -> 0 | L15: 0 | M15: 0 | N15: 15113277.22 | O15: 18996358.65 | P15: 22973019.3 | Q15: 13766026 | R15: 0 | S15: 0 | T15: 0 | U15: 0 | V15: 0 | W15: 0 | X15: 0 | Y15: 0 | Z15: 0 | AA15: 0 | AB15: 0 | AC15: 0 | AD15: 0 | AE15: 0 | AF15: 0 | AG15: 0 | AH15: 0 | AI15: 0 | AJ15: 0 | AK15: 0 | AL15: 0 | AM15: 0 | AN15: 0 | AO15: 0 | AP15: 0 | AQ15: 0 | AR15: 0 | AS15: 0 | AT15: 0 | AU15: 0
C17: Operations and Maintenance (O&M) Expenditures (2018$/year)
B19: Build | C19: Total O&M Costs | J19: =SUMIF('Project Costs'!$B$36:$B$68,'Project Data'!J4,'Project Costs'!$H$36:$H$68)/DeflatorRate -> 0 | K19: =SUMIF('Project Costs'!$B$36:$B$68,'Project Data'!K4,'Project Costs'!$H$36:$H$68)/DeflatorRate -> 0 | L19: =SUMIF('Project Costs'!$B$36:$B$68,'Project Data'!L4,'Project Costs'!$H$36:$H$68)/DeflatorRate -> 0 | M19: =SUMIF('Project Costs'!$B$36:$B$68,'Project Data'!M4,'Project Costs'!$H$36:$H$68)/DeflatorRate -> 0 | N19: =SUMIF('Project Costs'!$B$36:$B$68,'Project Data'!N4,'Project Costs'!$H$36:$H$68)/DeflatorRate -> 0 | O19: =SUMIF('Project Costs'!$B$36:$B$68,'Project Data'!O4,'Project Costs'!$H$36:$H$68)/DeflatorRate -> 0 | P19: =SUMIF('Project Costs'!$B$36:$B$68,'Project Data'!P4,'Project Costs'!$H$36:$H$68)/DeflatorRate -> 0 | Q19: =SUMIF('Project Costs'!$B$36:$B$68,'Project Data'!Q4,'Project Costs'!$H$36:$H$68)/DeflatorRate -> 961981.165 | R19: =SUMIF('Project Costs'!$B$36:$B$68,'Project Data'!R4,'Project Costs'!$H$36:$H$68)/DeflatorRate -> 0 | S19: =SUMIF('Project Costs'!$B$36:$B$68,'Project Data'!S4,'Project Costs'!$H$36:$H$68)/DeflatorRate -> 0 | T19: =SUMIF('Project Costs'!$B$36:$B$68,'Project Data'!T4,'Project Costs'!$H$36:$H$68)/DeflatorRate -> 0 | U19: =SUMIF('Project Costs'!$B$36:$B$68,'Project Data'!U4,'Project Costs'!$H$36:$H$68)/DeflatorRate -> 0 | V19: =SUMIF('Project Costs'!$B$36:$B$68,'Project Data'!V4,'Project Costs'!$H$36:$H$68)/DeflatorRate -> 0 | W19: =SUMIF('Project Costs'!$B$36:$B$68,'Project Data'!W4,'Project Costs'!$H$36:$H$68)/DeflatorRate -> 0 | X19: =SUMIF('Project Costs'!$B$36:$B$68,'Project Data'!X4,'Project Costs'!$H$36:$H$68)/DeflatorRate -> 0 | Y19: =SUMIF('Project Costs'!$B$36:$B$68,'Project Data'!Y4,'Project Costs'!$H$36:$H$68)/DeflatorRate -> 0 | Z19: =SUMIF('Project Costs'!$B$36:$B$68,'Project Data'!Z4,'Project Costs'!$H$36:$H$68)/DeflatorRate -> 0 | AA19: =SUMIF('Project Costs'!$B$36:$B$68,'Project Data'!AA4,'Project Costs'!$H$36:$H$68)/DeflatorRate -> 0 | AB19: =SUMIF('Project Costs'!$B$36:$B$68,'Project Data'!AB4,'Project Costs'!$H$36:$H$68)/DeflatorRate -> 0 | AC19: =SUMIF('Project Costs'!$B$36:$B$68,'Project Data'!AC4,'Project Costs'!$H$36:$H$68)/DeflatorRate -> 0 | AD19: =SUMIF('Project Costs'!$B$36:$B$68,'Project Data'!AD4,'Project Costs'!$H$36:$H$68)/DeflatorRate -> 0 | AE19: =SUMIF('Project Costs'!$B$36:$B$68,'Project Data'!AE4,'Project Costs'!$H$36:$H$68)/DeflatorRate -> 0 | AF19: =SUMIF('Project Costs'!$B$36:$B$68,'Project Data'!AF4,'Project Costs'!$H$36:$H$68)/DeflatorRate -> 0 | AG19: =SUMIF('Project Costs'!$B$36:$B$68,'Project Data'!AG4,'Project Costs'!$H$36:$H$68)/DeflatorRate -> 0 | AH19: =SUMIF('Project Costs'!$B$36:$B$68,'Project Data'!AH4,'Project Costs'!$H$36:$H$68)/DeflatorRate -> 0 | AI19: =SUMIF('Project Costs'!$B$36:$B$68,'Project Data'!AI4,'Project Costs'!$H$36:$H$68)/DeflatorRate -> 0 | AJ19: =SUMIF('Project Costs'!$B$36:$B$68,'Project Data'!AJ4,'Project Costs'!$H$36:$H$68)/DeflatorRate -> 5290896.407 | AK19: =SUMIF('Project Costs'!$B$36:$B$68,'Project Data'!AK4,'Project Costs'!$H$36:$H$68)/DeflatorRate -> 0 | AL19: =SUMIF('Project Costs'!$B$36:$B$68,'Project Data'!AL4,'Project Costs'!$H$36:$H$68)/DeflatorRate -> 0 | AM19: =SUMIF('Project Costs'!$B$36:$B$68,'Project Data'!AM4,'Project Costs'!$H$36:$H$68)/DeflatorRate -> 0 | AN19: =SUMIF('Project Costs'!$B$36:$B$68,'Project Data'!AN4,'Project Costs'!$H$36:$H$68)/DeflatorRate -> 0 | AO19: =SUMIF('Project Costs'!$B$36:$B$68,'Project Data'!AO4,'Project Costs'!$H$36:$H$68)/DeflatorRate -> 5290896.407 | AP19: =SUMIF('Project Costs'!$B$36:$B$68,'Project Data'!AP4,'Project Costs'!$H$36:$H$68)/DeflatorRate -> 0 | AQ19: =SUMIF('Project Costs'!$B$36:$B$68,'Project Data'!AQ4,'Project Costs'!$H$36:$H$68)/DeflatorRate -> 0 | AR19: =SUMIF('Project Costs'!$B$36:$B$68,'Project Data'!AR4,'Project Costs'!$H$36:$H$68)/DeflatorRate -> 0 | AS19: =SUMIF('Project Costs'!$B$36:$B$68,'Project Data'!AS4,'Project Costs'!$H$36:$H$68)/DeflatorRate -> 0 | AT19: =SUMIF('Project Costs'!$B$36:$B$68,'Project Data'!AT4,'Project Costs'!$H$36:$H$68)/DeflatorRate -> 0 | AU19: =SUMIF('Project Costs'!$B$36:$B$68,'Project Data'!AU4,'Project Costs'!$H$36:$H$68)/DeflatorRate -> 0
C20: Total O&M Costs Discounted at 7% | J20: =J19*J6 -> 0 | K20: =K19*K6 -> 0 | L20: 0 | M20: 0 | N20: 0 | O20: 0 | P20: 0 | Q20: 599073.5222 | R20: 0 | S20: 0 | T20: 0 | U20: 0 | V20: 0 | W20: 0 | X20: 0 | Y20: 0 | Z20: 0 | AA20: 0 | AB20: 0 | AC20: 0 | AD20: 0 | AE20: 0 | AF20: 0 | AG20: 0 | AH20: 0 | AI20: 0 | AJ20: 911068.5153 | AK20: 0 | AL20: 0 | AM20: 0 | AN20: 0 | AO20: 649579.26 | AP20: 0 | AQ20: 0 | AR20: 0 | AS20: 0 | AT20: 0 | AU20: 0
C22: Operations and Maintenance (O&M) Expenditures (2018$/year)
B24: No-Build | C24: Total O&M Costs | J24: =SUMIF('Project Costs'!$B$7:$B$28,'Project Data'!J4,'Project Costs'!$F$7:$F$28)/DeflatorRate -> 0 | K24: =SUMIF('Project Costs'!$B$7:$B$28,'Project Data'!K4,'Project Costs'!$F$7:$F$28)/DeflatorRate -> 0 | L24: =SUMIF('Project Costs'!$B$7:$B$28,'Project Data'!L4,'Project Costs'!$F$7:$F$28)/DeflatorRate -> 0 | M24: =SUMIF('Project Costs'!$B$7:$B$28,'Project Data'!M4,'Project Costs'!$F$7:$F$28)/DeflatorRate -> 0 | N24: =SUMIF('Project Costs'!$B$7:$B$28,'Project Data'!N4,'Project Costs'!$F$7:$F$28)/DeflatorRate -> 0 | O24: =SUMIF('Project Costs'!$B$7:$B$28,'Project Data'!O4,'Project Costs'!$F$7:$F$28)/DeflatorRate -> 0 | P24: =SUMIF('Project Costs'!$B$7:$B$28,'Project Data'!P4,'Project Costs'!$F$7:$F$28)/DeflatorRate -> 0 | Q24: =SUMIF('Project Costs'!$B$7:$B$28,'Project Data'!Q4,'Project Costs'!$F$7:$F$28)/DeflatorRate -> 7311056.854 | R24: =SUMIF('Project Costs'!$B$7:$B$28,'Project Data'!R4,'Project Costs'!$F$7:$F$28)/DeflatorRate -> 0 | S24: =SUMIF('Project Costs'!$B$7:$B$28,'Project Data'!S4,'Project Costs'!$F$7:$F$28)/DeflatorRate -> 0 | T24: =SUMIF('Project Costs'!$B$7:$B$28,'Project Data'!T4,'Project Costs'!$F$7:$F$28)/DeflatorRate -> 0 | U24: =SUMIF('Project Costs'!$B$7:$B$28,'Project Data'!U4,'Project Costs'!$F$7:$F$28)/DeflatorRate -> 6349075.689 | V24: =SUMIF('Project Costs'!$B$7:$B$28,'Project Data'!V4,'Project Costs'!$F$7:$F$28)/DeflatorRate -> 0 | W24: =SUMIF('Project Costs'!$B$7:$B$28,'Project Data'!W4,'Project Costs'!$F$7:$F$28)/DeflatorRate -> 0 | X24: =SUMIF('Project Costs'!$B$7:$B$28,'Project Data'!X4,'Project Costs'!$F$7:$F$28)/DeflatorRate -> 0 | Y24: =SUMIF('Project Costs'!$B$7:$B$28,'Project Data'!Y4,'Project Costs'!$F$7:$F$28)/DeflatorRate -> 0 | Z24: =SUMIF('Project Costs'!$B$7:$B$28,'Project Data'!Z4,'Project Costs'!$F$7:$F$28)/DeflatorRate -> 6349075.689 | AA24: =SUMIF('Project Costs'!$B$7:$B$28,'Project Data'!AA4,'Project Costs'!$F$7:$F$28)/DeflatorRate -> 0 | AB24: =SUMIF('Project Costs'!$B$7:$B$28,'Project Data'!AB4,'Project Costs'!$F$7:$F$28)/DeflatorRate -> 0 | AC24: =SUMIF('Project Costs'!$B$7:$B$28,'Project Data'!AC4,'Project Costs'!$F$7:$F$28)/DeflatorRate -> 0 | AD24: =SUMIF('Project Costs'!$B$7:$B$28,'Project Data'!AD4,'Project Costs'!$F$7:$F$28)/DeflatorRate -> 0 | AE24: =SUMIF('Project Costs'!$B$7:$B$28,'Project Data'!AE4,'Project Costs'!$F$7:$F$28)/DeflatorRate -> 5387094.524 | AF24: =SUMIF('Project Costs'!$B$7:$B$28,'Project Data'!AF4,'Project Costs'!$F$7:$F$28)/DeflatorRate -> 0 | AG24: =SUMIF('Project Costs'!$B$7:$B$28,'Project Data'!AG4,'Project Costs'!$F$7:$F$28)/DeflatorRate -> 0 | AH24: =SUMIF('Project Costs'!$B$7:$B$28,'Project Data'!AH4,'Project Costs'!$F$7:$F$28)/DeflatorRate -> 0 | AI24: =SUMIF('Project Costs'!$B$7:$B$28,'Project Data'!AI4,'Project Costs'!$F$7:$F$28)/DeflatorRate -> 0 | AJ24: =SUMIF('Project Costs'!$B$7:$B$28,'Project Data'!AJ4,'Project Costs'!$F$7:$F$28)/DeflatorRate -> 5387094.524 | AK24: =SUMIF('Project Costs'!$B$7:$B$28,'Project Data'!AK4,'Project Costs'!$F$7:$F$28)/DeflatorRate -> 0 | AL24: =SUMIF('Project Costs'!$B$7:$B$28,'Project Data'!AL4,'Project Costs'!$F$7:$F$28)/DeflatorRate -> 0 | AM24: =SUMIF('Project Costs'!$B$7:$B$28,'Project Data'!AM4,'Project Costs'!$F$7:$F$28)/DeflatorRate -> 0 | AN24: =SUMIF('Project Costs'!$B$7:$B$28,'Project Data'!AN4,'Project Costs'!$F$7:$F$28)/DeflatorRate -> 0 | AO24: =SUMIF('Project Costs'!$B$7:$B$28,'Project Data'!AO4,'Project Costs'!$F$7:$F$28)/DeflatorRate -> 15006906.17 | AP24: =SUMIF('Project Costs'!$B$7:$B$28,'Project Data'!AP4,'Project Costs'!$F$7:$F$28)/DeflatorRate -> 0 | AQ24: =SUMIF('Project Costs'!$B$7:$B$28,'Project Data'!AQ4,'Project Costs'!$F$7:$F$28)/DeflatorRate -> 0 | AR24: =SUMIF('Project Costs'!$B$7:$B$28,'Project Data'!AR4,'Project Costs'!$F$7:$F$28)/DeflatorRate -> 0 | AS24: =SUMIF('Project Costs'!$B$7:$B$28,'Project Data'!AS4,'Project Costs'!$F$7:$F$28)/DeflatorRate -> 0 | AT24: =SUMIF('Project Costs'!$B$7:$B$28,'Project Data'!AT4,'Project Costs'!$F$7:$F$28)/DeflatorRate -> 0 | AU24: =SUMIF('Project Costs'!$B$7:$B$28,'Project Data'!AU4,'Project Costs'!$F$7:$F$28)/DeflatorRate -> 0
C25: Total O&M Costs Discounted at 7% | J25: =J24*J6 -> 0 | K25: 0 | L25: 0 | M25: 0 | N25: 0 | O25: 0 | P25: 0 | Q25: 4552958.769 | R25: 0 | S25: 0 | T25: 0 | U25: 3016400.124 | V25: 0 | W25: 0 | X25: 0 | Y25: 0 | Z25: 2150651.6 | AA25: 0 | AB25: 0 | AC25: 0 | AD25: 0 | AE25: 1301053.827 | AF25: 0 | AG25: 0 | AH25: 0 | AI25: 0 | AJ25: 927633.3974 | AK25: 0 | AL25: 0 | AM25: 0 | AN25: 0 | AO25: 1842442.992 | AP25: 0 | AQ25: 0 | AR25: 0 | AS25: 0 | AT25: 0 | AU25: 0
C28: Previously incurred costs discounted to 2019 at 7% | J28: =F11*F6+G11*G6+H11*H6+I11*I6 -> 6329734.948
C29: Previously incurred costs discounted to 2019 at 3% | J29: =F11*F7+G11*G7+H11*H7+I11*I7 -> 5841586.246

Sheet Project Costs
B2: PROJECT COSTS
B3: All figures in 2020$ | C3: unless stated otherwise
B5: Year | C5: No-Build | G5: BUILD
C6: Maint & Rehab Costs for I-40 | D6: Bridge Rehab Costs | E6: Bridge Damage repair | F6: TOTAL | G6: Capital Costs | H6: Maintenance | I6: TOTAL
B7: 2016 | F7: =SUM(C7:E7) -> 0 | I7: =SUM(G7:H7) -> 0
B8: 2017 | F8: 0 | I8: 0
B9: 2018 | F9: 0 | I9: 0
B10: 2019 | F10: 0 | I10: 0
B11: 2020 | F11: 0 | I11: 0
B12: 2021 | F12: 0 | I12: 0
B13: 2022 | F13: 0 | I13: 0
B14: 2023 | F14: 0 | G14: 20593359 | I14: 20593359
B15: 2024 | F15: 0 | G15: 27696359 | I15: 27696359
B16: 2025 | F16: 0 | G16: 35838859 | I16: 35838859
B17: =B16+1 -> 2026 | C17: 5500000 | D17: 2000000 | E17: 100000 | F17: 7600000 | G17: 22978859 | H17: 1000000 | I17: 23978859
B18: =B17+1 -> 2027 | F18: 0 | I18: 0
B19: 2028 | F19: 0 | I19: 0
B20: 2030 | C20: 5500000 | D20: 1000000 | E20: 100000 | F20: 6600000 | I20: 0
B21: 2035 | C21: 5500000 | D21: 1000000 | E21: 100000 | F21: 6600000 | I21: 0
B22: 2040 | C22: 5500000 | E22: 100000 | F22: 5600000 | I22: 0
B23: 2041 | F23: 0 | I23: 0
B24: 2045 | C24: 5500000 | E24: 100000 | F24: 5600000 | H24: 5500000 | I24: 5500000
B25: 2050 | C25: 5500000 | D25: 10000000 | E25: 100000 | F25: 15600000 | H25: 5500000 | I25: 5500000
B26: 2055 | F26: 0 | I26: 0
B27: 2060 | F27: 0 | I27: 0
B28: 2061 | F28: 0 | I28: 0
B29: TOTAL | C29: =SUM(C7:C25) -> 33000000 | D29: 14000000 | E29: 600000 | F29: =SUM(F7:F25) -> 47600000 | G29: =SUM(G7:G28) -> 107107436 | H29: =SUM(H7:H24) -> 6500000 | I29: =SUM(I7:I24) -> 113607436
F30: Previously spent | G30: =C79 -> 5363421.571
F31: GRAND TOTAL | G31: =G29+G30 -> 112470857.6
C34: No-Build | G34: Build
C35: Maint & Rehab Costs for I-40 | D35: Bridge Rehab and Repair | E35: TOTAL | G35: Capital Costs | H35: Maintenance | I35: TOTAL
B36: 2023 | E36: =+D36+C36 -> 0 | G36: =+G14 -> 20593359 | I36: =+H36+G36 -> 20593359
B37: =+B36+1 -> 2024 | E37: 0 | G37: =+G15 -> 27696359 | I37: 27696359
B38: =+B37+1 -> 2025 | C38: =+C16 -> 0 | D38: =+D16+E16 -> 0 | E38: 0 | G38: =+G16 -> 35838859 | I38: 35838859
B39: 2026 | C39: =C17 -> 5500000 | D39: =D17+E17 -> 2100000 | E39: 7600000 | G39: =+G17 -> 22978859 | H39: =H17 -> 1000000 | I39: 23978859
B40: 2027 | E40: 0
B41: 2028 | E41: 0
B42: 2029 | E42: 0
B43: 2030 | C43: =+C20 -> 5500000 | D43: =D20+E20 -> 1100000 | E43: 6600000
B44: 2031 | E44: 0
B45: 2032 | E45: 0
B46: 2033 | E46: 0
B47: 2034 | E47: 0
B48: 2035 | C48: =+C21 -> 5500000 | D48: =+D21+E21 -> 1100000 | E48: 6600000
B49: 2036 | E49: 0
B50: 2037 | E50: 0
B51: 2038 | E51: 0
B52: 2039 | E52: 0
B53: 2040 | C53: =+C22 -> 5500000 | D53: =+D22+E22 -> 100000 | E53: 5600000
B54: 2041 | E54: 0
B55: 2042 | E55: 0
B56: 2043 | E56: 0
B57: 2044 | E57: 0
B58: 2045 | C58: =+C24 -> 5500000 | D58: =+D24+E24 -> 100000 | E58: 5600000 | H58: =H24 -> 5500000 | I58: 5500000
B59: 2046 | E59: 0
B60: 2047 | E60: 0
B61: 2048 | E61: 0
B62: 2049 | E62: 0
B63: 2050 | C63: =+C58 -> 5500000 | E63: 5500000 | H63: =H25 -> 5500000 | I63: 5500000
B64: 2051
B65: 2052
B66: 2053
B67: 2054
B68: 2055
B69: TOTAL | C69: =SUM(C36:C68) -> 33000000 | D69: =SUM(D36:D68) -> 4500000 | E69: =SUM(E36:E68) -> 37500000 | G69: =SUM(G36:G68) -> 107107436 | H69: =SUM(H36:H68) -> 12000000 | I69: =SUM(I36:I68) -> 119107436
A72: PREVIOUSLY INCURRED COSTS
B74: YEAR | C74: AMOUNT | D74: amount in 2018 $$
B75: 2015 | C75: 186761.5714 | D75: =C75*Inputs!E13 -> 196940.0771
B76: 2016 | C76: 1301112 | D76: =C76*Inputs!E14 -> 1357970.594
B77: 2017 | C77: 2539763 | D77: =C77*Inputs!E15 -> 2601733.217
B78: 2018 | C78: 1335785 | D78: =C78 -> 1335785
B79: TOTAL | C79: =SUM(C75:C78) -> 5363421.571 | D79: =SUM(D75:D78) -> 5492428.889
A82: PROJECT COSTS BY COMPONENT
B84: Reconstruction of Douglas Interchange
B86: I-40 Mainline WB Lanes Bridge over Anderson
B88: I-40 Mainline EB Lanes Bridge over Anderson

Sheet Traffic Projection
A1: Traffic Projection
B3: Estimated Hourly Volumes
B5: TIME | C5: Industrial - Douglas (BUILD) | G5: Between Douglas and Anderson | K5: Between Anderson and I-240
C6: 2015 | E6: 2045 | G6: 2015 | I6: 2045 | K6: 2015 | M6: 2045
C7: EB | D7: WB | E7: EB | F7: WB | G7: EB | H7: WB | I7: EB | J7: WB | K7: EB | L7: WB | M7: EB | N7: WB
B8: 00:00 | C8: 428.8359981 | D8: 519.1006408 | E8: 661.409971 | F8: 801.4813944 | G8: 345.7545706 | H8: 423.7243548 | I8: 514.2906294 | J8: 630.2236788 | K8: 298.3869662 | L8: 367.3849274 | M8: 438.0779869 | N8: 539.3498325
B9: 01:00 | C9: 230.9116913 | D9: 291.2659456 | E9: 356.1438305 | F9: 449.7090118 | G9: 186.175538 | H9: 237.7505732 | I9: 276.9257235 | J9: 353.6167774 | K9: 160.6699049 | L9: 206.138675 | M9: 235.8881468 | N9: 302.6277115
B10: 02:00 | C10: 94.46387371 | D10: 47.8970666 | E10: 145.6952034 | F10: 73.95214861 | G10: 76.1627201 | H10: 39.09676092 | I10: 113.287796 | J10: 58.1503145 | K10: 65.72859745 | L10: 33.89835988 | M10: 96.49969642 | N10: 49.76544589
B11: 03:00 | C11: 88.46616744 | D11: 71.19834225 | E11: 136.4447143 | F11: 109.9288696 | G11: 71.32699184 | H11: 58.11680677 | I11: 106.0949201 | J11: 86.43965669 | K11: 61.55535317 | L11: 50.38945388 | M11: 90.37273157 | N11: 73.97566281
B12: 04:00 | C12: 89.96559401 | D12: 142.3966845 | E12: 138.7573366 | F12: 219.8577391 | G12: 72.5359239 | H12: 116.2336135 | I12: 107.893139 | J12: 172.8793134 | K12: 62.59866424 | L12: 100.7789078 | M12: 91.90447278 | N12: 147.9513256
B13: 05:00 | C13: 128.9506847 | D13: 424.6010229 | E13: 198.8855158 | F13: 655.5758039 | G13: 103.9681576 | H13: 346.5875022 | I13: 154.6468326 | J13: 515.4946799 | K13: 89.72475207 | L13: 300.5043795 | M13: 131.7297443 | N13: 441.1639527
B14: 06:00 | C14: 632.7580112 | D14: 1299.693375 | E14: 975.9266006 | F14: 2006.701546 | G14: 510.1693314 | H14: 1060.895891 | I14: 758.8484113 | J14: 1577.916642 | K14: 440.2772718 | L14: 919.8365763 | M14: 646.3947919 | N14: 1350.392099
B15: 07:00 | C15: 1219.033799 | D15: 2579.96902 | E15: 1880.161911 | F15: 3983.422491 | G15: 982.8617689 | H15: 2105.941744 | I15: 1461.952034 | J15: 3132.258833 | K15: 848.2119004 | L15: 1825.930574 | M15: 1245.305606 | N15: 2680.609018
B16: 08:00 | C16: 1592 | D16: 3227 | E16: 2730 | F16: 5095 | G16: 1070 | H16: 3035 | I16: 1730 | J16: 4575 | K16: 935 | L16: 2410 | M16: 1510 | N16: 3565
B17: 09:00 | C17: 1060.094583 | D17: 1667.335724 | E17: 1635.023949 | F17: 2574.334254 | G17: 854.71497 | H17: 1360.989948 | I17: 1271.340822 | J17: 2024.259597 | K17: 737.6209269 | L17: 1180.029393 | M17: 1082.941038 | N17: 1732.375522
B18: 10:00 | C18: 1001.616947 | D18: 1277.686615 | E18: 1544.83168 | F18: 1972.723532 | G18: 807.5666194 | H18: 1042.932514 | I18: 1201.210281 | J18: 1551.19893 | K18: 696.9317952 | L18: 904.2616542 | M18: 1023.20313 | N18: 1327.526894
B19: 11:00 | C19: 1036.103758 | D19: 1368.302686 | E19: 1598.021993 | F19: 2112.633002 | G19: 835.3720569 | H19: 1116.899359 | I19: 1242.569318 | J19: 1661.213039 | K19: 720.9279498 | L19: 968.3936864 | M19: 1058.433178 | N19: 1421.677738
B20: 12:00 | C20: 1244.52405 | D20: 1506.815825 | E20: 1919.476489 | F20: 2326.494621 | G20: 1003.413614 | H20: 1229.962965 | I20: 1492.521757 | J20: 1829.377462 | K20: 865.9481886 | L20: 1066.424079 | M20: 1271.345207 | N20: 1565.594027
B21: 13:00 | C21: 1323.993659 | D21: 1183.186997 | E21: 2042.04547 | F21: 1826.817941 | G21: 1067.487013 | H21: 965.7956616 | I21: 1587.827363 | J21: 1436.469931 | K21: 921.2436754 | L21: 837.3811063 | M21: 1352.527491 | N21: 1229.341015
B22: 14:00 | C22: 1458.94205 | D22: 1209.077303 | E22: 2250.181475 | F22: 1866.792076 | G22: 1176.290899 | H22: 986.9290459 | I22: 1749.667071 | J22: 1467.902534 | K22: 1015.141672 | L22: 855.7045441 | M22: 1490.3842 | N22: 1256.241256
B23: 15:00 | C23: 2066.209809 | D23: 1688.047969 | E23: 3186.793497 | F23: 2606.313562 | G23: 1665.908386 | H23: 1377.896655 | I23: 2477.94576 | J23: 2049.405679 | K23: 1437.682655 | L23: 1194.688143 | M23: 2110.739391 | N23: 1753.895715
B24: 16:00 | C24: 3222 | D24: 1792 | E24: 5280 | F24: 3195 | G24: 3140 | H24: 1120 | I24: 4935 | J24: 2010 | K24: 2580 | L24: 985 | M24: 4025 | N24: 1795
B25: 17:00 | C25: 2917.884099 | D25: 1934.005879 | E25: 4500.362949 | F25: 2986.067838 | G25: 2352.581799 | H25: 1578.663806 | I25: 3499.334143 | J25: 2348.015402 | K25: 2030.283343 | L25: 1368.760802 | M25: 2980.7684 | N25: 2009.448004
B26: 18:00 | C26: 2465.057276 | D26: 1526.233555 | E26: 3801.951022 | F26: 2356.475222 | G26: 1987.484315 | H26: 1245.813003 | I26: 2956.27201 | J26: 1852.951913 | K26: 1715.2034 | L26: 1080.166657 | M26: 2518.182554 | N26: 1585.769208
B27: 19:00 | C27: 1457.442623 | D27: 1099.043501 | E27: 2247.868852 | F27: 1696.902005 | G27: 1175.081967 | H27: 897.1121627 | I27: 1747.868852 | J27: 1334.313973 | K27: 1014.098361 | L27: 777.8299336 | M27: 1488.852459 | N27: 1141.915231
B28: 20:00 | C28: 1120.071645 | D28: 758.5859738 | E28: 1727.52884 | F28: 1171.242137 | G28: 903.0722526 | H28: 619.2081594 | I28: 1343.269581 | J28: 920.9752513 | K28: 779.3533698 | L28: 536.8767268 | M28: 1144.210686 | N28: 788.1770619
B29: 21:00 | C29: 937.1416043 | D29: 631.723473 | E29: 1445.388923 | F29: 975.368879 | G29: 755.5825406 | H29: 515.6545765 | I29: 1123.886865 | J29: 766.9554994 | K29: 652.0694191 | L29: 447.0918817 | M29: 957.3382581 | N29: 656.3658809
B30: 22:00 | C30: 694.2345004 | D30: 393.5326553 | E30: 1070.744114 | F30: 607.6068426 | G30: 559.7355461 | H30: 321.2274411 | I30: 832.5753896 | J30: 477.775557 | K30: 483.0530257 | L30: 278.5162542 | M30: 709.1961816 | N30: 408.8836635
B31: 23:00 | C31: 529.2975781 | D31: 401.2997472 | E31: 816.3556635 | F31: 619.5990829 | G31: 426.753019 | H31: 327.5674564 | I31: 634.7713014 | J31: 487.2053377 | K31: 368.2888079 | L31: 284.0132855 | M31: 540.7046482 | N31: 416.9537358
B32: TOTAL | C32: =SUM(C8:C31) -> 27040 | D32: =SUM(D8:D31) -> 27040 | E32: 42290 | F32: 42290 | G32: 22130 | H32: 22130 | I32: 33320 | J32: 33320 | K32: 18980 | L32: 18980 | M32: 28240 | N32: 28240
B33: Source: Garver (for ODOT) 2020
A35: TRAVEL TIMES FOR PEAK HOURS | H35: Annual Travel Time | L35: Annual Travel Time
H36: No Build - 2 Lanes | L36: Build - 3 Lanes
H37: (Vehicle-hours) | I37: (Vehicle-hours) | L37: (Vehicle-hours) | M37: (Vehicle-hours)
E38: TIME | F38: DIRECTION | H38: 2015 | I38: 2045 | L38: 2015 | M38: 2045
B39: hourly | C39: West Industrial | E39: 07:00 | F39: EB | H39: =W88 -> 3931.147754 | I39: =W100 -> 6129.681464 | L39: =X88 -> 3795.793865 | M39: =X100 -> 5863.173574
B40: hourly | C40: West Industrial | E40: 08:00 | F40: EB | H40: 5133.891473 | I40: =W101 -> 8900.31348 | L40: =X89 -> 4957.125749 | M40: =X101 -> 8513.343328
B41: hourly | C41: West Industrial | E41: 16:00 | F41: EB | H41: 10604.05063 | I41: 18457.81513 | L41: 9958.038633 | M41: 17026.97674
B42: hourly | C42: West Industrial | E42: 17:00 | F42: EB | H42: 9603.162858 | I42: 15732.36124 | L42: 9018.12619 | M42: 14512.79835
B43: hourly | C43: West Industrial | E43: 18:00 | F43: EB | H43: 8112.846731 | I43: 13290.85399 | L43: 7618.601982 | M43: 12260.55523
B44: hourly | C44: West Industrial | E44: 07:00 | F44: WB | H44: 8345.778479 | I44: 28669.61516 | L44: 7754.820176 | M44: 12403.47123
B45: hourly | C45: West Industrial | E45: 08:00 | F45: WB | H45: 10438.81804 | I45: 36669.89619 | L45: 9699.653179 | M45: 15864.67066
B46: hourly | C46: West Industrial | E46: 16:00 | F46: WB | H46: 5787.826087 | I46: 10650 | L46: 5409.811321 | M46: 9659.302326
B47: hourly | C47: West Industrial | E47: 17:00 | F47: WB | H47: 6246.478614 | I47: 9953.559462 | L47: 5838.508313 | M47: 9027.646953
B48: hourly | C48: West Industrial | E48: 18:00 | F48: WB | H48: 4929.449991 | I48: 7854.917406 | L48: =X97 -> 4607.497524 | M48: 7124.227415
G49: Total | H49: =SUM(H39:H48) -> 73133.45066 | I49: =SUM(I39:I48) -> 156309.0135 | K49: Total | L49: =SUM(L39:L48) -> 68657.97693 | M49: =SUM(M39:M48) -> 112256.1658
G50: CAGR | H50: =(I49/H49)^(1/(2045-2015))-1 -> 0.02564153165 | K50: CAGR | L50: =(M49/L49)^(1/(2045-2015))-1 -> 0.0165232276
B52: hourly | C52: Douglas <--> Anderson | E52: 07:00 | F52: EB | H52: =W113 -> 14659.11661 | I52: =W125 -> 22043.85355 | L52: =X113 -> 14154.38655 | M52: =X125 -> 21085.42514
B53: hourly | C53: Douglas <--> Anderson | E53: 08:00 | F53: EB | H53: 15958.75969 | I53: =W126 -> 26085.57994 | L53: 15409.28144 | M53: =X126 -> 24951.42429
B54: hourly | C54: Douglas <--> Anderson | E54: 16:00 | F54: EB | H54: 47795.56962 | I54: 79789.41176 | L54: 44883.80386 | M54: 73604.18605
B55: hourly | C55: Douglas <--> Anderson | E55: 17:00 | F55: EB | H55: 35809.86852 | I55: 56577.46967 | L55: 33628.28663 | M55: 52191.61931
B56: hourly | C56: Douglas <--> Anderson | E56: 18:00 | F56: EB | H56: 30252.53024 | I56: 47797.20459 | L56: 28409.50834 | M56: 44091.99494
B57: hourly | C57: Douglas <--> Anderson | E57: 07:00 | F57: WB | H57: 31507.24661 | I57: 104264.1175 | L57: 29276.24216 | M57: 45108.2784
B58: hourly | C58: Douglas <--> Anderson | E58: 08:00 | F58: WB | H58: 45406.99844 | I58: 152288.9273 | L58: 42191.76301 | M58: 65885.47904
B59: hourly | C59: Douglas <--> Anderson | E59: 16:00 | F59: WB | H59: 16730.43478 | I59: 30987.5 | L59: 15637.73585 | M59: 28104.94186
B60: hourly | C60: Douglas <--> Anderson | E60: 17:00 | F60: WB | H60: 23581.90343 | I60: 36198.57078 | L60: 22041.72106 | M60: 32831.26187
B61: hourly | C61: Douglas <--> Anderson | E61: 18:00 | F61: WB | H61: 18609.81536 | I61: 28566.342 | L61: 17394.37024 | M61: 25909.00786
G62: Total | H62: =SUM(H52:H61) -> 280312.2433 | I62: =SUM(I52:I61) -> 584598.9772 | K62: Total | L62: =SUM(L52:L61) -> 263027.0991 | M62: =SUM(M52:M61) -> 413763.6187
G63: CAGR | H63: =(I62/H62)^(1/(2045-2015))-1 -> 0.02480334149 | K63: CAGR | L63: =(M62/L62)^(1/(2045-2015))-1 -> 0.01521585936
B65: hourly | C65: Anderson <--> 240 | E65: 07:00 | F65: EB | H65: =W138 -> 6154.467743 | I65: =W150 -> 9134.843631 | L65: =X138 -> 5942.562416 | M65: =X150 -> 8737.676517
B66: hourly | C66: Anderson <--> 240 | E66: 08:00 | F66: EB | H66: =W139 -> 6784.186047 | I66: =W151 -> 11076.48903 | L66: =X139 -> 6550.598802 | M66: =X151 -> 10594.90255
B67: hourly | C67: Anderson <--> 240 | E67: 16:00 | F67: EB | H67: 19105.06329 | I67: 31658.82353 | L67: 17941.15899 | M67: 29204.65116
B68: hourly | C68: Anderson <--> 240 | E68: 17:00 | F68: EB | H68: 15034.37666 | I68: 23445.37162 | L68: 14118.46367 | M68: 21627.90095
B69: hourly | C69: Anderson <--> 240 | E69: 18:00 | F69: EB | H69: 12701.18974 | I69: 19806.88127 | L69: 11927.4174 | M69: 18271.46411
B70: hourly | C70: Anderson <--> 240 | E70: 07:00 | F70: WB | H70: 13289.82129 | I70: 43409.17025 | L70: 12348.77903 | M70: 18780.31467
B71: hourly | C71: Anderson <--> 240 | E71: 08:00 | F71: WB | H71: 17540.90202 | I71: 57730.79585 | L71: 16298.84393 | M71: 24976.34731
B72: hourly | C72: Anderson <--> 240 | E72: 16:00 | F72: WB | H72: 7158.074534 | I72: 13462.5 | L72: 6690.566038 | M72: 12210.17442
B73: hourly | C73: Anderson <--> 240 | E73: 17:00 | F73: WB | H73: 9946.895268 | I73: 15070.86003 | L73: 9297.243182 | M73: 13668.91956
B74: hourly | C74: Anderson <--> 240 | E74: 18:00 | F74: WB | H74: =W147 -> 7849.658314 | I74: 11893.26906 | L74: =X147 -> 7336.981066 | M74: 10786.91845
G75: Total | H75: =SUM(H65:H74) -> 115564.6349 | I75: =SUM(I65:I74) -> 236689.0043 | K75: Total | L75: =SUM(L65:L74) -> 108452.6145 | M75: =SUM(M65:M74) -> 168859.2697
G76: CAGR | H76: =(I75/H75)^(1/(2045-2015))-1 -> 0.02418506307 | K76: CAGR | L76: =(M75/L75)^(1/(2045-2015))-1 -> 0.01486785305
B77: Travel Demand Model Results - By segment
B78: For each hour/segment, the highway Capacity Manual program was used to determine average speeds with 4 lanes and also with six lanes
B79: Douglas <--> Anderson | C79: segment length | D79: 3.7 | E79: miles, or | F79: =D79*5280 -> 19536 | G79: ft.
B80: and
B81: Anderson <--> 240 | C81: segment length | D81: 1.8 | E81: miles, or | F81: =D81*5280 -> 9504 | G81: ft.
B82: West of Industrial | C82: segment length | D82: 0.8 | E82: miles | F82: =D82*5280 -> 4224 | G82: ft.
B83: Only hours where volumes exceeded 2300 were used, as lower volumes were free-flow even with 4 lanes, and thus there is no benefit of having 6 lanes at these hours.
U84: Daily | W84: Annual
O85: speed in feet per second | P85: speed in feet per second | R85: seconds of travel time per vehicle
J86: mph | K86: mph | O86: 2 Lane - No Build | P86: 3 Lane - Build | U86: Daily Travel Time (vehicle-hours) | V86: Daily Travel Time (vehicle-hours) | W86: Annual Travel Time (vehicle-hours) | X86: Annual Travel Time (vehicle-hours) | Z86: SAVING (vehicle-hours)
F87: Volume | G87: Year | H87: Time | I87: Direction | J87: 2 Lane - No Build | K87: 3 Lane - Build | M87: delta | N87: feet/second conversion | O87: feet/second | P87: feet/second | R87: 2 Lane - No Build | S87: 3 Lane - Build | U87: 2 Lane | V87: 3 Lane | W87: 2 Lane | X87: 3 Lane
C88: Industrial to Douglas | F88: =C15 -> 1219.033799 | G88: 2015 | H88: 07:00 | I88: EB | J88: =$C$164 -> 64.5 | K88: =$D$164 -> 66.8 | M88: =K88-J88 -> 2.3 | N88: =5280/3600 -> 1.466666667 | O88: =J88*N88 -> 94.6 | P88: =K88*N88 -> 97.97333333 | R88: =$F$82/O88 -> 44.65116279 | S88: =$F$82/P88 -> 43.11377246 | U88: =(R88*F88)/seconds_in_hour -> 15.11979906 | V88: =(S88*F88)/seconds_in_hour -> 14.59920717 | W88: =U88*Annual_Number_Weekdays -> 3931.147754 | X88: =V88*Annual_Number_Weekdays -> 3795.793865 | Z88: =W88-X88 -> 135.3538897
C89: Industrial to Douglas | F89: =C16 -> 1592 | G89: 2015 | H89: 08:00 | I89: EB | J89: =$C$164 -> 64.5 | K89: =$D$164 -> 66.8 | M89: =K89-J89 -> 2.3 | N89: =5280/3600 -> 1.466666667 | O89: =J89*N89 -> 94.6 | P89: =K89*N89 -> 97.97333333 | R89: =$F$82/O89 -> 44.65116279 | S89: 43.11377246 | U89: =(R89*F89)/seconds_in_hour -> 19.74573643 | V89: 19.06586826 | W89: =U89*Annual_Number_Weekdays -> 5133.891473 | X89: 4957.125749 | Z89: =W89-X89 -> 176.7657244
C90: Industrial to Douglas | F90: =C24 -> 3222 | G90: 2015 | H90: 16:00 | I90: EB | J90: =$E$164 -> 63.2 | K90: =$F$164 -> 67.3 | M90: 4.1 | N90: 1.466666667 | O90: 92.69333333 | P90: 98.70666667 | R90: 45.56962025 | S90: 42.79346211 | U90: 40.78481013 | V90: 38.30014859 | W90: 10604.05063 | X90: 9958.038633 | Z90: 646.0119999
C91: Industrial to Douglas | F91: =C25 -> 2917.884099 | G91: 2015 | H91: 17:00 | I91: EB | J91: =$E$164 -> 63.2 | K91: =$F$164 -> 67.3 | M91: 4.1 | N91: 1.466666667 | O91: 92.69333333 | P91: 98.70666667 | R91: 45.56962025 | S91: 42.79346211 | U91: 36.93524176 | V91: 34.68510073 | W91: 9603.162858 | X91: 9018.12619 | Z91: 585.0366674
C92: Industrial to Douglas | F92: =C26 -> 2465.057276 | G92: 2015 | H92: 18:00 | I92: EB | J92: 63.2 | K92: 67.3 | M92: 4.1 | N92: 1.466666667 | O92: 92.69333333 | P92: 98.70666667 | R92: 45.56962025 | S92: 42.79346211 | U92: 31.20325666 | V92: 29.30231531 | W92: 8112.846731 | X92: 7618.601982 | Z92: 494.2447488
C93: Industrial to Douglas | F93: =D15 -> 2579.96902 | G93: 2015 | H93: 07:00 | I93: WB | J93: =$K$164 -> 64.3 | K93: =$L$164 -> 69.2 | M93: =K93-J93 -> 4.9 | N93: 1.466666667 | O93: 94.30666667 | P93: 101.4933333 | R93: 44.79004666 | S93: 41.61849711 | U93: 32.09914799 | V93: 29.82623145 | W93: 8345.778479 | X93: 7754.820176 | Z93: 590.9583027
C94: Industrial to Douglas | F94: =D16 -> 3227 | G94: 2015 | H94: 08:00 | I94: WB | J94: =$K$164 -> 64.3 | K94: =$L$164 -> 69.2 | M94: 4.9 | N94: 1.466666667 | O94: 94.30666667 | P94: 101.4933333 | R94: 44.79004666 | S94: 41.61849711 | U94: 40.14930016 | V94: 37.30635838 | W94: 10438.81804 | X94: 9699.653179 | Z94: 739.1648612
C95: Industrial to Douglas | F95: =D24 -> 1792 | G95: 2015 | H95: 16:00 | I95: WB | J95: =$M$164 -> 64.4 | K95: =$N$164 -> 68.9 | M95: 4.5 | N95: 1.466666667 | O95: 94.45333333 | P95: 101.0533333 | R95: 44.72049689 | S95: 41.79970972 | U95: 22.26086957 | V95: 20.80696662 | W95: 5787.826087 | X95: 5409.811321 | Z95: 378.0147662
C96: Industrial to Douglas | F96: =D25 -> 1934.005879 | G96: 2015 | H96: 17:00 | I96: WB | J96: =$M$164 -> 64.4 | K96: =$N$164 -> 68.9 | M96: 4.5 | N96: 1.466666667 | O96: 94.45333333 | P96: 101.0533333 | R96: 44.72049689 | S96: 41.79970972 | U96: 24.02491775 | V96: 22.4558012 | W96: 6246.478614 | X96: 5838.508313 | Z96: 407.9703013
C97: Industrial to Douglas | F97: =D26 -> 1526.233555 | G97: 2015 | H97: 18:00 | I97: WB | J97: 64.4 | K97: 68.9 | M97: 4.5 | N97: 1.466666667 | O97: 94.45333333 | P97: 101.0533333 | R97: 44.72049689 | S97: 41.79970972 | U97: 18.95942304 | V97: 17.72114432 | W97: 4929.449991 | X97: 4607.497524 | Z97: 321.9524667
V99: TOTAL 2015 | W99: =SUM(W88:W97) -> 73133.45066 | X99: =SUM(X88:X97) -> 68657.97693
C100: Industrial to Douglas | F100: =E15 -> 1880.161911 | G100: 2045 | H100: 07:00 | I100: EB | J100: =$G$164 -> 63.8 | K100: =$H$164 -> 66.7 | M100: =K100-J100 -> 2.9 | N100: 1.466666667 | O100: =J100*N100 -> 93.57333333 | P100: =K100*N100 -> 97.82666667 | R100: =$F$82/O100 -> 45.14106583 | S100: =$F$82/P100 -> 43.17841079 | U100: =(R100*F100)/seconds_in_hour -> 23.57569794 | V100: =(S100*F100)/seconds_in_hour -> 22.55066759 | W100: =U100*Annual_Number_Weekdays -> 6129.681464 | X100: =V100*Annual_Number_Weekdays -> 5863.173574 | Z100: =W100-X100 -> 266.5078897
C101: Industrial to Douglas | F101: =E16 -> 2730 | G101: 2045 | H101: 08:00 | I101: EB | J101: =$G$164 -> 63.8 | K101: =$H$164 -> 66.7 | M101: 2.9 | N101: 1.466666667 | O101: 93.57333333 | P101: 97.82666667 | R101: 45.14106583 | S101: 43.17841079 | U101: 34.23197492 | V101: 32.74362819 | W101: 8900.31348 | X101: 8513.343328 | Z101: 386.9701513
C102: Industrial to Douglas | F102: =E24 -> 5280 | G102: 2045 | H102: 16:00 | I102: EB | J102: =$I$164 -> 59.5 | K102: =$J$164 -> 64.5 | M102: 5 | N102: 1.466666667 | O102: 87.26666667 | P102: 94.6 | R102: 48.40336134 | S102: 44.65116279 | U102: 70.99159664 | V102: 65.48837209 | W102: 18457.81513 | X102: 17026.97674 | Z102: 1430.838382
C103: Industrial to Douglas | F103: =E25 -> 4500.362949 | G103: 2045 | H103: 17:00 | I103: EB | J103: =$I$164 -> 59.5 | K103: =$J$164 -> 64.5 | M103: 5 | N103: 1.466666667 | O103: 87.26666667 | P103: 94.6 | R103: 48.40336134 | S103: 44.65116279 | U103: 60.50908167 | V103: 55.81845519 | W103: 15732.36124 | X103: 14512.79835 | Z103: 1219.562886
C104: Industrial to Douglas | F104: =E26 -> 3801.951022 | G104: 2045 | H104: 18:00 | I104: EB | J104: 59.5 | K104: 64.5 | M104: 5 | N104: 1.466666667 | O104: 87.26666667 | P104: 94.6 | R104: 48.40336134 | S104: 44.65116279 | U104: 51.1186692 | V104: 47.15598167 | W104: 13290.85399 | X104: 12260.55523 | Z104: 1030.298759
C105: Industrial to Douglas | F105: =F15 -> 3983.422491 | G105: 2045 | H105: 07:00 | I105: WB | J105: =$O$164 -> 28.9 | K105: =$P$164 -> 66.8 | M105: 37.9 | N105: 1.466666667 | O105: 42.38666667 | P105: 97.97333333 | R105: 99.65397924 | S105: 43.11377246 | U105: 110.2677506 | V105: 47.70565858 | W105: 28669.61516 | X105: 12403.47123 | Z105: 16266.14393
C106: Industrial to Douglas | F106: =F16 -> 5095 | G106: 2045 | H106: 08:00 | I106: WB | J106: =$O$164 -> 28.9 | K106: =$P$164 -> 66.8 | M106: 37.9 | N106: 1.466666667 | O106: 42.38666667 | P106: 97.97333333 | R106: 99.65397924 | S106: 43.11377246 | U106: 141.0380623 | V106: 61.01796407 | W106: 36669.89619 | X106: 15864.67066 | Z106: 20805.22554
C107: Industrial to Douglas | F107: =F24 -> 3195 | G107: 2045 | H107: 16:00 | I107: WB | J107: =$Q$164 -> 62.4 | K107: =$R$164 -> 68.8 | M107: 6.4 | N107: 1.466666667 | O107: 91.52 | P107: 100.9066667 | R107: 46.15384615 | S107: 41.86046512 | U107: 40.96153846 | V107: 37.15116279 | W107: 10650 | X107: 9659.302326 | Z107: 990.6976744
C108: Industrial to Douglas | F108: =F25 -> 2986.067838 | G108: 2045 | H108: 17:00 | I108: WB | J108: =$Q$164 -> 62.4 | K108: =$R$164 -> 68.8 | M108: 6.4 | N108: 1.466666667 | O108: 91.52 | P108: 100.9066667 | R108: 46.15384615 | S108: 41.86046512 | U108: 38.28292101 | V108: 34.72171905 | W108: 9953.559462 | X108: 9027.646953 | Z108: 925.912508
C109: Industrial to Douglas | F109: =F26 -> 2356.475222 | G109: 2045 | H109: 18:00 | I109: WB | J109: 62.4 | K109: =$R$164 -> 68.8 | M109: 6.4 | N109: 1.466666667 | O109: =J109*N109 -> 91.52 | P109: 100.9066667 | R109: 46.15384615 | S109: 41.86046512 | U109: 30.21122079 | V109: 27.40087467 | W109: 7854.917406 | X109: 7124.227415 | Z109: 730.6899913
V110: TOTAL 2045 | W110: =SUM(W100:W109) -> 156309.0135 | X110: =SUM(X100:X109) -> 112256.1658
V111: CAGR | W111: =(W110/W99)^(1/(2045-2015))-1 -> 0.02564153165 | X111: =(X110/X99)^(1/(2045-2015))-1 -> 0.0165232276
C113: Douglas <--> Anderson | F113: =G15 -> 982.8617689 | G113: 2015 | H113: 07:00 | I113: EB | J113: =$C$164 -> 64.5 | K113: =$D$164 -> 66.8 | M113: =K113-J113 -> 2.3 | N113: =5280/3600 -> 1.466666667 | O113: =J113*N113 -> 94.6 | P113: =K113*N113 -> 97.97333333 | R113: =$F$79/O113 -> 206.5116279 | S113: =$F$79/P113 -> 199.4011976 | U113: =(R113*F113)/seconds_in_hour -> 56.38121775 | V113: =(S113*F113)/seconds_in_hour -> 54.43994828 | W113: =U113*Annual_Number_Weekdays -> 14659.11661 | X113: =V113*Annual_Number_Weekdays -> 14154.38655 | Z113: =W113-X113 -> 504.7300631
C114: Douglas <--> Anderson | F114: =G16 -> 1070 | G114: 2015 | H114: 08:00 | I114: EB | J114: =$C$164 -> 64.5 | K114: =$D$164 -> 66.8 | M114: =K114-J114 -> 2.3 | N114: =5280/3600 -> 1.466666667 | O114: 94.6 | P114: 97.97333333 | R114: =$F$79/O114 -> 206.5116279 | S114: =$F$79/P114 -> 199.4011976 | U114: 61.37984496 | V114: 59.26646707 | W114: 15958.75969 | X114: 15409.28144 | Z114: 549.4782528
C115: Douglas <--> Anderson | F115: =G24 -> 3140 | G115: 2015 | H115: 16:00 | I115: EB | J115: =$E$164 -> 63.2 | K115: =$F$164 -> 67.3 | M115: 4.1 | N115: 1.466666667 | O115: 92.69333333 | P115: 98.70666667 | R115: 210.7594937 | S115: 197.9197623 | U115: 183.8291139 | V115: 172.6300149 | W115: 47795.56962 | X115: 44883.80386 | Z115: 2911.765757
C116: Douglas <--> Anderson | F116: =G25 -> 2352.581799 | G116: 2015 | H116: 17:00 | I116: EB | J116: =$E$164 -> 63.2 | K116: =$F$164 -> 67.3 | M116: 4.1 | N116: 1.466666667 | O116: 92.69333333 | P116: 98.70666667 | R116: 210.7594937 | S116: 197.9197623 | U116: 137.7302635 | V116: 129.339564 | W116: 35809.86852 | X116: 33628.28663 | Z116: 2181.581886
C117: Douglas <--> Anderson | F117: =G26 -> 1987.484315 | G117: 2015 | H117: 18:00 | I117: EB | J117: 63.2 | K117: 67.3 | M117: 4.1 | N117: 1.466666667 | O117: 92.69333333 | P117: 98.70666667 | R117: 210.7594937 | S117: 197.9197623 | U117: 116.3558855 | V117: 109.2673398 | W117: 30252.53024 | X117: 28409.50834 | Z117: 1843.021901
C118: Douglas <--> Anderson | F118: =H15 -> 2105.941744 | G118: 2015 | H118: 07:00 | I118: WB | J118: =$K$164 -> 64.3 | K118: =$L$164 -> 69.2 | M118: 4.9 | N118: 1.466666667 | O118: 94.30666667 | P118: 101.4933333 | R118: 207.1539658 | S118: 192.4855491 | U118: 121.1817177 | V118: 112.6009314 | W118: 31507.24661 | X118: 29276.24216 | Z118: 2231.004457
C119: Douglas <--> Anderson | F119: =H16 -> 3035 | G119: 2015 | H119: 08:00 | I119: WB | J119: =$K$164 -> 64.3 | K119: =$L$164 -> 69.2 | M119: 4.9 | N119: 1.466666667 | O119: 94.30666667 | P119: 101.4933333 | R119: 207.1539658 | S119: 192.4855491 | U119: 174.6423017 | V119: 162.2760116 | W119: 45406.99844 | X119: 42191.76301 | Z119: 3215.235439
C120: Douglas <--> Anderson | F120: =H24 -> 1120 | G120: 2015 | H120: 16:00 | I120: WB | J120: =$M$164 -> 64.4 | K120: =$N$164 -> 68.9 | M120: 4.5 | N120: 1.466666667 | O120: 94.45333333 | P120: 101.0533333 | R120: 206.8322981 | S120: 193.3236575 | U120: 64.34782609 | V120: 60.14513788 | W120: 16730.43478 | X120: 15637.73585 | Z120: 1092.698934
C121: Douglas <--> Anderson | F121: =H25 -> 1578.663806 | G121: 2015 | H121: 17:00 | I121: WB | J121: =$M$164 -> 64.4 | K121: =$N$164 -> 68.9 | M121: 4.5 | N121: 1.466666667 | O121: 94.45333333 | P121: 101.0533333 | R121: 206.8322981 | S121: 193.3236575 | U121: 90.69962859 | V121: 84.77585024 | W121: 23581.90343 | X121: 22041.72106 | Z121: 1540.182372
C122: Douglas <--> Anderson | F122: =H26 -> 1245.813003 | G122: 2015 | H122: 18:00 | I122: WB | J122: 64.4 | K122: 68.9 | M122: 4.5 | N122: 1.466666667 | O122: 94.45333333 | P122: 101.0533333 | R122: 206.8322981 | S122: 193.3236575 | U122: 71.57621293 | V122: 66.90142398 | W122: 18609.81536 | X122: 17394.37024 | Z122: 1215.445125
V123: TOTAL 2015 | W123: =SUM(W113:W122) -> 280312.2433 | X123: =SUM(X113:X122) -> 263027.0991 | Z123: =SUM(Z113:Z122) -> 17285.14419
C125: Douglas <--> Anderson | F125: =I15 -> 1461.952034 | G125: 2045 | H125: 07:00 | I125: EB | J125: =$G$164 -> 63.8 | K125: =$H$164 -> 66.7 | M125: 2.9 | N125: 1.466666667 | O125: 93.57333333 | P125: 97.82666667 | R125: 208.7774295 | S125: 199.7001499 | U125: 84.78405213 | V125: 81.09778899 | W125: 22043.85355 | X125: 21085.42514 | Z125: 958.4284154
C126: Douglas <--> Anderson | F126: =I16 -> 1730 | G126: 2045 | H126: 08:00 | I126: EB | J126: =$G$164 -> 63.8 | K126: =$H$164 -> 66.7 | M126: 2.9 | N126: 1.466666667 | O126: 93.57333333 | P126: 97.82666667 | R126: 208.7774295 | S126: 199.7001499 | U126: 100.3291536 | V126: 95.96701649 | W126: 26085.57994 | X126: 24951.42429 | Z126: 1134.155649
C127: Douglas <--> Anderson | F127: =I24 -> 4935 | G127: 2045 | H127: 16:00 | I127: EB | J127: =$I$164 -> 59.5 | K127: =$J$164 -> 64.5 | M127: 5 | N127: 1.466666667 | O127: 87.26666667 | P127: 94.6 | R127: 223.8655462 | S127: 206.5116279 | U127: 306.8823529 | V127: 283.0930233 | W127: 79789.41176 | X127: 73604.18605 | Z127: 6185.225718
C128: Douglas <--> Anderson | F128: =I25 -> 3499.334143 | G128: 2045 | H128: 17:00 | I128: EB | J128: =$I$164 -> 59.5 | K128: =$J$164 -> 64.5 | M128: 5 | N128: 1.466666667 | O128: 87.26666667 | P128: 94.6 | R128: 223.8655462 | S128: 206.5116279 | U128: 217.6056526 | V128: 200.7369973 | W128: 56577.46967 | X128: 52191.61931 | Z128: 4385.850362
C129: Douglas <--> Anderson | F129: =I26 -> 2956.27201 | G129: 2045 | H129: 18:00 | I129: EB | J129: 59.5 | K129: 64.5 | M129: 5 | N129: 1.466666667 | O129: 87.26666667 | P129: 94.6 | R129: 223.8655462 | S129: 206.5116279 | U129: 183.8354023 | V129: 169.5845959 | W129: 47797.20459 | X129: 44091.99494 | Z129: 3705.209658
C130: Douglas <--> Anderson | F130: =J15 -> 3132.258833 | G130: 2045 | H130: 07:00 | I130: WB | J130: =$O$164 -> 28.9 | K130: =$P$164 -> 66.8 | M130: 37.9 | N130: 1.466666667 | O130: 42.38666667 | P130: 97.97333333 | R130: 460.899654 | S130: 199.4011976 | U130: 401.0158367 | V130: 173.4933784 | W130: 104264.1175 | X130: 45108.2784 | Z130: 59155.83914
C131: Douglas <--> Anderson | F131: =J16 -> 4575 | G131: 2045 | H131: 08:00 | I131: WB | J131: =$O$164 -> 28.9 | K131: =$P$164 -> 66.8 | M131: 37.9 | N131: 1.466666667 | O131: 42.38666667 | P131: 97.97333333 | R131: 460.899654 | S131: 199.4011976 | U131: 585.7266436 | V131: 253.4056886 | W131: 152288.9273 | X131: 65885.47904 | Z131: 86403.44829
C132: Douglas <--> Anderson | F132: =J24 -> 2010 | G132: 2045 | H132: 16:00 | I132: WB | J132: =$Q$164 -> 62.4 | K132: =$R$164 -> 68.8 | M132: 6.4 | N132: 1.466666667 | O132: 91.52 | P132: 100.9066667 | R132: 213.4615385 | S132: 193.6046512 | U132: 119.1826923 | V132: 108.0959302 | W132: 30987.5 | X132: 28104.94186 | Z132: 2882.55814
C133: Douglas <--> Anderson | F133: =J25 -> 2348.015402 | G133: 2045 | H133: 17:00 | I133: WB | J133: =$Q$164 -> 62.4 | K133: =$R$164 -> 68.8 | M133: 6.4 | N133: 1.466666667 | O133: 91.52 | P133: 100.9066667 | R133: 213.4615385 | S133: 193.6046512 | U133: 139.2252722 | V133: 126.2740841 | W133: 36198.57078 | X133: 32831.26187 | Z133: 3367.30891
C134: Douglas <--> Anderson | F134: =J26 -> 1852.951913 | G134: 2045 | H134: 18:00 | I134: WB | J134: 62.4 | K134: =$R$164 -> 68.8 | M134: 6.4 | N134: 1.466666667 | O134: 91.52 | P134: 100.9066667 | R134: 213.4615385 | S134: 193.6046512 | U134: 109.8705462 | V134: 99.65003023 | W134: 28566.342 | X134: 25909.00786 | Z134: 2657.334139
V135: TOTAL 2045 | W135: =SUM(W125:W134) -> 584598.9772 | X135: =SUM(X125:X134) -> 413763.6187 | Z135: =SUM(Z125:Z134) -> 170835.3584
V136: CAGR | W136: =(W135/W123)^(1/(2045-2015))-1 -> 0.02480334149 | X136: =(X135/X123)^(1/(2045-2015))-1 -> 0.01521585936
C138: Anderson <--> 240 | F138: =K15 -> 848.2119004 | G138: 2015 | H138: 07:00 | I138: EB | J138: =$C$164 -> 64.5 | K138: =$D$164 -> 66.8 | M138: =K138-J138 -> 2.3 | N138: =5280/3600 -> 1.466666667 | O138: =J138*N138 -> 94.6 | P138: =K138*N138 -> 97.97333333 | R138: =$F$81/O138 -> 100.4651163 | S138: =$F$81/P138 -> 97.00598802 | U138: =(R138*F138)/seconds_in_hour -> 23.67102978 | V138: =(S138*F138)/seconds_in_hour -> 22.85600929 | W138: =U138*Annual_Number_Weekdays -> 6154.467743 | X138: =V138*Annual_Number_Weekdays -> 5942.562416 | Z138: =W138-X138 -> 211.9053265
C139: Anderson <--> 240 | F139: =K16 -> 935 | G139: 2015 | H139: 08:00 | I139: EB | J139: =$C$164 -> 64.5 | K139: =$D$164 -> 66.8 | M139: =K139-J139 -> 2.3 | N139: =5280/3600 -> 1.466666667 | O139: =J139*N139 -> 94.6 | P139: =K139*N139 -> 97.97333333 | R139: =$F$81/O139 -> 100.4651163 | S139: =$F$81/P139 -> 97.00598802 | U139: 26.09302326 | V139: 25.19461078 | W139: 6784.186047 | X139: 6550.598802 | Z139: 233.5872441
C140: Anderson <--> 240 | F140: =K24 -> 2580 | G140: 2015 | H140: 16:00 | I140: EB | J140: =$E$164 -> 63.2 | K140: =$F$164 -> 67.3 | M140: 4.1 | N140: 1.466666667 | O140: 92.69333333 | P140: 98.70666667 | R140: 102.5316456 | S140: 96.28528975 | U140: 73.48101266 | V140: 69.00445765 | W140: 19105.06329 | X140: 17941.15899 | Z140: 1163.904302
C141: Anderson <--> 240 | F141: =K25 -> 2030.283343 | G141: 2015 | H141: 17:00 | I141: EB | J141: =$E$164 -> 63.2 | K141: =$F$164 -> 67.3 | M141: 4.1 | N141: 1.466666667 | O141: 92.69333333 | P141: 98.70666667 | R141: 102.5316456 | S141: 96.28528975 | U141: 57.8245256 | V141: 54.30178333 | W141: 15034.37666 | X141: 14118.46367 | Z141: 915.912991
C142: Anderson <--> 240 | F142: =K26 -> 1715.2034 | G142: 2015 | H142: 18:00 | I142: EB | J142: 63.2 | K142: 67.3 | M142: 4.1 | N142: 1.466666667 | O142: 92.69333333 | P142: 98.70666667 | R142: 102.5316456 | S142: 96.28528975 | U142: 48.85072975 | V142: 45.87468232 | W142: 12701.18974 | X142: 11927.4174 | Z142: 773.7723316
C143: Anderson <--> 240 | F143: =L15 -> 1825.930574 | G143: 2015 | H143: 07:00 | I143: WB | J143: =$K$164 -> 64.3 | K143: =$L$164 -> 69.2 | M143: 4.9 | N143: 1.466666667 | O143: 94.30666667 | P143: 101.4933333 | R143: 100.777605 | S143: 93.6416185 | U143: 51.11469726 | V143: 47.49530396 | W143: 13289.82129 | X143: 12348.77903 | Z143: 941.0422588
C144: Anderson <--> 240 | F144: =L16 -> 2410 | G144: 2015 | H144: 08:00 | I144: WB | J144: =$K$164 -> 64.3 | K144: =$L$164 -> 69.2 | M144: 4.9 | N144: 1.466666667 | O144: 94.30666667 | P144: 101.4933333 | R144: 100.777605 | S144: 93.6416185 | U144: 67.46500778 | V144: 62.68786127 | W144: 17540.90202 | X144: 16298.84393 | Z144: 1242.058091
C145: Anderson <--> 240 | F145: =L24 -> 985 | G145: 2015 | H145: 16:00 | I145: WB | J145: =$M$164 -> 64.4 | K145: =$N$164 -> 68.9 | M145: 4.5 | N145: 1.466666667 | O145: 94.45333333 | P145: 101.0533333 | R145: 100.621118 | S145: 94.04934688 | U145: 27.5310559 | V145: 25.7329463 | W145: 7158.074534 | X145: 6690.566038 | Z145: =W145-X145 -> 467.5084964
C146: Anderson <--> 240 | F146: =L25 -> 1368.760802 | G146: 2015 | H146: 17:00 | I146: WB | J146: =$M$164 -> 64.4 | K146: =$N$164 -> 68.9 | M146: 4.5 | N146: 1.466666667 | O146: 94.45333333 | P146: 101.0533333 | R146: 100.621118 | S146: 94.04934688 | U146: 38.25728949 | V146: 35.75862762 | W146: 9946.895268 | X146: 9297.243182 | Z146: 649.6520857
C147: Anderson <--> 240 | F147: =L26 -> 1080.166657 | G147: 2015 | H147: 18:00 | I147: WB | J147: 64.4 | K147: 68.9 | M147: 4.5 | N147: 1.466666667 | O147: 94.45333333 | P147: 101.0533333 | R147: 100.621118 | S147: 94.04934688 | U147: 30.19099351 | V147: 28.21915794 | W147: 7849.658314 | X147: 7336.981066 | Z147: 512.6772484
V148: TOTAL 2015 | W148: =SUM(W138:W147) -> 115564.6349 | X148: =SUM(X138:X147) -> 108452.6145
C150: Anderson <--> 240 | F150: =M15 -> 1245.305606 | G150: 2045 | H150: 07:00 | I150: EB | J150: =$G$164 -> 63.8 | K150: =$H$164 -> 66.7 | M150: 2.9 | N150: 1.466666667 | O150: 93.57333333 | P150: 97.82666667 | R150: 101.5673981 | S150: 97.15142429 | U150: 35.13401397 | V150: 33.60644814 | W150: 9134.843631 | X150: 8737.676517 | Z150: 397.1671144
C151: Anderson <--> 240 | F151: =M16 -> 1510 | G151: 2045 | H151: 08:00 | I151: EB | J151: =$G$164 -> 63.8 | K151: =$H$164 -> 66.7 | M151: 2.9 | N151: 1.466666667 | O151: 93.57333333 | P151: 97.82666667 | R151: 101.5673981 | S151: 97.15142429 | U151: 42.60188088 | V151: 40.74962519 | W151: 11076.48903 | X151: 10594.90255 | Z151: 481.5864795
C152: Anderson <--> 240 | F152: =M24 -> 4025 | G152: 2045 | H152: 16:00 | I152: EB | J152: =$I$164 -> 59.5 | K152: =$J$164 -> 64.5 | M152: 5 | N152: 1.466666667 | O152: 87.26666667 | P152: 94.6 | R152: 108.907563 | S152: 100.4651163 | U152: 121.7647059 | V152: 112.3255814 | W152: 31658.82353 | X152: 29204.65116 | Z152: 2454.172367
C153: Anderson <--> 240 | F153: =M25 -> 2980.7684 | G153: 2045 | H153: 17:00 | I153: EB | J153: =$I$164 -> 59.5 | K153: =$J$164 -> 64.5 | M153: 5 | N153: 1.466666667 | O153: 87.26666667 | P153: 94.6 | R153: 108.907563 | S153: 100.4651163 | U153: 90.17450623 | V153: 83.18423443 | W153: 23445.37162 | X153: 21627.90095 | Z153: 1817.470668
C154: Anderson <--> 240 | F154: =M26 -> 2518.182554 | G154: 2045 | H154: 18:00 | I154: EB | J154: 59.5 | K154: 64.5 | M154: 5 | N154: 1.466666667 | O154: 87.26666667 | P154: 94.6 | R154: 108.907563 | S154: 100.4651163 | U154: 76.18031256 | V154: 70.27486198 | W154: 19806.88127 | X154: 18271.46411 | Z154: 1535.417152
C155: Anderson <--> 240 | F155: =N15 -> 2680.609018 | G155: 2045 | H155: 07:00 | I155: WB | J155: =$O$164 -> 28.9 | K155: =$P$164 -> 66.8 | M155: 37.9 | N155: 1.466666667 | O155: 42.38666667 | P155: 97.97333333 | R155: 224.2214533 | S155: 97.00598802 | U155: 166.9583471 | V155: 72.23197952 | W155: 43409.17025 | X155: 18780.31467 | Z155: 24628.85558
C156: Anderson <--> 240 | F156: =N16 -> 3565 | G156: 2045 | H156: 08:00 | I156: WB | J156: =$O$164 -> 28.9 | K156: =$P$164 -> 66.8 | M156: 37.9 | N156: 1.466666667 | O156: 42.38666667 | P156: 97.97333333 | R156: 224.2214533 | S156: 97.00598802 | U156: 222.0415225 | V156: 96.06287425 | W156: 57730.79585 | X156: 24976.34731 | Z156: 32754.44854
C157: Anderson <--> 240 | F157: =N24 -> 1795 | G157: 2045 | H157: 16:00 | I157: WB | J157: =$Q$164 -> 62.4 | K157: =$R$164 -> 68.8 | M157: 6.4 | N157: 1.466666667 | O157: 91.52 | P157: 100.9066667 | R157: 103.8461538 | S157: 94.18604651 | U157: 51.77884615 | V157: 46.9622093 | W157: 13462.5 | X157: 12210.17442 | Z157: 1252.325581
C158: Anderson <--> 240 | F158: =N25 -> 2009.448004 | G158: 2045 | H158: 17:00 | I158: WB | J158: =$Q$164 -> 62.4 | K158: =$R$164 -> 68.8 | M158: 6.4 | N158: 1.466666667 | O158: 91.52 | P158: 100.9066667 | R158: 103.8461538 | S158: 94.18604651 | U158: 57.96484628 | V158: 52.57276755 | W158: 15070.86003 | X158: 13668.91956 | Z158: 1401.940468
C159: Anderson <--> 240 | F159: =N26 -> 1585.769208 | G159: 2045 | H159: 18:00 | I159: WB | J159: 62.4 | K159: =$R$164 -> 68.8 | M159: 6.4 | N159: 1.466666667 | O159: 91.52 | P159: 100.9066667 | R159: 103.8461538 | S159: 94.18604651 | U159: 45.74334254 | V159: 41.48814789 | W159: 11893.26906 | X159: 10786.91845 | Z159: 1106.35061
V160: TOTAL 2045 | W160: =SUM(W150:W159) -> 236689.0043 | X160: =SUM(X150:X159) -> 168859.2697
V161: CAGR | W161: =(W160/W148)^(1/(2045-2015))-1 -> 0.02418506307 | X161: =(X160/X148)^(1/(2045-2015))-1 -> 0.01486785305
C163: No Build 2015 EB AM | D163: Build 2015 EB AM | E163: No Build 2015 EB PM | F163: Build 2015 EB PM | G163: No Build 2045 EB AM | H163: Build 2045 EB AM | I163: No Build 2045 EB PM | J163: Build 2045 EB PM | K163: No Build 2015 WB AM | L163: Build 2015 WB AM | M163: No Build 2015 WB PM | N163: Build 2015 WB PM | O163: No Build 2045 WB AM | P163: Build 2045 WB AM | Q163: No Build 2045 WB PM | R163: Build 2045 WB PM
B164: Average Travel Speed (mi/h) | C164: 64.5 | D164: 66.8 | E164: 63.2 | F164: 67.3 | G164: 63.8 | H164: 66.7 | I164: 59.5 | J164: 64.5 | K164: 64.3 | L164: 69.2 | M164: 64.4 | N164: 68.9 | O164: 28.9 | P164: 66.8 | Q164: 62.4 | R164: 68.8
B165: Average Travel Time (min) | C165: 5.9 | D165: 5.7 | E165: 6 | F165: 5.6 | G165: 5.9 | H165: 5.7 | I165: 6.4 | J165: 5.9 | K165: 6.1 | L165: 5.6 | M165: 6.1 | N165: 5.7 | O165: 13.5 | P165: 5.8 | Q165: 6.3 | R165: 5.7
B168: Highway Capacity Manual (HCM) Software Results -interchange
G170: Annual Travel Time | K170: Annual Travel Time
G171: No Build - 2 Lanes | K171: Build - 3 Lanes
G172: (Vehicle-hours) | H172: (Vehicle-hours) | K172: (Vehicle-hours) | L172: (Vehicle-hours)
G173: 2015 | H173: 2045 | K173: 2015 | L173: 2045
C174: Douglas interchange | E174: AM | G174: =C181*Annual_Number_Weekdays -> 24778 | H174: =G181*Annual_Number_Weekdays -> 297830 | K174: =D181*Annual_Number_Weekdays -> 21788 | L174: =H181*Annual_Number_Weekdays -> 238940
C175: Douglas interchange | E175: PM | G175: =E181*Annual_Number_Weekdays -> 41366 | H175: =I181*Annual_Number_Weekdays -> 683878 | K175: =F181*Annual_Number_Weekdays -> 32552 | L175: =J181*Annual_Number_Weekdays -> 653484
F176: Total | G176: =SUM(G174:G175) -> 66144 | H176: =SUM(H174:H175) -> 981708 | J176: Total | K176: =SUM(K174:K175) -> 54340 | L176: =SUM(L174:L175) -> 892424
F177: CAGR | G177: =(H176/G176)^(1/(2045-2015))-1 -> 0.09408163763 | J177: CAGR | K177: =(L176/K176)^(1/(2045-2015))-1 -> 0.09777934099
C180: No Build 2015 AM | D180: Build 2015 AM | E180: No Build 2015 PM | F180: Build 2015 PM | G180: No Build 2045 AM | H180: Build 2045 AM | I180: No Build 2045 PM | J180: Build 2045 PM
B181: Total Delay (hr) | C181: 95.3 | D181: 83.8 | E181: 159.1 | F181: 125.2 | G181: 1145.5 | H181: 919 | I181: =1337.1+1293.2 -> 2630.3 | J181: 2513.4
B182: Delay/Veh (s) | C182: =0.7+57.3 -> 58 | D182: =1+49.9 -> 50.9 | E182: =1.2+78.8 -> 80 | F182: =1.1+61.7 -> 62.8 | G182: =174.1+283.4 -> 457.5 | H182: =55.7+301.4 -> 357.1 | I182: =418.3+528.3 -> 946.6 | J182: =252+586.8 -> 838.8
C183: =C182*C184 -> 324800
B184: Input Volume | C184: 5600 | E184: 6800 | G184: 9300 | I184: 11300

Sheet Deflation Factors
A1: Table 10.1 - GROSS DOMESTIC PRODUCT AND DEFLATORS USED IN THE HISTORICAL TABLES: 1940 - 2025
A2: (Fiscal Year 2012 = 1.000)
A3: Fiscal Year | B3: GDP (in billions of dollars) | C3: GDP (Chained) Price Index | D3: Composite Outlay Deflators
D4: Total | E4: Total Defense | F4: Total Nondefense | G4: Payment for Individuals | J4: Other Grants | K4: Net Interest | L4: Undis- tributed Offsetting Receipts | M4: All Other | N4: Addendum: Direct Capital
G5: Total | H5: Direct | I5: Grants | N5: Total | O5: Defense | P5: Nondefense
A6: 1940 | B6: 98.2 | C6: 0.0771 | D6: 0.0653 | E6: 0.0614 | F6: 0.0662 | G6: 0.0741 | H6: 0.0741 | I6: 0.0741 | J6: 0.0463 | K6: 0.0771 | L6: 0.0442 | M6: 0.0627 | N6: 0.1378 | O6: 0.143 | P6: 0.1357
A7: 1941 | B7: 116.2 | C7: 0.08 | D7: 0.0724 | E7: 0.0756 | F7: 0.0697 | G7: 0.0767 | H7: 0.0767 | I7: 0.0767 | J7: 0.0419 | K7: 0.08 | L7: 0.0439 | M7: 0.0641 | N7: 0.1487 | O7: 0.1516 | P7: 0.1421
A8: 1942 | B8: 147.7 | C8: 0.086 | D8: 0.0823 | E8: 0.0925 | F8: 0.0633 | G8: 0.0839 | H8: 0.0839 | I8: 0.0839 | J8: 0.0411 | K8: 0.086 | L8: 0.0471 | M8: 0.0553 | N8: 0.1555 | O8: 0.1557 | P8: 0.1533
A9: 1943 | B9: 184.6 | C9: 0.0915 | D9: 0.0912 | E9: 0.0993 | F9: 0.0625 | G9: 0.0929 | H9: 0.0929 | I9: 0.0929 | J9: 0.0438 | K9: 0.0915 | L9: 0.0516 | M9: 0.0542 | N9: 0.1525 | O9: 0.1525 | P9: 0.1562
A10: 1944 | B10: 213.8 | C10: 0.0948 | D10: 0.0837 | E10: 0.0869 | F10: 0.0676 | G10: 0.0998 | H10: 0.0998 | I10: 0.0998 | J10: 0.0461 | K10: 0.0948 | L10: 0.0568 | M10: 0.0578 | N10: 0.1481 | O10: 0.148 | P10: 0.1633
A11: 1945 | B11: 226.4 | C11: 0.0971 | D11: 0.0789 | E11: 0.079 | F11: 0.0778 | G11: 0.105 | H11: 0.105 | I11: 0.1047 | J11: 0.0466 | K11: 0.0971 | L11: 0.0599 | M11: 0.0614 | N11: 0.1381 | O11: 0.138 | P11: 0.169
A12: 1946 | B12: 228 | C12: 0.1045 | D12: 0.0793 | E12: 0.0754 | F12: 0.0958 | G12: 0.1106 | H12: 0.1106 | I12: 0.1104 | J12: 0.0514 | K12: 0.1045 | L12: 0.0623 | M12: 0.0667 | N12: 0.1402 | O12: 0.1398 | P12: 0.1596
A13: 1947 | B13: 238.9 | C13: 0.1159 | D13: 0.0897 | E13: 0.0813 | F13: 0.0955 | G13: 0.1189 | H13: 0.1189 | I13: 0.1188 | J13: 0.1246 | K13: 0.1159 | L13: 0.0661 | M13: 0.0688 | N13: 0.1561 | O13: 0.1557 | P13: 0.1581
A14: 1948 | B14: 261.9 | C14: 0.1269 | D14: 0.0932 | E14: 0.0763 | F14: 0.1034 | G14: 0.1299 | H14: 0.1299 | I14: 0.1298 | J14: 0.07 | K14: 0.1269 | L14: 0.0714 | M14: 0.0757 | N14: 0.1736 | O14: 0.1708 | P14: 0.184
A15: 1949 | B15: 276.5 | C15: 0.1312 | D15: 0.0896 | E15: 0.0759 | F15: 0.0988 | G15: 0.1333 | H15: 0.1333 | I15: 0.1332 | J15: 0.0737 | K15: 0.1312 | L15: 0.0694 | M15: 0.0737 | N15: 0.1823 | O15: 0.18 | P15: 0.1877
A16: 1950 | B16: 278.675 | C16: 0.1294 | D16: 0.0942 | E16: 0.0767 | F16: 0.1056 | G16: 0.1316 | H16: 0.1317 | I16: 0.1312 | J16: 0.0699 | K16: 0.1294 | L16: 0.0731 | M16: 0.0788 | N16: 0.1804 | O16: 0.1793 | P16: 0.1821
A17: 1951 | B17: 327.05 | C17: 0.1363 | D17: 0.0947 | E17: 0.0813 | F17: 0.1151 | G17: 0.139 | H17: 0.1391 | I17: 0.1385 | J17: 0.0836 | K17: 0.1363 | L17: 0.0721 | M17: 0.0805 | N17: 0.1924 | O17: 0.193 | P17: 0.1898
A18: 1952 | B18: 357.1 | C18: 0.1418 | D18: 0.0944 | E18: 0.0845 | F18: 0.1259 | G18: 0.1446 | H18: 0.1446 | I18: 0.1441 | J18: 0.0839 | K18: 0.1418 | L18: 0.0776 | M18: 0.0877 | N18: 0.2019 | O18: 0.2018 | P18: 0.2025
A19: 1953 | B19: 382.05 | C19: 0.1444 | D19: 0.1015 | E19: 0.0933 | F19: 0.1268 | G19: 0.1467 | H19: 0.1468 | I19: 0.1463 | J19: 0.0879 | K19: 0.1444 | L19: 0.0821 | M19: 0.0922 | N19: 0.2045 | O19: 0.2042 | P19: 0.2089
A20: 1954 | B20: 387.15 | C20: 0.1461 | D20: 0.1047 | E20: 0.0949 | F20: 0.1366 | G20: 0.1486 | H20: 0.1486 | I20: 0.1484 | J20: 0.0842 | K20: 0.1461 | L20: 0.085 | M20: 0.0987 | N20: 0.2026 | O20: 0.2023 | P20: 0.2073
A21: 1955 | B21: 406.325 | C21: 0.1472 | D21: 0.1081 | E21: 0.098 | F21: 0.1306 | G21: 0.1485 | H21: 0.1485 | I21: 0.1484 | J21: 0.0858 | K21: 0.1472 | L21: 0.0873 | M21: 0.0954 | N21: 0.2083 | O21: 0.2086 | P21: 0.2033
A22: 1956 | B22: 438.25 | C22: 0.151 | D22: 0.113 | E22: 0.1039 | F22: 0.1302 | G22: 0.1503 | H22: 0.1503 | I22: 0.1502 | J22: 0.0871 | K22: 0.151 | L22: 0.0883 | M22: 0.0951 | N22: 0.2193 | O22: 0.2198 | P22: 0.2107
A23: 1957 | B23: 463.375 | C23: 0.1566 | D23: 0.1186 | E23: 0.1093 | F23: 0.1353 | G23: 0.1545 | H23: 0.1545 | I23: 0.1544 | J23: 0.095 | K23: 0.1566 | L23: 0.0904 | M23: 0.0984 | N23: 0.2315 | O23: 0.2322 | P23: 0.2212
A24: 1958 | B24: 473.475 | C24: 0.1613 | D24: 0.1256 | E24: 0.1144 | F24: 0.1441 | G24: 0.1591 | H24: 0.1591 | I24: 0.159 | J24: 0.1053 | K24: 0.1613 | L24: 0.0967 | M24: 0.1069 | N24: 0.2388 | O24: 0.2397 | P24: 0.228
A25: 1959 | B25: 504.6 | C25: 0.1638 | D25: 0.1308 | E25: 0.1223 | F25: 0.142 | G25: 0.1613 | H25: 0.1613 | I25: 0.1612 | J25: 0.1126 | K25: 0.1638 | L25: 0.1015 | M25: 0.1106 | N25: 0.243 | O25: 0.244 | P25: 0.2317
A26: 1960 | B26: 534.325 | C26: 0.1661 | D26: 0.1328 | E26: 0.121 | F26: 0.1486 | G26: 0.1643 | H26: 0.1644 | I26: 0.1642 | J26: 0.1132 | K26: 0.1661 | L26: 0.1007 | M26: 0.1143 | N26: 0.2447 | O26: 0.2459 | P26: 0.2348
A27: 1961 | B27: 546.575 | C27: 0.1683 | D27: 0.1358 | E27: 0.1233 | F27: 0.1516 | G27: 0.1666 | H27: 0.1666 | I27: 0.1665 | J27: 0.1111 | K27: 0.1683 | L27: 0.1057 | M27: 0.1205 | N27: 0.2461 | O27: 0.2473 | P27: 0.2366
A28: 1962 | B28: 585.675 | C28: 0.17 | D28: 0.1359 | E28: 0.1234 | F28: 0.1505 | G28: 0.1682 | H28: 0.1682 | I28: 0.1681 | J28: 0.1115 | K28: 0.17 | L28: 0.1078 | M28: 0.1224 | N28: 0.2481 | O28: 0.2494 | P28: 0.2387
A29: 1963 | B29: 618.2 | C29: 0.172 | D29: 0.1418 | E29: 0.129 | F29: 0.1562 | G29: 0.1702 | H29: 0.1702 | I29: 0.1701 | J29: 0.1155 | K29: 0.172 | L29: 0.1113 | M29: 0.1302 | N29: 0.2521 | O29: 0.2536 | P29: 0.241
A30: 1964 | B30: 661.7 | C30: 0.1742 | D30: 0.1441 | E30: 0.1307 | F30: 0.158 | G30: 0.1726 | H30: 0.1726 | I30: 0.1725 | J30: 0.1175 | K30: 0.1742 | L30: 0.1149 | M30: 0.1366 | N30: 0.2525 | O30: 0.2538 | P30: 0.2446
A31: 1965 | B31: 709.325 | C31: 0.1772 | D31: 0.1461 | E31: 0.1303 | F31: 0.1606 | G31: 0.1749 | H31: 0.175 | I31: 0.1748 | J31: 0.1207 | K31: 0.1772 | L31: 0.1214 | M31: 0.1423 | N31: 0.2531 | O31: 0.2545 | P31: 0.2468
A32: 1966 | B32: 780.475 | C32: 0.181 | D32: 0.1501 | E32: 0.1365 | F32: 0.1624 | G32: 0.1781 | H32: 0.1781 | I32: 0.178 | J32: 0.1174 | K32: 0.181 | L32: 0.1255 | M32: 0.1464 | N32: 0.2552 | O32: 0.2566 | P32: 0.2482
A33: 1967 | B33: 836.525 | C33: 0.1865 | D33: 0.1534 | E33: 0.1409 | F33: 0.1656 | G33: 0.1829 | H33: 0.1829 | I33: 0.1828 | J33: 0.1189 | K33: 0.1865 | L33: 0.1287 | M33: 0.1484 | N33: 0.259 | O33: 0.26 | P33: 0.252
A34: 1968 | B34: 897.575 | C34: 0.193 | D34: 0.159 | E34: 0.1476 | F34: 0.1703 | G34: 0.1886 | H34: 0.1886 | I34: 0.1885 | J34: 0.1231 | K34: 0.193 | L34: 0.1334 | M34: 0.1516 | N34: 0.2647 | O34: 0.2655 | P34: 0.2577
A35: 1969 | B35: 980.275 | C35: 0.2018 | D35: 0.1691 | E35: 0.156 | F35: 0.1816 | G35: 0.1966 | H35: 0.1966 | I35: 0.1965 | J35: 0.1305 | K35: 0.2018 | L35: 0.1427 | M35: 0.1632 | N35: 0.2748 | O35: 0.2755 | P35: 0.2677
A36: 1970 | B36: 1046.675 | C36: 0.2126 | D36: 0.1785 | E36: 0.164 | F36: 0.1907 | G36: 0.2059 | H36: 0.2059 | I36: 0.2058 | J36: 0.1393 | K36: 0.2126 | L36: 0.1545 | M36: 0.1733 | N36: 0.289 | O36: 0.2897 | P36: 0.2826
A37: 1971 | B37: 1116.55 | C37: 0.2234 | D37: 0.1909 | E37: 0.1742 | F37: 0.2025 | G37: 0.2151 | H37: 0.2151 | I37: 0.215 | J37: 0.1491 | K37: 0.2234 | L37: 0.1701 | M37: 0.1897 | N37: 0.3069 | O37: 0.3079 | P37: 0.3002
A38: 1972 | B38: 1216.25 | C38: 0.234 | D38: 0.2033 | E38: 0.1908 | F38: 0.2105 | G38: 0.2233 | H38: 0.2233 | I38: 0.2232 | J38: 0.1561 | K38: 0.234 | L38: 0.1832 | M38: 0.2021 | N38: 0.3302 | O38: 0.3333 | P38: 0.3147
A39: 1973 | B39: 1352.725 | C39: 0.2442 | D39: 0.2126 | E39: 0.2042 | F39: 0.2166 | G39: 0.2317 | H39: 0.2317 | I39: 0.2316 | J39: 0.1594 | K39: 0.2442 | L39: 0.1938 | M39: 0.2138 | N39: 0.3515 | O39: 0.3569 | P39: 0.328
A40: 1974 | B40: 1482.85 | C40: 0.2616 | D40: 0.2304 | E40: 0.2181 | F40: 0.236 | G40: 0.2504 | H40: 0.2504 | I40: 0.2503 | J40: 0.1744 | K40: 0.2616 | L40: 0.2057 | M40: 0.2261 | N40: 0.3725 | O40: 0.3771 | P40: 0.3533
A41: 1975 | B41: 1606.925 | C41: 0.2886 | D41: 0.2528 | E41: 0.2376 | F41: 0.2586 | G41: 0.2762 | H41: 0.2762 | I41: 0.2761 | J41: 0.1934 | K41: 0.2886 | L41: 0.2211 | M41: 0.241 | N41: 0.4049 | O41: 0.4083 | P41: 0.3924
A42: 1976 | B42: 1786.1 | C42: 0.3087 | D42: 0.2709 | E42: 0.2525 | F42: 0.2773 | G42: 0.2942 | H42: 0.2942 | I42: 0.2941 | J42: 0.2086 | K42: 0.3087 | L42: 0.2395 | M42: 0.2624 | N42: 0.4302 | O42: 0.4342 | P42: 0.4162
A43: TQ | B43: 471.65 | C43: 0.318 | D43: 0.2776 | E43: 0.2574 | F43: 0.2844 | G43: 0.3034 | H43: 0.3034 | I43: 0.3033 | J43: 0.2163 | K43: 0.318 | L43: 0.2467 | M43: 0.2681 | N43: 0.4442 | O43: 0.4497 | P43: 0.4274
A44: 1977 | B44: 2024.325 | C44: 0.331 | D44: 0.2906 | E44: 0.2725 | F44: 0.2968 | G44: 0.3163 | H44: 0.3164 | I44: 0.3162 | J44: 0.2237 | K44: 0.331 | L44: 0.2582 | M44: 0.2818 | N44: 0.4632 | O44: 0.4696 | P44: 0.4409
A45: 1978 | B45: 2273.45 | C45: 0.3533 | D45: 0.3088 | E45: 0.2911 | F45: 0.3144 | G45: 0.3375 | H45: 0.3376 | I45: 0.3374 | J45: 0.2379 | K45: 0.3533 | L45: 0.2746 | M45: 0.2976 | N45: 0.4918 | O45: 0.5007 | P45: 0.4634
A46: 1979 | B46: 2565.575 | C46: 0.3818 | D46: 0.3356 | E46: 0.3149 | F46: 0.3424 | G46: 0.3655 | H46: 0.3656 | I46: 0.3654 | J46: 0.2597 | K46: 0.3818 | L46: 0.2922 | M46: 0.3209 | N46: 0.5257 | O46: 0.535 | P46: 0.4944
A47: 1980 | B47: 2791.9 | C47: 0.4151 | D47: 0.3711 | E47: 0.3485 | F47: 0.3783 | G47: 0.4042 | H47: 0.4043 | I47: 0.4041 | J47: 0.2889 | K47: 0.4151 | L47: 0.3172 | M47: 0.3443 | N47: 0.5652 | O47: 0.5721 | P47: 0.5392
A48: 1981 | B48: 3133.225 | C48: 0.4559 | D48: 0.4122 | E48: 0.3865 | F48: 0.4206 | G48: 0.4436 | H48: 0.4436 | I48: 0.4434 | J48: 0.323 | K48: 0.4559 | L48: 0.346 | M48: 0.3753 | N48: 0.6155 | O48: 0.6223 | P48: 0.5871
A49: 1982 | B49: 3313.35 | C49: 0.4876 | D49: 0.4439 | E49: 0.421 | F49: 0.452 | G49: 0.4711 | H49: 0.4711 | I49: 0.4709 | J49: 0.352 | K49: 0.4876 | L49: 0.3637 | M49: 0.3942 | N49: 0.6637 | O49: 0.6703 | P49: 0.6292
A50: 1983 | B50: 3536 | C50: 0.5089 | D50: 0.4657 | E50: 0.4417 | F50: 0.4747 | G50: 0.4926 | H50: 0.4926 | I50: 0.4924 | J50: 0.3702 | K50: 0.5089 | L50: 0.3757 | M50: 0.4054 | N50: 0.7028 | O50: 0.7106 | P50: 0.651
A51: 1984 | B51: 3949.175 | C51: 0.5271 | D51: 0.488 | E51: 0.4646 | F51: 0.4971 | G51: 0.5115 | H51: 0.5115 | I51: 0.5113 | J51: 0.3895 | K51: 0.5271 | L51: 0.3858 | M51: 0.4282 | N51: 0.7314 | O51: 0.7415 | P51: 0.6689
A52: 1985 | B52: 4265.125 | C52: 0.5447 | D52: 0.5059 | E52: 0.4827 | F52: 0.515 | G52: 0.5294 | H52: 0.5294 | I52: 0.5291 | J52: 0.406 | K52: 0.5447 | L52: 0.4023 | M52: 0.4465 | N52: 0.7382 | O52: 0.7474 | P52: 0.6838
A53: 1986 | B53: 4526.25 | C53: 0.5569 | D53: 0.5165 | E53: 0.4935 | F53: 0.5258 | G53: 0.5432 | H53: 0.5432 | I53: 0.5429 | J53: 0.4206 | K53: 0.5569 | L53: 0.4072 | M53: 0.4464 | N53: 0.733 | O53: 0.7389 | P53: 0.6921
A54: 1987 | B54: 4767.65 | C54: 0.5694 | D54: 0.5314 | E54: 0.5008 | F54: 0.5444 | G54: 0.5571 | H54: 0.5572 | I54: 0.5569 | J54: 0.4421 | K54: 0.5694 | L54: 0.4088 | M54: 0.456 | N54: 0.7258 | O54: 0.7295 | P54: 0.7016
A55: 1988 | B55: 5138.55 | C55: 0.5878 | D55: 0.5497 | E55: 0.5134 | F55: 0.5646 | G55: 0.5783 | H55: 0.5784 | I55: 0.5779 | J55: 0.459 | K55: 0.5878 | L55: 0.4217 | M55: 0.4737 | N55: 0.7272 | O55: 0.7282 | P55: 0.7216
A56: 1989 | B56: 5554.675 | C56: 0.6116 | D56: 0.5714 | E56: 0.5332 | F56: 0.5866 | G56: 0.604 | H56: 0.6041 | I56: 0.6031 | J56: 0.4782 | K56: 0.6116 | L56: 0.4324 | M56: 0.4818 | N56: 0.7437 | O56: 0.7434 | P56: 0.7455
A57: 1990 | B57: 5898.75 | C57: 0.634 | D57: 0.588 | E57: 0.5515 | F57: 0.6004 | G57: 0.6286 | H57: 0.6288 | I57: 0.6273 | J57: 0.5014 | K57: 0.634 | L57: 0.4442 | M57: 0.4834 | N57: 0.757 | O57: 0.7557 | P57: 0.7646
A58: 1991 | B58: 6093.175 | C58: 0.6566 | D58: 0.6143 | E58: 0.5788 | F58: 0.6243 | G58: 0.6536 | H58: 0.6538 | I58: 0.652 | J58: 0.5224 | K58: 0.6566 | L58: 0.4709 | M58: 0.5084 | N58: 0.7749 | O58: 0.7732 | P58: 0.7842
A59: 1992 | B59: 6416.25 | C59: 0.673 | D59: 0.6393 | E59: 0.588 | F59: 0.655 | G59: 0.6707 | H59: 0.671 | I59: 0.6689 | J59: 0.5378 | K59: 0.673 | L59: 0.4876 | M59: 0.5532 | N59: 0.7868 | O59: 0.7859 | P59: 0.7907
A60: 1993 | B60: 6775.325 | C60: 0.6888 | D60: 0.6582 | E60: 0.5939 | F60: 0.6773 | G60: 0.6879 | H60: 0.6884 | I60: 0.6856 | J60: 0.5546 | K60: 0.6888 | L60: 0.513 | M60: 0.596 | N60: 0.8057 | O60: 0.8063 | P60: 0.8035
A61: 1994 | B61: 7176.85 | C61: 0.7038 | D61: 0.6698 | E61: 0.5995 | F61: 0.6891 | G61: 0.7023 | H61: 0.7029 | I61: 0.6992 | J61: 0.5689 | K61: 0.7038 | L61: 0.5361 | M61: 0.6024 | N61: 0.825 | O61: 0.827 | P61: 0.8174
A62: 1995 | B62: 7560.425 | C62: 0.7188 | D62: 0.6897 | E62: 0.6111 | F62: 0.7097 | G62: 0.7174 | H62: 0.7181 | I62: 0.7143 | J62: 0.5884 | K62: 0.7188 | L62: 0.5531 | M62: 0.6429 | N62: 0.846 | O62: 0.8479 | P62: 0.8404
A63: 1996 | B63: 7951.325 | C63: 0.7323 | D63: 0.7042 | E63: 0.6243 | F63: 0.7232 | G63: 0.732 | H63: 0.7326 | I63: 0.7288 | J63: 0.6056 | K63: 0.7323 | L63: 0.5794 | M63: 0.6622 | N63: 0.8567 | O63: 0.8603 | P63: 0.8472
A64: 1997 | B64: 8451.025 | C64: 0.7453 | D64: 0.719 | E64: 0.634 | F64: 0.7392 | G64: 0.7468 | H64: 0.7474 | I64: 0.7435 | J64: 0.6173 | K64: 0.7453 | L64: 0.5937 | M64: 0.6771 | N64: 0.855 | O64: 0.8572 | P64: 0.8492
A65: 1998 | B65: 8930.8 | C65: 0.7546 | D65: 0.725 | E65: 0.646 | F65: 0.7426 | G65: 0.7538 | H65: 0.7543 | I65: 0.7515 | J65: 0.6251 | K65: 0.7546 | L65: 0.606 | M65: 0.6629 | N65: 0.8557 | O65: 0.8572 | P65: 0.8505
A66: 1999 | B66: 9479.35 | C66: 0.7643 | D66: 0.7339 | E66: 0.6589 | F66: 0.7504 | G66: 0.7628 | H66: 0.7632 | I66: 0.7608 | J66: 0.6403 | K66: 0.7643 | L66: 0.6245 | M66: 0.6818 | N66: 0.8643 | O66: 0.8675 | P66: 0.8562
A67: 2000 | B67: 10117.45 | C67: 0.78 | D67: 0.7525 | E67: 0.6821 | F67: 0.7681 | G67: 0.7807 | H67: 0.7812 | I67: 0.7784 | J67: 0.6646 | K67: 0.78 | L67: 0.6568 | M67: 0.7077 | N67: 0.8765 | O67: 0.8782 | P67: 0.8728
A68: 2001 | B68: 10526.5 | C68: 0.7984 | D68: 0.7722 | E68: 0.7054 | F68: 0.7867 | G68: 0.7981 | H68: 0.7985 | I68: 0.796 | J68: 0.6859 | K68: 0.7984 | L68: 0.6714 | M68: 0.7302 | N68: 0.8807 | O68: 0.88 | P68: 0.8821
A69: 2002 | B69: 10833.65 | C69: 0.8112 | D69: 0.7841 | E69: 0.7284 | F69: 0.7969 | G69: 0.8073 | H69: 0.8078 | I69: 0.8054 | J69: 0.6996 | K69: 0.8112 | L69: 0.7092 | M69: 0.7562 | N69: 0.8762 | O69: 0.8739 | P69: 0.8814
A70: 2003 | B70: 11283.8 | C70: 0.826 | D70: 0.8064 | E70: 0.7755 | F70: 0.8139 | G70: 0.8232 | H70: 0.8237 | I70: 0.8213 | J70: 0.7195 | K70: 0.826 | L70: 0.7476 | M70: 0.7885 | N70: 0.8831 | O70: 0.8822 | P70: 0.8854
